Workbook

Sheet Cover
B2: PATHWAYS Output Tool
B3: CEC EPIC Long-Term Energy Scenarios
B6: Prepared by:
B11: 101 Montgomery Street, Suite 1600
B12: San Francisco, CA 94104
B13: (415) 391-5100
B15: 2018-01-08
B19: Table of Contents
B20: Tab Name | C20: Description
B21: Annual GHG Emissions - Sector | C21: Breaks down the total emissions in each case by ARB emissions inventory sector and case
B22: Energy GHG Emissions | C22: Breaks down the total emissions in each case by ARB emissions inventory sector and case, for combustion emissions only
B23: Summary Costs | C23: Provides single-year snapshot views of costs and emissions across cases
B24: Final Energy Demand | C24: Displays the final energy demand across time for a selected case
B25: Generation Portfolio | C25: Displays the generation portfolio and composition of renewables for a selected case
B26: Primary Energy | C26: Provides single-year snapshot views of primary energy across cases
B27: Energy Intensity | C27: Compares energy intensity metrics across cases and years
B28: Fuel Shares | C28: Describes the proportion of various fuel mixes (diesel, gasoline, and natural gas) coming from renewable sources for a given year
B29: NonEnergy GHGs | C29: Greenhouse gas emissions from non-fossil fuel combustion sources
B30: Biomass Utilization | C30: Provides single-year snapshot views of biomass utilization across cases
B31: Final Energy Extended | C31: Provides comprehensive breakdown of final energy including biofuels across time for a selected case, including filtering by end-use sector
B33: Guide to Cell Coloring
B34: Cell Color | C34: Description
B35: Drop-Down Menu | C35: The user can choose an input from a dropdown menu that appears when the cell is selected
B36: Text Entry | C36: The user can enter data (usually a year) as text
B38: Scenario Key
B39: Model Case Name | C39: Scenario Name
B40: Main Scenarios
B41: Reference | C41: Reference: Pre-SB 350 Policy "Business As Usual" (Does not meet 2030 and 2050 targets)
B42: CEC 2050 | C42: High Electrification Scenario: Meets 2030 and 2050 targets
B43: Current Policy Reference | C43: SB 350 Scenario (2 x AAEE, 50% RPS, reductions in short-lived climate pollutants, ARB Mobile Source Strategy)
B44: Alternative Mitigation Scenarios (Each meets the 2030 and 2050 targets with alternative mitigation strategies)
B45: CEC 2050 1 x AAEE | C45: Reference Building EE
B46: CEC 2050 High Biofuels | C46: High Biofuels
B47: CEC 2050 High Biofuels - LCG | C47: No Building Electrification with High Biofuels
B48: CEC 2050 Hydrogen In Plus | C48: High Hydrogen
B49: CEC 2050 In-State Biofuels | C49: In-State Biomass
B50: CEC 2050 No FCEVs Plus | C50: No Hydrogen
B51: CEC 2050 No Heat Pumps Plus | C51: No Building Electrification with Power-to-Gas
B52: CEC 2050 Ref Industry Plus | C52: Reference Industry EE
B53: CEC 2050 Ref LDV VMT Plus | C53: Reference Smart Growth
B54: High SLCPs Plus | C54: Reduced Methane Mitigation

Sheet Annual GHG Emissions - Sector
AP1: Chart Legend
AJ2: Active Case 1 | AL2: Reference | AU2: Emissions are in MMT CO2e.
AJ3: Active Case 2 | AL3: Current Policy Reference
AJ4: Active Case 3 | AL4: CEC 2050 Ref LDV VMT Plus
AJ5: Active Case 4
AJ6: Active Case 5
J9: Need to extend these plots to 2050.
BI13: ="California GHG Emissions by Sector - "&$I$37 -> California GHG Emissions by Sector - PATHWAYS - Reference | BT13: ="California GHG Emissions by Sector - "&$I$48 -> California GHG Emissions by Sector - PATHWAYS - Current Policy Reference | BZ13: ="California GHG Emissions by Sector - "&$I$59 -> California GHG Emissions by Sector - PATHWAYS - CEC 2050 Ref LDV VMT Plus
I37: ="PATHWAYS - "&actCaseAnnGHG_1 -> PATHWAYS - Reference | BZ37: ="California GHG Emissions by Sector - "&$I$71 -> California GHG Emissions by Sector - PATHWAYS -
J38: 1990 | K38: 1991 | L38: 1992 | M38: 1993 | N38: 1994 | O38: 1995 | P38: 1996 | Q38: 1997 | R38: 1998 | S38: 1999 | T38: 2000 | U38: 2001 | V38: 2002 | W38: 2003 | X38: 2004 | Y38: 2005 | Z38: 2006 | AA38: 2007 | AB38: 2008 | AC38: 2009 | AD38: 2010 | AE38: 2011 | AF38: 2012 | AG38: 2013 | AH38: 2014 | AI38: 2015 | AJ38: 2016 | AK38: 2017 | AL38: 2018 | AM38: 2019 | AN38: 2020 | AO38: 2021 | AP38: 2022 | AQ38: 2023 | AR38: 2024 | AS38: 2025 | AT38: 2026 | AU38: 2027 | AV38: 2028 | AW38: 2029 | AX38: 2030 | AY38: 2031 | AZ38: 2032 | BA38: 2033 | BB38: 2034 | BC38: 2035 | BD38: 2036 | BE38: 2037 | BF38: 2038 | BG38: 2039 | BH38: 2040 | BI38: 2041 | BJ38: 2042 | BK38: 2043 | BL38: 2044 | BM38: 2045 | BN38: 2046 | BO38: 2047 | BP38: 2048 | BQ38: 2049 | BR38: 2050 | BT38: 2030 Gap | BU38: 2050 Gap
I39: Agriculture | AI39: =IF(actCaseAnnGHG_1="",NA(),INDEX(Total_Emissions_by_A_vals,MATCH('Annual GHG Emissions - Sector'!AI$38&"#"&actCaseAnnGHG_1&"#"&'Annual GHG Emissions - Sector'!$I39,Total_Emissions_by_A_index,0))) -> 36.30032664 | AJ39: =IF(actCaseAnnGHG_1="",NA(),INDEX(Total_Emissions_by_A_vals,MATCH('Annual GHG Emissions - Sector'!AJ$38&"#"&actCaseAnnGHG_1&"#"&'Annual GHG Emissions - Sector'!$I39,Total_Emissions_by_A_index,0))) -> 36.25262229 | AK39: =IF(actCaseAnnGHG_1="",NA(),INDEX(Total_Emissions_by_A_vals,MATCH('Annual GHG Emissions - Sector'!AK$38&"#"&actCaseAnnGHG_1&"#"&'Annual GHG Emissions - Sector'!$I39,Total_Emissions_by_A_index,0))) -> 36.19365627 | AL39: =IF(actCaseAnnGHG_1="",NA(),INDEX(Total_Emissions_by_A_vals,MATCH('Annual GHG Emissions - Sector'!AL$38&"#"&actCaseAnnGHG_1&"#"&'Annual GHG Emissions - Sector'!$I39,Total_Emissions_by_A_index,0))) -> 36.13284527 | AM39: =IF(actCaseAnnGHG_1="",NA(),INDEX(Total_Emissions_by_A_vals,MATCH('Annual GHG Emissions - Sector'!AM$38&"#"&actCaseAnnGHG_1&"#"&'Annual GHG Emissions - Sector'!$I39,Total_Emissions_by_A_index,0))) -> 36.06833826 | AN39: =IF(actCaseAnnGHG_1="",NA(),INDEX(Total_Emissions_by_A_vals,MATCH('Annual GHG Emissions - Sector'!AN$38&"#"&actCaseAnnGHG_1&"#"&'Annual GHG Emissions - Sector'!$I39,Total_Emissions_by_A_index,0))) -> 36.00230884 | AO39: =IF(actCaseAnnGHG_1="",NA(),INDEX(Total_Emissions_by_A_vals,MATCH('Annual GHG Emissions - Sector'!AO$38&"#"&actCaseAnnGHG_1&"#"&'Annual GHG Emissions - Sector'!$I39,Total_Emissions_by_A_index,0))) -> 35.9778822 | AP39: =IF(actCaseAnnGHG_1="",NA(),INDEX(Total_Emissions_by_A_vals,MATCH('Annual GHG Emissions - Sector'!AP$38&"#"&actCaseAnnGHG_1&"#"&'Annual GHG Emissions - Sector'!$I39,Total_Emissions_by_A_index,0))) -> 35.95083875 | AQ39: =IF(actCaseAnnGHG_1="",NA(),INDEX(Total_Emissions_by_A_vals,MATCH('Annual GHG Emissions - Sector'!AQ$38&"#"&actCaseAnnGHG_1&"#"&'Annual GHG Emissions - Sector'!$I39,Total_Emissions_by_A_index,0))) -> 35.92173651 | AR39: =IF(actCaseAnnGHG_1="",NA(),INDEX(Total_Emissions_by_A_vals,MATCH('Annual GHG Emissions - Sector'!AR$38&"#"&actCaseAnnGHG_1&"#"&'Annual GHG Emissions - Sector'!$I39,Total_Emissions_by_A_index,0))) -> 35.89082326 | AS39: =IF(actCaseAnnGHG_1="",NA(),INDEX(Total_Emissions_by_A_vals,MATCH('Annual GHG Emissions - Sector'!AS$38&"#"&actCaseAnnGHG_1&"#"&'Annual GHG Emissions - Sector'!$I39,Total_Emissions_by_A_index,0))) -> 35.8722152 | AT39: =IF(actCaseAnnGHG_1="",NA(),INDEX(Total_Emissions_by_A_vals,MATCH('Annual GHG Emissions - Sector'!AT$38&"#"&actCaseAnnGHG_1&"#"&'Annual GHG Emissions - Sector'!$I39,Total_Emissions_by_A_index,0))) -> 35.85360656 | AU39: =IF(actCaseAnnGHG_1="",NA(),INDEX(Total_Emissions_by_A_vals,MATCH('Annual GHG Emissions - Sector'!AU$38&"#"&actCaseAnnGHG_1&"#"&'Annual GHG Emissions - Sector'!$I39,Total_Emissions_by_A_index,0))) -> 35.83499728 | AV39: =IF(actCaseAnnGHG_1="",NA(),INDEX(Total_Emissions_by_A_vals,MATCH('Annual GHG Emissions - Sector'!AV$38&"#"&actCaseAnnGHG_1&"#"&'Annual GHG Emissions - Sector'!$I39,Total_Emissions_by_A_index,0))) -> 35.81638726 | AW39: =IF(actCaseAnnGHG_1="",NA(),INDEX(Total_Emissions_by_A_vals,MATCH('Annual GHG Emissions - Sector'!AW$38&"#"&actCaseAnnGHG_1&"#"&'Annual GHG Emissions - Sector'!$I39,Total_Emissions_by_A_index,0))) -> 35.79777647 | AX39: =IF(actCaseAnnGHG_1="",NA(),INDEX(Total_Emissions_by_A_vals,MATCH('Annual GHG Emissions - Sector'!AX$38&"#"&actCaseAnnGHG_1&"#"&'Annual GHG Emissions - Sector'!$I39,Total_Emissions_by_A_index,0))) -> 35.77916481 | AY39: =IF(actCaseAnnGHG_1="",NA(),INDEX(Total_Emissions_by_A_vals,MATCH('Annual GHG Emissions - Sector'!AY$38&"#"&actCaseAnnGHG_1&"#"&'Annual GHG Emissions - Sector'!$I39,Total_Emissions_by_A_index,0))) -> 35.79778745 | AZ39: =IF(actCaseAnnGHG_1="",NA(),INDEX(Total_Emissions_by_A_vals,MATCH('Annual GHG Emissions - Sector'!AZ$38&"#"&actCaseAnnGHG_1&"#"&'Annual GHG Emissions - Sector'!$I39,Total_Emissions_by_A_index,0))) -> 35.8164101 | BA39: =IF(actCaseAnnGHG_1="",NA(),INDEX(Total_Emissions_by_A_vals,MATCH('Annual GHG Emissions - Sector'!BA$38&"#"&actCaseAnnGHG_1&"#"&'Annual GHG Emissions - Sector'!$I39,Total_Emissions_by_A_index,0))) -> 35.83503274 | BB39: =IF(actCaseAnnGHG_1="",NA(),INDEX(Total_Emissions_by_A_vals,MATCH('Annual GHG Emissions - Sector'!BB$38&"#"&actCaseAnnGHG_1&"#"&'Annual GHG Emissions - Sector'!$I39,Total_Emissions_by_A_index,0))) -> 35.85365537 | BC39: =IF(actCaseAnnGHG_1="",NA(),INDEX(Total_Emissions_by_A_vals,MATCH('Annual GHG Emissions - Sector'!BC$38&"#"&actCaseAnnGHG_1&"#"&'Annual GHG Emissions - Sector'!$I39,Total_Emissions_by_A_index,0))) -> 35.87227801 | BD39: =IF(actCaseAnnGHG_1="",NA(),INDEX(Total_Emissions_by_A_vals,MATCH('Annual GHG Emissions - Sector'!BD$38&"#"&actCaseAnnGHG_1&"#"&'Annual GHG Emissions - Sector'!$I39,Total_Emissions_by_A_index,0))) -> 35.89090064 | BE39: =IF(actCaseAnnGHG_1="",NA(),INDEX(Total_Emissions_by_A_vals,MATCH('Annual GHG Emissions - Sector'!BE$38&"#"&actCaseAnnGHG_1&"#"&'Annual GHG Emissions - Sector'!$I39,Total_Emissions_by_A_index,0))) -> 35.90952327 | BF39: =IF(actCaseAnnGHG_1="",NA(),INDEX(Total_Emissions_by_A_vals,MATCH('Annual GHG Emissions - Sector'!BF$38&"#"&actCaseAnnGHG_1&"#"&'Annual GHG Emissions - Sector'!$I39,Total_Emissions_by_A_index,0))) -> 35.92814589 | BG39: =IF(actCaseAnnGHG_1="",NA(),INDEX(Total_Emissions_by_A_vals,MATCH('Annual GHG Emissions - Sector'!BG$38&"#"&actCaseAnnGHG_1&"#"&'Annual GHG Emissions - Sector'!$I39,Total_Emissions_by_A_index,0))) -> 35.94676852 | BH39: =IF(actCaseAnnGHG_1="",NA(),INDEX(Total_Emissions_by_A_vals,MATCH('Annual GHG Emissions - Sector'!BH$38&"#"&actCaseAnnGHG_1&"#"&'Annual GHG Emissions - Sector'!$I39,Total_Emissions_by_A_index,0))) -> 35.96539114 | BI39: =IF(actCaseAnnGHG_1="",NA(),INDEX(Total_Emissions_by_A_vals,MATCH('Annual GHG Emissions - Sector'!BI$38&"#"&actCaseAnnGHG_1&"#"&'Annual GHG Emissions - Sector'!$I39,Total_Emissions_by_A_index,0))) -> 35.99475598 | BJ39: =IF(actCaseAnnGHG_1="",NA(),INDEX(Total_Emissions_by_A_vals,MATCH('Annual GHG Emissions - Sector'!BJ$38&"#"&actCaseAnnGHG_1&"#"&'Annual GHG Emissions - Sector'!$I39,Total_Emissions_by_A_index,0))) -> 36.02412082 | BK39: =IF(actCaseAnnGHG_1="",NA(),INDEX(Total_Emissions_by_A_vals,MATCH('Annual GHG Emissions - Sector'!BK$38&"#"&actCaseAnnGHG_1&"#"&'Annual GHG Emissions - Sector'!$I39,Total_Emissions_by_A_index,0))) -> 36.05348566 | BL39: =IF(actCaseAnnGHG_1="",NA(),INDEX(Total_Emissions_by_A_vals,MATCH('Annual GHG Emissions - Sector'!BL$38&"#"&actCaseAnnGHG_1&"#"&'Annual GHG Emissions - Sector'!$I39,Total_Emissions_by_A_index,0))) -> 36.08285049 | BM39: =IF(actCaseAnnGHG_1="",NA(),INDEX(Total_Emissions_by_A_vals,MATCH('Annual GHG Emissions - Sector'!BM$38&"#"&actCaseAnnGHG_1&"#"&'Annual GHG Emissions - Sector'!$I39,Total_Emissions_by_A_index,0))) -> 36.11221532 | BN39: =IF(actCaseAnnGHG_1="",NA(),INDEX(Total_Emissions_by_A_vals,MATCH('Annual GHG Emissions - Sector'!BN$38&"#"&actCaseAnnGHG_1&"#"&'Annual GHG Emissions - Sector'!$I39,Total_Emissions_by_A_index,0))) -> 36.14158015 | BO39: =IF(actCaseAnnGHG_1="",NA(),INDEX(Total_Emissions_by_A_vals,MATCH('Annual GHG Emissions - Sector'!BO$38&"#"&actCaseAnnGHG_1&"#"&'Annual GHG Emissions - Sector'!$I39,Total_Emissions_by_A_index,0))) -> 36.17094497 | BP39: =IF(actCaseAnnGHG_1="",NA(),INDEX(Total_Emissions_by_A_vals,MATCH('Annual GHG Emissions - Sector'!BP$38&"#"&actCaseAnnGHG_1&"#"&'Annual GHG Emissions - Sector'!$I39,Total_Emissions_by_A_index,0))) -> 36.20030979 | BQ39: =IF(actCaseAnnGHG_1="",NA(),INDEX(Total_Emissions_by_A_vals,MATCH('Annual GHG Emissions - Sector'!BQ$38&"#"&actCaseAnnGHG_1&"#"&'Annual GHG Emissions - Sector'!$I39,Total_Emissions_by_A_index,0))) -> 36.22967461 | BR39: =IF(actCaseAnnGHG_1="",NA(),INDEX(Total_Emissions_by_A_vals,MATCH('Annual GHG Emissions - Sector'!BR$38&"#"&actCaseAnnGHG_1&"#"&'Annual GHG Emissions - Sector'!$I39,Total_Emissions_by_A_index,0))) -> 36.25903943
I40: Residential and Commercial | AI40: =IF(actCaseAnnGHG_1="",NA(),INDEX(Total_Emissions_by_A_vals,MATCH('Annual GHG Emissions - Sector'!AI$38&"#"&actCaseAnnGHG_1&"#"&'Annual GHG Emissions - Sector'!$I40,Total_Emissions_by_A_index,0))) -> 40.66701534 | AJ40: =IF(actCaseAnnGHG_1="",NA(),INDEX(Total_Emissions_by_A_vals,MATCH('Annual GHG Emissions - Sector'!AJ$38&"#"&actCaseAnnGHG_1&"#"&'Annual GHG Emissions - Sector'!$I40,Total_Emissions_by_A_index,0))) -> 40.55385612 | AK40: =IF(actCaseAnnGHG_1="",NA(),INDEX(Total_Emissions_by_A_vals,MATCH('Annual GHG Emissions - Sector'!AK$38&"#"&actCaseAnnGHG_1&"#"&'Annual GHG Emissions - Sector'!$I40,Total_Emissions_by_A_index,0))) -> 40.43574731 | AL40: =IF(actCaseAnnGHG_1="",NA(),INDEX(Total_Emissions_by_A_vals,MATCH('Annual GHG Emissions - Sector'!AL$38&"#"&actCaseAnnGHG_1&"#"&'Annual GHG Emissions - Sector'!$I40,Total_Emissions_by_A_index,0))) -> 40.24549297 | AM40: =IF(actCaseAnnGHG_1="",NA(),INDEX(Total_Emissions_by_A_vals,MATCH('Annual GHG Emissions - Sector'!AM$38&"#"&actCaseAnnGHG_1&"#"&'Annual GHG Emissions - Sector'!$I40,Total_Emissions_by_A_index,0))) -> 40.06140475 | AN40: =IF(actCaseAnnGHG_1="",NA(),INDEX(Total_Emissions_by_A_vals,MATCH('Annual GHG Emissions - Sector'!AN$38&"#"&actCaseAnnGHG_1&"#"&'Annual GHG Emissions - Sector'!$I40,Total_Emissions_by_A_index,0))) -> 39.80486368 | AO40: =IF(actCaseAnnGHG_1="",NA(),INDEX(Total_Emissions_by_A_vals,MATCH('Annual GHG Emissions - Sector'!AO$38&"#"&actCaseAnnGHG_1&"#"&'Annual GHG Emissions - Sector'!$I40,Total_Emissions_by_A_index,0))) -> 39.73377187 | AP40: =IF(actCaseAnnGHG_1="",NA(),INDEX(Total_Emissions_by_A_vals,MATCH('Annual GHG Emissions - Sector'!AP$38&"#"&actCaseAnnGHG_1&"#"&'Annual GHG Emissions - Sector'!$I40,Total_Emissions_by_A_index,0))) -> 39.60184238 | AQ40: =IF(actCaseAnnGHG_1="",NA(),INDEX(Total_Emissions_by_A_vals,MATCH('Annual GHG Emissions - Sector'!AQ$38&"#"&actCaseAnnGHG_1&"#"&'Annual GHG Emissions - Sector'!$I40,Total_Emissions_by_A_index,0))) -> 39.46248804 | AR40: =IF(actCaseAnnGHG_1="",NA(),INDEX(Total_Emissions_by_A_vals,MATCH('Annual GHG Emissions - Sector'!AR$38&"#"&actCaseAnnGHG_1&"#"&'Annual GHG Emissions - Sector'!$I40,Total_Emissions_by_A_index,0))) -> 39.31908173 | AS40: =IF(actCaseAnnGHG_1="",NA(),INDEX(Total_Emissions_by_A_vals,MATCH('Annual GHG Emissions - Sector'!AS$38&"#"&actCaseAnnGHG_1&"#"&'Annual GHG Emissions - Sector'!$I40,Total_Emissions_by_A_index,0))) -> 39.20238213 | AT40: =IF(actCaseAnnGHG_1="",NA(),INDEX(Total_Emissions_by_A_vals,MATCH('Annual GHG Emissions - Sector'!AT$38&"#"&actCaseAnnGHG_1&"#"&'Annual GHG Emissions - Sector'!$I40,Total_Emissions_by_A_index,0))) -> 39.0927034 | AU40: =IF(actCaseAnnGHG_1="",NA(),INDEX(Total_Emissions_by_A_vals,MATCH('Annual GHG Emissions - Sector'!AU$38&"#"&actCaseAnnGHG_1&"#"&'Annual GHG Emissions - Sector'!$I40,Total_Emissions_by_A_index,0))) -> 38.99530231 | AV40: =IF(actCaseAnnGHG_1="",NA(),INDEX(Total_Emissions_by_A_vals,MATCH('Annual GHG Emissions - Sector'!AV$38&"#"&actCaseAnnGHG_1&"#"&'Annual GHG Emissions - Sector'!$I40,Total_Emissions_by_A_index,0))) -> 38.9060512 | AW40: =IF(actCaseAnnGHG_1="",NA(),INDEX(Total_Emissions_by_A_vals,MATCH('Annual GHG Emissions - Sector'!AW$38&"#"&actCaseAnnGHG_1&"#"&'Annual GHG Emissions - Sector'!$I40,Total_Emissions_by_A_index,0))) -> 38.81835574 | AX40: =IF(actCaseAnnGHG_1="",NA(),INDEX(Total_Emissions_by_A_vals,MATCH('Annual GHG Emissions - Sector'!AX$38&"#"&actCaseAnnGHG_1&"#"&'Annual GHG Emissions - Sector'!$I40,Total_Emissions_by_A_index,0))) -> 38.74118761 | AY40: =IF(actCaseAnnGHG_1="",NA(),INDEX(Total_Emissions_by_A_vals,MATCH('Annual GHG Emissions - Sector'!AY$38&"#"&actCaseAnnGHG_1&"#"&'Annual GHG Emissions - Sector'!$I40,Total_Emissions_by_A_index,0))) -> 38.64216784 | AZ40: =IF(actCaseAnnGHG_1="",NA(),INDEX(Total_Emissions_by_A_vals,MATCH('Annual GHG Emissions - Sector'!AZ$38&"#"&actCaseAnnGHG_1&"#"&'Annual GHG Emissions - Sector'!$I40,Total_Emissions_by_A_index,0))) -> 38.56741443 | BA40: =IF(actCaseAnnGHG_1="",NA(),INDEX(Total_Emissions_by_A_vals,MATCH('Annual GHG Emissions - Sector'!BA$38&"#"&actCaseAnnGHG_1&"#"&'Annual GHG Emissions - Sector'!$I40,Total_Emissions_by_A_index,0))) -> 38.51237165 | BB40: =IF(actCaseAnnGHG_1="",NA(),INDEX(Total_Emissions_by_A_vals,MATCH('Annual GHG Emissions - Sector'!BB$38&"#"&actCaseAnnGHG_1&"#"&'Annual GHG Emissions - Sector'!$I40,Total_Emissions_by_A_index,0))) -> 38.45956499 | BC40: =IF(actCaseAnnGHG_1="",NA(),INDEX(Total_Emissions_by_A_vals,MATCH('Annual GHG Emissions - Sector'!BC$38&"#"&actCaseAnnGHG_1&"#"&'Annual GHG Emissions - Sector'!$I40,Total_Emissions_by_A_index,0))) -> 38.41815547 | BD40: =IF(actCaseAnnGHG_1="",NA(),INDEX(Total_Emissions_by_A_vals,MATCH('Annual GHG Emissions - Sector'!BD$38&"#"&actCaseAnnGHG_1&"#"&'Annual GHG Emissions - Sector'!$I40,Total_Emissions_by_A_index,0))) -> 38.38180455 | BE40: =IF(actCaseAnnGHG_1="",NA(),INDEX(Total_Emissions_by_A_vals,MATCH('Annual GHG Emissions - Sector'!BE$38&"#"&actCaseAnnGHG_1&"#"&'Annual GHG Emissions - Sector'!$I40,Total_Emissions_by_A_index,0))) -> 38.35969437 | BF40: =IF(actCaseAnnGHG_1="",NA(),INDEX(Total_Emissions_by_A_vals,MATCH('Annual GHG Emissions - Sector'!BF$38&"#"&actCaseAnnGHG_1&"#"&'Annual GHG Emissions - Sector'!$I40,Total_Emissions_by_A_index,0))) -> 38.35232166 | BG40: =IF(actCaseAnnGHG_1="",NA(),INDEX(Total_Emissions_by_A_vals,MATCH('Annual GHG Emissions - Sector'!BG$38&"#"&actCaseAnnGHG_1&"#"&'Annual GHG Emissions - Sector'!$I40,Total_Emissions_by_A_index,0))) -> 38.35457415 | BH40: =IF(actCaseAnnGHG_1="",NA(),INDEX(Total_Emissions_by_A_vals,MATCH('Annual GHG Emissions - Sector'!BH$38&"#"&actCaseAnnGHG_1&"#"&'Annual GHG Emissions - Sector'!$I40,Total_Emissions_by_A_index,0))) -> 38.36411286 | BI40: =IF(actCaseAnnGHG_1="",NA(),INDEX(Total_Emissions_by_A_vals,MATCH('Annual GHG Emissions - Sector'!BI$38&"#"&actCaseAnnGHG_1&"#"&'Annual GHG Emissions - Sector'!$I40,Total_Emissions_by_A_index,0))) -> 38.38280506 | BJ40: =IF(actCaseAnnGHG_1="",NA(),INDEX(Total_Emissions_by_A_vals,MATCH('Annual GHG Emissions - Sector'!BJ$38&"#"&actCaseAnnGHG_1&"#"&'Annual GHG Emissions - Sector'!$I40,Total_Emissions_by_A_index,0))) -> 38.40824764 | BK40: =IF(actCaseAnnGHG_1="",NA(),INDEX(Total_Emissions_by_A_vals,MATCH('Annual GHG Emissions - Sector'!BK$38&"#"&actCaseAnnGHG_1&"#"&'Annual GHG Emissions - Sector'!$I40,Total_Emissions_by_A_index,0))) -> 38.43887234 | BL40: =IF(actCaseAnnGHG_1="",NA(),INDEX(Total_Emissions_by_A_vals,MATCH('Annual GHG Emissions - Sector'!BL$38&"#"&actCaseAnnGHG_1&"#"&'Annual GHG Emissions - Sector'!$I40,Total_Emissions_by_A_index,0))) -> 38.4729227 | BM40: =IF(actCaseAnnGHG_1="",NA(),INDEX(Total_Emissions_by_A_vals,MATCH('Annual GHG Emissions - Sector'!BM$38&"#"&actCaseAnnGHG_1&"#"&'Annual GHG Emissions - Sector'!$I40,Total_Emissions_by_A_index,0))) -> 38.50876547 | BN40: =IF(actCaseAnnGHG_1="",NA(),INDEX(Total_Emissions_by_A_vals,MATCH('Annual GHG Emissions - Sector'!BN$38&"#"&actCaseAnnGHG_1&"#"&'Annual GHG Emissions - Sector'!$I40,Total_Emissions_by_A_index,0))) -> 38.54472341 | BO40: =IF(actCaseAnnGHG_1="",NA(),INDEX(Total_Emissions_by_A_vals,MATCH('Annual GHG Emissions - Sector'!BO$38&"#"&actCaseAnnGHG_1&"#"&'Annual GHG Emissions - Sector'!$I40,Total_Emissions_by_A_index,0))) -> 38.58038747 | BP40: =IF(actCaseAnnGHG_1="",NA(),INDEX(Total_Emissions_by_A_vals,MATCH('Annual GHG Emissions - Sector'!BP$38&"#"&actCaseAnnGHG_1&"#"&'Annual GHG Emissions - Sector'!$I40,Total_Emissions_by_A_index,0))) -> 38.6157889 | BQ40: =IF(actCaseAnnGHG_1="",NA(),INDEX(Total_Emissions_by_A_vals,MATCH('Annual GHG Emissions - Sector'!BQ$38&"#"&actCaseAnnGHG_1&"#"&'Annual GHG Emissions - Sector'!$I40,Total_Emissions_by_A_index,0))) -> 38.65004768 | BR40: =IF(actCaseAnnGHG_1="",NA(),INDEX(Total_Emissions_by_A_vals,MATCH('Annual GHG Emissions - Sector'!BR$38&"#"&actCaseAnnGHG_1&"#"&'Annual GHG Emissions - Sector'!$I40,Total_Emissions_by_A_index,0))) -> 38.68064873
I41: Electric Power | AI41: =IF(actCaseAnnGHG_1="",NA(),INDEX(Total_Emissions_by_A_vals,MATCH('Annual GHG Emissions - Sector'!AI$38&"#"&actCaseAnnGHG_1&"#"&'Annual GHG Emissions - Sector'!$I41,Total_Emissions_by_A_index,0))) -> 80.30542201 | AJ41: =IF(actCaseAnnGHG_1="",NA(),INDEX(Total_Emissions_by_A_vals,MATCH('Annual GHG Emissions - Sector'!AJ$38&"#"&actCaseAnnGHG_1&"#"&'Annual GHG Emissions - Sector'!$I41,Total_Emissions_by_A_index,0))) -> 78.99691744 | AK41: =IF(actCaseAnnGHG_1="",NA(),INDEX(Total_Emissions_by_A_vals,MATCH('Annual GHG Emissions - Sector'!AK$38&"#"&actCaseAnnGHG_1&"#"&'Annual GHG Emissions - Sector'!$I41,Total_Emissions_by_A_index,0))) -> 74.78172055 | AL41: =IF(actCaseAnnGHG_1="",NA(),INDEX(Total_Emissions_by_A_vals,MATCH('Annual GHG Emissions - Sector'!AL$38&"#"&actCaseAnnGHG_1&"#"&'Annual GHG Emissions - Sector'!$I41,Total_Emissions_by_A_index,0))) -> 75.0768735 | AM41: =IF(actCaseAnnGHG_1="",NA(),INDEX(Total_Emissions_by_A_vals,MATCH('Annual GHG Emissions - Sector'!AM$38&"#"&actCaseAnnGHG_1&"#"&'Annual GHG Emissions - Sector'!$I41,Total_Emissions_by_A_index,0))) -> 75.14090957 | AN41: =IF(actCaseAnnGHG_1="",NA(),INDEX(Total_Emissions_by_A_vals,MATCH('Annual GHG Emissions - Sector'!AN$38&"#"&actCaseAnnGHG_1&"#"&'Annual GHG Emissions - Sector'!$I41,Total_Emissions_by_A_index,0))) -> 74.53287797 | AO41: =IF(actCaseAnnGHG_1="",NA(),INDEX(Total_Emissions_by_A_vals,MATCH('Annual GHG Emissions - Sector'!AO$38&"#"&actCaseAnnGHG_1&"#"&'Annual GHG Emissions - Sector'!$I41,Total_Emissions_by_A_index,0))) -> 74.00118965 | AP41: =IF(actCaseAnnGHG_1="",NA(),INDEX(Total_Emissions_by_A_vals,MATCH('Annual GHG Emissions - Sector'!AP$38&"#"&actCaseAnnGHG_1&"#"&'Annual GHG Emissions - Sector'!$I41,Total_Emissions_by_A_index,0))) -> 73.83573752 | AQ41: =IF(actCaseAnnGHG_1="",NA(),INDEX(Total_Emissions_by_A_vals,MATCH('Annual GHG Emissions - Sector'!AQ$38&"#"&actCaseAnnGHG_1&"#"&'Annual GHG Emissions - Sector'!$I41,Total_Emissions_by_A_index,0))) -> 73.66701597 | AR41: =IF(actCaseAnnGHG_1="",NA(),INDEX(Total_Emissions_by_A_vals,MATCH('Annual GHG Emissions - Sector'!AR$38&"#"&actCaseAnnGHG_1&"#"&'Annual GHG Emissions - Sector'!$I41,Total_Emissions_by_A_index,0))) -> 73.68322902 | AS41: =IF(actCaseAnnGHG_1="",NA(),INDEX(Total_Emissions_by_A_vals,MATCH('Annual GHG Emissions - Sector'!AS$38&"#"&actCaseAnnGHG_1&"#"&'Annual GHG Emissions - Sector'!$I41,Total_Emissions_by_A_index,0))) -> 66.92382198 | AT41: =IF(actCaseAnnGHG_1="",NA(),INDEX(Total_Emissions_by_A_vals,MATCH('Annual GHG Emissions - Sector'!AT$38&"#"&actCaseAnnGHG_1&"#"&'Annual GHG Emissions - Sector'!$I41,Total_Emissions_by_A_index,0))) -> 67.32251562 | AU41: =IF(actCaseAnnGHG_1="",NA(),INDEX(Total_Emissions_by_A_vals,MATCH('Annual GHG Emissions - Sector'!AU$38&"#"&actCaseAnnGHG_1&"#"&'Annual GHG Emissions - Sector'!$I41,Total_Emissions_by_A_index,0))) -> 67.23960648 | AV41: =IF(actCaseAnnGHG_1="",NA(),INDEX(Total_Emissions_by_A_vals,MATCH('Annual GHG Emissions - Sector'!AV$38&"#"&actCaseAnnGHG_1&"#"&'Annual GHG Emissions - Sector'!$I41,Total_Emissions_by_A_index,0))) -> 71.42289835 | AW41: =IF(actCaseAnnGHG_1="",NA(),INDEX(Total_Emissions_by_A_vals,MATCH('Annual GHG Emissions - Sector'!AW$38&"#"&actCaseAnnGHG_1&"#"&'Annual GHG Emissions - Sector'!$I41,Total_Emissions_by_A_index,0))) -> 71.25236941 | AX41: =IF(actCaseAnnGHG_1="",NA(),INDEX(Total_Emissions_by_A_vals,MATCH('Annual GHG Emissions - Sector'!AX$38&"#"&actCaseAnnGHG_1&"#"&'Annual GHG Emissions - Sector'!$I41,Total_Emissions_by_A_index,0))) -> 70.85136893 | AY41: =IF(actCaseAnnGHG_1="",NA(),INDEX(Total_Emissions_by_A_vals,MATCH('Annual GHG Emissions - Sector'!AY$38&"#"&actCaseAnnGHG_1&"#"&'Annual GHG Emissions - Sector'!$I41,Total_Emissions_by_A_index,0))) -> 72.31616291 | AZ41: =IF(actCaseAnnGHG_1="",NA(),INDEX(Total_Emissions_by_A_vals,MATCH('Annual GHG Emissions - Sector'!AZ$38&"#"&actCaseAnnGHG_1&"#"&'Annual GHG Emissions - Sector'!$I41,Total_Emissions_by_A_index,0))) -> 72.9359066 | BA41: =IF(actCaseAnnGHG_1="",NA(),INDEX(Total_Emissions_by_A_vals,MATCH('Annual GHG Emissions - Sector'!BA$38&"#"&actCaseAnnGHG_1&"#"&'Annual GHG Emissions - Sector'!$I41,Total_Emissions_by_A_index,0))) -> 73.65002851 | BB41: =IF(actCaseAnnGHG_1="",NA(),INDEX(Total_Emissions_by_A_vals,MATCH('Annual GHG Emissions - Sector'!BB$38&"#"&actCaseAnnGHG_1&"#"&'Annual GHG Emissions - Sector'!$I41,Total_Emissions_by_A_index,0))) -> 74.28543781 | BC41: =IF(actCaseAnnGHG_1="",NA(),INDEX(Total_Emissions_by_A_vals,MATCH('Annual GHG Emissions - Sector'!BC$38&"#"&actCaseAnnGHG_1&"#"&'Annual GHG Emissions - Sector'!$I41,Total_Emissions_by_A_index,0))) -> 74.71449365 | BD41: =IF(actCaseAnnGHG_1="",NA(),INDEX(Total_Emissions_by_A_vals,MATCH('Annual GHG Emissions - Sector'!BD$38&"#"&actCaseAnnGHG_1&"#"&'Annual GHG Emissions - Sector'!$I41,Total_Emissions_by_A_index,0))) -> 75.16925392 | BE41: =IF(actCaseAnnGHG_1="",NA(),INDEX(Total_Emissions_by_A_vals,MATCH('Annual GHG Emissions - Sector'!BE$38&"#"&actCaseAnnGHG_1&"#"&'Annual GHG Emissions - Sector'!$I41,Total_Emissions_by_A_index,0))) -> 75.5461222 | BF41: =IF(actCaseAnnGHG_1="",NA(),INDEX(Total_Emissions_by_A_vals,MATCH('Annual GHG Emissions - Sector'!BF$38&"#"&actCaseAnnGHG_1&"#"&'Annual GHG Emissions - Sector'!$I41,Total_Emissions_by_A_index,0))) -> 75.93267642 | BG41: =IF(actCaseAnnGHG_1="",NA(),INDEX(Total_Emissions_by_A_vals,MATCH('Annual GHG Emissions - Sector'!BG$38&"#"&actCaseAnnGHG_1&"#"&'Annual GHG Emissions - Sector'!$I41,Total_Emissions_by_A_index,0))) -> 76.35035936 | BH41: =IF(actCaseAnnGHG_1="",NA(),INDEX(Total_Emissions_by_A_vals,MATCH('Annual GHG Emissions - Sector'!BH$38&"#"&actCaseAnnGHG_1&"#"&'Annual GHG Emissions - Sector'!$I41,Total_Emissions_by_A_index,0))) -> 76.7984421 | BI41: =IF(actCaseAnnGHG_1="",NA(),INDEX(Total_Emissions_by_A_vals,MATCH('Annual GHG Emissions - Sector'!BI$38&"#"&actCaseAnnGHG_1&"#"&'Annual GHG Emissions - Sector'!$I41,Total_Emissions_by_A_index,0))) -> 77.29246237 | BJ41: =IF(actCaseAnnGHG_1="",NA(),INDEX(Total_Emissions_by_A_vals,MATCH('Annual GHG Emissions - Sector'!BJ$38&"#"&actCaseAnnGHG_1&"#"&'Annual GHG Emissions - Sector'!$I41,Total_Emissions_by_A_index,0))) -> 77.79775723 | BK41: =IF(actCaseAnnGHG_1="",NA(),INDEX(Total_Emissions_by_A_vals,MATCH('Annual GHG Emissions - Sector'!BK$38&"#"&actCaseAnnGHG_1&"#"&'Annual GHG Emissions - Sector'!$I41,Total_Emissions_by_A_index,0))) -> 78.34809344 | BL41: =IF(actCaseAnnGHG_1="",NA(),INDEX(Total_Emissions_by_A_vals,MATCH('Annual GHG Emissions - Sector'!BL$38&"#"&actCaseAnnGHG_1&"#"&'Annual GHG Emissions - Sector'!$I41,Total_Emissions_by_A_index,0))) -> 78.898133 | BM41: =IF(actCaseAnnGHG_1="",NA(),INDEX(Total_Emissions_by_A_vals,MATCH('Annual GHG Emissions - Sector'!BM$38&"#"&actCaseAnnGHG_1&"#"&'Annual GHG Emissions - Sector'!$I41,Total_Emissions_by_A_index,0))) -> 79.48956242 | BN41: =IF(actCaseAnnGHG_1="",NA(),INDEX(Total_Emissions_by_A_vals,MATCH('Annual GHG Emissions - Sector'!BN$38&"#"&actCaseAnnGHG_1&"#"&'Annual GHG Emissions - Sector'!$I41,Total_Emissions_by_A_index,0))) -> 80.09136941 | BO41: =IF(actCaseAnnGHG_1="",NA(),INDEX(Total_Emissions_by_A_vals,MATCH('Annual GHG Emissions - Sector'!BO$38&"#"&actCaseAnnGHG_1&"#"&'Annual GHG Emissions - Sector'!$I41,Total_Emissions_by_A_index,0))) -> 83.81758188 | BP41: =IF(actCaseAnnGHG_1="",NA(),INDEX(Total_Emissions_by_A_vals,MATCH('Annual GHG Emissions - Sector'!BP$38&"#"&actCaseAnnGHG_1&"#"&'Annual GHG Emissions - Sector'!$I41,Total_Emissions_by_A_index,0))) -> 84.41332628 | BQ41: =IF(actCaseAnnGHG_1="",NA(),INDEX(Total_Emissions_by_A_vals,MATCH('Annual GHG Emissions - Sector'!BQ$38&"#"&actCaseAnnGHG_1&"#"&'Annual GHG Emissions - Sector'!$I41,Total_Emissions_by_A_index,0))) -> 85.03625792 | BR41: =IF(actCaseAnnGHG_1="",NA(),INDEX(Total_Emissions_by_A_vals,MATCH('Annual GHG Emissions - Sector'!BR$38&"#"&actCaseAnnGHG_1&"#"&'Annual GHG Emissions - Sector'!$I41,Total_Emissions_by_A_index,0))) -> 85.76194709
I42: High GWP | AI42: =IF(actCaseAnnGHG_1="",NA(),INDEX(Total_Emissions_by_A_vals,MATCH('Annual GHG Emissions - Sector'!AI$38&"#"&actCaseAnnGHG_1&"#"&'Annual GHG Emissions - Sector'!$I42,Total_Emissions_by_A_index,0))) -> 17.91333132 | AJ42: =IF(actCaseAnnGHG_1="",NA(),INDEX(Total_Emissions_by_A_vals,MATCH('Annual GHG Emissions - Sector'!AJ$38&"#"&actCaseAnnGHG_1&"#"&'Annual GHG Emissions - Sector'!$I42,Total_Emissions_by_A_index,0))) -> 18.33947077 | AK42: =IF(actCaseAnnGHG_1="",NA(),INDEX(Total_Emissions_by_A_vals,MATCH('Annual GHG Emissions - Sector'!AK$38&"#"&actCaseAnnGHG_1&"#"&'Annual GHG Emissions - Sector'!$I42,Total_Emissions_by_A_index,0))) -> 19.25642733 | AL42: =IF(actCaseAnnGHG_1="",NA(),INDEX(Total_Emissions_by_A_vals,MATCH('Annual GHG Emissions - Sector'!AL$38&"#"&actCaseAnnGHG_1&"#"&'Annual GHG Emissions - Sector'!$I42,Total_Emissions_by_A_index,0))) -> 19.89773193 | AM42: =IF(actCaseAnnGHG_1="",NA(),INDEX(Total_Emissions_by_A_vals,MATCH('Annual GHG Emissions - Sector'!AM$38&"#"&actCaseAnnGHG_1&"#"&'Annual GHG Emissions - Sector'!$I42,Total_Emissions_by_A_index,0))) -> 20.79873905 | AN42: =IF(actCaseAnnGHG_1="",NA(),INDEX(Total_Emissions_by_A_vals,MATCH('Annual GHG Emissions - Sector'!AN$38&"#"&actCaseAnnGHG_1&"#"&'Annual GHG Emissions - Sector'!$I42,Total_Emissions_by_A_index,0))) -> 21.57351276 | AO42: =IF(actCaseAnnGHG_1="",NA(),INDEX(Total_Emissions_by_A_vals,MATCH('Annual GHG Emissions - Sector'!AO$38&"#"&actCaseAnnGHG_1&"#"&'Annual GHG Emissions - Sector'!$I42,Total_Emissions_by_A_index,0))) -> 22.34318754 | AP42: =IF(actCaseAnnGHG_1="",NA(),INDEX(Total_Emissions_by_A_vals,MATCH('Annual GHG Emissions - Sector'!AP$38&"#"&actCaseAnnGHG_1&"#"&'Annual GHG Emissions - Sector'!$I42,Total_Emissions_by_A_index,0))) -> 23.12255239 | AQ42: =IF(actCaseAnnGHG_1="",NA(),INDEX(Total_Emissions_by_A_vals,MATCH('Annual GHG Emissions - Sector'!AQ$38&"#"&actCaseAnnGHG_1&"#"&'Annual GHG Emissions - Sector'!$I42,Total_Emissions_by_A_index,0))) -> 23.90918869 | AR42: =IF(actCaseAnnGHG_1="",NA(),INDEX(Total_Emissions_by_A_vals,MATCH('Annual GHG Emissions - Sector'!AR$38&"#"&actCaseAnnGHG_1&"#"&'Annual GHG Emissions - Sector'!$I42,Total_Emissions_by_A_index,0))) -> 24.70250639 | AS42: =IF(actCaseAnnGHG_1="",NA(),INDEX(Total_Emissions_by_A_vals,MATCH('Annual GHG Emissions - Sector'!AS$38&"#"&actCaseAnnGHG_1&"#"&'Annual GHG Emissions - Sector'!$I42,Total_Emissions_by_A_index,0))) -> 25.45238963 | AT42: =IF(actCaseAnnGHG_1="",NA(),INDEX(Total_Emissions_by_A_vals,MATCH('Annual GHG Emissions - Sector'!AT$38&"#"&actCaseAnnGHG_1&"#"&'Annual GHG Emissions - Sector'!$I42,Total_Emissions_by_A_index,0))) -> 25.95378847 | AU42: =IF(actCaseAnnGHG_1="",NA(),INDEX(Total_Emissions_by_A_vals,MATCH('Annual GHG Emissions - Sector'!AU$38&"#"&actCaseAnnGHG_1&"#"&'Annual GHG Emissions - Sector'!$I42,Total_Emissions_by_A_index,0))) -> 26.45904255 | AV42: =IF(actCaseAnnGHG_1="",NA(),INDEX(Total_Emissions_by_A_vals,MATCH('Annual GHG Emissions - Sector'!AV$38&"#"&actCaseAnnGHG_1&"#"&'Annual GHG Emissions - Sector'!$I42,Total_Emissions_by_A_index,0))) -> 26.96900199 | AW42: =IF(actCaseAnnGHG_1="",NA(),INDEX(Total_Emissions_by_A_vals,MATCH('Annual GHG Emissions - Sector'!AW$38&"#"&actCaseAnnGHG_1&"#"&'Annual GHG Emissions - Sector'!$I42,Total_Emissions_by_A_index,0))) -> 27.48236744 | AX42: =IF(actCaseAnnGHG_1="",NA(),INDEX(Total_Emissions_by_A_vals,MATCH('Annual GHG Emissions - Sector'!AX$38&"#"&actCaseAnnGHG_1&"#"&'Annual GHG Emissions - Sector'!$I42,Total_Emissions_by_A_index,0))) -> 28 | AY42: =IF(actCaseAnnGHG_1="",NA(),INDEX(Total_Emissions_by_A_vals,MATCH('Annual GHG Emissions - Sector'!AY$38&"#"&actCaseAnnGHG_1&"#"&'Annual GHG Emissions - Sector'!$I42,Total_Emissions_by_A_index,0))) -> 28.10672131 | AZ42: =IF(actCaseAnnGHG_1="",NA(),INDEX(Total_Emissions_by_A_vals,MATCH('Annual GHG Emissions - Sector'!AZ$38&"#"&actCaseAnnGHG_1&"#"&'Annual GHG Emissions - Sector'!$I42,Total_Emissions_by_A_index,0))) -> 28.2132226 | BA42: =IF(actCaseAnnGHG_1="",NA(),INDEX(Total_Emissions_by_A_vals,MATCH('Annual GHG Emissions - Sector'!BA$38&"#"&actCaseAnnGHG_1&"#"&'Annual GHG Emissions - Sector'!$I42,Total_Emissions_by_A_index,0))) -> 28.32096948 | BB42: =IF(actCaseAnnGHG_1="",NA(),INDEX(Total_Emissions_by_A_vals,MATCH('Annual GHG Emissions - Sector'!BB$38&"#"&actCaseAnnGHG_1&"#"&'Annual GHG Emissions - Sector'!$I42,Total_Emissions_by_A_index,0))) -> 28.43111704 | BC42: =IF(actCaseAnnGHG_1="",NA(),INDEX(Total_Emissions_by_A_vals,MATCH('Annual GHG Emissions - Sector'!BC$38&"#"&actCaseAnnGHG_1&"#"&'Annual GHG Emissions - Sector'!$I42,Total_Emissions_by_A_index,0))) -> 28.54272412 | BD42: =IF(actCaseAnnGHG_1="",NA(),INDEX(Total_Emissions_by_A_vals,MATCH('Annual GHG Emissions - Sector'!BD$38&"#"&actCaseAnnGHG_1&"#"&'Annual GHG Emissions - Sector'!$I42,Total_Emissions_by_A_index,0))) -> 28.69238367 | BE42: =IF(actCaseAnnGHG_1="",NA(),INDEX(Total_Emissions_by_A_vals,MATCH('Annual GHG Emissions - Sector'!BE$38&"#"&actCaseAnnGHG_1&"#"&'Annual GHG Emissions - Sector'!$I42,Total_Emissions_by_A_index,0))) -> 28.84345067 | BF42: =IF(actCaseAnnGHG_1="",NA(),INDEX(Total_Emissions_by_A_vals,MATCH('Annual GHG Emissions - Sector'!BF$38&"#"&actCaseAnnGHG_1&"#"&'Annual GHG Emissions - Sector'!$I42,Total_Emissions_by_A_index,0))) -> 28.99622234 | BG42: =IF(actCaseAnnGHG_1="",NA(),INDEX(Total_Emissions_by_A_vals,MATCH('Annual GHG Emissions - Sector'!BG$38&"#"&actCaseAnnGHG_1&"#"&'Annual GHG Emissions - Sector'!$I42,Total_Emissions_by_A_index,0))) -> 29.15082937 | BH42: =IF(actCaseAnnGHG_1="",NA(),INDEX(Total_Emissions_by_A_vals,MATCH('Annual GHG Emissions - Sector'!BH$38&"#"&actCaseAnnGHG_1&"#"&'Annual GHG Emissions - Sector'!$I42,Total_Emissions_by_A_index,0))) -> 29.3074271 | BI42: =IF(actCaseAnnGHG_1="",NA(),INDEX(Total_Emissions_by_A_vals,MATCH('Annual GHG Emissions - Sector'!BI$38&"#"&actCaseAnnGHG_1&"#"&'Annual GHG Emissions - Sector'!$I42,Total_Emissions_by_A_index,0))) -> 29.44046572 | BJ42: =IF(actCaseAnnGHG_1="",NA(),INDEX(Total_Emissions_by_A_vals,MATCH('Annual GHG Emissions - Sector'!BJ$38&"#"&actCaseAnnGHG_1&"#"&'Annual GHG Emissions - Sector'!$I42,Total_Emissions_by_A_index,0))) -> 29.57641454 | BK42: =IF(actCaseAnnGHG_1="",NA(),INDEX(Total_Emissions_by_A_vals,MATCH('Annual GHG Emissions - Sector'!BK$38&"#"&actCaseAnnGHG_1&"#"&'Annual GHG Emissions - Sector'!$I42,Total_Emissions_by_A_index,0))) -> 29.71534945 | BL42: =IF(actCaseAnnGHG_1="",NA(),INDEX(Total_Emissions_by_A_vals,MATCH('Annual GHG Emissions - Sector'!BL$38&"#"&actCaseAnnGHG_1&"#"&'Annual GHG Emissions - Sector'!$I42,Total_Emissions_by_A_index,0))) -> 29.85746272 | BM42: =IF(actCaseAnnGHG_1="",NA(),INDEX(Total_Emissions_by_A_vals,MATCH('Annual GHG Emissions - Sector'!BM$38&"#"&actCaseAnnGHG_1&"#"&'Annual GHG Emissions - Sector'!$I42,Total_Emissions_by_A_index,0))) -> 30.00290762 | BN42: =IF(actCaseAnnGHG_1="",NA(),INDEX(Total_Emissions_by_A_vals,MATCH('Annual GHG Emissions - Sector'!BN$38&"#"&actCaseAnnGHG_1&"#"&'Annual GHG Emissions - Sector'!$I42,Total_Emissions_by_A_index,0))) -> 30.1436821 | BO42: =IF(actCaseAnnGHG_1="",NA(),INDEX(Total_Emissions_by_A_vals,MATCH('Annual GHG Emissions - Sector'!BO$38&"#"&actCaseAnnGHG_1&"#"&'Annual GHG Emissions - Sector'!$I42,Total_Emissions_by_A_index,0))) -> 30.28831541 | BP42: =IF(actCaseAnnGHG_1="",NA(),INDEX(Total_Emissions_by_A_vals,MATCH('Annual GHG Emissions - Sector'!BP$38&"#"&actCaseAnnGHG_1&"#"&'Annual GHG Emissions - Sector'!$I42,Total_Emissions_by_A_index,0))) -> 30.43689074 | BQ42: =IF(actCaseAnnGHG_1="",NA(),INDEX(Total_Emissions_by_A_vals,MATCH('Annual GHG Emissions - Sector'!BQ$38&"#"&actCaseAnnGHG_1&"#"&'Annual GHG Emissions - Sector'!$I42,Total_Emissions_by_A_index,0))) -> 30.58960936 | BR42: =IF(actCaseAnnGHG_1="",NA(),INDEX(Total_Emissions_by_A_vals,MATCH('Annual GHG Emissions - Sector'!BR$38&"#"&actCaseAnnGHG_1&"#"&'Annual GHG Emissions - Sector'!$I42,Total_Emissions_by_A_index,0))) -> 30.74659742
I43: Industrial | AI43: =IF(actCaseAnnGHG_1="",NA(),INDEX(Total_Emissions_by_A_vals,MATCH('Annual GHG Emissions - Sector'!AI$38&"#"&actCaseAnnGHG_1&"#"&'Annual GHG Emissions - Sector'!$I43,Total_Emissions_by_A_index,0))) -> 92.38522582 | AJ43: =IF(actCaseAnnGHG_1="",NA(),INDEX(Total_Emissions_by_A_vals,MATCH('Annual GHG Emissions - Sector'!AJ$38&"#"&actCaseAnnGHG_1&"#"&'Annual GHG Emissions - Sector'!$I43,Total_Emissions_by_A_index,0))) -> 91.37812021 | AK43: =IF(actCaseAnnGHG_1="",NA(),INDEX(Total_Emissions_by_A_vals,MATCH('Annual GHG Emissions - Sector'!AK$38&"#"&actCaseAnnGHG_1&"#"&'Annual GHG Emissions - Sector'!$I43,Total_Emissions_by_A_index,0))) -> 90.49465635 | AL43: =IF(actCaseAnnGHG_1="",NA(),INDEX(Total_Emissions_by_A_vals,MATCH('Annual GHG Emissions - Sector'!AL$38&"#"&actCaseAnnGHG_1&"#"&'Annual GHG Emissions - Sector'!$I43,Total_Emissions_by_A_index,0))) -> 89.88844153 | AM43: =IF(actCaseAnnGHG_1="",NA(),INDEX(Total_Emissions_by_A_vals,MATCH('Annual GHG Emissions - Sector'!AM$38&"#"&actCaseAnnGHG_1&"#"&'Annual GHG Emissions - Sector'!$I43,Total_Emissions_by_A_index,0))) -> 89.16727764 | AN43: =IF(actCaseAnnGHG_1="",NA(),INDEX(Total_Emissions_by_A_vals,MATCH('Annual GHG Emissions - Sector'!AN$38&"#"&actCaseAnnGHG_1&"#"&'Annual GHG Emissions - Sector'!$I43,Total_Emissions_by_A_index,0))) -> 88.51726058 | AO43: =IF(actCaseAnnGHG_1="",NA(),INDEX(Total_Emissions_by_A_vals,MATCH('Annual GHG Emissions - Sector'!AO$38&"#"&actCaseAnnGHG_1&"#"&'Annual GHG Emissions - Sector'!$I43,Total_Emissions_by_A_index,0))) -> 88.14134414 | AP43: =IF(actCaseAnnGHG_1="",NA(),INDEX(Total_Emissions_by_A_vals,MATCH('Annual GHG Emissions - Sector'!AP$38&"#"&actCaseAnnGHG_1&"#"&'Annual GHG Emissions - Sector'!$I43,Total_Emissions_by_A_index,0))) -> 87.81453877 | AQ43: =IF(actCaseAnnGHG_1="",NA(),INDEX(Total_Emissions_by_A_vals,MATCH('Annual GHG Emissions - Sector'!AQ$38&"#"&actCaseAnnGHG_1&"#"&'Annual GHG Emissions - Sector'!$I43,Total_Emissions_by_A_index,0))) -> 87.49765212 | AR43: =IF(actCaseAnnGHG_1="",NA(),INDEX(Total_Emissions_by_A_vals,MATCH('Annual GHG Emissions - Sector'!AR$38&"#"&actCaseAnnGHG_1&"#"&'Annual GHG Emissions - Sector'!$I43,Total_Emissions_by_A_index,0))) -> 87.14224658 | AS43: =IF(actCaseAnnGHG_1="",NA(),INDEX(Total_Emissions_by_A_vals,MATCH('Annual GHG Emissions - Sector'!AS$38&"#"&actCaseAnnGHG_1&"#"&'Annual GHG Emissions - Sector'!$I43,Total_Emissions_by_A_index,0))) -> 87.32677755 | AT43: =IF(actCaseAnnGHG_1="",NA(),INDEX(Total_Emissions_by_A_vals,MATCH('Annual GHG Emissions - Sector'!AT$38&"#"&actCaseAnnGHG_1&"#"&'Annual GHG Emissions - Sector'!$I43,Total_Emissions_by_A_index,0))) -> 87.42424805 | AU43: =IF(actCaseAnnGHG_1="",NA(),INDEX(Total_Emissions_by_A_vals,MATCH('Annual GHG Emissions - Sector'!AU$38&"#"&actCaseAnnGHG_1&"#"&'Annual GHG Emissions - Sector'!$I43,Total_Emissions_by_A_index,0))) -> 87.51785302 | AV43: =IF(actCaseAnnGHG_1="",NA(),INDEX(Total_Emissions_by_A_vals,MATCH('Annual GHG Emissions - Sector'!AV$38&"#"&actCaseAnnGHG_1&"#"&'Annual GHG Emissions - Sector'!$I43,Total_Emissions_by_A_index,0))) -> 87.61241093 | AW43: =IF(actCaseAnnGHG_1="",NA(),INDEX(Total_Emissions_by_A_vals,MATCH('Annual GHG Emissions - Sector'!AW$38&"#"&actCaseAnnGHG_1&"#"&'Annual GHG Emissions - Sector'!$I43,Total_Emissions_by_A_index,0))) -> 87.70713716 | AX43: =IF(actCaseAnnGHG_1="",NA(),INDEX(Total_Emissions_by_A_vals,MATCH('Annual GHG Emissions - Sector'!AX$38&"#"&actCaseAnnGHG_1&"#"&'Annual GHG Emissions - Sector'!$I43,Total_Emissions_by_A_index,0))) -> 87.80165165 | AY43: =IF(actCaseAnnGHG_1="",NA(),INDEX(Total_Emissions_by_A_vals,MATCH('Annual GHG Emissions - Sector'!AY$38&"#"&actCaseAnnGHG_1&"#"&'Annual GHG Emissions - Sector'!$I43,Total_Emissions_by_A_index,0))) -> 87.92402946 | AZ43: =IF(actCaseAnnGHG_1="",NA(),INDEX(Total_Emissions_by_A_vals,MATCH('Annual GHG Emissions - Sector'!AZ$38&"#"&actCaseAnnGHG_1&"#"&'Annual GHG Emissions - Sector'!$I43,Total_Emissions_by_A_index,0))) -> 88.04086134 | BA43: =IF(actCaseAnnGHG_1="",NA(),INDEX(Total_Emissions_by_A_vals,MATCH('Annual GHG Emissions - Sector'!BA$38&"#"&actCaseAnnGHG_1&"#"&'Annual GHG Emissions - Sector'!$I43,Total_Emissions_by_A_index,0))) -> 88.15529412 | BB43: =IF(actCaseAnnGHG_1="",NA(),INDEX(Total_Emissions_by_A_vals,MATCH('Annual GHG Emissions - Sector'!BB$38&"#"&actCaseAnnGHG_1&"#"&'Annual GHG Emissions - Sector'!$I43,Total_Emissions_by_A_index,0))) -> 88.26782667 | BC43: =IF(actCaseAnnGHG_1="",NA(),INDEX(Total_Emissions_by_A_vals,MATCH('Annual GHG Emissions - Sector'!BC$38&"#"&actCaseAnnGHG_1&"#"&'Annual GHG Emissions - Sector'!$I43,Total_Emissions_by_A_index,0))) -> 88.37933585 | BD43: =IF(actCaseAnnGHG_1="",NA(),INDEX(Total_Emissions_by_A_vals,MATCH('Annual GHG Emissions - Sector'!BD$38&"#"&actCaseAnnGHG_1&"#"&'Annual GHG Emissions - Sector'!$I43,Total_Emissions_by_A_index,0))) -> 88.48900935 | BE43: =IF(actCaseAnnGHG_1="",NA(),INDEX(Total_Emissions_by_A_vals,MATCH('Annual GHG Emissions - Sector'!BE$38&"#"&actCaseAnnGHG_1&"#"&'Annual GHG Emissions - Sector'!$I43,Total_Emissions_by_A_index,0))) -> 88.59919548 | BF43: =IF(actCaseAnnGHG_1="",NA(),INDEX(Total_Emissions_by_A_vals,MATCH('Annual GHG Emissions - Sector'!BF$38&"#"&actCaseAnnGHG_1&"#"&'Annual GHG Emissions - Sector'!$I43,Total_Emissions_by_A_index,0))) -> 88.68128747 | BG43: =IF(actCaseAnnGHG_1="",NA(),INDEX(Total_Emissions_by_A_vals,MATCH('Annual GHG Emissions - Sector'!BG$38&"#"&actCaseAnnGHG_1&"#"&'Annual GHG Emissions - Sector'!$I43,Total_Emissions_by_A_index,0))) -> 88.76507553 | BH43: =IF(actCaseAnnGHG_1="",NA(),INDEX(Total_Emissions_by_A_vals,MATCH('Annual GHG Emissions - Sector'!BH$38&"#"&actCaseAnnGHG_1&"#"&'Annual GHG Emissions - Sector'!$I43,Total_Emissions_by_A_index,0))) -> 88.84990425 | BI43: =IF(actCaseAnnGHG_1="",NA(),INDEX(Total_Emissions_by_A_vals,MATCH('Annual GHG Emissions - Sector'!BI$38&"#"&actCaseAnnGHG_1&"#"&'Annual GHG Emissions - Sector'!$I43,Total_Emissions_by_A_index,0))) -> 88.96363712 | BJ43: =IF(actCaseAnnGHG_1="",NA(),INDEX(Total_Emissions_by_A_vals,MATCH('Annual GHG Emissions - Sector'!BJ$38&"#"&actCaseAnnGHG_1&"#"&'Annual GHG Emissions - Sector'!$I43,Total_Emissions_by_A_index,0))) -> 89.07785255 | BK43: =IF(actCaseAnnGHG_1="",NA(),INDEX(Total_Emissions_by_A_vals,MATCH('Annual GHG Emissions - Sector'!BK$38&"#"&actCaseAnnGHG_1&"#"&'Annual GHG Emissions - Sector'!$I43,Total_Emissions_by_A_index,0))) -> 89.19260474 | BL43: =IF(actCaseAnnGHG_1="",NA(),INDEX(Total_Emissions_by_A_vals,MATCH('Annual GHG Emissions - Sector'!BL$38&"#"&actCaseAnnGHG_1&"#"&'Annual GHG Emissions - Sector'!$I43,Total_Emissions_by_A_index,0))) -> 89.30784743 | BM43: =IF(actCaseAnnGHG_1="",NA(),INDEX(Total_Emissions_by_A_vals,MATCH('Annual GHG Emissions - Sector'!BM$38&"#"&actCaseAnnGHG_1&"#"&'Annual GHG Emissions - Sector'!$I43,Total_Emissions_by_A_index,0))) -> 89.42349424 | BN43: =IF(actCaseAnnGHG_1="",NA(),INDEX(Total_Emissions_by_A_vals,MATCH('Annual GHG Emissions - Sector'!BN$38&"#"&actCaseAnnGHG_1&"#"&'Annual GHG Emissions - Sector'!$I43,Total_Emissions_by_A_index,0))) -> 89.53964276 | BO43: =IF(actCaseAnnGHG_1="",NA(),INDEX(Total_Emissions_by_A_vals,MATCH('Annual GHG Emissions - Sector'!BO$38&"#"&actCaseAnnGHG_1&"#"&'Annual GHG Emissions - Sector'!$I43,Total_Emissions_by_A_index,0))) -> 89.65614244 | BP43: =IF(actCaseAnnGHG_1="",NA(),INDEX(Total_Emissions_by_A_vals,MATCH('Annual GHG Emissions - Sector'!BP$38&"#"&actCaseAnnGHG_1&"#"&'Annual GHG Emissions - Sector'!$I43,Total_Emissions_by_A_index,0))) -> 89.77289543 | BQ43: =IF(actCaseAnnGHG_1="",NA(),INDEX(Total_Emissions_by_A_vals,MATCH('Annual GHG Emissions - Sector'!BQ$38&"#"&actCaseAnnGHG_1&"#"&'Annual GHG Emissions - Sector'!$I43,Total_Emissions_by_A_index,0))) -> 89.88984838 | BR43: =IF(actCaseAnnGHG_1="",NA(),INDEX(Total_Emissions_by_A_vals,MATCH('Annual GHG Emissions - Sector'!BR$38&"#"&actCaseAnnGHG_1&"#"&'Annual GHG Emissions - Sector'!$I43,Total_Emissions_by_A_index,0))) -> 90.00665312
I44: Recycling and Waste | AI44: =IF(actCaseAnnGHG_1="",NA(),INDEX(Total_Emissions_by_A_vals,MATCH('Annual GHG Emissions - Sector'!AI$38&"#"&actCaseAnnGHG_1&"#"&'Annual GHG Emissions - Sector'!$I44,Total_Emissions_by_A_index,0))) -> 10.73087981 | AJ44: =IF(actCaseAnnGHG_1="",NA(),INDEX(Total_Emissions_by_A_vals,MATCH('Annual GHG Emissions - Sector'!AJ$38&"#"&actCaseAnnGHG_1&"#"&'Annual GHG Emissions - Sector'!$I44,Total_Emissions_by_A_index,0))) -> 10.73087981 | AK44: =IF(actCaseAnnGHG_1="",NA(),INDEX(Total_Emissions_by_A_vals,MATCH('Annual GHG Emissions - Sector'!AK$38&"#"&actCaseAnnGHG_1&"#"&'Annual GHG Emissions - Sector'!$I44,Total_Emissions_by_A_index,0))) -> 10.73087981 | AL44: =IF(actCaseAnnGHG_1="",NA(),INDEX(Total_Emissions_by_A_vals,MATCH('Annual GHG Emissions - Sector'!AL$38&"#"&actCaseAnnGHG_1&"#"&'Annual GHG Emissions - Sector'!$I44,Total_Emissions_by_A_index,0))) -> 10.73087981 | AM44: =IF(actCaseAnnGHG_1="",NA(),INDEX(Total_Emissions_by_A_vals,MATCH('Annual GHG Emissions - Sector'!AM$38&"#"&actCaseAnnGHG_1&"#"&'Annual GHG Emissions - Sector'!$I44,Total_Emissions_by_A_index,0))) -> 10.73087981 | AN44: =IF(actCaseAnnGHG_1="",NA(),INDEX(Total_Emissions_by_A_vals,MATCH('Annual GHG Emissions - Sector'!AN$38&"#"&actCaseAnnGHG_1&"#"&'Annual GHG Emissions - Sector'!$I44,Total_Emissions_by_A_index,0))) -> 10.73087981 | AO44: =IF(actCaseAnnGHG_1="",NA(),INDEX(Total_Emissions_by_A_vals,MATCH('Annual GHG Emissions - Sector'!AO$38&"#"&actCaseAnnGHG_1&"#"&'Annual GHG Emissions - Sector'!$I44,Total_Emissions_by_A_index,0))) -> 10.73087981 | AP44: =IF(actCaseAnnGHG_1="",NA(),INDEX(Total_Emissions_by_A_vals,MATCH('Annual GHG Emissions - Sector'!AP$38&"#"&actCaseAnnGHG_1&"#"&'Annual GHG Emissions - Sector'!$I44,Total_Emissions_by_A_index,0))) -> 10.73087981 | AQ44: =IF(actCaseAnnGHG_1="",NA(),INDEX(Total_Emissions_by_A_vals,MATCH('Annual GHG Emissions - Sector'!AQ$38&"#"&actCaseAnnGHG_1&"#"&'Annual GHG Emissions - Sector'!$I44,Total_Emissions_by_A_index,0))) -> 10.73087981 | AR44: =IF(actCaseAnnGHG_1="",NA(),INDEX(Total_Emissions_by_A_vals,MATCH('Annual GHG Emissions - Sector'!AR$38&"#"&actCaseAnnGHG_1&"#"&'Annual GHG Emissions - Sector'!$I44,Total_Emissions_by_A_index,0))) -> 10.73087981 | AS44: =IF(actCaseAnnGHG_1="",NA(),INDEX(Total_Emissions_by_A_vals,MATCH('Annual GHG Emissions - Sector'!AS$38&"#"&actCaseAnnGHG_1&"#"&'Annual GHG Emissions - Sector'!$I44,Total_Emissions_by_A_index,0))) -> 10.73087981 | AT44: =IF(actCaseAnnGHG_1="",NA(),INDEX(Total_Emissions_by_A_vals,MATCH('Annual GHG Emissions - Sector'!AT$38&"#"&actCaseAnnGHG_1&"#"&'Annual GHG Emissions - Sector'!$I44,Total_Emissions_by_A_index,0))) -> 10.73087981 | AU44: =IF(actCaseAnnGHG_1="",NA(),INDEX(Total_Emissions_by_A_vals,MATCH('Annual GHG Emissions - Sector'!AU$38&"#"&actCaseAnnGHG_1&"#"&'Annual GHG Emissions - Sector'!$I44,Total_Emissions_by_A_index,0))) -> 10.73087981 | AV44: =IF(actCaseAnnGHG_1="",NA(),INDEX(Total_Emissions_by_A_vals,MATCH('Annual GHG Emissions - Sector'!AV$38&"#"&actCaseAnnGHG_1&"#"&'Annual GHG Emissions - Sector'!$I44,Total_Emissions_by_A_index,0))) -> 10.73087981 | AW44: =IF(actCaseAnnGHG_1="",NA(),INDEX(Total_Emissions_by_A_vals,MATCH('Annual GHG Emissions - Sector'!AW$38&"#"&actCaseAnnGHG_1&"#"&'Annual GHG Emissions - Sector'!$I44,Total_Emissions_by_A_index,0))) -> 10.73087981 | AX44: =IF(actCaseAnnGHG_1="",NA(),INDEX(Total_Emissions_by_A_vals,MATCH('Annual GHG Emissions - Sector'!AX$38&"#"&actCaseAnnGHG_1&"#"&'Annual GHG Emissions - Sector'!$I44,Total_Emissions_by_A_index,0))) -> 10.73087981 | AY44: =IF(actCaseAnnGHG_1="",NA(),INDEX(Total_Emissions_by_A_vals,MATCH('Annual GHG Emissions - Sector'!AY$38&"#"&actCaseAnnGHG_1&"#"&'Annual GHG Emissions - Sector'!$I44,Total_Emissions_by_A_index,0))) -> 10.73087981 | AZ44: =IF(actCaseAnnGHG_1="",NA(),INDEX(Total_Emissions_by_A_vals,MATCH('Annual GHG Emissions - Sector'!AZ$38&"#"&actCaseAnnGHG_1&"#"&'Annual GHG Emissions - Sector'!$I44,Total_Emissions_by_A_index,0))) -> 10.73087981 | BA44: =IF(actCaseAnnGHG_1="",NA(),INDEX(Total_Emissions_by_A_vals,MATCH('Annual GHG Emissions - Sector'!BA$38&"#"&actCaseAnnGHG_1&"#"&'Annual GHG Emissions - Sector'!$I44,Total_Emissions_by_A_index,0))) -> 10.73087981 | BB44: =IF(actCaseAnnGHG_1="",NA(),INDEX(Total_Emissions_by_A_vals,MATCH('Annual GHG Emissions - Sector'!BB$38&"#"&actCaseAnnGHG_1&"#"&'Annual GHG Emissions - Sector'!$I44,Total_Emissions_by_A_index,0))) -> 10.73087981 | BC44: =IF(actCaseAnnGHG_1="",NA(),INDEX(Total_Emissions_by_A_vals,MATCH('Annual GHG Emissions - Sector'!BC$38&"#"&actCaseAnnGHG_1&"#"&'Annual GHG Emissions - Sector'!$I44,Total_Emissions_by_A_index,0))) -> 10.73087981 | BD44: =IF(actCaseAnnGHG_1="",NA(),INDEX(Total_Emissions_by_A_vals,MATCH('Annual GHG Emissions - Sector'!BD$38&"#"&actCaseAnnGHG_1&"#"&'Annual GHG Emissions - Sector'!$I44,Total_Emissions_by_A_index,0))) -> 10.73087981 | BE44: =IF(actCaseAnnGHG_1="",NA(),INDEX(Total_Emissions_by_A_vals,MATCH('Annual GHG Emissions - Sector'!BE$38&"#"&actCaseAnnGHG_1&"#"&'Annual GHG Emissions - Sector'!$I44,Total_Emissions_by_A_index,0))) -> 10.73087981 | BF44: =IF(actCaseAnnGHG_1="",NA(),INDEX(Total_Emissions_by_A_vals,MATCH('Annual GHG Emissions - Sector'!BF$38&"#"&actCaseAnnGHG_1&"#"&'Annual GHG Emissions - Sector'!$I44,Total_Emissions_by_A_index,0))) -> 10.73087981 | BG44: =IF(actCaseAnnGHG_1="",NA(),INDEX(Total_Emissions_by_A_vals,MATCH('Annual GHG Emissions - Sector'!BG$38&"#"&actCaseAnnGHG_1&"#"&'Annual GHG Emissions - Sector'!$I44,Total_Emissions_by_A_index,0))) -> 10.73087981 | BH44: =IF(actCaseAnnGHG_1="",NA(),INDEX(Total_Emissions_by_A_vals,MATCH('Annual GHG Emissions - Sector'!BH$38&"#"&actCaseAnnGHG_1&"#"&'Annual GHG Emissions - Sector'!$I44,Total_Emissions_by_A_index,0))) -> 10.73087981 | BI44: =IF(actCaseAnnGHG_1="",NA(),INDEX(Total_Emissions_by_A_vals,MATCH('Annual GHG Emissions - Sector'!BI$38&"#"&actCaseAnnGHG_1&"#"&'Annual GHG Emissions - Sector'!$I44,Total_Emissions_by_A_index,0))) -> 10.73087981 | BJ44: =IF(actCaseAnnGHG_1="",NA(),INDEX(Total_Emissions_by_A_vals,MATCH('Annual GHG Emissions - Sector'!BJ$38&"#"&actCaseAnnGHG_1&"#"&'Annual GHG Emissions - Sector'!$I44,Total_Emissions_by_A_index,0))) -> 10.73087981 | BK44: =IF(actCaseAnnGHG_1="",NA(),INDEX(Total_Emissions_by_A_vals,MATCH('Annual GHG Emissions - Sector'!BK$38&"#"&actCaseAnnGHG_1&"#"&'Annual GHG Emissions - Sector'!$I44,Total_Emissions_by_A_index,0))) -> 10.73087981 | BL44: =IF(actCaseAnnGHG_1="",NA(),INDEX(Total_Emissions_by_A_vals,MATCH('Annual GHG Emissions - Sector'!BL$38&"#"&actCaseAnnGHG_1&"#"&'Annual GHG Emissions - Sector'!$I44,Total_Emissions_by_A_index,0))) -> 10.73087981 | BM44: =IF(actCaseAnnGHG_1="",NA(),INDEX(Total_Emissions_by_A_vals,MATCH('Annual GHG Emissions - Sector'!BM$38&"#"&actCaseAnnGHG_1&"#"&'Annual GHG Emissions - Sector'!$I44,Total_Emissions_by_A_index,0))) -> 10.73087981 | BN44: =IF(actCaseAnnGHG_1="",NA(),INDEX(Total_Emissions_by_A_vals,MATCH('Annual GHG Emissions - Sector'!BN$38&"#"&actCaseAnnGHG_1&"#"&'Annual GHG Emissions - Sector'!$I44,Total_Emissions_by_A_index,0))) -> 10.73087981 | BO44: =IF(actCaseAnnGHG_1="",NA(),INDEX(Total_Emissions_by_A_vals,MATCH('Annual GHG Emissions - Sector'!BO$38&"#"&actCaseAnnGHG_1&"#"&'Annual GHG Emissions - Sector'!$I44,Total_Emissions_by_A_index,0))) -> 10.73087981 | BP44: =IF(actCaseAnnGHG_1="",NA(),INDEX(Total_Emissions_by_A_vals,MATCH('Annual GHG Emissions - Sector'!BP$38&"#"&actCaseAnnGHG_1&"#"&'Annual GHG Emissions - Sector'!$I44,Total_Emissions_by_A_index,0))) -> 10.73087981 | BQ44: =IF(actCaseAnnGHG_1="",NA(),INDEX(Total_Emissions_by_A_vals,MATCH('Annual GHG Emissions - Sector'!BQ$38&"#"&actCaseAnnGHG_1&"#"&'Annual GHG Emissions - Sector'!$I44,Total_Emissions_by_A_index,0))) -> 10.73087981 | BR44: =IF(actCaseAnnGHG_1="",NA(),INDEX(Total_Emissions_by_A_vals,MATCH('Annual GHG Emissions - Sector'!BR$38&"#"&actCaseAnnGHG_1&"#"&'Annual GHG Emissions - Sector'!$I44,Total_Emissions_by_A_index,0))) -> 10.73087981
I45: Transportation (Incl. TCU) | AI45: =IF(actCaseAnnGHG_1="",NA(),INDEX(Total_Emissions_by_A_vals,MATCH('Annual GHG Emissions - Sector'!AI$38&"#"&actCaseAnnGHG_1&"#"&'Annual GHG Emissions - Sector'!$I45,Total_Emissions_by_A_index,0))) -> 160.6304628 | AJ45: =IF(actCaseAnnGHG_1="",NA(),INDEX(Total_Emissions_by_A_vals,MATCH('Annual GHG Emissions - Sector'!AJ$38&"#"&actCaseAnnGHG_1&"#"&'Annual GHG Emissions - Sector'!$I45,Total_Emissions_by_A_index,0))) -> 160.7541856 | AK45: =IF(actCaseAnnGHG_1="",NA(),INDEX(Total_Emissions_by_A_vals,MATCH('Annual GHG Emissions - Sector'!AK$38&"#"&actCaseAnnGHG_1&"#"&'Annual GHG Emissions - Sector'!$I45,Total_Emissions_by_A_index,0))) -> 159.6988395 | AL45: =IF(actCaseAnnGHG_1="",NA(),INDEX(Total_Emissions_by_A_vals,MATCH('Annual GHG Emissions - Sector'!AL$38&"#"&actCaseAnnGHG_1&"#"&'Annual GHG Emissions - Sector'!$I45,Total_Emissions_by_A_index,0))) -> 156.1944147 | AM45: =IF(actCaseAnnGHG_1="",NA(),INDEX(Total_Emissions_by_A_vals,MATCH('Annual GHG Emissions - Sector'!AM$38&"#"&actCaseAnnGHG_1&"#"&'Annual GHG Emissions - Sector'!$I45,Total_Emissions_by_A_index,0))) -> 152.2118707 | AN45: =IF(actCaseAnnGHG_1="",NA(),INDEX(Total_Emissions_by_A_vals,MATCH('Annual GHG Emissions - Sector'!AN$38&"#"&actCaseAnnGHG_1&"#"&'Annual GHG Emissions - Sector'!$I45,Total_Emissions_by_A_index,0))) -> 148.366135 | AO45: =IF(actCaseAnnGHG_1="",NA(),INDEX(Total_Emissions_by_A_vals,MATCH('Annual GHG Emissions - Sector'!AO$38&"#"&actCaseAnnGHG_1&"#"&'Annual GHG Emissions - Sector'!$I45,Total_Emissions_by_A_index,0))) -> 145.6644568 | AP45: =IF(actCaseAnnGHG_1="",NA(),INDEX(Total_Emissions_by_A_vals,MATCH('Annual GHG Emissions - Sector'!AP$38&"#"&actCaseAnnGHG_1&"#"&'Annual GHG Emissions - Sector'!$I45,Total_Emissions_by_A_index,0))) -> 142.2169286 | AQ45: =IF(actCaseAnnGHG_1="",NA(),INDEX(Total_Emissions_by_A_vals,MATCH('Annual GHG Emissions - Sector'!AQ$38&"#"&actCaseAnnGHG_1&"#"&'Annual GHG Emissions - Sector'!$I45,Total_Emissions_by_A_index,0))) -> 138.8762323 | AR45: =IF(actCaseAnnGHG_1="",NA(),INDEX(Total_Emissions_by_A_vals,MATCH('Annual GHG Emissions - Sector'!AR$38&"#"&actCaseAnnGHG_1&"#"&'Annual GHG Emissions - Sector'!$I45,Total_Emissions_by_A_index,0))) -> 135.3165727 | AS45: =IF(actCaseAnnGHG_1="",NA(),INDEX(Total_Emissions_by_A_vals,MATCH('Annual GHG Emissions - Sector'!AS$38&"#"&actCaseAnnGHG_1&"#"&'Annual GHG Emissions - Sector'!$I45,Total_Emissions_by_A_index,0))) -> 131.5480603 | AT45: =IF(actCaseAnnGHG_1="",NA(),INDEX(Total_Emissions_by_A_vals,MATCH('Annual GHG Emissions - Sector'!AT$38&"#"&actCaseAnnGHG_1&"#"&'Annual GHG Emissions - Sector'!$I45,Total_Emissions_by_A_index,0))) -> 128.1083404 | AU45: =IF(actCaseAnnGHG_1="",NA(),INDEX(Total_Emissions_by_A_vals,MATCH('Annual GHG Emissions - Sector'!AU$38&"#"&actCaseAnnGHG_1&"#"&'Annual GHG Emissions - Sector'!$I45,Total_Emissions_by_A_index,0))) -> 125.7690648 | AV45: =IF(actCaseAnnGHG_1="",NA(),INDEX(Total_Emissions_by_A_vals,MATCH('Annual GHG Emissions - Sector'!AV$38&"#"&actCaseAnnGHG_1&"#"&'Annual GHG Emissions - Sector'!$I45,Total_Emissions_by_A_index,0))) -> 123.8742916 | AW45: =IF(actCaseAnnGHG_1="",NA(),INDEX(Total_Emissions_by_A_vals,MATCH('Annual GHG Emissions - Sector'!AW$38&"#"&actCaseAnnGHG_1&"#"&'Annual GHG Emissions - Sector'!$I45,Total_Emissions_by_A_index,0))) -> 122.4314188 | AX45: =IF(actCaseAnnGHG_1="",NA(),INDEX(Total_Emissions_by_A_vals,MATCH('Annual GHG Emissions - Sector'!AX$38&"#"&actCaseAnnGHG_1&"#"&'Annual GHG Emissions - Sector'!$I45,Total_Emissions_by_A_index,0))) -> 121.3355647 | AY45: =IF(actCaseAnnGHG_1="",NA(),INDEX(Total_Emissions_by_A_vals,MATCH('Annual GHG Emissions - Sector'!AY$38&"#"&actCaseAnnGHG_1&"#"&'Annual GHG Emissions - Sector'!$I45,Total_Emissions_by_A_index,0))) -> 120.853588 | AZ45: =IF(actCaseAnnGHG_1="",NA(),INDEX(Total_Emissions_by_A_vals,MATCH('Annual GHG Emissions - Sector'!AZ$38&"#"&actCaseAnnGHG_1&"#"&'Annual GHG Emissions - Sector'!$I45,Total_Emissions_by_A_index,0))) -> 120.6337549 | BA45: =IF(actCaseAnnGHG_1="",NA(),INDEX(Total_Emissions_by_A_vals,MATCH('Annual GHG Emissions - Sector'!BA$38&"#"&actCaseAnnGHG_1&"#"&'Annual GHG Emissions - Sector'!$I45,Total_Emissions_by_A_index,0))) -> 120.5764863 | BB45: =IF(actCaseAnnGHG_1="",NA(),INDEX(Total_Emissions_by_A_vals,MATCH('Annual GHG Emissions - Sector'!BB$38&"#"&actCaseAnnGHG_1&"#"&'Annual GHG Emissions - Sector'!$I45,Total_Emissions_by_A_index,0))) -> 120.6604821 | BC45: =IF(actCaseAnnGHG_1="",NA(),INDEX(Total_Emissions_by_A_vals,MATCH('Annual GHG Emissions - Sector'!BC$38&"#"&actCaseAnnGHG_1&"#"&'Annual GHG Emissions - Sector'!$I45,Total_Emissions_by_A_index,0))) -> 120.835603 | BD45: =IF(actCaseAnnGHG_1="",NA(),INDEX(Total_Emissions_by_A_vals,MATCH('Annual GHG Emissions - Sector'!BD$38&"#"&actCaseAnnGHG_1&"#"&'Annual GHG Emissions - Sector'!$I45,Total_Emissions_by_A_index,0))) -> 121.1883506 | BE45: =IF(actCaseAnnGHG_1="",NA(),INDEX(Total_Emissions_by_A_vals,MATCH('Annual GHG Emissions - Sector'!BE$38&"#"&actCaseAnnGHG_1&"#"&'Annual GHG Emissions - Sector'!$I45,Total_Emissions_by_A_index,0))) -> 121.984073 | BF45: =IF(actCaseAnnGHG_1="",NA(),INDEX(Total_Emissions_by_A_vals,MATCH('Annual GHG Emissions - Sector'!BF$38&"#"&actCaseAnnGHG_1&"#"&'Annual GHG Emissions - Sector'!$I45,Total_Emissions_by_A_index,0))) -> 122.9728633 | BG45: =IF(actCaseAnnGHG_1="",NA(),INDEX(Total_Emissions_by_A_vals,MATCH('Annual GHG Emissions - Sector'!BG$38&"#"&actCaseAnnGHG_1&"#"&'Annual GHG Emissions - Sector'!$I45,Total_Emissions_by_A_index,0))) -> 123.9991245 | BH45: =IF(actCaseAnnGHG_1="",NA(),INDEX(Total_Emissions_by_A_vals,MATCH('Annual GHG Emissions - Sector'!BH$38&"#"&actCaseAnnGHG_1&"#"&'Annual GHG Emissions - Sector'!$I45,Total_Emissions_by_A_index,0))) -> 125.0840033 | BI45: =IF(actCaseAnnGHG_1="",NA(),INDEX(Total_Emissions_by_A_vals,MATCH('Annual GHG Emissions - Sector'!BI$38&"#"&actCaseAnnGHG_1&"#"&'Annual GHG Emissions - Sector'!$I45,Total_Emissions_by_A_index,0))) -> 126.6037379 | BJ45: =IF(actCaseAnnGHG_1="",NA(),INDEX(Total_Emissions_by_A_vals,MATCH('Annual GHG Emissions - Sector'!BJ$38&"#"&actCaseAnnGHG_1&"#"&'Annual GHG Emissions - Sector'!$I45,Total_Emissions_by_A_index,0))) -> 128.176655 | BK45: =IF(actCaseAnnGHG_1="",NA(),INDEX(Total_Emissions_by_A_vals,MATCH('Annual GHG Emissions - Sector'!BK$38&"#"&actCaseAnnGHG_1&"#"&'Annual GHG Emissions - Sector'!$I45,Total_Emissions_by_A_index,0))) -> 129.7883255 | BL45: =IF(actCaseAnnGHG_1="",NA(),INDEX(Total_Emissions_by_A_vals,MATCH('Annual GHG Emissions - Sector'!BL$38&"#"&actCaseAnnGHG_1&"#"&'Annual GHG Emissions - Sector'!$I45,Total_Emissions_by_A_index,0))) -> 131.4092892 | BM45: =IF(actCaseAnnGHG_1="",NA(),INDEX(Total_Emissions_by_A_vals,MATCH('Annual GHG Emissions - Sector'!BM$38&"#"&actCaseAnnGHG_1&"#"&'Annual GHG Emissions - Sector'!$I45,Total_Emissions_by_A_index,0))) -> 133.0332681 | BN45: =IF(actCaseAnnGHG_1="",NA(),INDEX(Total_Emissions_by_A_vals,MATCH('Annual GHG Emissions - Sector'!BN$38&"#"&actCaseAnnGHG_1&"#"&'Annual GHG Emissions - Sector'!$I45,Total_Emissions_by_A_index,0))) -> 134.6485561 | BO45: =IF(actCaseAnnGHG_1="",NA(),INDEX(Total_Emissions_by_A_vals,MATCH('Annual GHG Emissions - Sector'!BO$38&"#"&actCaseAnnGHG_1&"#"&'Annual GHG Emissions - Sector'!$I45,Total_Emissions_by_A_index,0))) -> 136.2444604 | BP45: =IF(actCaseAnnGHG_1="",NA(),INDEX(Total_Emissions_by_A_vals,MATCH('Annual GHG Emissions - Sector'!BP$38&"#"&actCaseAnnGHG_1&"#"&'Annual GHG Emissions - Sector'!$I45,Total_Emissions_by_A_index,0))) -> 137.81841 | BQ45: =IF(actCaseAnnGHG_1="",NA(),INDEX(Total_Emissions_by_A_vals,MATCH('Annual GHG Emissions - Sector'!BQ$38&"#"&actCaseAnnGHG_1&"#"&'Annual GHG Emissions - Sector'!$I45,Total_Emissions_by_A_index,0))) -> 139.3592757 | BR45: =IF(actCaseAnnGHG_1="",NA(),INDEX(Total_Emissions_by_A_vals,MATCH('Annual GHG Emissions - Sector'!BR$38&"#"&actCaseAnnGHG_1&"#"&'Annual GHG Emissions - Sector'!$I45,Total_Emissions_by_A_index,0))) -> 140.8567902
I46: Total | AI46: =SUM(AI39:AI45) -> 438.9326637 | AJ46: =SUM(AJ39:AJ45) -> 437.0060522 | AK46: 431.5919272 | AL46: 428.1666797 | AM46: 424.1794198 | AN46: 419.5278386 | AO46: 416.592712 | AP46: 413.2733182 | AQ46: 410.0651935 | AR46: 406.7853395 | AS46: 397.0565266 | AT46: 394.4860823 | AU46: 392.5467462 | AV46: 395.3319212 | AW46: 394.2203048 | AX46: 393.2398175 | AY46: 394.3713368 | AZ46: 394.9384498 | BA46: 395.7810626 | BB46: 396.6889638 | BC46: 397.4934699 | BD46: 398.5425826 | BE46: 399.9729388 | BF46: 401.5943969 | BG46: 403.2976113 | BH46: 405.1001605 | BI46: 407.408744 | BJ46: 409.7919276 | BK46: 412.2676109 | BL46: 414.7593853 | BM46: 417.301093 | BN46: 419.8404337 | BO46: 425.4887124 | BP46: 427.988501 | BQ46: 430.4855935 | BR46: 433.0425558 | BT46: 133.750051 | BU46: 338.9810821
I48: ="PATHWAYS - "&actCaseAnnGHG_2 -> PATHWAYS - Current Policy Reference | BV48: 20.5
J49: 1990 | K49: 1991 | L49: 1992 | M49: 1993 | N49: 1994 | O49: 1995 | P49: 1996 | Q49: 1997 | R49: 1998 | S49: 1999 | T49: 2000 | U49: 2001 | V49: 2002 | W49: 2003 | X49: 2004 | Y49: 2005 | Z49: 2006 | AA49: 2007 | AB49: 2008 | AC49: 2009 | AD49: 2010 | AE49: 2011 | AF49: 2012 | AG49: 2013 | AH49: 2014 | AI49: 2015 | AJ49: 2016 | AK49: 2017 | AL49: 2018 | AM49: 2019 | AN49: 2020 | AO49: 2021 | AP49: 2022 | AQ49: 2023 | AR49: 2024 | AS49: 2025 | AT49: 2026 | AU49: 2027 | AV49: 2028 | AW49: 2029 | AX49: 2030 | AY49: 2031 | AZ49: 2032 | BA49: 2033 | BB49: 2034 | BC49: 2035 | BD49: 2036 | BE49: 2037 | BF49: 2038 | BG49: 2039 | BH49: 2040 | BI49: 2041 | BJ49: 2042 | BK49: 2043 | BL49: 2044 | BM49: 2045 | BN49: 2046 | BO49: 2047 | BP49: 2048 | BQ49: 2049 | BR49: 2050 | BT49: 2030 Gap | BU49: 2050 Gap
I50: Agriculture | AI50: =IF(actCaseAnnGHG_2="",NA(),INDEX(Total_Emissions_by_A_vals,MATCH('Annual GHG Emissions - Sector'!AI$38&"#"&actCaseAnnGHG_2&"#"&'Annual GHG Emissions - Sector'!$I50,Total_Emissions_by_A_index,0))) -> 36.30032854 | AJ50: =IF(actCaseAnnGHG_2="",NA(),INDEX(Total_Emissions_by_A_vals,MATCH('Annual GHG Emissions - Sector'!AJ$38&"#"&actCaseAnnGHG_2&"#"&'Annual GHG Emissions - Sector'!$I50,Total_Emissions_by_A_index,0))) -> 36.25262741 | AK50: =IF(actCaseAnnGHG_2="",NA(),INDEX(Total_Emissions_by_A_vals,MATCH('Annual GHG Emissions - Sector'!AK$38&"#"&actCaseAnnGHG_2&"#"&'Annual GHG Emissions - Sector'!$I50,Total_Emissions_by_A_index,0))) -> 35.93248249 | AL50: =IF(actCaseAnnGHG_2="",NA(),INDEX(Total_Emissions_by_A_vals,MATCH('Annual GHG Emissions - Sector'!AL$38&"#"&actCaseAnnGHG_2&"#"&'Annual GHG Emissions - Sector'!$I50,Total_Emissions_by_A_index,0))) -> 35.61049259 | AM50: =IF(actCaseAnnGHG_2="",NA(),INDEX(Total_Emissions_by_A_vals,MATCH('Annual GHG Emissions - Sector'!AM$38&"#"&actCaseAnnGHG_2&"#"&'Annual GHG Emissions - Sector'!$I50,Total_Emissions_by_A_index,0))) -> 35.28480668 | AN50: =IF(actCaseAnnGHG_2="",NA(),INDEX(Total_Emissions_by_A_vals,MATCH('Annual GHG Emissions - Sector'!AN$38&"#"&actCaseAnnGHG_2&"#"&'Annual GHG Emissions - Sector'!$I50,Total_Emissions_by_A_index,0))) -> 34.25066278 | AO50: =IF(actCaseAnnGHG_2="",NA(),INDEX(Total_Emissions_by_A_vals,MATCH('Annual GHG Emissions - Sector'!AO$38&"#"&actCaseAnnGHG_2&"#"&'Annual GHG Emissions - Sector'!$I50,Total_Emissions_by_A_index,0))) -> 33.25811591 | AP50: =IF(actCaseAnnGHG_2="",NA(),INDEX(Total_Emissions_by_A_vals,MATCH('Annual GHG Emissions - Sector'!AP$38&"#"&actCaseAnnGHG_2&"#"&'Annual GHG Emissions - Sector'!$I50,Total_Emissions_by_A_index,0))) -> 32.26295237 | AQ50: =IF(actCaseAnnGHG_2="",NA(),INDEX(Total_Emissions_by_A_vals,MATCH('Annual GHG Emissions - Sector'!AQ$38&"#"&actCaseAnnGHG_2&"#"&'Annual GHG Emissions - Sector'!$I50,Total_Emissions_by_A_index,0))) -> 31.26573022 | AR50: =IF(actCaseAnnGHG_2="",NA(),INDEX(Total_Emissions_by_A_vals,MATCH('Annual GHG Emissions - Sector'!AR$38&"#"&actCaseAnnGHG_2&"#"&'Annual GHG Emissions - Sector'!$I50,Total_Emissions_by_A_index,0))) -> 30.26669718 | AS50: =IF(actCaseAnnGHG_2="",NA(),INDEX(Total_Emissions_by_A_vals,MATCH('Annual GHG Emissions - Sector'!AS$38&"#"&actCaseAnnGHG_2&"#"&'Annual GHG Emissions - Sector'!$I50,Total_Emissions_by_A_index,0))) -> 29.27996948 | AT50: =IF(actCaseAnnGHG_2="",NA(),INDEX(Total_Emissions_by_A_vals,MATCH('Annual GHG Emissions - Sector'!AT$38&"#"&actCaseAnnGHG_2&"#"&'Annual GHG Emissions - Sector'!$I50,Total_Emissions_by_A_index,0))) -> 28.29324135 | AU50: =IF(actCaseAnnGHG_2="",NA(),INDEX(Total_Emissions_by_A_vals,MATCH('Annual GHG Emissions - Sector'!AU$38&"#"&actCaseAnnGHG_2&"#"&'Annual GHG Emissions - Sector'!$I50,Total_Emissions_by_A_index,0))) -> 27.3065127 | AV50: =IF(actCaseAnnGHG_2="",NA(),INDEX(Total_Emissions_by_A_vals,MATCH('Annual GHG Emissions - Sector'!AV$38&"#"&actCaseAnnGHG_2&"#"&'Annual GHG Emissions - Sector'!$I50,Total_Emissions_by_A_index,0))) -> 26.31978344 | AW50: =IF(actCaseAnnGHG_2="",NA(),INDEX(Total_Emissions_by_A_vals,MATCH('Annual GHG Emissions - Sector'!AW$38&"#"&actCaseAnnGHG_2&"#"&'Annual GHG Emissions - Sector'!$I50,Total_Emissions_by_A_index,0))) -> 25.33305352 | AX50: =IF(actCaseAnnGHG_2="",NA(),INDEX(Total_Emissions_by_A_vals,MATCH('Annual GHG Emissions - Sector'!AX$38&"#"&actCaseAnnGHG_2&"#"&'Annual GHG Emissions - Sector'!$I50,Total_Emissions_by_A_index,0))) -> 24.23199695 | AY50: =IF(actCaseAnnGHG_2="",NA(),INDEX(Total_Emissions_by_A_vals,MATCH('Annual GHG Emissions - Sector'!AY$38&"#"&actCaseAnnGHG_2&"#"&'Annual GHG Emissions - Sector'!$I50,Total_Emissions_by_A_index,0))) -> 24.13630751 | AZ50: =IF(actCaseAnnGHG_2="",NA(),INDEX(Total_Emissions_by_A_vals,MATCH('Annual GHG Emissions - Sector'!AZ$38&"#"&actCaseAnnGHG_2&"#"&'Annual GHG Emissions - Sector'!$I50,Total_Emissions_by_A_index,0))) -> 24.04061831 | BA50: =IF(actCaseAnnGHG_2="",NA(),INDEX(Total_Emissions_by_A_vals,MATCH('Annual GHG Emissions - Sector'!BA$38&"#"&actCaseAnnGHG_2&"#"&'Annual GHG Emissions - Sector'!$I50,Total_Emissions_by_A_index,0))) -> 23.94492946 | BB50: =IF(actCaseAnnGHG_2="",NA(),INDEX(Total_Emissions_by_A_vals,MATCH('Annual GHG Emissions - Sector'!BB$38&"#"&actCaseAnnGHG_2&"#"&'Annual GHG Emissions - Sector'!$I50,Total_Emissions_by_A_index,0))) -> 23.8492409 | BC50: =IF(actCaseAnnGHG_2="",NA(),INDEX(Total_Emissions_by_A_vals,MATCH('Annual GHG Emissions - Sector'!BC$38&"#"&actCaseAnnGHG_2&"#"&'Annual GHG Emissions - Sector'!$I50,Total_Emissions_by_A_index,0))) -> 23.75355272 | BD50: =IF(actCaseAnnGHG_2="",NA(),INDEX(Total_Emissions_by_A_vals,MATCH('Annual GHG Emissions - Sector'!BD$38&"#"&actCaseAnnGHG_2&"#"&'Annual GHG Emissions - Sector'!$I50,Total_Emissions_by_A_index,0))) -> 23.65786485 | BE50: =IF(actCaseAnnGHG_2="",NA(),INDEX(Total_Emissions_by_A_vals,MATCH('Annual GHG Emissions - Sector'!BE$38&"#"&actCaseAnnGHG_2&"#"&'Annual GHG Emissions - Sector'!$I50,Total_Emissions_by_A_index,0))) -> 23.56217738 | BF50: =IF(actCaseAnnGHG_2="",NA(),INDEX(Total_Emissions_by_A_vals,MATCH('Annual GHG Emissions - Sector'!BF$38&"#"&actCaseAnnGHG_2&"#"&'Annual GHG Emissions - Sector'!$I50,Total_Emissions_by_A_index,0))) -> 23.4664903 | BG50: =IF(actCaseAnnGHG_2="",NA(),INDEX(Total_Emissions_by_A_vals,MATCH('Annual GHG Emissions - Sector'!BG$38&"#"&actCaseAnnGHG_2&"#"&'Annual GHG Emissions - Sector'!$I50,Total_Emissions_by_A_index,0))) -> 23.37080358 | BH50: =IF(actCaseAnnGHG_2="",NA(),INDEX(Total_Emissions_by_A_vals,MATCH('Annual GHG Emissions - Sector'!BH$38&"#"&actCaseAnnGHG_2&"#"&'Annual GHG Emissions - Sector'!$I50,Total_Emissions_by_A_index,0))) -> 23.27511732 | BI50: =IF(actCaseAnnGHG_2="",NA(),INDEX(Total_Emissions_by_A_vals,MATCH('Annual GHG Emissions - Sector'!BI$38&"#"&actCaseAnnGHG_2&"#"&'Annual GHG Emissions - Sector'!$I50,Total_Emissions_by_A_index,0))) -> 23.19017349 | BJ50: =IF(actCaseAnnGHG_2="",NA(),INDEX(Total_Emissions_by_A_vals,MATCH('Annual GHG Emissions - Sector'!BJ$38&"#"&actCaseAnnGHG_2&"#"&'Annual GHG Emissions - Sector'!$I50,Total_Emissions_by_A_index,0))) -> 23.10523015 | BK50: =IF(actCaseAnnGHG_2="",NA(),INDEX(Total_Emissions_by_A_vals,MATCH('Annual GHG Emissions - Sector'!BK$38&"#"&actCaseAnnGHG_2&"#"&'Annual GHG Emissions - Sector'!$I50,Total_Emissions_by_A_index,0))) -> 23.02028723 | BL50: =IF(actCaseAnnGHG_2="",NA(),INDEX(Total_Emissions_by_A_vals,MATCH('Annual GHG Emissions - Sector'!BL$38&"#"&actCaseAnnGHG_2&"#"&'Annual GHG Emissions - Sector'!$I50,Total_Emissions_by_A_index,0))) -> 22.93534489 | BM50: =IF(actCaseAnnGHG_2="",NA(),INDEX(Total_Emissions_by_A_vals,MATCH('Annual GHG Emissions - Sector'!BM$38&"#"&actCaseAnnGHG_2&"#"&'Annual GHG Emissions - Sector'!$I50,Total_Emissions_by_A_index,0))) -> 22.8504031 | BN50: =IF(actCaseAnnGHG_2="",NA(),INDEX(Total_Emissions_by_A_vals,MATCH('Annual GHG Emissions - Sector'!BN$38&"#"&actCaseAnnGHG_2&"#"&'Annual GHG Emissions - Sector'!$I50,Total_Emissions_by_A_index,0))) -> 22.7654618 | BO50: =IF(actCaseAnnGHG_2="",NA(),INDEX(Total_Emissions_by_A_vals,MATCH('Annual GHG Emissions - Sector'!BO$38&"#"&actCaseAnnGHG_2&"#"&'Annual GHG Emissions - Sector'!$I50,Total_Emissions_by_A_index,0))) -> 22.68052115 | BP50: =IF(actCaseAnnGHG_2="",NA(),INDEX(Total_Emissions_by_A_vals,MATCH('Annual GHG Emissions - Sector'!BP$38&"#"&actCaseAnnGHG_2&"#"&'Annual GHG Emissions - Sector'!$I50,Total_Emissions_by_A_index,0))) -> 22.59558107 | BQ50: =IF(actCaseAnnGHG_2="",NA(),INDEX(Total_Emissions_by_A_vals,MATCH('Annual GHG Emissions - Sector'!BQ$38&"#"&actCaseAnnGHG_2&"#"&'Annual GHG Emissions - Sector'!$I50,Total_Emissions_by_A_index,0))) -> 22.51064169 | BR50: =IF(actCaseAnnGHG_2="",NA(),INDEX(Total_Emissions_by_A_vals,MATCH('Annual GHG Emissions - Sector'!BR$38&"#"&actCaseAnnGHG_2&"#"&'Annual GHG Emissions - Sector'!$I50,Total_Emissions_by_A_index,0))) -> 22.42570295 | BV50: =BR50/BR$57 -> 0.08123160681
I51: Residential and Commercial | AI51: =IF(actCaseAnnGHG_2="",NA(),INDEX(Total_Emissions_by_A_vals,MATCH('Annual GHG Emissions - Sector'!AI$38&"#"&actCaseAnnGHG_2&"#"&'Annual GHG Emissions - Sector'!$I51,Total_Emissions_by_A_index,0))) -> 40.56218294 | AJ51: =IF(actCaseAnnGHG_2="",NA(),INDEX(Total_Emissions_by_A_vals,MATCH('Annual GHG Emissions - Sector'!AJ$38&"#"&actCaseAnnGHG_2&"#"&'Annual GHG Emissions - Sector'!$I51,Total_Emissions_by_A_index,0))) -> 40.33133215 | AK51: =IF(actCaseAnnGHG_2="",NA(),INDEX(Total_Emissions_by_A_vals,MATCH('Annual GHG Emissions - Sector'!AK$38&"#"&actCaseAnnGHG_2&"#"&'Annual GHG Emissions - Sector'!$I51,Total_Emissions_by_A_index,0))) -> 40.09884253 | AL51: =IF(actCaseAnnGHG_2="",NA(),INDEX(Total_Emissions_by_A_vals,MATCH('Annual GHG Emissions - Sector'!AL$38&"#"&actCaseAnnGHG_2&"#"&'Annual GHG Emissions - Sector'!$I51,Total_Emissions_by_A_index,0))) -> 39.79348138 | AM51: =IF(actCaseAnnGHG_2="",NA(),INDEX(Total_Emissions_by_A_vals,MATCH('Annual GHG Emissions - Sector'!AM$38&"#"&actCaseAnnGHG_2&"#"&'Annual GHG Emissions - Sector'!$I51,Total_Emissions_by_A_index,0))) -> 39.48585263 | AN51: =IF(actCaseAnnGHG_2="",NA(),INDEX(Total_Emissions_by_A_vals,MATCH('Annual GHG Emissions - Sector'!AN$38&"#"&actCaseAnnGHG_2&"#"&'Annual GHG Emissions - Sector'!$I51,Total_Emissions_by_A_index,0))) -> 39.09585828 | AO51: =IF(actCaseAnnGHG_2="",NA(),INDEX(Total_Emissions_by_A_vals,MATCH('Annual GHG Emissions - Sector'!AO$38&"#"&actCaseAnnGHG_2&"#"&'Annual GHG Emissions - Sector'!$I51,Total_Emissions_by_A_index,0))) -> 38.87854641 | AP51: =IF(actCaseAnnGHG_2="",NA(),INDEX(Total_Emissions_by_A_vals,MATCH('Annual GHG Emissions - Sector'!AP$38&"#"&actCaseAnnGHG_2&"#"&'Annual GHG Emissions - Sector'!$I51,Total_Emissions_by_A_index,0))) -> 38.59087832 | AQ51: =IF(actCaseAnnGHG_2="",NA(),INDEX(Total_Emissions_by_A_vals,MATCH('Annual GHG Emissions - Sector'!AQ$38&"#"&actCaseAnnGHG_2&"#"&'Annual GHG Emissions - Sector'!$I51,Total_Emissions_by_A_index,0))) -> 38.28862052 | AR51: =IF(actCaseAnnGHG_2="",NA(),INDEX(Total_Emissions_by_A_vals,MATCH('Annual GHG Emissions - Sector'!AR$38&"#"&actCaseAnnGHG_2&"#"&'Annual GHG Emissions - Sector'!$I51,Total_Emissions_by_A_index,0))) -> 37.97792004 | AS51: =IF(actCaseAnnGHG_2="",NA(),INDEX(Total_Emissions_by_A_vals,MATCH('Annual GHG Emissions - Sector'!AS$38&"#"&actCaseAnnGHG_2&"#"&'Annual GHG Emissions - Sector'!$I51,Total_Emissions_by_A_index,0))) -> 37.7651467 | AT51: =IF(actCaseAnnGHG_2="",NA(),INDEX(Total_Emissions_by_A_vals,MATCH('Annual GHG Emissions - Sector'!AT$38&"#"&actCaseAnnGHG_2&"#"&'Annual GHG Emissions - Sector'!$I51,Total_Emissions_by_A_index,0))) -> 37.55597148 | AU51: =IF(actCaseAnnGHG_2="",NA(),INDEX(Total_Emissions_by_A_vals,MATCH('Annual GHG Emissions - Sector'!AU$38&"#"&actCaseAnnGHG_2&"#"&'Annual GHG Emissions - Sector'!$I51,Total_Emissions_by_A_index,0))) -> 37.35637586 | AV51: =IF(actCaseAnnGHG_2="",NA(),INDEX(Total_Emissions_by_A_vals,MATCH('Annual GHG Emissions - Sector'!AV$38&"#"&actCaseAnnGHG_2&"#"&'Annual GHG Emissions - Sector'!$I51,Total_Emissions_by_A_index,0))) -> 37.16412825 | AW51: =IF(actCaseAnnGHG_2="",NA(),INDEX(Total_Emissions_by_A_vals,MATCH('Annual GHG Emissions - Sector'!AW$38&"#"&actCaseAnnGHG_2&"#"&'Annual GHG Emissions - Sector'!$I51,Total_Emissions_by_A_index,0))) -> 36.97500804 | AX51: =IF(actCaseAnnGHG_2="",NA(),INDEX(Total_Emissions_by_A_vals,MATCH('Annual GHG Emissions - Sector'!AX$38&"#"&actCaseAnnGHG_2&"#"&'Annual GHG Emissions - Sector'!$I51,Total_Emissions_by_A_index,0))) -> 36.79959589 | AY51: =IF(actCaseAnnGHG_2="",NA(),INDEX(Total_Emissions_by_A_vals,MATCH('Annual GHG Emissions - Sector'!AY$38&"#"&actCaseAnnGHG_2&"#"&'Annual GHG Emissions - Sector'!$I51,Total_Emissions_by_A_index,0))) -> 36.59187247 | AZ51: =IF(actCaseAnnGHG_2="",NA(),INDEX(Total_Emissions_by_A_vals,MATCH('Annual GHG Emissions - Sector'!AZ$38&"#"&actCaseAnnGHG_2&"#"&'Annual GHG Emissions - Sector'!$I51,Total_Emissions_by_A_index,0))) -> 36.41334203 | BA51: =IF(actCaseAnnGHG_2="",NA(),INDEX(Total_Emissions_by_A_vals,MATCH('Annual GHG Emissions - Sector'!BA$38&"#"&actCaseAnnGHG_2&"#"&'Annual GHG Emissions - Sector'!$I51,Total_Emissions_by_A_index,0))) -> 36.26029139 | BB51: =IF(actCaseAnnGHG_2="",NA(),INDEX(Total_Emissions_by_A_vals,MATCH('Annual GHG Emissions - Sector'!BB$38&"#"&actCaseAnnGHG_2&"#"&'Annual GHG Emissions - Sector'!$I51,Total_Emissions_by_A_index,0))) -> 36.11628037 | BC51: =IF(actCaseAnnGHG_2="",NA(),INDEX(Total_Emissions_by_A_vals,MATCH('Annual GHG Emissions - Sector'!BC$38&"#"&actCaseAnnGHG_2&"#"&'Annual GHG Emissions - Sector'!$I51,Total_Emissions_by_A_index,0))) -> 35.98990855 | BD51: =IF(actCaseAnnGHG_2="",NA(),INDEX(Total_Emissions_by_A_vals,MATCH('Annual GHG Emissions - Sector'!BD$38&"#"&actCaseAnnGHG_2&"#"&'Annual GHG Emissions - Sector'!$I51,Total_Emissions_by_A_index,0))) -> 35.87493467 | BE51: =IF(actCaseAnnGHG_2="",NA(),INDEX(Total_Emissions_by_A_vals,MATCH('Annual GHG Emissions - Sector'!BE$38&"#"&actCaseAnnGHG_2&"#"&'Annual GHG Emissions - Sector'!$I51,Total_Emissions_by_A_index,0))) -> 35.77966627 | BF51: =IF(actCaseAnnGHG_2="",NA(),INDEX(Total_Emissions_by_A_vals,MATCH('Annual GHG Emissions - Sector'!BF$38&"#"&actCaseAnnGHG_2&"#"&'Annual GHG Emissions - Sector'!$I51,Total_Emissions_by_A_index,0))) -> 35.7042482 | BG51: =IF(actCaseAnnGHG_2="",NA(),INDEX(Total_Emissions_by_A_vals,MATCH('Annual GHG Emissions - Sector'!BG$38&"#"&actCaseAnnGHG_2&"#"&'Annual GHG Emissions - Sector'!$I51,Total_Emissions_by_A_index,0))) -> 35.64329058 | BH51: =IF(actCaseAnnGHG_2="",NA(),INDEX(Total_Emissions_by_A_vals,MATCH('Annual GHG Emissions - Sector'!BH$38&"#"&actCaseAnnGHG_2&"#"&'Annual GHG Emissions - Sector'!$I51,Total_Emissions_by_A_index,0))) -> 35.59386306 | BI51: =IF(actCaseAnnGHG_2="",NA(),INDEX(Total_Emissions_by_A_vals,MATCH('Annual GHG Emissions - Sector'!BI$38&"#"&actCaseAnnGHG_2&"#"&'Annual GHG Emissions - Sector'!$I51,Total_Emissions_by_A_index,0))) -> 35.55746253 | BJ51: =IF(actCaseAnnGHG_2="",NA(),INDEX(Total_Emissions_by_A_vals,MATCH('Annual GHG Emissions - Sector'!BJ$38&"#"&actCaseAnnGHG_2&"#"&'Annual GHG Emissions - Sector'!$I51,Total_Emissions_by_A_index,0))) -> 35.5310536 | BK51: =IF(actCaseAnnGHG_2="",NA(),INDEX(Total_Emissions_by_A_vals,MATCH('Annual GHG Emissions - Sector'!BK$38&"#"&actCaseAnnGHG_2&"#"&'Annual GHG Emissions - Sector'!$I51,Total_Emissions_by_A_index,0))) -> 35.51272677 | BL51: =IF(actCaseAnnGHG_2="",NA(),INDEX(Total_Emissions_by_A_vals,MATCH('Annual GHG Emissions - Sector'!BL$38&"#"&actCaseAnnGHG_2&"#"&'Annual GHG Emissions - Sector'!$I51,Total_Emissions_by_A_index,0))) -> 35.50010438 | BM51: =IF(actCaseAnnGHG_2="",NA(),INDEX(Total_Emissions_by_A_vals,MATCH('Annual GHG Emissions - Sector'!BM$38&"#"&actCaseAnnGHG_2&"#"&'Annual GHG Emissions - Sector'!$I51,Total_Emissions_by_A_index,0))) -> 35.49115852 | BN51: =IF(actCaseAnnGHG_2="",NA(),INDEX(Total_Emissions_by_A_vals,MATCH('Annual GHG Emissions - Sector'!BN$38&"#"&actCaseAnnGHG_2&"#"&'Annual GHG Emissions - Sector'!$I51,Total_Emissions_by_A_index,0))) -> 35.48386 | BO51: =IF(actCaseAnnGHG_2="",NA(),INDEX(Total_Emissions_by_A_vals,MATCH('Annual GHG Emissions - Sector'!BO$38&"#"&actCaseAnnGHG_2&"#"&'Annual GHG Emissions - Sector'!$I51,Total_Emissions_by_A_index,0))) -> 35.47724632 | BP51: =IF(actCaseAnnGHG_2="",NA(),INDEX(Total_Emissions_by_A_vals,MATCH('Annual GHG Emissions - Sector'!BP$38&"#"&actCaseAnnGHG_2&"#"&'Annual GHG Emissions - Sector'!$I51,Total_Emissions_by_A_index,0))) -> 35.4711765 | BQ51: =IF(actCaseAnnGHG_2="",NA(),INDEX(Total_Emissions_by_A_vals,MATCH('Annual GHG Emissions - Sector'!BQ$38&"#"&actCaseAnnGHG_2&"#"&'Annual GHG Emissions - Sector'!$I51,Total_Emissions_by_A_index,0))) -> 35.46434029 | BR51: =IF(actCaseAnnGHG_2="",NA(),INDEX(Total_Emissions_by_A_vals,MATCH('Annual GHG Emissions - Sector'!BR$38&"#"&actCaseAnnGHG_2&"#"&'Annual GHG Emissions - Sector'!$I51,Total_Emissions_by_A_index,0))) -> 35.45422224 | BV51: =BR51/BR$57 -> 0.1284242214
I52: Electric Power | AI52: =IF(actCaseAnnGHG_2="",NA(),INDEX(Total_Emissions_by_A_vals,MATCH('Annual GHG Emissions - Sector'!AI$38&"#"&actCaseAnnGHG_2&"#"&'Annual GHG Emissions - Sector'!$I52,Total_Emissions_by_A_index,0))) -> 80.39550047 | AJ52: =IF(actCaseAnnGHG_2="",NA(),INDEX(Total_Emissions_by_A_vals,MATCH('Annual GHG Emissions - Sector'!AJ$38&"#"&actCaseAnnGHG_2&"#"&'Annual GHG Emissions - Sector'!$I52,Total_Emissions_by_A_index,0))) -> 78.61088753 | AK52: =IF(actCaseAnnGHG_2="",NA(),INDEX(Total_Emissions_by_A_vals,MATCH('Annual GHG Emissions - Sector'!AK$38&"#"&actCaseAnnGHG_2&"#"&'Annual GHG Emissions - Sector'!$I52,Total_Emissions_by_A_index,0))) -> 73.54588581 | AL52: =IF(actCaseAnnGHG_2="",NA(),INDEX(Total_Emissions_by_A_vals,MATCH('Annual GHG Emissions - Sector'!AL$38&"#"&actCaseAnnGHG_2&"#"&'Annual GHG Emissions - Sector'!$I52,Total_Emissions_by_A_index,0))) -> 73.3217784 | AM52: =IF(actCaseAnnGHG_2="",NA(),INDEX(Total_Emissions_by_A_vals,MATCH('Annual GHG Emissions - Sector'!AM$38&"#"&actCaseAnnGHG_2&"#"&'Annual GHG Emissions - Sector'!$I52,Total_Emissions_by_A_index,0))) -> 72.86775798 | AN52: =IF(actCaseAnnGHG_2="",NA(),INDEX(Total_Emissions_by_A_vals,MATCH('Annual GHG Emissions - Sector'!AN$38&"#"&actCaseAnnGHG_2&"#"&'Annual GHG Emissions - Sector'!$I52,Total_Emissions_by_A_index,0))) -> 71.51893025 | AO52: =IF(actCaseAnnGHG_2="",NA(),INDEX(Total_Emissions_by_A_vals,MATCH('Annual GHG Emissions - Sector'!AO$38&"#"&actCaseAnnGHG_2&"#"&'Annual GHG Emissions - Sector'!$I52,Total_Emissions_by_A_index,0))) -> 69.74546954 | AP52: =IF(actCaseAnnGHG_2="",NA(),INDEX(Total_Emissions_by_A_vals,MATCH('Annual GHG Emissions - Sector'!AP$38&"#"&actCaseAnnGHG_2&"#"&'Annual GHG Emissions - Sector'!$I52,Total_Emissions_by_A_index,0))) -> 67.95965658 | AQ52: =IF(actCaseAnnGHG_2="",NA(),INDEX(Total_Emissions_by_A_vals,MATCH('Annual GHG Emissions - Sector'!AQ$38&"#"&actCaseAnnGHG_2&"#"&'Annual GHG Emissions - Sector'!$I52,Total_Emissions_by_A_index,0))) -> 66.20450165 | AR52: =IF(actCaseAnnGHG_2="",NA(),INDEX(Total_Emissions_by_A_vals,MATCH('Annual GHG Emissions - Sector'!AR$38&"#"&actCaseAnnGHG_2&"#"&'Annual GHG Emissions - Sector'!$I52,Total_Emissions_by_A_index,0))) -> 64.46719872 | AS52: =IF(actCaseAnnGHG_2="",NA(),INDEX(Total_Emissions_by_A_vals,MATCH('Annual GHG Emissions - Sector'!AS$38&"#"&actCaseAnnGHG_2&"#"&'Annual GHG Emissions - Sector'!$I52,Total_Emissions_by_A_index,0))) -> 55.52831431 | AT52: =IF(actCaseAnnGHG_2="",NA(),INDEX(Total_Emissions_by_A_vals,MATCH('Annual GHG Emissions - Sector'!AT$38&"#"&actCaseAnnGHG_2&"#"&'Annual GHG Emissions - Sector'!$I52,Total_Emissions_by_A_index,0))) -> 53.95002789 | AU52: =IF(actCaseAnnGHG_2="",NA(),INDEX(Total_Emissions_by_A_vals,MATCH('Annual GHG Emissions - Sector'!AU$38&"#"&actCaseAnnGHG_2&"#"&'Annual GHG Emissions - Sector'!$I52,Total_Emissions_by_A_index,0))) -> 52.32518283 | AV52: =IF(actCaseAnnGHG_2="",NA(),INDEX(Total_Emissions_by_A_vals,MATCH('Annual GHG Emissions - Sector'!AV$38&"#"&actCaseAnnGHG_2&"#"&'Annual GHG Emissions - Sector'!$I52,Total_Emissions_by_A_index,0))) -> 55.13098689 | AW52: =IF(actCaseAnnGHG_2="",NA(),INDEX(Total_Emissions_by_A_vals,MATCH('Annual GHG Emissions - Sector'!AW$38&"#"&actCaseAnnGHG_2&"#"&'Annual GHG Emissions - Sector'!$I52,Total_Emissions_by_A_index,0))) -> 53.78952225 | AX52: =IF(actCaseAnnGHG_2="",NA(),INDEX(Total_Emissions_by_A_vals,MATCH('Annual GHG Emissions - Sector'!AX$38&"#"&actCaseAnnGHG_2&"#"&'Annual GHG Emissions - Sector'!$I52,Total_Emissions_by_A_index,0))) -> 52.40285147 | AY52: =IF(actCaseAnnGHG_2="",NA(),INDEX(Total_Emissions_by_A_vals,MATCH('Annual GHG Emissions - Sector'!AY$38&"#"&actCaseAnnGHG_2&"#"&'Annual GHG Emissions - Sector'!$I52,Total_Emissions_by_A_index,0))) -> 53.49200179 | AZ52: =IF(actCaseAnnGHG_2="",NA(),INDEX(Total_Emissions_by_A_vals,MATCH('Annual GHG Emissions - Sector'!AZ$38&"#"&actCaseAnnGHG_2&"#"&'Annual GHG Emissions - Sector'!$I52,Total_Emissions_by_A_index,0))) -> 53.70132464 | BA52: =IF(actCaseAnnGHG_2="",NA(),INDEX(Total_Emissions_by_A_vals,MATCH('Annual GHG Emissions - Sector'!BA$38&"#"&actCaseAnnGHG_2&"#"&'Annual GHG Emissions - Sector'!$I52,Total_Emissions_by_A_index,0))) -> 54.04594434 | BB52: =IF(actCaseAnnGHG_2="",NA(),INDEX(Total_Emissions_by_A_vals,MATCH('Annual GHG Emissions - Sector'!BB$38&"#"&actCaseAnnGHG_2&"#"&'Annual GHG Emissions - Sector'!$I52,Total_Emissions_by_A_index,0))) -> 54.41931237 | BC52: =IF(actCaseAnnGHG_2="",NA(),INDEX(Total_Emissions_by_A_vals,MATCH('Annual GHG Emissions - Sector'!BC$38&"#"&actCaseAnnGHG_2&"#"&'Annual GHG Emissions - Sector'!$I52,Total_Emissions_by_A_index,0))) -> 54.90068765 | BD52: =IF(actCaseAnnGHG_2="",NA(),INDEX(Total_Emissions_by_A_vals,MATCH('Annual GHG Emissions - Sector'!BD$38&"#"&actCaseAnnGHG_2&"#"&'Annual GHG Emissions - Sector'!$I52,Total_Emissions_by_A_index,0))) -> 55.45222942 | BE52: =IF(actCaseAnnGHG_2="",NA(),INDEX(Total_Emissions_by_A_vals,MATCH('Annual GHG Emissions - Sector'!BE$38&"#"&actCaseAnnGHG_2&"#"&'Annual GHG Emissions - Sector'!$I52,Total_Emissions_by_A_index,0))) -> 56.03860698 | BF52: =IF(actCaseAnnGHG_2="",NA(),INDEX(Total_Emissions_by_A_vals,MATCH('Annual GHG Emissions - Sector'!BF$38&"#"&actCaseAnnGHG_2&"#"&'Annual GHG Emissions - Sector'!$I52,Total_Emissions_by_A_index,0))) -> 56.68298488 | BG52: =IF(actCaseAnnGHG_2="",NA(),INDEX(Total_Emissions_by_A_vals,MATCH('Annual GHG Emissions - Sector'!BG$38&"#"&actCaseAnnGHG_2&"#"&'Annual GHG Emissions - Sector'!$I52,Total_Emissions_by_A_index,0))) -> 57.36146921 | BH52: =IF(actCaseAnnGHG_2="",NA(),INDEX(Total_Emissions_by_A_vals,MATCH('Annual GHG Emissions - Sector'!BH$38&"#"&actCaseAnnGHG_2&"#"&'Annual GHG Emissions - Sector'!$I52,Total_Emissions_by_A_index,0))) -> 58.07597547 | BI52: =IF(actCaseAnnGHG_2="",NA(),INDEX(Total_Emissions_by_A_vals,MATCH('Annual GHG Emissions - Sector'!BI$38&"#"&actCaseAnnGHG_2&"#"&'Annual GHG Emissions - Sector'!$I52,Total_Emissions_by_A_index,0))) -> 57.03945444 | BJ52: =IF(actCaseAnnGHG_2="",NA(),INDEX(Total_Emissions_by_A_vals,MATCH('Annual GHG Emissions - Sector'!BJ$38&"#"&actCaseAnnGHG_2&"#"&'Annual GHG Emissions - Sector'!$I52,Total_Emissions_by_A_index,0))) -> 57.79865238 | BK52: =IF(actCaseAnnGHG_2="",NA(),INDEX(Total_Emissions_by_A_vals,MATCH('Annual GHG Emissions - Sector'!BK$38&"#"&actCaseAnnGHG_2&"#"&'Annual GHG Emissions - Sector'!$I52,Total_Emissions_by_A_index,0))) -> 58.58338354 | BL52: =IF(actCaseAnnGHG_2="",NA(),INDEX(Total_Emissions_by_A_vals,MATCH('Annual GHG Emissions - Sector'!BL$38&"#"&actCaseAnnGHG_2&"#"&'Annual GHG Emissions - Sector'!$I52,Total_Emissions_by_A_index,0))) -> 59.3567236 | BM52: =IF(actCaseAnnGHG_2="",NA(),INDEX(Total_Emissions_by_A_vals,MATCH('Annual GHG Emissions - Sector'!BM$38&"#"&actCaseAnnGHG_2&"#"&'Annual GHG Emissions - Sector'!$I52,Total_Emissions_by_A_index,0))) -> 60.04591785 | BN52: =IF(actCaseAnnGHG_2="",NA(),INDEX(Total_Emissions_by_A_vals,MATCH('Annual GHG Emissions - Sector'!BN$38&"#"&actCaseAnnGHG_2&"#"&'Annual GHG Emissions - Sector'!$I52,Total_Emissions_by_A_index,0))) -> 60.7218967 | BO52: =IF(actCaseAnnGHG_2="",NA(),INDEX(Total_Emissions_by_A_vals,MATCH('Annual GHG Emissions - Sector'!BO$38&"#"&actCaseAnnGHG_2&"#"&'Annual GHG Emissions - Sector'!$I52,Total_Emissions_by_A_index,0))) -> 64.5457537 | BP52: =IF(actCaseAnnGHG_2="",NA(),INDEX(Total_Emissions_by_A_vals,MATCH('Annual GHG Emissions - Sector'!BP$38&"#"&actCaseAnnGHG_2&"#"&'Annual GHG Emissions - Sector'!$I52,Total_Emissions_by_A_index,0))) -> 65.17361231 | BQ52: =IF(actCaseAnnGHG_2="",NA(),INDEX(Total_Emissions_by_A_vals,MATCH('Annual GHG Emissions - Sector'!BQ$38&"#"&actCaseAnnGHG_2&"#"&'Annual GHG Emissions - Sector'!$I52,Total_Emissions_by_A_index,0))) -> 65.76004344 | BR52: =IF(actCaseAnnGHG_2="",NA(),INDEX(Total_Emissions_by_A_vals,MATCH('Annual GHG Emissions - Sector'!BR$38&"#"&actCaseAnnGHG_2&"#"&'Annual GHG Emissions - Sector'!$I52,Total_Emissions_by_A_index,0))) -> 66.39593802 | BV52: 0.2405029953
I53: High GWP | AI53: =IF(actCaseAnnGHG_2="",NA(),INDEX(Total_Emissions_by_A_vals,MATCH('Annual GHG Emissions - Sector'!AI$38&"#"&actCaseAnnGHG_2&"#"&'Annual GHG Emissions - Sector'!$I53,Total_Emissions_by_A_index,0))) -> 17.91333132 | AJ53: =IF(actCaseAnnGHG_2="",NA(),INDEX(Total_Emissions_by_A_vals,MATCH('Annual GHG Emissions - Sector'!AJ$38&"#"&actCaseAnnGHG_2&"#"&'Annual GHG Emissions - Sector'!$I53,Total_Emissions_by_A_index,0))) -> 18.33947077 | AK53: =IF(actCaseAnnGHG_2="",NA(),INDEX(Total_Emissions_by_A_vals,MATCH('Annual GHG Emissions - Sector'!AK$38&"#"&actCaseAnnGHG_2&"#"&'Annual GHG Emissions - Sector'!$I53,Total_Emissions_by_A_index,0))) -> 18.3898881 | AL53: =IF(actCaseAnnGHG_2="",NA(),INDEX(Total_Emissions_by_A_vals,MATCH('Annual GHG Emissions - Sector'!AL$38&"#"&actCaseAnnGHG_2&"#"&'Annual GHG Emissions - Sector'!$I53,Total_Emissions_by_A_index,0))) -> 18.10693605 | AM53: =IF(actCaseAnnGHG_2="",NA(),INDEX(Total_Emissions_by_A_vals,MATCH('Annual GHG Emissions - Sector'!AM$38&"#"&actCaseAnnGHG_2&"#"&'Annual GHG Emissions - Sector'!$I53,Total_Emissions_by_A_index,0))) -> 17.99090928 | AN53: =IF(actCaseAnnGHG_2="",NA(),INDEX(Total_Emissions_by_A_vals,MATCH('Annual GHG Emissions - Sector'!AN$38&"#"&actCaseAnnGHG_2&"#"&'Annual GHG Emissions - Sector'!$I53,Total_Emissions_by_A_index,0))) -> 17.69028046 | AO53: =IF(actCaseAnnGHG_2="",NA(),INDEX(Total_Emissions_by_A_vals,MATCH('Annual GHG Emissions - Sector'!AO$38&"#"&actCaseAnnGHG_2&"#"&'Annual GHG Emissions - Sector'!$I53,Total_Emissions_by_A_index,0))) -> 17.31597035 | AP53: =IF(actCaseAnnGHG_2="",NA(),INDEX(Total_Emissions_by_A_vals,MATCH('Annual GHG Emissions - Sector'!AP$38&"#"&actCaseAnnGHG_2&"#"&'Annual GHG Emissions - Sector'!$I53,Total_Emissions_by_A_index,0))) -> 16.87946324 | AQ53: =IF(actCaseAnnGHG_2="",NA(),INDEX(Total_Emissions_by_A_vals,MATCH('Annual GHG Emissions - Sector'!AQ$38&"#"&actCaseAnnGHG_2&"#"&'Annual GHG Emissions - Sector'!$I53,Total_Emissions_by_A_index,0))) -> 16.37779425 | AR53: =IF(actCaseAnnGHG_2="",NA(),INDEX(Total_Emissions_by_A_vals,MATCH('Annual GHG Emissions - Sector'!AR$38&"#"&actCaseAnnGHG_2&"#"&'Annual GHG Emissions - Sector'!$I53,Total_Emissions_by_A_index,0))) -> 15.80960409 | AS53: =IF(actCaseAnnGHG_2="",NA(),INDEX(Total_Emissions_by_A_vals,MATCH('Annual GHG Emissions - Sector'!AS$38&"#"&actCaseAnnGHG_2&"#"&'Annual GHG Emissions - Sector'!$I53,Total_Emissions_by_A_index,0))) -> 15.14417183 | AT53: =IF(actCaseAnnGHG_2="",NA(),INDEX(Total_Emissions_by_A_vals,MATCH('Annual GHG Emissions - Sector'!AT$38&"#"&actCaseAnnGHG_2&"#"&'Annual GHG Emissions - Sector'!$I53,Total_Emissions_by_A_index,0))) -> 14.27458366 | AU53: =IF(actCaseAnnGHG_2="",NA(),INDEX(Total_Emissions_by_A_vals,MATCH('Annual GHG Emissions - Sector'!AU$38&"#"&actCaseAnnGHG_2&"#"&'Annual GHG Emissions - Sector'!$I53,Total_Emissions_by_A_index,0))) -> 13.36181649 | AV53: =IF(actCaseAnnGHG_2="",NA(),INDEX(Total_Emissions_by_A_vals,MATCH('Annual GHG Emissions - Sector'!AV$38&"#"&actCaseAnnGHG_2&"#"&'Annual GHG Emissions - Sector'!$I53,Total_Emissions_by_A_index,0))) -> 12.40574091 | AW53: =IF(actCaseAnnGHG_2="",NA(),INDEX(Total_Emissions_by_A_vals,MATCH('Annual GHG Emissions - Sector'!AW$38&"#"&actCaseAnnGHG_2&"#"&'Annual GHG Emissions - Sector'!$I53,Total_Emissions_by_A_index,0))) -> 11.40518249 | AX53: =IF(actCaseAnnGHG_2="",NA(),INDEX(Total_Emissions_by_A_vals,MATCH('Annual GHG Emissions - Sector'!AX$38&"#"&actCaseAnnGHG_2&"#"&'Annual GHG Emissions - Sector'!$I53,Total_Emissions_by_A_index,0))) -> 10.13333333 | AY53: =IF(actCaseAnnGHG_2="",NA(),INDEX(Total_Emissions_by_A_vals,MATCH('Annual GHG Emissions - Sector'!AY$38&"#"&actCaseAnnGHG_2&"#"&'Annual GHG Emissions - Sector'!$I53,Total_Emissions_by_A_index,0))) -> 9.803892076 | AZ53: =IF(actCaseAnnGHG_2="",NA(),INDEX(Total_Emissions_by_A_vals,MATCH('Annual GHG Emissions - Sector'!AZ$38&"#"&actCaseAnnGHG_2&"#"&'Annual GHG Emissions - Sector'!$I53,Total_Emissions_by_A_index,0))) -> 9.471581873 | BA53: =IF(actCaseAnnGHG_2="",NA(),INDEX(Total_Emissions_by_A_vals,MATCH('Annual GHG Emissions - Sector'!BA$38&"#"&actCaseAnnGHG_2&"#"&'Annual GHG Emissions - Sector'!$I53,Total_Emissions_by_A_index,0))) -> 9.136884201 | BB53: =IF(actCaseAnnGHG_2="",NA(),INDEX(Total_Emissions_by_A_vals,MATCH('Annual GHG Emissions - Sector'!BB$38&"#"&actCaseAnnGHG_2&"#"&'Annual GHG Emissions - Sector'!$I53,Total_Emissions_by_A_index,0))) -> 8.800107656 | BC53: =IF(actCaseAnnGHG_2="",NA(),INDEX(Total_Emissions_by_A_vals,MATCH('Annual GHG Emissions - Sector'!BC$38&"#"&actCaseAnnGHG_2&"#"&'Annual GHG Emissions - Sector'!$I53,Total_Emissions_by_A_index,0))) -> 8.460878936 | BD53: =IF(actCaseAnnGHG_2="",NA(),INDEX(Total_Emissions_by_A_vals,MATCH('Annual GHG Emissions - Sector'!BD$38&"#"&actCaseAnnGHG_2&"#"&'Annual GHG Emissions - Sector'!$I53,Total_Emissions_by_A_index,0))) -> 8.129508706 | BE53: =IF(actCaseAnnGHG_2="",NA(),INDEX(Total_Emissions_by_A_vals,MATCH('Annual GHG Emissions - Sector'!BE$38&"#"&actCaseAnnGHG_2&"#"&'Annual GHG Emissions - Sector'!$I53,Total_Emissions_by_A_index,0))) -> 7.794599169 | BF53: =IF(actCaseAnnGHG_2="",NA(),INDEX(Total_Emissions_by_A_vals,MATCH('Annual GHG Emissions - Sector'!BF$38&"#"&actCaseAnnGHG_2&"#"&'Annual GHG Emissions - Sector'!$I53,Total_Emissions_by_A_index,0))) -> 7.45617146 | BG53: =IF(actCaseAnnGHG_2="",NA(),INDEX(Total_Emissions_by_A_vals,MATCH('Annual GHG Emissions - Sector'!BG$38&"#"&actCaseAnnGHG_2&"#"&'Annual GHG Emissions - Sector'!$I53,Total_Emissions_by_A_index,0))) -> 7.1141905 | BH53: =IF(actCaseAnnGHG_2="",NA(),INDEX(Total_Emissions_by_A_vals,MATCH('Annual GHG Emissions - Sector'!BH$38&"#"&actCaseAnnGHG_2&"#"&'Annual GHG Emissions - Sector'!$I53,Total_Emissions_by_A_index,0))) -> 6.768620069 | BI53: =IF(actCaseAnnGHG_2="",NA(),INDEX(Total_Emissions_by_A_vals,MATCH('Annual GHG Emissions - Sector'!BI$38&"#"&actCaseAnnGHG_2&"#"&'Annual GHG Emissions - Sector'!$I53,Total_Emissions_by_A_index,0))) -> 6.413815745 | BJ53: =IF(actCaseAnnGHG_2="",NA(),INDEX(Total_Emissions_by_A_vals,MATCH('Annual GHG Emissions - Sector'!BJ$38&"#"&actCaseAnnGHG_2&"#"&'Annual GHG Emissions - Sector'!$I53,Total_Emissions_by_A_index,0))) -> 6.056122978 | BK53: =IF(actCaseAnnGHG_2="",NA(),INDEX(Total_Emissions_by_A_vals,MATCH('Annual GHG Emissions - Sector'!BK$38&"#"&actCaseAnnGHG_2&"#"&'Annual GHG Emissions - Sector'!$I53,Total_Emissions_by_A_index,0))) -> 5.695441978 | BL53: =IF(actCaseAnnGHG_2="",NA(),INDEX(Total_Emissions_by_A_vals,MATCH('Annual GHG Emissions - Sector'!BL$38&"#"&actCaseAnnGHG_2&"#"&'Annual GHG Emissions - Sector'!$I53,Total_Emissions_by_A_index,0))) -> 5.331689771 | BM53: =IF(actCaseAnnGHG_2="",NA(),INDEX(Total_Emissions_by_A_vals,MATCH('Annual GHG Emissions - Sector'!BM$38&"#"&actCaseAnnGHG_2&"#"&'Annual GHG Emissions - Sector'!$I53,Total_Emissions_by_A_index,0))) -> 4.964766856 | BN53: =IF(actCaseAnnGHG_2="",NA(),INDEX(Total_Emissions_by_A_vals,MATCH('Annual GHG Emissions - Sector'!BN$38&"#"&actCaseAnnGHG_2&"#"&'Annual GHG Emissions - Sector'!$I53,Total_Emissions_by_A_index,0))) -> 4.593322986 | BO53: =IF(actCaseAnnGHG_2="",NA(),INDEX(Total_Emissions_by_A_vals,MATCH('Annual GHG Emissions - Sector'!BO$38&"#"&actCaseAnnGHG_2&"#"&'Annual GHG Emissions - Sector'!$I53,Total_Emissions_by_A_index,0))) -> 4.218729646 | BP53: =IF(actCaseAnnGHG_2="",NA(),INDEX(Total_Emissions_by_A_vals,MATCH('Annual GHG Emissions - Sector'!BP$38&"#"&actCaseAnnGHG_2&"#"&'Annual GHG Emissions - Sector'!$I53,Total_Emissions_by_A_index,0))) -> 3.840845736 | BQ53: =IF(actCaseAnnGHG_2="",NA(),INDEX(Total_Emissions_by_A_vals,MATCH('Annual GHG Emissions - Sector'!BQ$38&"#"&actCaseAnnGHG_2&"#"&'Annual GHG Emissions - Sector'!$I53,Total_Emissions_by_A_index,0))) -> 3.459539153 | BR53: =IF(actCaseAnnGHG_2="",NA(),INDEX(Total_Emissions_by_A_vals,MATCH('Annual GHG Emissions - Sector'!BR$38&"#"&actCaseAnnGHG_2&"#"&'Annual GHG Emissions - Sector'!$I53,Total_Emissions_by_A_index,0))) -> 3.074659742 | BV53: 0.01113720055
I54: Industrial | AI54: =IF(actCaseAnnGHG_2="",NA(),INDEX(Total_Emissions_by_A_vals,MATCH('Annual GHG Emissions - Sector'!AI$38&"#"&actCaseAnnGHG_2&"#"&'Annual GHG Emissions - Sector'!$I54,Total_Emissions_by_A_index,0))) -> 92.38524967 | AJ54: =IF(actCaseAnnGHG_2="",NA(),INDEX(Total_Emissions_by_A_vals,MATCH('Annual GHG Emissions - Sector'!AJ$38&"#"&actCaseAnnGHG_2&"#"&'Annual GHG Emissions - Sector'!$I54,Total_Emissions_by_A_index,0))) -> 91.37881256 | AK54: =IF(actCaseAnnGHG_2="",NA(),INDEX(Total_Emissions_by_A_vals,MATCH('Annual GHG Emissions - Sector'!AK$38&"#"&actCaseAnnGHG_2&"#"&'Annual GHG Emissions - Sector'!$I54,Total_Emissions_by_A_index,0))) -> 90.25447314 | AL54: =IF(actCaseAnnGHG_2="",NA(),INDEX(Total_Emissions_by_A_vals,MATCH('Annual GHG Emissions - Sector'!AL$38&"#"&actCaseAnnGHG_2&"#"&'Annual GHG Emissions - Sector'!$I54,Total_Emissions_by_A_index,0))) -> 89.40746827 | AM54: =IF(actCaseAnnGHG_2="",NA(),INDEX(Total_Emissions_by_A_vals,MATCH('Annual GHG Emissions - Sector'!AM$38&"#"&actCaseAnnGHG_2&"#"&'Annual GHG Emissions - Sector'!$I54,Total_Emissions_by_A_index,0))) -> 88.44561784 | AN54: =IF(actCaseAnnGHG_2="",NA(),INDEX(Total_Emissions_by_A_vals,MATCH('Annual GHG Emissions - Sector'!AN$38&"#"&actCaseAnnGHG_2&"#"&'Annual GHG Emissions - Sector'!$I54,Total_Emissions_by_A_index,0))) -> 87.42268143 | AO54: =IF(actCaseAnnGHG_2="",NA(),INDEX(Total_Emissions_by_A_vals,MATCH('Annual GHG Emissions - Sector'!AO$38&"#"&actCaseAnnGHG_2&"#"&'Annual GHG Emissions - Sector'!$I54,Total_Emissions_by_A_index,0))) -> 86.67691112 | AP54: =IF(actCaseAnnGHG_2="",NA(),INDEX(Total_Emissions_by_A_vals,MATCH('Annual GHG Emissions - Sector'!AP$38&"#"&actCaseAnnGHG_2&"#"&'Annual GHG Emissions - Sector'!$I54,Total_Emissions_by_A_index,0))) -> 85.97507166 | AQ54: =IF(actCaseAnnGHG_2="",NA(),INDEX(Total_Emissions_by_A_vals,MATCH('Annual GHG Emissions - Sector'!AQ$38&"#"&actCaseAnnGHG_2&"#"&'Annual GHG Emissions - Sector'!$I54,Total_Emissions_by_A_index,0))) -> 85.27573427 | AR54: =IF(actCaseAnnGHG_2="",NA(),INDEX(Total_Emissions_by_A_vals,MATCH('Annual GHG Emissions - Sector'!AR$38&"#"&actCaseAnnGHG_2&"#"&'Annual GHG Emissions - Sector'!$I54,Total_Emissions_by_A_index,0))) -> 84.53173095 | AS54: =IF(actCaseAnnGHG_2="",NA(),INDEX(Total_Emissions_by_A_vals,MATCH('Annual GHG Emissions - Sector'!AS$38&"#"&actCaseAnnGHG_2&"#"&'Annual GHG Emissions - Sector'!$I54,Total_Emissions_by_A_index,0))) -> 84.31294427 | AT54: =IF(actCaseAnnGHG_2="",NA(),INDEX(Total_Emissions_by_A_vals,MATCH('Annual GHG Emissions - Sector'!AT$38&"#"&actCaseAnnGHG_2&"#"&'Annual GHG Emissions - Sector'!$I54,Total_Emissions_by_A_index,0))) -> 84.02001211 | AU54: =IF(actCaseAnnGHG_2="",NA(),INDEX(Total_Emissions_by_A_vals,MATCH('Annual GHG Emissions - Sector'!AU$38&"#"&actCaseAnnGHG_2&"#"&'Annual GHG Emissions - Sector'!$I54,Total_Emissions_by_A_index,0))) -> 83.72285657 | AV54: =IF(actCaseAnnGHG_2="",NA(),INDEX(Total_Emissions_by_A_vals,MATCH('Annual GHG Emissions - Sector'!AV$38&"#"&actCaseAnnGHG_2&"#"&'Annual GHG Emissions - Sector'!$I54,Total_Emissions_by_A_index,0))) -> 83.41998962 | AW54: =IF(actCaseAnnGHG_2="",NA(),INDEX(Total_Emissions_by_A_vals,MATCH('Annual GHG Emissions - Sector'!AW$38&"#"&actCaseAnnGHG_2&"#"&'Annual GHG Emissions - Sector'!$I54,Total_Emissions_by_A_index,0))) -> 83.10836333 | AX54: =IF(actCaseAnnGHG_2="",NA(),INDEX(Total_Emissions_by_A_vals,MATCH('Annual GHG Emissions - Sector'!AX$38&"#"&actCaseAnnGHG_2&"#"&'Annual GHG Emissions - Sector'!$I54,Total_Emissions_by_A_index,0))) -> 82.65019854 | AY54: =IF(actCaseAnnGHG_2="",NA(),INDEX(Total_Emissions_by_A_vals,MATCH('Annual GHG Emissions - Sector'!AY$38&"#"&actCaseAnnGHG_2&"#"&'Annual GHG Emissions - Sector'!$I54,Total_Emissions_by_A_index,0))) -> 82.56245911 | AZ54: =IF(actCaseAnnGHG_2="",NA(),INDEX(Total_Emissions_by_A_vals,MATCH('Annual GHG Emissions - Sector'!AZ$38&"#"&actCaseAnnGHG_2&"#"&'Annual GHG Emissions - Sector'!$I54,Total_Emissions_by_A_index,0))) -> 82.47486439 | BA54: =IF(actCaseAnnGHG_2="",NA(),INDEX(Total_Emissions_by_A_vals,MATCH('Annual GHG Emissions - Sector'!BA$38&"#"&actCaseAnnGHG_2&"#"&'Annual GHG Emissions - Sector'!$I54,Total_Emissions_by_A_index,0))) -> 82.38727396 | BB54: =IF(actCaseAnnGHG_2="",NA(),INDEX(Total_Emissions_by_A_vals,MATCH('Annual GHG Emissions - Sector'!BB$38&"#"&actCaseAnnGHG_2&"#"&'Annual GHG Emissions - Sector'!$I54,Total_Emissions_by_A_index,0))) -> 82.29976225 | BC54: =IF(actCaseAnnGHG_2="",NA(),INDEX(Total_Emissions_by_A_vals,MATCH('Annual GHG Emissions - Sector'!BC$38&"#"&actCaseAnnGHG_2&"#"&'Annual GHG Emissions - Sector'!$I54,Total_Emissions_by_A_index,0))) -> 82.21220215 | BD54: =IF(actCaseAnnGHG_2="",NA(),INDEX(Total_Emissions_by_A_vals,MATCH('Annual GHG Emissions - Sector'!BD$38&"#"&actCaseAnnGHG_2&"#"&'Annual GHG Emissions - Sector'!$I54,Total_Emissions_by_A_index,0))) -> 82.12473082 | BE54: =IF(actCaseAnnGHG_2="",NA(),INDEX(Total_Emissions_by_A_vals,MATCH('Annual GHG Emissions - Sector'!BE$38&"#"&actCaseAnnGHG_2&"#"&'Annual GHG Emissions - Sector'!$I54,Total_Emissions_by_A_index,0))) -> 82.03847056 | BF54: =IF(actCaseAnnGHG_2="",NA(),INDEX(Total_Emissions_by_A_vals,MATCH('Annual GHG Emissions - Sector'!BF$38&"#"&actCaseAnnGHG_2&"#"&'Annual GHG Emissions - Sector'!$I54,Total_Emissions_by_A_index,0))) -> 81.95701088 | BG54: =IF(actCaseAnnGHG_2="",NA(),INDEX(Total_Emissions_by_A_vals,MATCH('Annual GHG Emissions - Sector'!BG$38&"#"&actCaseAnnGHG_2&"#"&'Annual GHG Emissions - Sector'!$I54,Total_Emissions_by_A_index,0))) -> 81.87565541 | BH54: =IF(actCaseAnnGHG_2="",NA(),INDEX(Total_Emissions_by_A_vals,MATCH('Annual GHG Emissions - Sector'!BH$38&"#"&actCaseAnnGHG_2&"#"&'Annual GHG Emissions - Sector'!$I54,Total_Emissions_by_A_index,0))) -> 81.79431852 | BI54: =IF(actCaseAnnGHG_2="",NA(),INDEX(Total_Emissions_by_A_vals,MATCH('Annual GHG Emissions - Sector'!BI$38&"#"&actCaseAnnGHG_2&"#"&'Annual GHG Emissions - Sector'!$I54,Total_Emissions_by_A_index,0))) -> 81.7354797 | BJ54: =IF(actCaseAnnGHG_2="",NA(),INDEX(Total_Emissions_by_A_vals,MATCH('Annual GHG Emissions - Sector'!BJ$38&"#"&actCaseAnnGHG_2&"#"&'Annual GHG Emissions - Sector'!$I54,Total_Emissions_by_A_index,0))) -> 81.67675781 | BK54: =IF(actCaseAnnGHG_2="",NA(),INDEX(Total_Emissions_by_A_vals,MATCH('Annual GHG Emissions - Sector'!BK$38&"#"&actCaseAnnGHG_2&"#"&'Annual GHG Emissions - Sector'!$I54,Total_Emissions_by_A_index,0))) -> 81.61825444 | BL54: =IF(actCaseAnnGHG_2="",NA(),INDEX(Total_Emissions_by_A_vals,MATCH('Annual GHG Emissions - Sector'!BL$38&"#"&actCaseAnnGHG_2&"#"&'Annual GHG Emissions - Sector'!$I54,Total_Emissions_by_A_index,0))) -> 81.55967137 | BM54: =IF(actCaseAnnGHG_2="",NA(),INDEX(Total_Emissions_by_A_vals,MATCH('Annual GHG Emissions - Sector'!BM$38&"#"&actCaseAnnGHG_2&"#"&'Annual GHG Emissions - Sector'!$I54,Total_Emissions_by_A_index,0))) -> 81.50111817 | BN54: =IF(actCaseAnnGHG_2="",NA(),INDEX(Total_Emissions_by_A_vals,MATCH('Annual GHG Emissions - Sector'!BN$38&"#"&actCaseAnnGHG_2&"#"&'Annual GHG Emissions - Sector'!$I54,Total_Emissions_by_A_index,0))) -> 81.44275607 | BO54: =IF(actCaseAnnGHG_2="",NA(),INDEX(Total_Emissions_by_A_vals,MATCH('Annual GHG Emissions - Sector'!BO$38&"#"&actCaseAnnGHG_2&"#"&'Annual GHG Emissions - Sector'!$I54,Total_Emissions_by_A_index,0))) -> 81.38444449 | BP54: =IF(actCaseAnnGHG_2="",NA(),INDEX(Total_Emissions_by_A_vals,MATCH('Annual GHG Emissions - Sector'!BP$38&"#"&actCaseAnnGHG_2&"#"&'Annual GHG Emissions - Sector'!$I54,Total_Emissions_by_A_index,0))) -> 81.32620683 | BQ54: =IF(actCaseAnnGHG_2="",NA(),INDEX(Total_Emissions_by_A_vals,MATCH('Annual GHG Emissions - Sector'!BQ$38&"#"&actCaseAnnGHG_2&"#"&'Annual GHG Emissions - Sector'!$I54,Total_Emissions_by_A_index,0))) -> 81.26812939 | BR54: =IF(actCaseAnnGHG_2="",NA(),INDEX(Total_Emissions_by_A_vals,MATCH('Annual GHG Emissions - Sector'!BR$38&"#"&actCaseAnnGHG_2&"#"&'Annual GHG Emissions - Sector'!$I54,Total_Emissions_by_A_index,0))) -> 81.2101194 | BV54: 0.2941637327
I55: Recycling and Waste | AI55: =IF(actCaseAnnGHG_2="",NA(),INDEX(Total_Emissions_by_A_vals,MATCH('Annual GHG Emissions - Sector'!AI$38&"#"&actCaseAnnGHG_2&"#"&'Annual GHG Emissions - Sector'!$I55,Total_Emissions_by_A_index,0))) -> 10.73087981 | AJ55: =IF(actCaseAnnGHG_2="",NA(),INDEX(Total_Emissions_by_A_vals,MATCH('Annual GHG Emissions - Sector'!AJ$38&"#"&actCaseAnnGHG_2&"#"&'Annual GHG Emissions - Sector'!$I55,Total_Emissions_by_A_index,0))) -> 10.73087981 | AK55: =IF(actCaseAnnGHG_2="",NA(),INDEX(Total_Emissions_by_A_vals,MATCH('Annual GHG Emissions - Sector'!AK$38&"#"&actCaseAnnGHG_2&"#"&'Annual GHG Emissions - Sector'!$I55,Total_Emissions_by_A_index,0))) -> 10.73087981 | AL55: =IF(actCaseAnnGHG_2="",NA(),INDEX(Total_Emissions_by_A_vals,MATCH('Annual GHG Emissions - Sector'!AL$38&"#"&actCaseAnnGHG_2&"#"&'Annual GHG Emissions - Sector'!$I55,Total_Emissions_by_A_index,0))) -> 10.73087981 | AM55: =IF(actCaseAnnGHG_2="",NA(),INDEX(Total_Emissions_by_A_vals,MATCH('Annual GHG Emissions - Sector'!AM$38&"#"&actCaseAnnGHG_2&"#"&'Annual GHG Emissions - Sector'!$I55,Total_Emissions_by_A_index,0))) -> 10.73087981 | AN55: =IF(actCaseAnnGHG_2="",NA(),INDEX(Total_Emissions_by_A_vals,MATCH('Annual GHG Emissions - Sector'!AN$38&"#"&actCaseAnnGHG_2&"#"&'Annual GHG Emissions - Sector'!$I55,Total_Emissions_by_A_index,0))) -> 10.59430498 | AO55: =IF(actCaseAnnGHG_2="",NA(),INDEX(Total_Emissions_by_A_vals,MATCH('Annual GHG Emissions - Sector'!AO$38&"#"&actCaseAnnGHG_2&"#"&'Annual GHG Emissions - Sector'!$I55,Total_Emissions_by_A_index,0))) -> 10.45773014 | AP55: =IF(actCaseAnnGHG_2="",NA(),INDEX(Total_Emissions_by_A_vals,MATCH('Annual GHG Emissions - Sector'!AP$38&"#"&actCaseAnnGHG_2&"#"&'Annual GHG Emissions - Sector'!$I55,Total_Emissions_by_A_index,0))) -> 10.32115531 | AQ55: =IF(actCaseAnnGHG_2="",NA(),INDEX(Total_Emissions_by_A_vals,MATCH('Annual GHG Emissions - Sector'!AQ$38&"#"&actCaseAnnGHG_2&"#"&'Annual GHG Emissions - Sector'!$I55,Total_Emissions_by_A_index,0))) -> 10.18458047 | AR55: =IF(actCaseAnnGHG_2="",NA(),INDEX(Total_Emissions_by_A_vals,MATCH('Annual GHG Emissions - Sector'!AR$38&"#"&actCaseAnnGHG_2&"#"&'Annual GHG Emissions - Sector'!$I55,Total_Emissions_by_A_index,0))) -> 10.04800564 | AS55: =IF(actCaseAnnGHG_2="",NA(),INDEX(Total_Emissions_by_A_vals,MATCH('Annual GHG Emissions - Sector'!AS$38&"#"&actCaseAnnGHG_2&"#"&'Annual GHG Emissions - Sector'!$I55,Total_Emissions_by_A_index,0))) -> 9.911430806 | AT55: =IF(actCaseAnnGHG_2="",NA(),INDEX(Total_Emissions_by_A_vals,MATCH('Annual GHG Emissions - Sector'!AT$38&"#"&actCaseAnnGHG_2&"#"&'Annual GHG Emissions - Sector'!$I55,Total_Emissions_by_A_index,0))) -> 9.774855972 | AU55: =IF(actCaseAnnGHG_2="",NA(),INDEX(Total_Emissions_by_A_vals,MATCH('Annual GHG Emissions - Sector'!AU$38&"#"&actCaseAnnGHG_2&"#"&'Annual GHG Emissions - Sector'!$I55,Total_Emissions_by_A_index,0))) -> 9.638281138 | AV55: =IF(actCaseAnnGHG_2="",NA(),INDEX(Total_Emissions_by_A_vals,MATCH('Annual GHG Emissions - Sector'!AV$38&"#"&actCaseAnnGHG_2&"#"&'Annual GHG Emissions - Sector'!$I55,Total_Emissions_by_A_index,0))) -> 9.501706304 | AW55: =IF(actCaseAnnGHG_2="",NA(),INDEX(Total_Emissions_by_A_vals,MATCH('Annual GHG Emissions - Sector'!AW$38&"#"&actCaseAnnGHG_2&"#"&'Annual GHG Emissions - Sector'!$I55,Total_Emissions_by_A_index,0))) -> 9.365131471 | AX55: =IF(actCaseAnnGHG_2="",NA(),INDEX(Total_Emissions_by_A_vals,MATCH('Annual GHG Emissions - Sector'!AX$38&"#"&actCaseAnnGHG_2&"#"&'Annual GHG Emissions - Sector'!$I55,Total_Emissions_by_A_index,0))) -> 9.167237323 | AY55: =IF(actCaseAnnGHG_2="",NA(),INDEX(Total_Emissions_by_A_vals,MATCH('Annual GHG Emissions - Sector'!AY$38&"#"&actCaseAnnGHG_2&"#"&'Annual GHG Emissions - Sector'!$I55,Total_Emissions_by_A_index,0))) -> 9.10591801 | AZ55: =IF(actCaseAnnGHG_2="",NA(),INDEX(Total_Emissions_by_A_vals,MATCH('Annual GHG Emissions - Sector'!AZ$38&"#"&actCaseAnnGHG_2&"#"&'Annual GHG Emissions - Sector'!$I55,Total_Emissions_by_A_index,0))) -> 9.044598697 | BA55: =IF(actCaseAnnGHG_2="",NA(),INDEX(Total_Emissions_by_A_vals,MATCH('Annual GHG Emissions - Sector'!BA$38&"#"&actCaseAnnGHG_2&"#"&'Annual GHG Emissions - Sector'!$I55,Total_Emissions_by_A_index,0))) -> 8.983279384 | BB55: =IF(actCaseAnnGHG_2="",NA(),INDEX(Total_Emissions_by_A_vals,MATCH('Annual GHG Emissions - Sector'!BB$38&"#"&actCaseAnnGHG_2&"#"&'Annual GHG Emissions - Sector'!$I55,Total_Emissions_by_A_index,0))) -> 8.921960071 | BC55: =IF(actCaseAnnGHG_2="",NA(),INDEX(Total_Emissions_by_A_vals,MATCH('Annual GHG Emissions - Sector'!BC$38&"#"&actCaseAnnGHG_2&"#"&'Annual GHG Emissions - Sector'!$I55,Total_Emissions_by_A_index,0))) -> 8.860640757 | BD55: =IF(actCaseAnnGHG_2="",NA(),INDEX(Total_Emissions_by_A_vals,MATCH('Annual GHG Emissions - Sector'!BD$38&"#"&actCaseAnnGHG_2&"#"&'Annual GHG Emissions - Sector'!$I55,Total_Emissions_by_A_index,0))) -> 8.799321444 | BE55: =IF(actCaseAnnGHG_2="",NA(),INDEX(Total_Emissions_by_A_vals,MATCH('Annual GHG Emissions - Sector'!BE$38&"#"&actCaseAnnGHG_2&"#"&'Annual GHG Emissions - Sector'!$I55,Total_Emissions_by_A_index,0))) -> 8.738002131 | BF55: =IF(actCaseAnnGHG_2="",NA(),INDEX(Total_Emissions_by_A_vals,MATCH('Annual GHG Emissions - Sector'!BF$38&"#"&actCaseAnnGHG_2&"#"&'Annual GHG Emissions - Sector'!$I55,Total_Emissions_by_A_index,0))) -> 8.676682818 | BG55: =IF(actCaseAnnGHG_2="",NA(),INDEX(Total_Emissions_by_A_vals,MATCH('Annual GHG Emissions - Sector'!BG$38&"#"&actCaseAnnGHG_2&"#"&'Annual GHG Emissions - Sector'!$I55,Total_Emissions_by_A_index,0))) -> 8.615363505 | BH55: =IF(actCaseAnnGHG_2="",NA(),INDEX(Total_Emissions_by_A_vals,MATCH('Annual GHG Emissions - Sector'!BH$38&"#"&actCaseAnnGHG_2&"#"&'Annual GHG Emissions - Sector'!$I55,Total_Emissions_by_A_index,0))) -> 8.554044191 | BI55: =IF(actCaseAnnGHG_2="",NA(),INDEX(Total_Emissions_by_A_vals,MATCH('Annual GHG Emissions - Sector'!BI$38&"#"&actCaseAnnGHG_2&"#"&'Annual GHG Emissions - Sector'!$I55,Total_Emissions_by_A_index,0))) -> 8.492724878 | BJ55: =IF(actCaseAnnGHG_2="",NA(),INDEX(Total_Emissions_by_A_vals,MATCH('Annual GHG Emissions - Sector'!BJ$38&"#"&actCaseAnnGHG_2&"#"&'Annual GHG Emissions - Sector'!$I55,Total_Emissions_by_A_index,0))) -> 8.431405565 | BK55: =IF(actCaseAnnGHG_2="",NA(),INDEX(Total_Emissions_by_A_vals,MATCH('Annual GHG Emissions - Sector'!BK$38&"#"&actCaseAnnGHG_2&"#"&'Annual GHG Emissions - Sector'!$I55,Total_Emissions_by_A_index,0))) -> 8.370086252 | BL55: =IF(actCaseAnnGHG_2="",NA(),INDEX(Total_Emissions_by_A_vals,MATCH('Annual GHG Emissions - Sector'!BL$38&"#"&actCaseAnnGHG_2&"#"&'Annual GHG Emissions - Sector'!$I55,Total_Emissions_by_A_index,0))) -> 8.308766939 | BM55: =IF(actCaseAnnGHG_2="",NA(),INDEX(Total_Emissions_by_A_vals,MATCH('Annual GHG Emissions - Sector'!BM$38&"#"&actCaseAnnGHG_2&"#"&'Annual GHG Emissions - Sector'!$I55,Total_Emissions_by_A_index,0))) -> 8.247447625 | BN55: =IF(actCaseAnnGHG_2="",NA(),INDEX(Total_Emissions_by_A_vals,MATCH('Annual GHG Emissions - Sector'!BN$38&"#"&actCaseAnnGHG_2&"#"&'Annual GHG Emissions - Sector'!$I55,Total_Emissions_by_A_index,0))) -> 8.186128312 | BO55: =IF(actCaseAnnGHG_2="",NA(),INDEX(Total_Emissions_by_A_vals,MATCH('Annual GHG Emissions - Sector'!BO$38&"#"&actCaseAnnGHG_2&"#"&'Annual GHG Emissions - Sector'!$I55,Total_Emissions_by_A_index,0))) -> 8.124808999 | BP55: =IF(actCaseAnnGHG_2="",NA(),INDEX(Total_Emissions_by_A_vals,MATCH('Annual GHG Emissions - Sector'!BP$38&"#"&actCaseAnnGHG_2&"#"&'Annual GHG Emissions - Sector'!$I55,Total_Emissions_by_A_index,0))) -> 8.063489686 | BQ55: =IF(actCaseAnnGHG_2="",NA(),INDEX(Total_Emissions_by_A_vals,MATCH('Annual GHG Emissions - Sector'!BQ$38&"#"&actCaseAnnGHG_2&"#"&'Annual GHG Emissions - Sector'!$I55,Total_Emissions_by_A_index,0))) -> 8.002170373 | BR55: =IF(actCaseAnnGHG_2="",NA(),INDEX(Total_Emissions_by_A_vals,MATCH('Annual GHG Emissions - Sector'!BR$38&"#"&actCaseAnnGHG_2&"#"&'Annual GHG Emissions - Sector'!$I55,Total_Emissions_by_A_index,0))) -> 7.940851059 | BV55: 0.02876378468
I56: Transportation (Incl. TCU) | AI56: =IF(actCaseAnnGHG_2="",NA(),INDEX(Total_Emissions_by_A_vals,MATCH('Annual GHG Emissions - Sector'!AI$38&"#"&actCaseAnnGHG_2&"#"&'Annual GHG Emissions - Sector'!$I56,Total_Emissions_by_A_index,0))) -> 160.6295215 | AJ56: =IF(actCaseAnnGHG_2="",NA(),INDEX(Total_Emissions_by_A_vals,MATCH('Annual GHG Emissions - Sector'!AJ$38&"#"&actCaseAnnGHG_2&"#"&'Annual GHG Emissions - Sector'!$I56,Total_Emissions_by_A_index,0))) -> 160.7663088 | AK56: =IF(actCaseAnnGHG_2="",NA(),INDEX(Total_Emissions_by_A_vals,MATCH('Annual GHG Emissions - Sector'!AK$38&"#"&actCaseAnnGHG_2&"#"&'Annual GHG Emissions - Sector'!$I56,Total_Emissions_by_A_index,0))) -> 159.7400481 | AL56: =IF(actCaseAnnGHG_2="",NA(),INDEX(Total_Emissions_by_A_vals,MATCH('Annual GHG Emissions - Sector'!AL$38&"#"&actCaseAnnGHG_2&"#"&'Annual GHG Emissions - Sector'!$I56,Total_Emissions_by_A_index,0))) -> 156.1835493 | AM56: =IF(actCaseAnnGHG_2="",NA(),INDEX(Total_Emissions_by_A_vals,MATCH('Annual GHG Emissions - Sector'!AM$38&"#"&actCaseAnnGHG_2&"#"&'Annual GHG Emissions - Sector'!$I56,Total_Emissions_by_A_index,0))) -> 152.0730208 | AN56: =IF(actCaseAnnGHG_2="",NA(),INDEX(Total_Emissions_by_A_vals,MATCH('Annual GHG Emissions - Sector'!AN$38&"#"&actCaseAnnGHG_2&"#"&'Annual GHG Emissions - Sector'!$I56,Total_Emissions_by_A_index,0))) -> 147.8032399 | AO56: =IF(actCaseAnnGHG_2="",NA(),INDEX(Total_Emissions_by_A_vals,MATCH('Annual GHG Emissions - Sector'!AO$38&"#"&actCaseAnnGHG_2&"#"&'Annual GHG Emissions - Sector'!$I56,Total_Emissions_by_A_index,0))) -> 144.2836101 | AP56: =IF(actCaseAnnGHG_2="",NA(),INDEX(Total_Emissions_by_A_vals,MATCH('Annual GHG Emissions - Sector'!AP$38&"#"&actCaseAnnGHG_2&"#"&'Annual GHG Emissions - Sector'!$I56,Total_Emissions_by_A_index,0))) -> 139.9462453 | AQ56: =IF(actCaseAnnGHG_2="",NA(),INDEX(Total_Emissions_by_A_vals,MATCH('Annual GHG Emissions - Sector'!AQ$38&"#"&actCaseAnnGHG_2&"#"&'Annual GHG Emissions - Sector'!$I56,Total_Emissions_by_A_index,0))) -> 135.7850371 | AR56: =IF(actCaseAnnGHG_2="",NA(),INDEX(Total_Emissions_by_A_vals,MATCH('Annual GHG Emissions - Sector'!AR$38&"#"&actCaseAnnGHG_2&"#"&'Annual GHG Emissions - Sector'!$I56,Total_Emissions_by_A_index,0))) -> 131.2320414 | AS56: =IF(actCaseAnnGHG_2="",NA(),INDEX(Total_Emissions_by_A_vals,MATCH('Annual GHG Emissions - Sector'!AS$38&"#"&actCaseAnnGHG_2&"#"&'Annual GHG Emissions - Sector'!$I56,Total_Emissions_by_A_index,0))) -> 126.5956412 | AT56: =IF(actCaseAnnGHG_2="",NA(),INDEX(Total_Emissions_by_A_vals,MATCH('Annual GHG Emissions - Sector'!AT$38&"#"&actCaseAnnGHG_2&"#"&'Annual GHG Emissions - Sector'!$I56,Total_Emissions_by_A_index,0))) -> 121.761039 | AU56: =IF(actCaseAnnGHG_2="",NA(),INDEX(Total_Emissions_by_A_vals,MATCH('Annual GHG Emissions - Sector'!AU$38&"#"&actCaseAnnGHG_2&"#"&'Annual GHG Emissions - Sector'!$I56,Total_Emissions_by_A_index,0))) -> 117.6425131 | AV56: =IF(actCaseAnnGHG_2="",NA(),INDEX(Total_Emissions_by_A_vals,MATCH('Annual GHG Emissions - Sector'!AV$38&"#"&actCaseAnnGHG_2&"#"&'Annual GHG Emissions - Sector'!$I56,Total_Emissions_by_A_index,0))) -> 113.642064 | AW56: =IF(actCaseAnnGHG_2="",NA(),INDEX(Total_Emissions_by_A_vals,MATCH('Annual GHG Emissions - Sector'!AW$38&"#"&actCaseAnnGHG_2&"#"&'Annual GHG Emissions - Sector'!$I56,Total_Emissions_by_A_index,0))) -> 109.8171859 | AX56: =IF(actCaseAnnGHG_2="",NA(),INDEX(Total_Emissions_by_A_vals,MATCH('Annual GHG Emissions - Sector'!AX$38&"#"&actCaseAnnGHG_2&"#"&'Annual GHG Emissions - Sector'!$I56,Total_Emissions_by_A_index,0))) -> 106.1267133 | AY56: =IF(actCaseAnnGHG_2="",NA(),INDEX(Total_Emissions_by_A_vals,MATCH('Annual GHG Emissions - Sector'!AY$38&"#"&actCaseAnnGHG_2&"#"&'Annual GHG Emissions - Sector'!$I56,Total_Emissions_by_A_index,0))) -> 102.9474938 | AZ56: =IF(actCaseAnnGHG_2="",NA(),INDEX(Total_Emissions_by_A_vals,MATCH('Annual GHG Emissions - Sector'!AZ$38&"#"&actCaseAnnGHG_2&"#"&'Annual GHG Emissions - Sector'!$I56,Total_Emissions_by_A_index,0))) -> 100.0134804 | BA56: =IF(actCaseAnnGHG_2="",NA(),INDEX(Total_Emissions_by_A_vals,MATCH('Annual GHG Emissions - Sector'!BA$38&"#"&actCaseAnnGHG_2&"#"&'Annual GHG Emissions - Sector'!$I56,Total_Emissions_by_A_index,0))) -> 97.1443167 | BB56: =IF(actCaseAnnGHG_2="",NA(),INDEX(Total_Emissions_by_A_vals,MATCH('Annual GHG Emissions - Sector'!BB$38&"#"&actCaseAnnGHG_2&"#"&'Annual GHG Emissions - Sector'!$I56,Total_Emissions_by_A_index,0))) -> 94.31837842 | BC56: =IF(actCaseAnnGHG_2="",NA(),INDEX(Total_Emissions_by_A_vals,MATCH('Annual GHG Emissions - Sector'!BC$38&"#"&actCaseAnnGHG_2&"#"&'Annual GHG Emissions - Sector'!$I56,Total_Emissions_by_A_index,0))) -> 91.46791827 | BD56: =IF(actCaseAnnGHG_2="",NA(),INDEX(Total_Emissions_by_A_vals,MATCH('Annual GHG Emissions - Sector'!BD$38&"#"&actCaseAnnGHG_2&"#"&'Annual GHG Emissions - Sector'!$I56,Total_Emissions_by_A_index,0))) -> 88.72243229 | BE56: =IF(actCaseAnnGHG_2="",NA(),INDEX(Total_Emissions_by_A_vals,MATCH('Annual GHG Emissions - Sector'!BE$38&"#"&actCaseAnnGHG_2&"#"&'Annual GHG Emissions - Sector'!$I56,Total_Emissions_by_A_index,0))) -> 86.00064318 | BF56: =IF(actCaseAnnGHG_2="",NA(),INDEX(Total_Emissions_by_A_vals,MATCH('Annual GHG Emissions - Sector'!BF$38&"#"&actCaseAnnGHG_2&"#"&'Annual GHG Emissions - Sector'!$I56,Total_Emissions_by_A_index,0))) -> 83.31463631 | BG56: =IF(actCaseAnnGHG_2="",NA(),INDEX(Total_Emissions_by_A_vals,MATCH('Annual GHG Emissions - Sector'!BG$38&"#"&actCaseAnnGHG_2&"#"&'Annual GHG Emissions - Sector'!$I56,Total_Emissions_by_A_index,0))) -> 80.66314454 | BH56: =IF(actCaseAnnGHG_2="",NA(),INDEX(Total_Emissions_by_A_vals,MATCH('Annual GHG Emissions - Sector'!BH$38&"#"&actCaseAnnGHG_2&"#"&'Annual GHG Emissions - Sector'!$I56,Total_Emissions_by_A_index,0))) -> 78.07689915 | BI56: =IF(actCaseAnnGHG_2="",NA(),INDEX(Total_Emissions_by_A_vals,MATCH('Annual GHG Emissions - Sector'!BI$38&"#"&actCaseAnnGHG_2&"#"&'Annual GHG Emissions - Sector'!$I56,Total_Emissions_by_A_index,0))) -> 75.5802365 | BJ56: =IF(actCaseAnnGHG_2="",NA(),INDEX(Total_Emissions_by_A_vals,MATCH('Annual GHG Emissions - Sector'!BJ$38&"#"&actCaseAnnGHG_2&"#"&'Annual GHG Emissions - Sector'!$I56,Total_Emissions_by_A_index,0))) -> 73.20409326 | BK56: =IF(actCaseAnnGHG_2="",NA(),INDEX(Total_Emissions_by_A_vals,MATCH('Annual GHG Emissions - Sector'!BK$38&"#"&actCaseAnnGHG_2&"#"&'Annual GHG Emissions - Sector'!$I56,Total_Emissions_by_A_index,0))) -> 70.93736444 | BL56: =IF(actCaseAnnGHG_2="",NA(),INDEX(Total_Emissions_by_A_vals,MATCH('Annual GHG Emissions - Sector'!BL$38&"#"&actCaseAnnGHG_2&"#"&'Annual GHG Emissions - Sector'!$I56,Total_Emissions_by_A_index,0))) -> 68.78102731 | BM56: =IF(actCaseAnnGHG_2="",NA(),INDEX(Total_Emissions_by_A_vals,MATCH('Annual GHG Emissions - Sector'!BM$38&"#"&actCaseAnnGHG_2&"#"&'Annual GHG Emissions - Sector'!$I56,Total_Emissions_by_A_index,0))) -> 66.97392889 | BN56: =IF(actCaseAnnGHG_2="",NA(),INDEX(Total_Emissions_by_A_vals,MATCH('Annual GHG Emissions - Sector'!BN$38&"#"&actCaseAnnGHG_2&"#"&'Annual GHG Emissions - Sector'!$I56,Total_Emissions_by_A_index,0))) -> 65.2635492 | BO56: =IF(actCaseAnnGHG_2="",NA(),INDEX(Total_Emissions_by_A_vals,MATCH('Annual GHG Emissions - Sector'!BO$38&"#"&actCaseAnnGHG_2&"#"&'Annual GHG Emissions - Sector'!$I56,Total_Emissions_by_A_index,0))) -> 63.67591176 | BP56: =IF(actCaseAnnGHG_2="",NA(),INDEX(Total_Emissions_by_A_vals,MATCH('Annual GHG Emissions - Sector'!BP$38&"#"&actCaseAnnGHG_2&"#"&'Annual GHG Emissions - Sector'!$I56,Total_Emissions_by_A_index,0))) -> 62.19827362 | BQ56: =IF(actCaseAnnGHG_2="",NA(),INDEX(Total_Emissions_by_A_vals,MATCH('Annual GHG Emissions - Sector'!BQ$38&"#"&actCaseAnnGHG_2&"#"&'Annual GHG Emissions - Sector'!$I56,Total_Emissions_by_A_index,0))) -> 60.83399714 | BR56: =IF(actCaseAnnGHG_2="",NA(),INDEX(Total_Emissions_by_A_vals,MATCH('Annual GHG Emissions - Sector'!BR$38&"#"&actCaseAnnGHG_2&"#"&'Annual GHG Emissions - Sector'!$I56,Total_Emissions_by_A_index,0))) -> 59.56965465 | BV56: 0.2157764586
I57: Total | AI57: =SUM(AI50:AI56) -> 438.9169943 | AJ57: =SUM(AJ50:AJ56) -> 436.410319 | AK57: 428.6925 | AL57: 423.1545858 | AM57: 416.8788451 | AN57: 408.3759581 | AO57: 400.6163536 | AP57: 391.9354228 | AQ57: 383.3819985 | AR57: 374.333198 | AS57: 358.5376186 | AT57: 349.6297314 | AU57: 341.3535387 | AV57: 337.5843994 | AW57: 329.793447 | AX57: 321.5119268 | AY57: 318.6399448 | AZ57: 315.1598103 | BA57: 311.9029194 | BB57: 308.725042 | BC57: 305.645789 | BD57: 302.7610222 | BE57: 299.9521657 | BF57: 297.2582249 | BG57: 294.6439173 | BH57: 292.1388378 | BI57: 288.0093473 | BJ57: 285.8033158 | BK57: 283.7375446 | BL57: 281.7733283 | BM57: 280.074741 | BN57: 278.4569751 | BO57: 280.1074161 | BP57: 278.6691858 | BQ57: 277.2988615 | BR57: 276.0711481 | BT57: 46.18129453 | BU57: 146.4022459
I59: ="PATHWAYS - "&actCaseAnnGHG_3 -> PATHWAYS - CEC 2050 Ref LDV VMT Plus
J60: 1990 | K60: 1991 | L60: 1992 | M60: 1993 | N60: 1994 | O60: 1995 | P60: 1996 | Q60: 1997 | R60: 1998 | S60: 1999 | T60: 2000 | U60: 2001 | V60: 2002 | W60: 2003 | X60: 2004 | Y60: 2005 | Z60: 2006 | AA60: 2007 | AB60: 2008 | AC60: 2009 | AD60: 2010 | AE60: 2011 | AF60: 2012 | AG60: 2013 | AH60: 2014 | AI60: 2015 | AJ60: 2016 | AK60: 2017 | AL60: 2018 | AM60: 2019 | AN60: 2020 | AO60: 2021 | AP60: 2022 | AQ60: 2023 | AR60: 2024 | AS60: 2025 | AT60: 2026 | AU60: 2027 | AV60: 2028 | AW60: 2029 | AX60: 2030 | AY60: 2031 | AZ60: 2032 | BA60: 2033 | BB60: 2034 | BC60: 2035 | BD60: 2036 | BE60: 2037 | BF60: 2038 | BG60: 2039 | BH60: 2040 | BI60: 2041 | BJ60: 2042 | BK60: 2043 | BL60: 2044 | BM60: 2045 | BN60: 2046 | BO60: 2047 | BP60: 2048 | BQ60: 2049 | BR60: 2050 | BT60: 2030 Gap | BU60: 2050 Gap
I61: Agriculture | AI61: =IF(actCaseAnnGHG_3="",NA(),INDEX(Total_Emissions_by_A_vals,MATCH('Annual GHG Emissions - Sector'!AI$38&"#"&actCaseAnnGHG_3&"#"&'Annual GHG Emissions - Sector'!$I61,Total_Emissions_by_A_index,0))) -> 36.30032754 | AJ61: =IF(actCaseAnnGHG_3="",NA(),INDEX(Total_Emissions_by_A_vals,MATCH('Annual GHG Emissions - Sector'!AJ$38&"#"&actCaseAnnGHG_3&"#"&'Annual GHG Emissions - Sector'!$I61,Total_Emissions_by_A_index,0))) -> 36.31133329 | AK61: =IF(actCaseAnnGHG_3="",NA(),INDEX(Total_Emissions_by_A_vals,MATCH('Annual GHG Emissions - Sector'!AK$38&"#"&actCaseAnnGHG_3&"#"&'Annual GHG Emissions - Sector'!$I61,Total_Emissions_by_A_index,0))) -> 36.04495565 | AL61: =IF(actCaseAnnGHG_3="",NA(),INDEX(Total_Emissions_by_A_vals,MATCH('Annual GHG Emissions - Sector'!AL$38&"#"&actCaseAnnGHG_3&"#"&'Annual GHG Emissions - Sector'!$I61,Total_Emissions_by_A_index,0))) -> 35.78171532 | AM61: =IF(actCaseAnnGHG_3="",NA(),INDEX(Total_Emissions_by_A_vals,MATCH('Annual GHG Emissions - Sector'!AM$38&"#"&actCaseAnnGHG_3&"#"&'Annual GHG Emissions - Sector'!$I61,Total_Emissions_by_A_index,0))) -> 35.51480995 | AN61: =IF(actCaseAnnGHG_3="",NA(),INDEX(Total_Emissions_by_A_vals,MATCH('Annual GHG Emissions - Sector'!AN$38&"#"&actCaseAnnGHG_3&"#"&'Annual GHG Emissions - Sector'!$I61,Total_Emissions_by_A_index,0))) -> 34.53941888 | AO61: =IF(actCaseAnnGHG_3="",NA(),INDEX(Total_Emissions_by_A_vals,MATCH('Annual GHG Emissions - Sector'!AO$38&"#"&actCaseAnnGHG_3&"#"&'Annual GHG Emissions - Sector'!$I61,Total_Emissions_by_A_index,0))) -> 33.55219408 | AP61: =IF(actCaseAnnGHG_3="",NA(),INDEX(Total_Emissions_by_A_vals,MATCH('Annual GHG Emissions - Sector'!AP$38&"#"&actCaseAnnGHG_3&"#"&'Annual GHG Emissions - Sector'!$I61,Total_Emissions_by_A_index,0))) -> 32.56744408 | AQ61: =IF(actCaseAnnGHG_3="",NA(),INDEX(Total_Emissions_by_A_vals,MATCH('Annual GHG Emissions - Sector'!AQ$38&"#"&actCaseAnnGHG_3&"#"&'Annual GHG Emissions - Sector'!$I61,Total_Emissions_by_A_index,0))) -> 31.57553315 | AR61: =IF(actCaseAnnGHG_3="",NA(),INDEX(Total_Emissions_by_A_vals,MATCH('Annual GHG Emissions - Sector'!AR$38&"#"&actCaseAnnGHG_3&"#"&'Annual GHG Emissions - Sector'!$I61,Total_Emissions_by_A_index,0))) -> 30.58690917 | AS61: =IF(actCaseAnnGHG_3="",NA(),INDEX(Total_Emissions_by_A_vals,MATCH('Annual GHG Emissions - Sector'!AS$38&"#"&actCaseAnnGHG_3&"#"&'Annual GHG Emissions - Sector'!$I61,Total_Emissions_by_A_index,0))) -> 29.60543314 | AT61: =IF(actCaseAnnGHG_3="",NA(),INDEX(Total_Emissions_by_A_vals,MATCH('Annual GHG Emissions - Sector'!AT$38&"#"&actCaseAnnGHG_3&"#"&'Annual GHG Emissions - Sector'!$I61,Total_Emissions_by_A_index,0))) -> 28.62935588 | AU61: =IF(actCaseAnnGHG_3="",NA(),INDEX(Total_Emissions_by_A_vals,MATCH('Annual GHG Emissions - Sector'!AU$38&"#"&actCaseAnnGHG_3&"#"&'Annual GHG Emissions - Sector'!$I61,Total_Emissions_by_A_index,0))) -> 27.64788166 | AV61: =IF(actCaseAnnGHG_3="",NA(),INDEX(Total_Emissions_by_A_vals,MATCH('Annual GHG Emissions - Sector'!AV$38&"#"&actCaseAnnGHG_3&"#"&'Annual GHG Emissions - Sector'!$I61,Total_Emissions_by_A_index,0))) -> 26.66636069 | AW61: =IF(actCaseAnnGHG_3="",NA(),INDEX(Total_Emissions_by_A_vals,MATCH('Annual GHG Emissions - Sector'!AW$38&"#"&actCaseAnnGHG_3&"#"&'Annual GHG Emissions - Sector'!$I61,Total_Emissions_by_A_index,0))) -> 25.68981665 | AX61: =IF(actCaseAnnGHG_3="",NA(),INDEX(Total_Emissions_by_A_vals,MATCH('Annual GHG Emissions - Sector'!AX$38&"#"&actCaseAnnGHG_3&"#"&'Annual GHG Emissions - Sector'!$I61,Total_Emissions_by_A_index,0))) -> 24.59458963 | AY61: =IF(actCaseAnnGHG_3="",NA(),INDEX(Total_Emissions_by_A_vals,MATCH('Annual GHG Emissions - Sector'!AY$38&"#"&actCaseAnnGHG_3&"#"&'Annual GHG Emissions - Sector'!$I61,Total_Emissions_by_A_index,0))) -> 24.45177763 | AZ61: =IF(actCaseAnnGHG_3="",NA(),INDEX(Total_Emissions_by_A_vals,MATCH('Annual GHG Emissions - Sector'!AZ$38&"#"&actCaseAnnGHG_3&"#"&'Annual GHG Emissions - Sector'!$I61,Total_Emissions_by_A_index,0))) -> 24.30383551 | BA61: =IF(actCaseAnnGHG_3="",NA(),INDEX(Total_Emissions_by_A_vals,MATCH('Annual GHG Emissions - Sector'!BA$38&"#"&actCaseAnnGHG_3&"#"&'Annual GHG Emissions - Sector'!$I61,Total_Emissions_by_A_index,0))) -> 24.15675278 | BB61: =IF(actCaseAnnGHG_3="",NA(),INDEX(Total_Emissions_by_A_vals,MATCH('Annual GHG Emissions - Sector'!BB$38&"#"&actCaseAnnGHG_3&"#"&'Annual GHG Emissions - Sector'!$I61,Total_Emissions_by_A_index,0))) -> 24.0086639 | BC61: =IF(actCaseAnnGHG_3="",NA(),INDEX(Total_Emissions_by_A_vals,MATCH('Annual GHG Emissions - Sector'!BC$38&"#"&actCaseAnnGHG_3&"#"&'Annual GHG Emissions - Sector'!$I61,Total_Emissions_by_A_index,0))) -> 23.86043955 | BD61: =IF(actCaseAnnGHG_3="",NA(),INDEX(Total_Emissions_by_A_vals,MATCH('Annual GHG Emissions - Sector'!BD$38&"#"&actCaseAnnGHG_3&"#"&'Annual GHG Emissions - Sector'!$I61,Total_Emissions_by_A_index,0))) -> 23.71348596 | BE61: =IF(actCaseAnnGHG_3="",NA(),INDEX(Total_Emissions_by_A_vals,MATCH('Annual GHG Emissions - Sector'!BE$38&"#"&actCaseAnnGHG_3&"#"&'Annual GHG Emissions - Sector'!$I61,Total_Emissions_by_A_index,0))) -> 23.56514833 | BF61: =IF(actCaseAnnGHG_3="",NA(),INDEX(Total_Emissions_by_A_vals,MATCH('Annual GHG Emissions - Sector'!BF$38&"#"&actCaseAnnGHG_3&"#"&'Annual GHG Emissions - Sector'!$I61,Total_Emissions_by_A_index,0))) -> 23.41667888 | BG61: =IF(actCaseAnnGHG_3="",NA(),INDEX(Total_Emissions_by_A_vals,MATCH('Annual GHG Emissions - Sector'!BG$38&"#"&actCaseAnnGHG_3&"#"&'Annual GHG Emissions - Sector'!$I61,Total_Emissions_by_A_index,0))) -> 23.2730967 | BH61: =IF(actCaseAnnGHG_3="",NA(),INDEX(Total_Emissions_by_A_vals,MATCH('Annual GHG Emissions - Sector'!BH$38&"#"&actCaseAnnGHG_3&"#"&'Annual GHG Emissions - Sector'!$I61,Total_Emissions_by_A_index,0))) -> 23.1243673 | BI61: =IF(actCaseAnnGHG_3="",NA(),INDEX(Total_Emissions_by_A_vals,MATCH('Annual GHG Emissions - Sector'!BI$38&"#"&actCaseAnnGHG_3&"#"&'Annual GHG Emissions - Sector'!$I61,Total_Emissions_by_A_index,0))) -> 22.98884403 | BJ61: =IF(actCaseAnnGHG_3="",NA(),INDEX(Total_Emissions_by_A_vals,MATCH('Annual GHG Emissions - Sector'!BJ$38&"#"&actCaseAnnGHG_3&"#"&'Annual GHG Emissions - Sector'!$I61,Total_Emissions_by_A_index,0))) -> 22.85118219 | BK61: =IF(actCaseAnnGHG_3="",NA(),INDEX(Total_Emissions_by_A_vals,MATCH('Annual GHG Emissions - Sector'!BK$38&"#"&actCaseAnnGHG_3&"#"&'Annual GHG Emissions - Sector'!$I61,Total_Emissions_by_A_index,0))) -> 22.71345655 | BL61: =IF(actCaseAnnGHG_3="",NA(),INDEX(Total_Emissions_by_A_vals,MATCH('Annual GHG Emissions - Sector'!BL$38&"#"&actCaseAnnGHG_3&"#"&'Annual GHG Emissions - Sector'!$I61,Total_Emissions_by_A_index,0))) -> 22.57566853 | BM61: =IF(actCaseAnnGHG_3="",NA(),INDEX(Total_Emissions_by_A_vals,MATCH('Annual GHG Emissions - Sector'!BM$38&"#"&actCaseAnnGHG_3&"#"&'Annual GHG Emissions - Sector'!$I61,Total_Emissions_by_A_index,0))) -> 22.43781992 | BN61: =IF(actCaseAnnGHG_3="",NA(),INDEX(Total_Emissions_by_A_vals,MATCH('Annual GHG Emissions - Sector'!BN$38&"#"&actCaseAnnGHG_3&"#"&'Annual GHG Emissions - Sector'!$I61,Total_Emissions_by_A_index,0))) -> 22.29991295 | BO61: =IF(actCaseAnnGHG_3="",NA(),INDEX(Total_Emissions_by_A_vals,MATCH('Annual GHG Emissions - Sector'!BO$38&"#"&actCaseAnnGHG_3&"#"&'Annual GHG Emissions - Sector'!$I61,Total_Emissions_by_A_index,0))) -> 22.1619505 | BP61: =IF(actCaseAnnGHG_3="",NA(),INDEX(Total_Emissions_by_A_vals,MATCH('Annual GHG Emissions - Sector'!BP$38&"#"&actCaseAnnGHG_3&"#"&'Annual GHG Emissions - Sector'!$I61,Total_Emissions_by_A_index,0))) -> 22.0239363 | BQ61: =IF(actCaseAnnGHG_3="",NA(),INDEX(Total_Emissions_by_A_vals,MATCH('Annual GHG Emissions - Sector'!BQ$38&"#"&actCaseAnnGHG_3&"#"&'Annual GHG Emissions - Sector'!$I61,Total_Emissions_by_A_index,0))) -> 21.88587533 | BR61: =IF(actCaseAnnGHG_3="",NA(),INDEX(Total_Emissions_by_A_vals,MATCH('Annual GHG Emissions - Sector'!BR$38&"#"&actCaseAnnGHG_3&"#"&'Annual GHG Emissions - Sector'!$I61,Total_Emissions_by_A_index,0))) -> 21.74777431
I62: Residential and Commercial | AI62: =IF(actCaseAnnGHG_3="",NA(),INDEX(Total_Emissions_by_A_vals,MATCH('Annual GHG Emissions - Sector'!AI$38&"#"&actCaseAnnGHG_3&"#"&'Annual GHG Emissions - Sector'!$I62,Total_Emissions_by_A_index,0))) -> 40.56006983 | AJ62: =IF(actCaseAnnGHG_3="",NA(),INDEX(Total_Emissions_by_A_vals,MATCH('Annual GHG Emissions - Sector'!AJ$38&"#"&actCaseAnnGHG_3&"#"&'Annual GHG Emissions - Sector'!$I62,Total_Emissions_by_A_index,0))) -> 40.23767725 | AK62: =IF(actCaseAnnGHG_3="",NA(),INDEX(Total_Emissions_by_A_vals,MATCH('Annual GHG Emissions - Sector'!AK$38&"#"&actCaseAnnGHG_3&"#"&'Annual GHG Emissions - Sector'!$I62,Total_Emissions_by_A_index,0))) -> 39.92056728 | AL62: =IF(actCaseAnnGHG_3="",NA(),INDEX(Total_Emissions_by_A_vals,MATCH('Annual GHG Emissions - Sector'!AL$38&"#"&actCaseAnnGHG_3&"#"&'Annual GHG Emissions - Sector'!$I62,Total_Emissions_by_A_index,0))) -> 39.53244975 | AM62: =IF(actCaseAnnGHG_3="",NA(),INDEX(Total_Emissions_by_A_vals,MATCH('Annual GHG Emissions - Sector'!AM$38&"#"&actCaseAnnGHG_3&"#"&'Annual GHG Emissions - Sector'!$I62,Total_Emissions_by_A_index,0))) -> 39.15265946 | AN62: =IF(actCaseAnnGHG_3="",NA(),INDEX(Total_Emissions_by_A_vals,MATCH('Annual GHG Emissions - Sector'!AN$38&"#"&actCaseAnnGHG_3&"#"&'Annual GHG Emissions - Sector'!$I62,Total_Emissions_by_A_index,0))) -> 38.72731029 | AO62: =IF(actCaseAnnGHG_3="",NA(),INDEX(Total_Emissions_by_A_vals,MATCH('Annual GHG Emissions - Sector'!AO$38&"#"&actCaseAnnGHG_3&"#"&'Annual GHG Emissions - Sector'!$I62,Total_Emissions_by_A_index,0))) -> 38.13638387 | AP62: =IF(actCaseAnnGHG_3="",NA(),INDEX(Total_Emissions_by_A_vals,MATCH('Annual GHG Emissions - Sector'!AP$38&"#"&actCaseAnnGHG_3&"#"&'Annual GHG Emissions - Sector'!$I62,Total_Emissions_by_A_index,0))) -> 37.49570019 | AQ62: =IF(actCaseAnnGHG_3="",NA(),INDEX(Total_Emissions_by_A_vals,MATCH('Annual GHG Emissions - Sector'!AQ$38&"#"&actCaseAnnGHG_3&"#"&'Annual GHG Emissions - Sector'!$I62,Total_Emissions_by_A_index,0))) -> 36.81950081 | AR62: =IF(actCaseAnnGHG_3="",NA(),INDEX(Total_Emissions_by_A_vals,MATCH('Annual GHG Emissions - Sector'!AR$38&"#"&actCaseAnnGHG_3&"#"&'Annual GHG Emissions - Sector'!$I62,Total_Emissions_by_A_index,0))) -> 36.08704271 | AS62: =IF(actCaseAnnGHG_3="",NA(),INDEX(Total_Emissions_by_A_vals,MATCH('Annual GHG Emissions - Sector'!AS$38&"#"&actCaseAnnGHG_3&"#"&'Annual GHG Emissions - Sector'!$I62,Total_Emissions_by_A_index,0))) -> 35.38411481 | AT62: =IF(actCaseAnnGHG_3="",NA(),INDEX(Total_Emissions_by_A_vals,MATCH('Annual GHG Emissions - Sector'!AT$38&"#"&actCaseAnnGHG_3&"#"&'Annual GHG Emissions - Sector'!$I62,Total_Emissions_by_A_index,0))) -> 34.58768059 | AU62: =IF(actCaseAnnGHG_3="",NA(),INDEX(Total_Emissions_by_A_vals,MATCH('Annual GHG Emissions - Sector'!AU$38&"#"&actCaseAnnGHG_3&"#"&'Annual GHG Emissions - Sector'!$I62,Total_Emissions_by_A_index,0))) -> 33.6657129 | AV62: =IF(actCaseAnnGHG_3="",NA(),INDEX(Total_Emissions_by_A_vals,MATCH('Annual GHG Emissions - Sector'!AV$38&"#"&actCaseAnnGHG_3&"#"&'Annual GHG Emissions - Sector'!$I62,Total_Emissions_by_A_index,0))) -> 32.59364349 | AW62: =IF(actCaseAnnGHG_3="",NA(),INDEX(Total_Emissions_by_A_vals,MATCH('Annual GHG Emissions - Sector'!AW$38&"#"&actCaseAnnGHG_3&"#"&'Annual GHG Emissions - Sector'!$I62,Total_Emissions_by_A_index,0))) -> 31.33927762 | AX62: =IF(actCaseAnnGHG_3="",NA(),INDEX(Total_Emissions_by_A_vals,MATCH('Annual GHG Emissions - Sector'!AX$38&"#"&actCaseAnnGHG_3&"#"&'Annual GHG Emissions - Sector'!$I62,Total_Emissions_by_A_index,0))) -> 29.8852654 | AY62: =IF(actCaseAnnGHG_3="",NA(),INDEX(Total_Emissions_by_A_vals,MATCH('Annual GHG Emissions - Sector'!AY$38&"#"&actCaseAnnGHG_3&"#"&'Annual GHG Emissions - Sector'!$I62,Total_Emissions_by_A_index,0))) -> 28.26623429 | AZ62: =IF(actCaseAnnGHG_3="",NA(),INDEX(Total_Emissions_by_A_vals,MATCH('Annual GHG Emissions - Sector'!AZ$38&"#"&actCaseAnnGHG_3&"#"&'Annual GHG Emissions - Sector'!$I62,Total_Emissions_by_A_index,0))) -> 26.48951818 | BA62: =IF(actCaseAnnGHG_3="",NA(),INDEX(Total_Emissions_by_A_vals,MATCH('Annual GHG Emissions - Sector'!BA$38&"#"&actCaseAnnGHG_3&"#"&'Annual GHG Emissions - Sector'!$I62,Total_Emissions_by_A_index,0))) -> 24.58107995 | BB62: =IF(actCaseAnnGHG_3="",NA(),INDEX(Total_Emissions_by_A_vals,MATCH('Annual GHG Emissions - Sector'!BB$38&"#"&actCaseAnnGHG_3&"#"&'Annual GHG Emissions - Sector'!$I62,Total_Emissions_by_A_index,0))) -> 22.5632921 | BC62: =IF(actCaseAnnGHG_3="",NA(),INDEX(Total_Emissions_by_A_vals,MATCH('Annual GHG Emissions - Sector'!BC$38&"#"&actCaseAnnGHG_3&"#"&'Annual GHG Emissions - Sector'!$I62,Total_Emissions_by_A_index,0))) -> 20.47737252 | BD62: =IF(actCaseAnnGHG_3="",NA(),INDEX(Total_Emissions_by_A_vals,MATCH('Annual GHG Emissions - Sector'!BD$38&"#"&actCaseAnnGHG_3&"#"&'Annual GHG Emissions - Sector'!$I62,Total_Emissions_by_A_index,0))) -> 18.34109878 | BE62: =IF(actCaseAnnGHG_3="",NA(),INDEX(Total_Emissions_by_A_vals,MATCH('Annual GHG Emissions - Sector'!BE$38&"#"&actCaseAnnGHG_3&"#"&'Annual GHG Emissions - Sector'!$I62,Total_Emissions_by_A_index,0))) -> 16.18504229 | BF62: =IF(actCaseAnnGHG_3="",NA(),INDEX(Total_Emissions_by_A_vals,MATCH('Annual GHG Emissions - Sector'!BF$38&"#"&actCaseAnnGHG_3&"#"&'Annual GHG Emissions - Sector'!$I62,Total_Emissions_by_A_index,0))) -> 14.0478299 | BG62: =IF(actCaseAnnGHG_3="",NA(),INDEX(Total_Emissions_by_A_vals,MATCH('Annual GHG Emissions - Sector'!BG$38&"#"&actCaseAnnGHG_3&"#"&'Annual GHG Emissions - Sector'!$I62,Total_Emissions_by_A_index,0))) -> 11.95133905 | BH62: =IF(actCaseAnnGHG_3="",NA(),INDEX(Total_Emissions_by_A_vals,MATCH('Annual GHG Emissions - Sector'!BH$38&"#"&actCaseAnnGHG_3&"#"&'Annual GHG Emissions - Sector'!$I62,Total_Emissions_by_A_index,0))) -> 9.9169816 | BI62: =IF(actCaseAnnGHG_3="",NA(),INDEX(Total_Emissions_by_A_vals,MATCH('Annual GHG Emissions - Sector'!BI$38&"#"&actCaseAnnGHG_3&"#"&'Annual GHG Emissions - Sector'!$I62,Total_Emissions_by_A_index,0))) -> 8.639182566 | BJ62: =IF(actCaseAnnGHG_3="",NA(),INDEX(Total_Emissions_by_A_vals,MATCH('Annual GHG Emissions - Sector'!BJ$38&"#"&actCaseAnnGHG_3&"#"&'Annual GHG Emissions - Sector'!$I62,Total_Emissions_by_A_index,0))) -> 7.446147556 | BK62: =IF(actCaseAnnGHG_3="",NA(),INDEX(Total_Emissions_by_A_vals,MATCH('Annual GHG Emissions - Sector'!BK$38&"#"&actCaseAnnGHG_3&"#"&'Annual GHG Emissions - Sector'!$I62,Total_Emissions_by_A_index,0))) -> 6.340310762 | BL62: =IF(actCaseAnnGHG_3="",NA(),INDEX(Total_Emissions_by_A_vals,MATCH('Annual GHG Emissions - Sector'!BL$38&"#"&actCaseAnnGHG_3&"#"&'Annual GHG Emissions - Sector'!$I62,Total_Emissions_by_A_index,0))) -> 5.323845413 | BM62: =IF(actCaseAnnGHG_3="",NA(),INDEX(Total_Emissions_by_A_vals,MATCH('Annual GHG Emissions - Sector'!BM$38&"#"&actCaseAnnGHG_3&"#"&'Annual GHG Emissions - Sector'!$I62,Total_Emissions_by_A_index,0))) -> 4.397696154 | BN62: =IF(actCaseAnnGHG_3="",NA(),INDEX(Total_Emissions_by_A_vals,MATCH('Annual GHG Emissions - Sector'!BN$38&"#"&actCaseAnnGHG_3&"#"&'Annual GHG Emissions - Sector'!$I62,Total_Emissions_by_A_index,0))) -> 3.565170388 | BO62: =IF(actCaseAnnGHG_3="",NA(),INDEX(Total_Emissions_by_A_vals,MATCH('Annual GHG Emissions - Sector'!BO$38&"#"&actCaseAnnGHG_3&"#"&'Annual GHG Emissions - Sector'!$I62,Total_Emissions_by_A_index,0))) -> 2.829638622 | BP62: =IF(actCaseAnnGHG_3="",NA(),INDEX(Total_Emissions_by_A_vals,MATCH('Annual GHG Emissions - Sector'!BP$38&"#"&actCaseAnnGHG_3&"#"&'Annual GHG Emissions - Sector'!$I62,Total_Emissions_by_A_index,0))) -> 2.187486808 | BQ62: =IF(actCaseAnnGHG_3="",NA(),INDEX(Total_Emissions_by_A_vals,MATCH('Annual GHG Emissions - Sector'!BQ$38&"#"&actCaseAnnGHG_3&"#"&'Annual GHG Emissions - Sector'!$I62,Total_Emissions_by_A_index,0))) -> 1.637972368 | BR62: =IF(actCaseAnnGHG_3="",NA(),INDEX(Total_Emissions_by_A_vals,MATCH('Annual GHG Emissions - Sector'!BR$38&"#"&actCaseAnnGHG_3&"#"&'Annual GHG Emissions - Sector'!$I62,Total_Emissions_by_A_index,0))) -> 1.175945808
I63: Electric Power | AI63: =IF(actCaseAnnGHG_3="",NA(),INDEX(Total_Emissions_by_A_vals,MATCH('Annual GHG Emissions - Sector'!AI$38&"#"&actCaseAnnGHG_3&"#"&'Annual GHG Emissions - Sector'!$I63,Total_Emissions_by_A_index,0))) -> 80.39918366 | AJ63: =IF(actCaseAnnGHG_3="",NA(),INDEX(Total_Emissions_by_A_vals,MATCH('Annual GHG Emissions - Sector'!AJ$38&"#"&actCaseAnnGHG_3&"#"&'Annual GHG Emissions - Sector'!$I63,Total_Emissions_by_A_index,0))) -> 77.83151774 | AK63: =IF(actCaseAnnGHG_3="",NA(),INDEX(Total_Emissions_by_A_vals,MATCH('Annual GHG Emissions - Sector'!AK$38&"#"&actCaseAnnGHG_3&"#"&'Annual GHG Emissions - Sector'!$I63,Total_Emissions_by_A_index,0))) -> 72.21672215 | AL63: =IF(actCaseAnnGHG_3="",NA(),INDEX(Total_Emissions_by_A_vals,MATCH('Annual GHG Emissions - Sector'!AL$38&"#"&actCaseAnnGHG_3&"#"&'Annual GHG Emissions - Sector'!$I63,Total_Emissions_by_A_index,0))) -> 71.13717018 | AM63: =IF(actCaseAnnGHG_3="",NA(),INDEX(Total_Emissions_by_A_vals,MATCH('Annual GHG Emissions - Sector'!AM$38&"#"&actCaseAnnGHG_3&"#"&'Annual GHG Emissions - Sector'!$I63,Total_Emissions_by_A_index,0))) -> 70.05752357 | AN63: =IF(actCaseAnnGHG_3="",NA(),INDEX(Total_Emissions_by_A_vals,MATCH('Annual GHG Emissions - Sector'!AN$38&"#"&actCaseAnnGHG_3&"#"&'Annual GHG Emissions - Sector'!$I63,Total_Emissions_by_A_index,0))) -> 68.63268333 | AO63: =IF(actCaseAnnGHG_3="",NA(),INDEX(Total_Emissions_by_A_vals,MATCH('Annual GHG Emissions - Sector'!AO$38&"#"&actCaseAnnGHG_3&"#"&'Annual GHG Emissions - Sector'!$I63,Total_Emissions_by_A_index,0))) -> 64.40842337 | AP63: =IF(actCaseAnnGHG_3="",NA(),INDEX(Total_Emissions_by_A_vals,MATCH('Annual GHG Emissions - Sector'!AP$38&"#"&actCaseAnnGHG_3&"#"&'Annual GHG Emissions - Sector'!$I63,Total_Emissions_by_A_index,0))) -> 59.89641723 | AQ63: =IF(actCaseAnnGHG_3="",NA(),INDEX(Total_Emissions_by_A_vals,MATCH('Annual GHG Emissions - Sector'!AQ$38&"#"&actCaseAnnGHG_3&"#"&'Annual GHG Emissions - Sector'!$I63,Total_Emissions_by_A_index,0))) -> 55.54750848 | AR63: =IF(actCaseAnnGHG_3="",NA(),INDEX(Total_Emissions_by_A_vals,MATCH('Annual GHG Emissions - Sector'!AR$38&"#"&actCaseAnnGHG_3&"#"&'Annual GHG Emissions - Sector'!$I63,Total_Emissions_by_A_index,0))) -> 51.53784887 | AS63: =IF(actCaseAnnGHG_3="",NA(),INDEX(Total_Emissions_by_A_vals,MATCH('Annual GHG Emissions - Sector'!AS$38&"#"&actCaseAnnGHG_3&"#"&'Annual GHG Emissions - Sector'!$I63,Total_Emissions_by_A_index,0))) -> 39.14296834 | AT63: =IF(actCaseAnnGHG_3="",NA(),INDEX(Total_Emissions_by_A_vals,MATCH('Annual GHG Emissions - Sector'!AT$38&"#"&actCaseAnnGHG_3&"#"&'Annual GHG Emissions - Sector'!$I63,Total_Emissions_by_A_index,0))) -> 35.18000382 | AU63: =IF(actCaseAnnGHG_3="",NA(),INDEX(Total_Emissions_by_A_vals,MATCH('Annual GHG Emissions - Sector'!AU$38&"#"&actCaseAnnGHG_3&"#"&'Annual GHG Emissions - Sector'!$I63,Total_Emissions_by_A_index,0))) -> 31.25938143 | AV63: =IF(actCaseAnnGHG_3="",NA(),INDEX(Total_Emissions_by_A_vals,MATCH('Annual GHG Emissions - Sector'!AV$38&"#"&actCaseAnnGHG_3&"#"&'Annual GHG Emissions - Sector'!$I63,Total_Emissions_by_A_index,0))) -> 31.85343252 | AW63: =IF(actCaseAnnGHG_3="",NA(),INDEX(Total_Emissions_by_A_vals,MATCH('Annual GHG Emissions - Sector'!AW$38&"#"&actCaseAnnGHG_3&"#"&'Annual GHG Emissions - Sector'!$I63,Total_Emissions_by_A_index,0))) -> 28.47169346 | AX63: =IF(actCaseAnnGHG_3="",NA(),INDEX(Total_Emissions_by_A_vals,MATCH('Annual GHG Emissions - Sector'!AX$38&"#"&actCaseAnnGHG_3&"#"&'Annual GHG Emissions - Sector'!$I63,Total_Emissions_by_A_index,0))) -> 25.22272561 | AY63: =IF(actCaseAnnGHG_3="",NA(),INDEX(Total_Emissions_by_A_vals,MATCH('Annual GHG Emissions - Sector'!AY$38&"#"&actCaseAnnGHG_3&"#"&'Annual GHG Emissions - Sector'!$I63,Total_Emissions_by_A_index,0))) -> 25.89495265 | AZ63: =IF(actCaseAnnGHG_3="",NA(),INDEX(Total_Emissions_by_A_vals,MATCH('Annual GHG Emissions - Sector'!AZ$38&"#"&actCaseAnnGHG_3&"#"&'Annual GHG Emissions - Sector'!$I63,Total_Emissions_by_A_index,0))) -> 24.96697363 | BA63: =IF(actCaseAnnGHG_3="",NA(),INDEX(Total_Emissions_by_A_vals,MATCH('Annual GHG Emissions - Sector'!BA$38&"#"&actCaseAnnGHG_3&"#"&'Annual GHG Emissions - Sector'!$I63,Total_Emissions_by_A_index,0))) -> 24.1187198 | BB63: =IF(actCaseAnnGHG_3="",NA(),INDEX(Total_Emissions_by_A_vals,MATCH('Annual GHG Emissions - Sector'!BB$38&"#"&actCaseAnnGHG_3&"#"&'Annual GHG Emissions - Sector'!$I63,Total_Emissions_by_A_index,0))) -> 23.21220637 | BC63: =IF(actCaseAnnGHG_3="",NA(),INDEX(Total_Emissions_by_A_vals,MATCH('Annual GHG Emissions - Sector'!BC$38&"#"&actCaseAnnGHG_3&"#"&'Annual GHG Emissions - Sector'!$I63,Total_Emissions_by_A_index,0))) -> 22.50389757 | BD63: =IF(actCaseAnnGHG_3="",NA(),INDEX(Total_Emissions_by_A_vals,MATCH('Annual GHG Emissions - Sector'!BD$38&"#"&actCaseAnnGHG_3&"#"&'Annual GHG Emissions - Sector'!$I63,Total_Emissions_by_A_index,0))) -> 21.89908669 | BE63: =IF(actCaseAnnGHG_3="",NA(),INDEX(Total_Emissions_by_A_vals,MATCH('Annual GHG Emissions - Sector'!BE$38&"#"&actCaseAnnGHG_3&"#"&'Annual GHG Emissions - Sector'!$I63,Total_Emissions_by_A_index,0))) -> 21.25803188 | BF63: =IF(actCaseAnnGHG_3="",NA(),INDEX(Total_Emissions_by_A_vals,MATCH('Annual GHG Emissions - Sector'!BF$38&"#"&actCaseAnnGHG_3&"#"&'Annual GHG Emissions - Sector'!$I63,Total_Emissions_by_A_index,0))) -> 20.57664619 | BG63: =IF(actCaseAnnGHG_3="",NA(),INDEX(Total_Emissions_by_A_vals,MATCH('Annual GHG Emissions - Sector'!BG$38&"#"&actCaseAnnGHG_3&"#"&'Annual GHG Emissions - Sector'!$I63,Total_Emissions_by_A_index,0))) -> 19.85320705 | BH63: =IF(actCaseAnnGHG_3="",NA(),INDEX(Total_Emissions_by_A_vals,MATCH('Annual GHG Emissions - Sector'!BH$38&"#"&actCaseAnnGHG_3&"#"&'Annual GHG Emissions - Sector'!$I63,Total_Emissions_by_A_index,0))) -> 19.14167068 | BI63: =IF(actCaseAnnGHG_3="",NA(),INDEX(Total_Emissions_by_A_vals,MATCH('Annual GHG Emissions - Sector'!BI$38&"#"&actCaseAnnGHG_3&"#"&'Annual GHG Emissions - Sector'!$I63,Total_Emissions_by_A_index,0))) -> 17.74449883 | BJ63: =IF(actCaseAnnGHG_3="",NA(),INDEX(Total_Emissions_by_A_vals,MATCH('Annual GHG Emissions - Sector'!BJ$38&"#"&actCaseAnnGHG_3&"#"&'Annual GHG Emissions - Sector'!$I63,Total_Emissions_by_A_index,0))) -> 16.90452693 | BK63: =IF(actCaseAnnGHG_3="",NA(),INDEX(Total_Emissions_by_A_vals,MATCH('Annual GHG Emissions - Sector'!BK$38&"#"&actCaseAnnGHG_3&"#"&'Annual GHG Emissions - Sector'!$I63,Total_Emissions_by_A_index,0))) -> 16.00135734 | BL63: =IF(actCaseAnnGHG_3="",NA(),INDEX(Total_Emissions_by_A_vals,MATCH('Annual GHG Emissions - Sector'!BL$38&"#"&actCaseAnnGHG_3&"#"&'Annual GHG Emissions - Sector'!$I63,Total_Emissions_by_A_index,0))) -> 15.05005613 | BM63: =IF(actCaseAnnGHG_3="",NA(),INDEX(Total_Emissions_by_A_vals,MATCH('Annual GHG Emissions - Sector'!BM$38&"#"&actCaseAnnGHG_3&"#"&'Annual GHG Emissions - Sector'!$I63,Total_Emissions_by_A_index,0))) -> 14.08178922 | BN63: =IF(actCaseAnnGHG_3="",NA(),INDEX(Total_Emissions_by_A_vals,MATCH('Annual GHG Emissions - Sector'!BN$38&"#"&actCaseAnnGHG_3&"#"&'Annual GHG Emissions - Sector'!$I63,Total_Emissions_by_A_index,0))) -> 13.10197728 | BO63: =IF(actCaseAnnGHG_3="",NA(),INDEX(Total_Emissions_by_A_vals,MATCH('Annual GHG Emissions - Sector'!BO$38&"#"&actCaseAnnGHG_3&"#"&'Annual GHG Emissions - Sector'!$I63,Total_Emissions_by_A_index,0))) -> 13.96543547 | BP63: =IF(actCaseAnnGHG_3="",NA(),INDEX(Total_Emissions_by_A_vals,MATCH('Annual GHG Emissions - Sector'!BP$38&"#"&actCaseAnnGHG_3&"#"&'Annual GHG Emissions - Sector'!$I63,Total_Emissions_by_A_index,0))) -> 12.91298007 | BQ63: =IF(actCaseAnnGHG_3="",NA(),INDEX(Total_Emissions_by_A_vals,MATCH('Annual GHG Emissions - Sector'!BQ$38&"#"&actCaseAnnGHG_3&"#"&'Annual GHG Emissions - Sector'!$I63,Total_Emissions_by_A_index,0))) -> 14.46543848 | BR63: =IF(actCaseAnnGHG_3="",NA(),INDEX(Total_Emissions_by_A_vals,MATCH('Annual GHG Emissions - Sector'!BR$38&"#"&actCaseAnnGHG_3&"#"&'Annual GHG Emissions - Sector'!$I63,Total_Emissions_by_A_index,0))) -> 13.38761505 | BZ63: ="California GHG Emissions by Sector - "&$I$83 -> California GHG Emissions by Sector - PATHWAYS -
I64: High GWP | AI64: =IF(actCaseAnnGHG_3="",NA(),INDEX(Total_Emissions_by_A_vals,MATCH('Annual GHG Emissions - Sector'!AI$38&"#"&actCaseAnnGHG_3&"#"&'Annual GHG Emissions - Sector'!$I64,Total_Emissions_by_A_index,0))) -> 17.91333132 | AJ64: =IF(actCaseAnnGHG_3="",NA(),INDEX(Total_Emissions_by_A_vals,MATCH('Annual GHG Emissions - Sector'!AJ$38&"#"&actCaseAnnGHG_3&"#"&'Annual GHG Emissions - Sector'!$I64,Total_Emissions_by_A_index,0))) -> 18.33947077 | AK64: =IF(actCaseAnnGHG_3="",NA(),INDEX(Total_Emissions_by_A_vals,MATCH('Annual GHG Emissions - Sector'!AK$38&"#"&actCaseAnnGHG_3&"#"&'Annual GHG Emissions - Sector'!$I64,Total_Emissions_by_A_index,0))) -> 18.3898881 | AL64: =IF(actCaseAnnGHG_3="",NA(),INDEX(Total_Emissions_by_A_vals,MATCH('Annual GHG Emissions - Sector'!AL$38&"#"&actCaseAnnGHG_3&"#"&'Annual GHG Emissions - Sector'!$I64,Total_Emissions_by_A_index,0))) -> 18.10693605 | AM64: =IF(actCaseAnnGHG_3="",NA(),INDEX(Total_Emissions_by_A_vals,MATCH('Annual GHG Emissions - Sector'!AM$38&"#"&actCaseAnnGHG_3&"#"&'Annual GHG Emissions - Sector'!$I64,Total_Emissions_by_A_index,0))) -> 17.99090928 | AN64: =IF(actCaseAnnGHG_3="",NA(),INDEX(Total_Emissions_by_A_vals,MATCH('Annual GHG Emissions - Sector'!AN$38&"#"&actCaseAnnGHG_3&"#"&'Annual GHG Emissions - Sector'!$I64,Total_Emissions_by_A_index,0))) -> 17.69028046 | AO64: =IF(actCaseAnnGHG_3="",NA(),INDEX(Total_Emissions_by_A_vals,MATCH('Annual GHG Emissions - Sector'!AO$38&"#"&actCaseAnnGHG_3&"#"&'Annual GHG Emissions - Sector'!$I64,Total_Emissions_by_A_index,0))) -> 17.31597035 | AP64: =IF(actCaseAnnGHG_3="",NA(),INDEX(Total_Emissions_by_A_vals,MATCH('Annual GHG Emissions - Sector'!AP$38&"#"&actCaseAnnGHG_3&"#"&'Annual GHG Emissions - Sector'!$I64,Total_Emissions_by_A_index,0))) -> 16.87946324 | AQ64: =IF(actCaseAnnGHG_3="",NA(),INDEX(Total_Emissions_by_A_vals,MATCH('Annual GHG Emissions - Sector'!AQ$38&"#"&actCaseAnnGHG_3&"#"&'Annual GHG Emissions - Sector'!$I64,Total_Emissions_by_A_index,0))) -> 16.37779425 | AR64: =IF(actCaseAnnGHG_3="",NA(),INDEX(Total_Emissions_by_A_vals,MATCH('Annual GHG Emissions - Sector'!AR$38&"#"&actCaseAnnGHG_3&"#"&'Annual GHG Emissions - Sector'!$I64,Total_Emissions_by_A_index,0))) -> 15.80960409 | AS64: =IF(actCaseAnnGHG_3="",NA(),INDEX(Total_Emissions_by_A_vals,MATCH('Annual GHG Emissions - Sector'!AS$38&"#"&actCaseAnnGHG_3&"#"&'Annual GHG Emissions - Sector'!$I64,Total_Emissions_by_A_index,0))) -> 15.14417183 | AT64: =IF(actCaseAnnGHG_3="",NA(),INDEX(Total_Emissions_by_A_vals,MATCH('Annual GHG Emissions - Sector'!AT$38&"#"&actCaseAnnGHG_3&"#"&'Annual GHG Emissions - Sector'!$I64,Total_Emissions_by_A_index,0))) -> 14.27458366 | AU64: =IF(actCaseAnnGHG_3="",NA(),INDEX(Total_Emissions_by_A_vals,MATCH('Annual GHG Emissions - Sector'!AU$38&"#"&actCaseAnnGHG_3&"#"&'Annual GHG Emissions - Sector'!$I64,Total_Emissions_by_A_index,0))) -> 13.36181649 | AV64: =IF(actCaseAnnGHG_3="",NA(),INDEX(Total_Emissions_by_A_vals,MATCH('Annual GHG Emissions - Sector'!AV$38&"#"&actCaseAnnGHG_3&"#"&'Annual GHG Emissions - Sector'!$I64,Total_Emissions_by_A_index,0))) -> 12.40574091 | AW64: =IF(actCaseAnnGHG_3="",NA(),INDEX(Total_Emissions_by_A_vals,MATCH('Annual GHG Emissions - Sector'!AW$38&"#"&actCaseAnnGHG_3&"#"&'Annual GHG Emissions - Sector'!$I64,Total_Emissions_by_A_index,0))) -> 11.40518249 | AX64: =IF(actCaseAnnGHG_3="",NA(),INDEX(Total_Emissions_by_A_vals,MATCH('Annual GHG Emissions - Sector'!AX$38&"#"&actCaseAnnGHG_3&"#"&'Annual GHG Emissions - Sector'!$I64,Total_Emissions_by_A_index,0))) -> 10.13333333 | AY64: =IF(actCaseAnnGHG_3="",NA(),INDEX(Total_Emissions_by_A_vals,MATCH('Annual GHG Emissions - Sector'!AY$38&"#"&actCaseAnnGHG_3&"#"&'Annual GHG Emissions - Sector'!$I64,Total_Emissions_by_A_index,0))) -> 9.803892076 | AZ64: =IF(actCaseAnnGHG_3="",NA(),INDEX(Total_Emissions_by_A_vals,MATCH('Annual GHG Emissions - Sector'!AZ$38&"#"&actCaseAnnGHG_3&"#"&'Annual GHG Emissions - Sector'!$I64,Total_Emissions_by_A_index,0))) -> 9.471581873 | BA64: =IF(actCaseAnnGHG_3="",NA(),INDEX(Total_Emissions_by_A_vals,MATCH('Annual GHG Emissions - Sector'!BA$38&"#"&actCaseAnnGHG_3&"#"&'Annual GHG Emissions - Sector'!$I64,Total_Emissions_by_A_index,0))) -> 9.136884201 | BB64: =IF(actCaseAnnGHG_3="",NA(),INDEX(Total_Emissions_by_A_vals,MATCH('Annual GHG Emissions - Sector'!BB$38&"#"&actCaseAnnGHG_3&"#"&'Annual GHG Emissions - Sector'!$I64,Total_Emissions_by_A_index,0))) -> 8.800107656 | BC64: =IF(actCaseAnnGHG_3="",NA(),INDEX(Total_Emissions_by_A_vals,MATCH('Annual GHG Emissions - Sector'!BC$38&"#"&actCaseAnnGHG_3&"#"&'Annual GHG Emissions - Sector'!$I64,Total_Emissions_by_A_index,0))) -> 8.460878936 | BD64: =IF(actCaseAnnGHG_3="",NA(),INDEX(Total_Emissions_by_A_vals,MATCH('Annual GHG Emissions - Sector'!BD$38&"#"&actCaseAnnGHG_3&"#"&'Annual GHG Emissions - Sector'!$I64,Total_Emissions_by_A_index,0))) -> 8.129508706 | BE64: =IF(actCaseAnnGHG_3="",NA(),INDEX(Total_Emissions_by_A_vals,MATCH('Annual GHG Emissions - Sector'!BE$38&"#"&actCaseAnnGHG_3&"#"&'Annual GHG Emissions - Sector'!$I64,Total_Emissions_by_A_index,0))) -> 7.794599169 | BF64: =IF(actCaseAnnGHG_3="",NA(),INDEX(Total_Emissions_by_A_vals,MATCH('Annual GHG Emissions - Sector'!BF$38&"#"&actCaseAnnGHG_3&"#"&'Annual GHG Emissions - Sector'!$I64,Total_Emissions_by_A_index,0))) -> 7.45617146 | BG64: =IF(actCaseAnnGHG_3="",NA(),INDEX(Total_Emissions_by_A_vals,MATCH('Annual GHG Emissions - Sector'!BG$38&"#"&actCaseAnnGHG_3&"#"&'Annual GHG Emissions - Sector'!$I64,Total_Emissions_by_A_index,0))) -> 7.1141905 | BH64: =IF(actCaseAnnGHG_3="",NA(),INDEX(Total_Emissions_by_A_vals,MATCH('Annual GHG Emissions - Sector'!BH$38&"#"&actCaseAnnGHG_3&"#"&'Annual GHG Emissions - Sector'!$I64,Total_Emissions_by_A_index,0))) -> 6.768620069 | BI64: =IF(actCaseAnnGHG_3="",NA(),INDEX(Total_Emissions_by_A_vals,MATCH('Annual GHG Emissions - Sector'!BI$38&"#"&actCaseAnnGHG_3&"#"&'Annual GHG Emissions - Sector'!$I64,Total_Emissions_by_A_index,0))) -> 6.413815745 | BJ64: =IF(actCaseAnnGHG_3="",NA(),INDEX(Total_Emissions_by_A_vals,MATCH('Annual GHG Emissions - Sector'!BJ$38&"#"&actCaseAnnGHG_3&"#"&'Annual GHG Emissions - Sector'!$I64,Total_Emissions_by_A_index,0))) -> 6.056122978 | BK64: =IF(actCaseAnnGHG_3="",NA(),INDEX(Total_Emissions_by_A_vals,MATCH('Annual GHG Emissions - Sector'!BK$38&"#"&actCaseAnnGHG_3&"#"&'Annual GHG Emissions - Sector'!$I64,Total_Emissions_by_A_index,0))) -> 5.695441978 | BL64: =IF(actCaseAnnGHG_3="",NA(),INDEX(Total_Emissions_by_A_vals,MATCH('Annual GHG Emissions - Sector'!BL$38&"#"&actCaseAnnGHG_3&"#"&'Annual GHG Emissions - Sector'!$I64,Total_Emissions_by_A_index,0))) -> 5.331689771 | BM64: =IF(actCaseAnnGHG_3="",NA(),INDEX(Total_Emissions_by_A_vals,MATCH('Annual GHG Emissions - Sector'!BM$38&"#"&actCaseAnnGHG_3&"#"&'Annual GHG Emissions - Sector'!$I64,Total_Emissions_by_A_index,0))) -> 4.964766856 | BN64: =IF(actCaseAnnGHG_3="",NA(),INDEX(Total_Emissions_by_A_vals,MATCH('Annual GHG Emissions - Sector'!BN$38&"#"&actCaseAnnGHG_3&"#"&'Annual GHG Emissions - Sector'!$I64,Total_Emissions_by_A_index,0))) -> 4.593322986 | BO64: =IF(actCaseAnnGHG_3="",NA(),INDEX(Total_Emissions_by_A_vals,MATCH('Annual GHG Emissions - Sector'!BO$38&"#"&actCaseAnnGHG_3&"#"&'Annual GHG Emissions - Sector'!$I64,Total_Emissions_by_A_index,0))) -> 4.218729646 | BP64: =IF(actCaseAnnGHG_3="",NA(),INDEX(Total_Emissions_by_A_vals,MATCH('Annual GHG Emissions - Sector'!BP$38&"#"&actCaseAnnGHG_3&"#"&'Annual GHG Emissions - Sector'!$I64,Total_Emissions_by_A_index,0))) -> 3.840845736 | BQ64: =IF(actCaseAnnGHG_3="",NA(),INDEX(Total_Emissions_by_A_vals,MATCH('Annual GHG Emissions - Sector'!BQ$38&"#"&actCaseAnnGHG_3&"#"&'Annual GHG Emissions - Sector'!$I64,Total_Emissions_by_A_index,0))) -> 3.459539153 | BR64: =IF(actCaseAnnGHG_3="",NA(),INDEX(Total_Emissions_by_A_vals,MATCH('Annual GHG Emissions - Sector'!BR$38&"#"&actCaseAnnGHG_3&"#"&'Annual GHG Emissions - Sector'!$I64,Total_Emissions_by_A_index,0))) -> 3.074659742
I65: Industrial | AI65: =IF(actCaseAnnGHG_3="",NA(),INDEX(Total_Emissions_by_A_vals,MATCH('Annual GHG Emissions - Sector'!AI$38&"#"&actCaseAnnGHG_3&"#"&'Annual GHG Emissions - Sector'!$I65,Total_Emissions_by_A_index,0))) -> 92.38524892 | AJ65: =IF(actCaseAnnGHG_3="",NA(),INDEX(Total_Emissions_by_A_vals,MATCH('Annual GHG Emissions - Sector'!AJ$38&"#"&actCaseAnnGHG_3&"#"&'Annual GHG Emissions - Sector'!$I65,Total_Emissions_by_A_index,0))) -> 91.33157318 | AK65: =IF(actCaseAnnGHG_3="",NA(),INDEX(Total_Emissions_by_A_vals,MATCH('Annual GHG Emissions - Sector'!AK$38&"#"&actCaseAnnGHG_3&"#"&'Annual GHG Emissions - Sector'!$I65,Total_Emissions_by_A_index,0))) -> 90.18837339 | AL65: =IF(actCaseAnnGHG_3="",NA(),INDEX(Total_Emissions_by_A_vals,MATCH('Annual GHG Emissions - Sector'!AL$38&"#"&actCaseAnnGHG_3&"#"&'Annual GHG Emissions - Sector'!$I65,Total_Emissions_by_A_index,0))) -> 89.10898712 | AM65: =IF(actCaseAnnGHG_3="",NA(),INDEX(Total_Emissions_by_A_vals,MATCH('Annual GHG Emissions - Sector'!AM$38&"#"&actCaseAnnGHG_3&"#"&'Annual GHG Emissions - Sector'!$I65,Total_Emissions_by_A_index,0))) -> 87.91695952 | AN65: =IF(actCaseAnnGHG_3="",NA(),INDEX(Total_Emissions_by_A_vals,MATCH('Annual GHG Emissions - Sector'!AN$38&"#"&actCaseAnnGHG_3&"#"&'Annual GHG Emissions - Sector'!$I65,Total_Emissions_by_A_index,0))) -> 86.24520675 | AO65: =IF(actCaseAnnGHG_3="",NA(),INDEX(Total_Emissions_by_A_vals,MATCH('Annual GHG Emissions - Sector'!AO$38&"#"&actCaseAnnGHG_3&"#"&'Annual GHG Emissions - Sector'!$I65,Total_Emissions_by_A_index,0))) -> 83.02091975 | AP65: =IF(actCaseAnnGHG_3="",NA(),INDEX(Total_Emissions_by_A_vals,MATCH('Annual GHG Emissions - Sector'!AP$38&"#"&actCaseAnnGHG_3&"#"&'Annual GHG Emissions - Sector'!$I65,Total_Emissions_by_A_index,0))) -> 79.85543586 | AQ65: =IF(actCaseAnnGHG_3="",NA(),INDEX(Total_Emissions_by_A_vals,MATCH('Annual GHG Emissions - Sector'!AQ$38&"#"&actCaseAnnGHG_3&"#"&'Annual GHG Emissions - Sector'!$I65,Total_Emissions_by_A_index,0))) -> 76.70748071 | AR65: =IF(actCaseAnnGHG_3="",NA(),INDEX(Total_Emissions_by_A_vals,MATCH('Annual GHG Emissions - Sector'!AR$38&"#"&actCaseAnnGHG_3&"#"&'Annual GHG Emissions - Sector'!$I65,Total_Emissions_by_A_index,0))) -> 73.55709231 | AS65: =IF(actCaseAnnGHG_3="",NA(),INDEX(Total_Emissions_by_A_vals,MATCH('Annual GHG Emissions - Sector'!AS$38&"#"&actCaseAnnGHG_3&"#"&'Annual GHG Emissions - Sector'!$I65,Total_Emissions_by_A_index,0))) -> 70.89251337 | AT65: =IF(actCaseAnnGHG_3="",NA(),INDEX(Total_Emissions_by_A_vals,MATCH('Annual GHG Emissions - Sector'!AT$38&"#"&actCaseAnnGHG_3&"#"&'Annual GHG Emissions - Sector'!$I65,Total_Emissions_by_A_index,0))) -> 68.16554045 | AU65: =IF(actCaseAnnGHG_3="",NA(),INDEX(Total_Emissions_by_A_vals,MATCH('Annual GHG Emissions - Sector'!AU$38&"#"&actCaseAnnGHG_3&"#"&'Annual GHG Emissions - Sector'!$I65,Total_Emissions_by_A_index,0))) -> 65.43780954 | AV65: =IF(actCaseAnnGHG_3="",NA(),INDEX(Total_Emissions_by_A_vals,MATCH('Annual GHG Emissions - Sector'!AV$38&"#"&actCaseAnnGHG_3&"#"&'Annual GHG Emissions - Sector'!$I65,Total_Emissions_by_A_index,0))) -> 62.70481263 | AW65: =IF(actCaseAnnGHG_3="",NA(),INDEX(Total_Emissions_by_A_vals,MATCH('Annual GHG Emissions - Sector'!AW$38&"#"&actCaseAnnGHG_3&"#"&'Annual GHG Emissions - Sector'!$I65,Total_Emissions_by_A_index,0))) -> 59.98179828 | AX65: =IF(actCaseAnnGHG_3="",NA(),INDEX(Total_Emissions_by_A_vals,MATCH('Annual GHG Emissions - Sector'!AX$38&"#"&actCaseAnnGHG_3&"#"&'Annual GHG Emissions - Sector'!$I65,Total_Emissions_by_A_index,0))) -> 57.1113732 | AY65: =IF(actCaseAnnGHG_3="",NA(),INDEX(Total_Emissions_by_A_vals,MATCH('Annual GHG Emissions - Sector'!AY$38&"#"&actCaseAnnGHG_3&"#"&'Annual GHG Emissions - Sector'!$I65,Total_Emissions_by_A_index,0))) -> 54.78126264 | AZ65: =IF(actCaseAnnGHG_3="",NA(),INDEX(Total_Emissions_by_A_vals,MATCH('Annual GHG Emissions - Sector'!AZ$38&"#"&actCaseAnnGHG_3&"#"&'Annual GHG Emissions - Sector'!$I65,Total_Emissions_by_A_index,0))) -> 52.4655969 | BA65: =IF(actCaseAnnGHG_3="",NA(),INDEX(Total_Emissions_by_A_vals,MATCH('Annual GHG Emissions - Sector'!BA$38&"#"&actCaseAnnGHG_3&"#"&'Annual GHG Emissions - Sector'!$I65,Total_Emissions_by_A_index,0))) -> 50.15321143 | BB65: =IF(actCaseAnnGHG_3="",NA(),INDEX(Total_Emissions_by_A_vals,MATCH('Annual GHG Emissions - Sector'!BB$38&"#"&actCaseAnnGHG_3&"#"&'Annual GHG Emissions - Sector'!$I65,Total_Emissions_by_A_index,0))) -> 47.85648661 | BC65: =IF(actCaseAnnGHG_3="",NA(),INDEX(Total_Emissions_by_A_vals,MATCH('Annual GHG Emissions - Sector'!BC$38&"#"&actCaseAnnGHG_3&"#"&'Annual GHG Emissions - Sector'!$I65,Total_Emissions_by_A_index,0))) -> 45.5589427 | BD65: =IF(actCaseAnnGHG_3="",NA(),INDEX(Total_Emissions_by_A_vals,MATCH('Annual GHG Emissions - Sector'!BD$38&"#"&actCaseAnnGHG_3&"#"&'Annual GHG Emissions - Sector'!$I65,Total_Emissions_by_A_index,0))) -> 43.27867142 | BE65: =IF(actCaseAnnGHG_3="",NA(),INDEX(Total_Emissions_by_A_vals,MATCH('Annual GHG Emissions - Sector'!BE$38&"#"&actCaseAnnGHG_3&"#"&'Annual GHG Emissions - Sector'!$I65,Total_Emissions_by_A_index,0))) -> 40.99988465 | BF65: =IF(actCaseAnnGHG_3="",NA(),INDEX(Total_Emissions_by_A_vals,MATCH('Annual GHG Emissions - Sector'!BF$38&"#"&actCaseAnnGHG_3&"#"&'Annual GHG Emissions - Sector'!$I65,Total_Emissions_by_A_index,0))) -> 38.73589806 | BG65: =IF(actCaseAnnGHG_3="",NA(),INDEX(Total_Emissions_by_A_vals,MATCH('Annual GHG Emissions - Sector'!BG$38&"#"&actCaseAnnGHG_3&"#"&'Annual GHG Emissions - Sector'!$I65,Total_Emissions_by_A_index,0))) -> 36.4784873 | BH65: =IF(actCaseAnnGHG_3="",NA(),INDEX(Total_Emissions_by_A_vals,MATCH('Annual GHG Emissions - Sector'!BH$38&"#"&actCaseAnnGHG_3&"#"&'Annual GHG Emissions - Sector'!$I65,Total_Emissions_by_A_index,0))) -> 34.22896277 | BI65: =IF(actCaseAnnGHG_3="",NA(),INDEX(Total_Emissions_by_A_vals,MATCH('Annual GHG Emissions - Sector'!BI$38&"#"&actCaseAnnGHG_3&"#"&'Annual GHG Emissions - Sector'!$I65,Total_Emissions_by_A_index,0))) -> 32.3810089 | BJ65: =IF(actCaseAnnGHG_3="",NA(),INDEX(Total_Emissions_by_A_vals,MATCH('Annual GHG Emissions - Sector'!BJ$38&"#"&actCaseAnnGHG_3&"#"&'Annual GHG Emissions - Sector'!$I65,Total_Emissions_by_A_index,0))) -> 30.53302914 | BK65: =IF(actCaseAnnGHG_3="",NA(),INDEX(Total_Emissions_by_A_vals,MATCH('Annual GHG Emissions - Sector'!BK$38&"#"&actCaseAnnGHG_3&"#"&'Annual GHG Emissions - Sector'!$I65,Total_Emissions_by_A_index,0))) -> 28.68268979 | BL65: =IF(actCaseAnnGHG_3="",NA(),INDEX(Total_Emissions_by_A_vals,MATCH('Annual GHG Emissions - Sector'!BL$38&"#"&actCaseAnnGHG_3&"#"&'Annual GHG Emissions - Sector'!$I65,Total_Emissions_by_A_index,0))) -> 26.83487649 | BM65: =IF(actCaseAnnGHG_3="",NA(),INDEX(Total_Emissions_by_A_vals,MATCH('Annual GHG Emissions - Sector'!BM$38&"#"&actCaseAnnGHG_3&"#"&'Annual GHG Emissions - Sector'!$I65,Total_Emissions_by_A_index,0))) -> 24.99219398 | BN65: =IF(actCaseAnnGHG_3="",NA(),INDEX(Total_Emissions_by_A_vals,MATCH('Annual GHG Emissions - Sector'!BN$38&"#"&actCaseAnnGHG_3&"#"&'Annual GHG Emissions - Sector'!$I65,Total_Emissions_by_A_index,0))) -> 23.14225679 | BO65: =IF(actCaseAnnGHG_3="",NA(),INDEX(Total_Emissions_by_A_vals,MATCH('Annual GHG Emissions - Sector'!BO$38&"#"&actCaseAnnGHG_3&"#"&'Annual GHG Emissions - Sector'!$I65,Total_Emissions_by_A_index,0))) -> 21.28940157 | BP65: =IF(actCaseAnnGHG_3="",NA(),INDEX(Total_Emissions_by_A_vals,MATCH('Annual GHG Emissions - Sector'!BP$38&"#"&actCaseAnnGHG_3&"#"&'Annual GHG Emissions - Sector'!$I65,Total_Emissions_by_A_index,0))) -> 19.43666668 | BQ65: =IF(actCaseAnnGHG_3="",NA(),INDEX(Total_Emissions_by_A_vals,MATCH('Annual GHG Emissions - Sector'!BQ$38&"#"&actCaseAnnGHG_3&"#"&'Annual GHG Emissions - Sector'!$I65,Total_Emissions_by_A_index,0))) -> 17.58759905 | BR65: =IF(actCaseAnnGHG_3="",NA(),INDEX(Total_Emissions_by_A_vals,MATCH('Annual GHG Emissions - Sector'!BR$38&"#"&actCaseAnnGHG_3&"#"&'Annual GHG Emissions - Sector'!$I65,Total_Emissions_by_A_index,0))) -> 15.73186511
I66: Recycling and Waste | AI66: =IF(actCaseAnnGHG_3="",NA(),INDEX(Total_Emissions_by_A_vals,MATCH('Annual GHG Emissions - Sector'!AI$38&"#"&actCaseAnnGHG_3&"#"&'Annual GHG Emissions - Sector'!$I66,Total_Emissions_by_A_index,0))) -> 10.73087981 | AJ66: =IF(actCaseAnnGHG_3="",NA(),INDEX(Total_Emissions_by_A_vals,MATCH('Annual GHG Emissions - Sector'!AJ$38&"#"&actCaseAnnGHG_3&"#"&'Annual GHG Emissions - Sector'!$I66,Total_Emissions_by_A_index,0))) -> 10.73087981 | AK66: =IF(actCaseAnnGHG_3="",NA(),INDEX(Total_Emissions_by_A_vals,MATCH('Annual GHG Emissions - Sector'!AK$38&"#"&actCaseAnnGHG_3&"#"&'Annual GHG Emissions - Sector'!$I66,Total_Emissions_by_A_index,0))) -> 10.73087981 | AL66: =IF(actCaseAnnGHG_3="",NA(),INDEX(Total_Emissions_by_A_vals,MATCH('Annual GHG Emissions - Sector'!AL$38&"#"&actCaseAnnGHG_3&"#"&'Annual GHG Emissions - Sector'!$I66,Total_Emissions_by_A_index,0))) -> 10.73087981 | AM66: =IF(actCaseAnnGHG_3="",NA(),INDEX(Total_Emissions_by_A_vals,MATCH('Annual GHG Emissions - Sector'!AM$38&"#"&actCaseAnnGHG_3&"#"&'Annual GHG Emissions - Sector'!$I66,Total_Emissions_by_A_index,0))) -> 10.73087981 | AN66: =IF(actCaseAnnGHG_3="",NA(),INDEX(Total_Emissions_by_A_vals,MATCH('Annual GHG Emissions - Sector'!AN$38&"#"&actCaseAnnGHG_3&"#"&'Annual GHG Emissions - Sector'!$I66,Total_Emissions_by_A_index,0))) -> 10.59430498 | AO66: =IF(actCaseAnnGHG_3="",NA(),INDEX(Total_Emissions_by_A_vals,MATCH('Annual GHG Emissions - Sector'!AO$38&"#"&actCaseAnnGHG_3&"#"&'Annual GHG Emissions - Sector'!$I66,Total_Emissions_by_A_index,0))) -> 10.45773014 | AP66: =IF(actCaseAnnGHG_3="",NA(),INDEX(Total_Emissions_by_A_vals,MATCH('Annual GHG Emissions - Sector'!AP$38&"#"&actCaseAnnGHG_3&"#"&'Annual GHG Emissions - Sector'!$I66,Total_Emissions_by_A_index,0))) -> 10.32115531 | AQ66: =IF(actCaseAnnGHG_3="",NA(),INDEX(Total_Emissions_by_A_vals,MATCH('Annual GHG Emissions - Sector'!AQ$38&"#"&actCaseAnnGHG_3&"#"&'Annual GHG Emissions - Sector'!$I66,Total_Emissions_by_A_index,0))) -> 10.18458047 | AR66: =IF(actCaseAnnGHG_3="",NA(),INDEX(Total_Emissions_by_A_vals,MATCH('Annual GHG Emissions - Sector'!AR$38&"#"&actCaseAnnGHG_3&"#"&'Annual GHG Emissions - Sector'!$I66,Total_Emissions_by_A_index,0))) -> 10.04800564 | AS66: =IF(actCaseAnnGHG_3="",NA(),INDEX(Total_Emissions_by_A_vals,MATCH('Annual GHG Emissions - Sector'!AS$38&"#"&actCaseAnnGHG_3&"#"&'Annual GHG Emissions - Sector'!$I66,Total_Emissions_by_A_index,0))) -> 9.911430806 | AT66: =IF(actCaseAnnGHG_3="",NA(),INDEX(Total_Emissions_by_A_vals,MATCH('Annual GHG Emissions - Sector'!AT$38&"#"&actCaseAnnGHG_3&"#"&'Annual GHG Emissions - Sector'!$I66,Total_Emissions_by_A_index,0))) -> 9.774855972 | AU66: =IF(actCaseAnnGHG_3="",NA(),INDEX(Total_Emissions_by_A_vals,MATCH('Annual GHG Emissions - Sector'!AU$38&"#"&actCaseAnnGHG_3&"#"&'Annual GHG Emissions - Sector'!$I66,Total_Emissions_by_A_index,0))) -> 9.638281138 | AV66: =IF(actCaseAnnGHG_3="",NA(),INDEX(Total_Emissions_by_A_vals,MATCH('Annual GHG Emissions - Sector'!AV$38&"#"&actCaseAnnGHG_3&"#"&'Annual GHG Emissions - Sector'!$I66,Total_Emissions_by_A_index,0))) -> 9.501706304 | AW66: =IF(actCaseAnnGHG_3="",NA(),INDEX(Total_Emissions_by_A_vals,MATCH('Annual GHG Emissions - Sector'!AW$38&"#"&actCaseAnnGHG_3&"#"&'Annual GHG Emissions - Sector'!$I66,Total_Emissions_by_A_index,0))) -> 9.365131471 | AX66: =IF(actCaseAnnGHG_3="",NA(),INDEX(Total_Emissions_by_A_vals,MATCH('Annual GHG Emissions - Sector'!AX$38&"#"&actCaseAnnGHG_3&"#"&'Annual GHG Emissions - Sector'!$I66,Total_Emissions_by_A_index,0))) -> 9.167237323 | AY66: =IF(actCaseAnnGHG_3="",NA(),INDEX(Total_Emissions_by_A_vals,MATCH('Annual GHG Emissions - Sector'!AY$38&"#"&actCaseAnnGHG_3&"#"&'Annual GHG Emissions - Sector'!$I66,Total_Emissions_by_A_index,0))) -> 9.10591801 | AZ66: =IF(actCaseAnnGHG_3="",NA(),INDEX(Total_Emissions_by_A_vals,MATCH('Annual GHG Emissions - Sector'!AZ$38&"#"&actCaseAnnGHG_3&"#"&'Annual GHG Emissions - Sector'!$I66,Total_Emissions_by_A_index,0))) -> 9.044598697 | BA66: =IF(actCaseAnnGHG_3="",NA(),INDEX(Total_Emissions_by_A_vals,MATCH('Annual GHG Emissions - Sector'!BA$38&"#"&actCaseAnnGHG_3&"#"&'Annual GHG Emissions - Sector'!$I66,Total_Emissions_by_A_index,0))) -> 8.983279384 | BB66: =IF(actCaseAnnGHG_3="",NA(),INDEX(Total_Emissions_by_A_vals,MATCH('Annual GHG Emissions - Sector'!BB$38&"#"&actCaseAnnGHG_3&"#"&'Annual GHG Emissions - Sector'!$I66,Total_Emissions_by_A_index,0))) -> 8.921960071 | BC66: =IF(actCaseAnnGHG_3="",NA(),INDEX(Total_Emissions_by_A_vals,MATCH('Annual GHG Emissions - Sector'!BC$38&"#"&actCaseAnnGHG_3&"#"&'Annual GHG Emissions - Sector'!$I66,Total_Emissions_by_A_index,0))) -> 8.860640757 | BD66: =IF(actCaseAnnGHG_3="",NA(),INDEX(Total_Emissions_by_A_vals,MATCH('Annual GHG Emissions - Sector'!BD$38&"#"&actCaseAnnGHG_3&"#"&'Annual GHG Emissions - Sector'!$I66,Total_Emissions_by_A_index,0))) -> 8.799321444 | BE66: =IF(actCaseAnnGHG_3="",NA(),INDEX(Total_Emissions_by_A_vals,MATCH('Annual GHG Emissions - Sector'!BE$38&"#"&actCaseAnnGHG_3&"#"&'Annual GHG Emissions - Sector'!$I66,Total_Emissions_by_A_index,0))) -> 8.738002131 | BF66: =IF(actCaseAnnGHG_3="",NA(),INDEX(Total_Emissions_by_A_vals,MATCH('Annual GHG Emissions - Sector'!BF$38&"#"&actCaseAnnGHG_3&"#"&'Annual GHG Emissions - Sector'!$I66,Total_Emissions_by_A_index,0))) -> 8.676682818 | BG66: =IF(actCaseAnnGHG_3="",NA(),INDEX(Total_Emissions_by_A_vals,MATCH('Annual GHG Emissions - Sector'!BG$38&"#"&actCaseAnnGHG_3&"#"&'Annual GHG Emissions - Sector'!$I66,Total_Emissions_by_A_index,0))) -> 8.615363505 | BH66: =IF(actCaseAnnGHG_3="",NA(),INDEX(Total_Emissions_by_A_vals,MATCH('Annual GHG Emissions - Sector'!BH$38&"#"&actCaseAnnGHG_3&"#"&'Annual GHG Emissions - Sector'!$I66,Total_Emissions_by_A_index,0))) -> 8.554044191 | BI66: =IF(actCaseAnnGHG_3="",NA(),INDEX(Total_Emissions_by_A_vals,MATCH('Annual GHG Emissions - Sector'!BI$38&"#"&actCaseAnnGHG_3&"#"&'Annual GHG Emissions - Sector'!$I66,Total_Emissions_by_A_index,0))) -> 8.492724878 | BJ66: =IF(actCaseAnnGHG_3="",NA(),INDEX(Total_Emissions_by_A_vals,MATCH('Annual GHG Emissions - Sector'!BJ$38&"#"&actCaseAnnGHG_3&"#"&'Annual GHG Emissions - Sector'!$I66,Total_Emissions_by_A_index,0))) -> 8.431405565 | BK66: =IF(actCaseAnnGHG_3="",NA(),INDEX(Total_Emissions_by_A_vals,MATCH('Annual GHG Emissions - Sector'!BK$38&"#"&actCaseAnnGHG_3&"#"&'Annual GHG Emissions - Sector'!$I66,Total_Emissions_by_A_index,0))) -> 8.370086252 | BL66: =IF(actCaseAnnGHG_3="",NA(),INDEX(Total_Emissions_by_A_vals,MATCH('Annual GHG Emissions - Sector'!BL$38&"#"&actCaseAnnGHG_3&"#"&'Annual GHG Emissions - Sector'!$I66,Total_Emissions_by_A_index,0))) -> 8.308766939 | BM66: =IF(actCaseAnnGHG_3="",NA(),INDEX(Total_Emissions_by_A_vals,MATCH('Annual GHG Emissions - Sector'!BM$38&"#"&actCaseAnnGHG_3&"#"&'Annual GHG Emissions - Sector'!$I66,Total_Emissions_by_A_index,0))) -> 8.247447625 | BN66: =IF(actCaseAnnGHG_3="",NA(),INDEX(Total_Emissions_by_A_vals,MATCH('Annual GHG Emissions - Sector'!BN$38&"#"&actCaseAnnGHG_3&"#"&'Annual GHG Emissions - Sector'!$I66,Total_Emissions_by_A_index,0))) -> 8.186128312 | BO66: =IF(actCaseAnnGHG_3="",NA(),INDEX(Total_Emissions_by_A_vals,MATCH('Annual GHG Emissions - Sector'!BO$38&"#"&actCaseAnnGHG_3&"#"&'Annual GHG Emissions - Sector'!$I66,Total_Emissions_by_A_index,0))) -> 8.124808999 | BP66: =IF(actCaseAnnGHG_3="",NA(),INDEX(Total_Emissions_by_A_vals,MATCH('Annual GHG Emissions - Sector'!BP$38&"#"&actCaseAnnGHG_3&"#"&'Annual GHG Emissions - Sector'!$I66,Total_Emissions_by_A_index,0))) -> 8.063489686 | BQ66: =IF(actCaseAnnGHG_3="",NA(),INDEX(Total_Emissions_by_A_vals,MATCH('Annual GHG Emissions - Sector'!BQ$38&"#"&actCaseAnnGHG_3&"#"&'Annual GHG Emissions - Sector'!$I66,Total_Emissions_by_A_index,0))) -> 8.002170373 | BR66: =IF(actCaseAnnGHG_3="",NA(),INDEX(Total_Emissions_by_A_vals,MATCH('Annual GHG Emissions - Sector'!BR$38&"#"&actCaseAnnGHG_3&"#"&'Annual GHG Emissions - Sector'!$I66,Total_Emissions_by_A_index,0))) -> 7.940851059
I67: Transportation (Incl. TCU) | AI67: =IF(actCaseAnnGHG_3="",NA(),INDEX(Total_Emissions_by_A_vals,MATCH('Annual GHG Emissions - Sector'!AI$38&"#"&actCaseAnnGHG_3&"#"&'Annual GHG Emissions - Sector'!$I67,Total_Emissions_by_A_index,0))) -> 160.6242967 | AJ67: =IF(actCaseAnnGHG_3="",NA(),INDEX(Total_Emissions_by_A_vals,MATCH('Annual GHG Emissions - Sector'!AJ$38&"#"&actCaseAnnGHG_3&"#"&'Annual GHG Emissions - Sector'!$I67,Total_Emissions_by_A_index,0))) -> 161.3441225 | AK67: =IF(actCaseAnnGHG_3="",NA(),INDEX(Total_Emissions_by_A_vals,MATCH('Annual GHG Emissions - Sector'!AK$38&"#"&actCaseAnnGHG_3&"#"&'Annual GHG Emissions - Sector'!$I67,Total_Emissions_by_A_index,0))) -> 161.0172959 | AL67: =IF(actCaseAnnGHG_3="",NA(),INDEX(Total_Emissions_by_A_vals,MATCH('Annual GHG Emissions - Sector'!AL$38&"#"&actCaseAnnGHG_3&"#"&'Annual GHG Emissions - Sector'!$I67,Total_Emissions_by_A_index,0))) -> 158.2386338 | AM67: =IF(actCaseAnnGHG_3="",NA(),INDEX(Total_Emissions_by_A_vals,MATCH('Annual GHG Emissions - Sector'!AM$38&"#"&actCaseAnnGHG_3&"#"&'Annual GHG Emissions - Sector'!$I67,Total_Emissions_by_A_index,0))) -> 154.8554685 | AN67: =IF(actCaseAnnGHG_3="",NA(),INDEX(Total_Emissions_by_A_vals,MATCH('Annual GHG Emissions - Sector'!AN$38&"#"&actCaseAnnGHG_3&"#"&'Annual GHG Emissions - Sector'!$I67,Total_Emissions_by_A_index,0))) -> 151.3740625 | AO67: =IF(actCaseAnnGHG_3="",NA(),INDEX(Total_Emissions_by_A_vals,MATCH('Annual GHG Emissions - Sector'!AO$38&"#"&actCaseAnnGHG_3&"#"&'Annual GHG Emissions - Sector'!$I67,Total_Emissions_by_A_index,0))) -> 147.7246267 | AP67: =IF(actCaseAnnGHG_3="",NA(),INDEX(Total_Emissions_by_A_vals,MATCH('Annual GHG Emissions - Sector'!AP$38&"#"&actCaseAnnGHG_3&"#"&'Annual GHG Emissions - Sector'!$I67,Total_Emissions_by_A_index,0))) -> 143.3518954 | AQ67: =IF(actCaseAnnGHG_3="",NA(),INDEX(Total_Emissions_by_A_vals,MATCH('Annual GHG Emissions - Sector'!AQ$38&"#"&actCaseAnnGHG_3&"#"&'Annual GHG Emissions - Sector'!$I67,Total_Emissions_by_A_index,0))) -> 139.0957949 | AR67: =IF(actCaseAnnGHG_3="",NA(),INDEX(Total_Emissions_by_A_vals,MATCH('Annual GHG Emissions - Sector'!AR$38&"#"&actCaseAnnGHG_3&"#"&'Annual GHG Emissions - Sector'!$I67,Total_Emissions_by_A_index,0))) -> 134.1612452 | AS67: =IF(actCaseAnnGHG_3="",NA(),INDEX(Total_Emissions_by_A_vals,MATCH('Annual GHG Emissions - Sector'!AS$38&"#"&actCaseAnnGHG_3&"#"&'Annual GHG Emissions - Sector'!$I67,Total_Emissions_by_A_index,0))) -> 128.9782997 | AT67: =IF(actCaseAnnGHG_3="",NA(),INDEX(Total_Emissions_by_A_vals,MATCH('Annual GHG Emissions - Sector'!AT$38&"#"&actCaseAnnGHG_3&"#"&'Annual GHG Emissions - Sector'!$I67,Total_Emissions_by_A_index,0))) -> 123.180915 | AU67: =IF(actCaseAnnGHG_3="",NA(),INDEX(Total_Emissions_by_A_vals,MATCH('Annual GHG Emissions - Sector'!AU$38&"#"&actCaseAnnGHG_3&"#"&'Annual GHG Emissions - Sector'!$I67,Total_Emissions_by_A_index,0))) -> 118.1050053 | AV67: =IF(actCaseAnnGHG_3="",NA(),INDEX(Total_Emissions_by_A_vals,MATCH('Annual GHG Emissions - Sector'!AV$38&"#"&actCaseAnnGHG_3&"#"&'Annual GHG Emissions - Sector'!$I67,Total_Emissions_by_A_index,0))) -> 113.1707924 | AW67: =IF(actCaseAnnGHG_3="",NA(),INDEX(Total_Emissions_by_A_vals,MATCH('Annual GHG Emissions - Sector'!AW$38&"#"&actCaseAnnGHG_3&"#"&'Annual GHG Emissions - Sector'!$I67,Total_Emissions_by_A_index,0))) -> 107.9806859 | AX67: =IF(actCaseAnnGHG_3="",NA(),INDEX(Total_Emissions_by_A_vals,MATCH('Annual GHG Emissions - Sector'!AX$38&"#"&actCaseAnnGHG_3&"#"&'Annual GHG Emissions - Sector'!$I67,Total_Emissions_by_A_index,0))) -> 102.3500788 | AY67: =IF(actCaseAnnGHG_3="",NA(),INDEX(Total_Emissions_by_A_vals,MATCH('Annual GHG Emissions - Sector'!AY$38&"#"&actCaseAnnGHG_3&"#"&'Annual GHG Emissions - Sector'!$I67,Total_Emissions_by_A_index,0))) -> 97.22771526 | AZ67: =IF(actCaseAnnGHG_3="",NA(),INDEX(Total_Emissions_by_A_vals,MATCH('Annual GHG Emissions - Sector'!AZ$38&"#"&actCaseAnnGHG_3&"#"&'Annual GHG Emissions - Sector'!$I67,Total_Emissions_by_A_index,0))) -> 92.03174593 | BA67: =IF(actCaseAnnGHG_3="",NA(),INDEX(Total_Emissions_by_A_vals,MATCH('Annual GHG Emissions - Sector'!BA$38&"#"&actCaseAnnGHG_3&"#"&'Annual GHG Emissions - Sector'!$I67,Total_Emissions_by_A_index,0))) -> 86.84460314 | BB67: =IF(actCaseAnnGHG_3="",NA(),INDEX(Total_Emissions_by_A_vals,MATCH('Annual GHG Emissions - Sector'!BB$38&"#"&actCaseAnnGHG_3&"#"&'Annual GHG Emissions - Sector'!$I67,Total_Emissions_by_A_index,0))) -> 81.74295276 | BC67: =IF(actCaseAnnGHG_3="",NA(),INDEX(Total_Emissions_by_A_vals,MATCH('Annual GHG Emissions - Sector'!BC$38&"#"&actCaseAnnGHG_3&"#"&'Annual GHG Emissions - Sector'!$I67,Total_Emissions_by_A_index,0))) -> 76.64463311 | BD67: =IF(actCaseAnnGHG_3="",NA(),INDEX(Total_Emissions_by_A_vals,MATCH('Annual GHG Emissions - Sector'!BD$38&"#"&actCaseAnnGHG_3&"#"&'Annual GHG Emissions - Sector'!$I67,Total_Emissions_by_A_index,0))) -> 71.6984826 | BE67: =IF(actCaseAnnGHG_3="",NA(),INDEX(Total_Emissions_by_A_vals,MATCH('Annual GHG Emissions - Sector'!BE$38&"#"&actCaseAnnGHG_3&"#"&'Annual GHG Emissions - Sector'!$I67,Total_Emissions_by_A_index,0))) -> 66.7747364 | BF67: =IF(actCaseAnnGHG_3="",NA(),INDEX(Total_Emissions_by_A_vals,MATCH('Annual GHG Emissions - Sector'!BF$38&"#"&actCaseAnnGHG_3&"#"&'Annual GHG Emissions - Sector'!$I67,Total_Emissions_by_A_index,0))) -> 62.00156847 | BG67: =IF(actCaseAnnGHG_3="",NA(),INDEX(Total_Emissions_by_A_vals,MATCH('Annual GHG Emissions - Sector'!BG$38&"#"&actCaseAnnGHG_3&"#"&'Annual GHG Emissions - Sector'!$I67,Total_Emissions_by_A_index,0))) -> 57.45199867 | BH67: =IF(actCaseAnnGHG_3="",NA(),INDEX(Total_Emissions_by_A_vals,MATCH('Annual GHG Emissions - Sector'!BH$38&"#"&actCaseAnnGHG_3&"#"&'Annual GHG Emissions - Sector'!$I67,Total_Emissions_by_A_index,0))) -> 53.19144985 | BI67: =IF(actCaseAnnGHG_3="",NA(),INDEX(Total_Emissions_by_A_vals,MATCH('Annual GHG Emissions - Sector'!BI$38&"#"&actCaseAnnGHG_3&"#"&'Annual GHG Emissions - Sector'!$I67,Total_Emissions_by_A_index,0))) -> 48.70102809 | BJ67: =IF(actCaseAnnGHG_3="",NA(),INDEX(Total_Emissions_by_A_vals,MATCH('Annual GHG Emissions - Sector'!BJ$38&"#"&actCaseAnnGHG_3&"#"&'Annual GHG Emissions - Sector'!$I67,Total_Emissions_by_A_index,0))) -> 44.54905571 | BK67: =IF(actCaseAnnGHG_3="",NA(),INDEX(Total_Emissions_by_A_vals,MATCH('Annual GHG Emissions - Sector'!BK$38&"#"&actCaseAnnGHG_3&"#"&'Annual GHG Emissions - Sector'!$I67,Total_Emissions_by_A_index,0))) -> 40.73638307 | BL67: =IF(actCaseAnnGHG_3="",NA(),INDEX(Total_Emissions_by_A_vals,MATCH('Annual GHG Emissions - Sector'!BL$38&"#"&actCaseAnnGHG_3&"#"&'Annual GHG Emissions - Sector'!$I67,Total_Emissions_by_A_index,0))) -> 37.26704001 | BM67: =IF(actCaseAnnGHG_3="",NA(),INDEX(Total_Emissions_by_A_vals,MATCH('Annual GHG Emissions - Sector'!BM$38&"#"&actCaseAnnGHG_3&"#"&'Annual GHG Emissions - Sector'!$I67,Total_Emissions_by_A_index,0))) -> 34.14547361 | BN67: =IF(actCaseAnnGHG_3="",NA(),INDEX(Total_Emissions_by_A_vals,MATCH('Annual GHG Emissions - Sector'!BN$38&"#"&actCaseAnnGHG_3&"#"&'Annual GHG Emissions - Sector'!$I67,Total_Emissions_by_A_index,0))) -> 31.34893561 | BO67: =IF(actCaseAnnGHG_3="",NA(),INDEX(Total_Emissions_by_A_vals,MATCH('Annual GHG Emissions - Sector'!BO$38&"#"&actCaseAnnGHG_3&"#"&'Annual GHG Emissions - Sector'!$I67,Total_Emissions_by_A_index,0))) -> 28.86160203 | BP67: =IF(actCaseAnnGHG_3="",NA(),INDEX(Total_Emissions_by_A_vals,MATCH('Annual GHG Emissions - Sector'!BP$38&"#"&actCaseAnnGHG_3&"#"&'Annual GHG Emissions - Sector'!$I67,Total_Emissions_by_A_index,0))) -> 26.6816419 | BQ67: =IF(actCaseAnnGHG_3="",NA(),INDEX(Total_Emissions_by_A_vals,MATCH('Annual GHG Emissions - Sector'!BQ$38&"#"&actCaseAnnGHG_3&"#"&'Annual GHG Emissions - Sector'!$I67,Total_Emissions_by_A_index,0))) -> 24.78877617 | BR67: =IF(actCaseAnnGHG_3="",NA(),INDEX(Total_Emissions_by_A_vals,MATCH('Annual GHG Emissions - Sector'!BR$38&"#"&actCaseAnnGHG_3&"#"&'Annual GHG Emissions - Sector'!$I67,Total_Emissions_by_A_index,0))) -> 23.14484737
I68: Total | AI68: =SUM(AI61:AI67) -> 438.9133377 | AJ68: =SUM(AJ61:AJ67) -> 436.1265746 | AK68: 428.5086823 | AL68: 422.6367721 | AM68: 416.2192101 | AN68: 407.8032672 | AO68: 394.6162483 | AP68: 380.3675113 | AQ68: 366.3081928 | AR68: 351.787748 | AS68: 329.058932 | AT68: 313.7929354 | AU68: 299.1158885 | AV68: 288.8964889 | AW68: 274.2335859 | AX68: 258.4646032 | AY68: 249.5317526 | AZ68: 238.7738507 | BA68: 227.9745307 | BB68: 217.1056695 | BC68: 206.3668051 | BD68: 195.8596556 | BE68: 185.3154449 | BF68: 174.9114758 | BG68: 164.7376828 | BH68: 154.9260965 | BI68: 145.361103 | BJ68: 136.7714701 | BK68: 128.5397257 | BL68: 120.6919433 | BM68: 113.2671874 | BN68: 106.2377043 | BO68: 101.4515668 | BP68: 95.14704719 | BQ68: 91.82737092 | BR68: 86.20355845 | BT68: 0.02663429893 | BU68: 66.97562588
I71: ="PATHWAYS - "&actCaseAnnGHG_4 -> PATHWAYS -
J72: 1990 | K72: 1991 | L72: 1992 | M72: 1993 | N72: 1994 | O72: 1995 | P72: 1996 | Q72: 1997 | R72: 1998 | S72: 1999 | T72: 2000 | U72: 2001 | V72: 2002 | W72: 2003 | X72: 2004 | Y72: 2005 | Z72: 2006 | AA72: 2007 | AB72: 2008 | AC72: 2009 | AD72: 2010 | AE72: 2011 | AF72: 2012 | AG72: 2013 | AH72: 2014 | AI72: 2015 | AJ72: 2016 | AK72: 2017 | AL72: 2018 | AM72: 2019 | AN72: 2020 | AO72: 2021 | AP72: 2022 | AQ72: 2023 | AR72: 2024 | AS72: 2025 | AT72: 2026 | AU72: 2027 | AV72: 2028 | AW72: 2029 | AX72: 2030 | AY72: 2031 | AZ72: 2032 | BA72: 2033 | BB72: 2034 | BC72: 2035 | BD72: 2036 | BE72: 2037 | BF72: 2038 | BG72: 2039 | BH72: 2040 | BI72: 2041 | BJ72: 2042 | BK72: 2043 | BL72: 2044 | BM72: 2045 | BN72: 2046 | BO72: 2047 | BP72: 2048 | BQ72: 2049 | BR72: 2050 | BT72: 2030 Gap | BU72: 2050 Gap
I73: Agriculture | AI73: =IF(actCaseAnnGHG_4="",NA(),INDEX(Total_Emissions_by_A_vals,MATCH('Annual GHG Emissions - Sector'!AI$38&"#"&actCaseAnnGHG_4&"#"&'Annual GHG Emissions - Sector'!$I73,Total_Emissions_by_A_index,0))) ->  | AJ73: =IF(actCaseAnnGHG_4="",NA(),INDEX(Total_Emissions_by_A_vals,MATCH('Annual GHG Emissions - Sector'!AJ$38&"#"&actCaseAnnGHG_4&"#"&'Annual GHG Emissions - Sector'!$I73,Total_Emissions_by_A_index,0))) ->  | AK73: =IF(actCaseAnnGHG_4="",NA(),INDEX(Total_Emissions_by_A_vals,MATCH('Annual GHG Emissions - Sector'!AK$38&"#"&actCaseAnnGHG_4&"#"&'Annual GHG Emissions - Sector'!$I73,Total_Emissions_by_A_index,0))) ->  | AL73: =IF(actCaseAnnGHG_4="",NA(),INDEX(Total_Emissions_by_A_vals,MATCH('Annual GHG Emissions - Sector'!AL$38&"#"&actCaseAnnGHG_4&"#"&'Annual GHG Emissions - Sector'!$I73,Total_Emissions_by_A_index,0))) ->  | AM73: =IF(actCaseAnnGHG_4="",NA(),INDEX(Total_Emissions_by_A_vals,MATCH('Annual GHG Emissions - Sector'!AM$38&"#"&actCaseAnnGHG_4&"#"&'Annual GHG Emissions - Sector'!$I73,Total_Emissions_by_A_index,0))) ->  | AN73: =IF(actCaseAnnGHG_4="",NA(),INDEX(Total_Emissions_by_A_vals,MATCH('Annual GHG Emissions - Sector'!AN$38&"#"&actCaseAnnGHG_4&"#"&'Annual GHG Emissions - Sector'!$I73,Total_Emissions_by_A_index,0))) ->  | AO73: =IF(actCaseAnnGHG_4="",NA(),INDEX(Total_Emissions_by_A_vals,MATCH('Annual GHG Emissions - Sector'!AO$38&"#"&actCaseAnnGHG_4&"#"&'Annual GHG Emissions - Sector'!$I73,Total_Emissions_by_A_index,0))) ->  | AP73: =IF(actCaseAnnGHG_4="",NA(),INDEX(Total_Emissions_by_A_vals,MATCH('Annual GHG Emissions - Sector'!AP$38&"#"&actCaseAnnGHG_4&"#"&'Annual GHG Emissions - Sector'!$I73,Total_Emissions_by_A_index,0))) ->  | AQ73: =IF(actCaseAnnGHG_4="",NA(),INDEX(Total_Emissions_by_A_vals,MATCH('Annual GHG Emissions - Sector'!AQ$38&"#"&actCaseAnnGHG_4&"#"&'Annual GHG Emissions - Sector'!$I73,Total_Emissions_by_A_index,0))) ->  | AR73: =IF(actCaseAnnGHG_4="",NA(),INDEX(Total_Emissions_by_A_vals,MATCH('Annual GHG Emissions - Sector'!AR$38&"#"&actCaseAnnGHG_4&"#"&'Annual GHG Emissions - Sector'!$I73,Total_Emissions_by_A_index,0))) ->  | AS73: =IF(actCaseAnnGHG_4="",NA(),INDEX(Total_Emissions_by_A_vals,MATCH('Annual GHG Emissions - Sector'!AS$38&"#"&actCaseAnnGHG_4&"#"&'Annual GHG Emissions - Sector'!$I73,Total_Emissions_by_A_index,0))) ->  | AT73: =IF(actCaseAnnGHG_4="",NA(),INDEX(Total_Emissions_by_A_vals,MATCH('Annual GHG Emissions - Sector'!AT$38&"#"&actCaseAnnGHG_4&"#"&'Annual GHG Emissions - Sector'!$I73,Total_Emissions_by_A_index,0))) ->  | AU73: =IF(actCaseAnnGHG_4="",NA(),INDEX(Total_Emissions_by_A_vals,MATCH('Annual GHG Emissions - Sector'!AU$38&"#"&actCaseAnnGHG_4&"#"&'Annual GHG Emissions - Sector'!$I73,Total_Emissions_by_A_index,0))) ->  | AV73: =IF(actCaseAnnGHG_4="",NA(),INDEX(Total_Emissions_by_A_vals,MATCH('Annual GHG Emissions - Sector'!AV$38&"#"&actCaseAnnGHG_4&"#"&'Annual GHG Emissions - Sector'!$I73,Total_Emissions_by_A_index,0))) ->  | AW73: =IF(actCaseAnnGHG_4="",NA(),INDEX(Total_Emissions_by_A_vals,MATCH('Annual GHG Emissions - Sector'!AW$38&"#"&actCaseAnnGHG_4&"#"&'Annual GHG Emissions - Sector'!$I73,Total_Emissions_by_A_index,0))) ->  | AX73: =IF(actCaseAnnGHG_4="",NA(),INDEX(Total_Emissions_by_A_vals,MATCH('Annual GHG Emissions - Sector'!AX$38&"#"&actCaseAnnGHG_4&"#"&'Annual GHG Emissions - Sector'!$I73,Total_Emissions_by_A_index,0))) ->  | AY73: =IF(actCaseAnnGHG_4="",NA(),INDEX(Total_Emissions_by_A_vals,MATCH('Annual GHG Emissions - Sector'!AY$38&"#"&actCaseAnnGHG_4&"#"&'Annual GHG Emissions - Sector'!$I73,Total_Emissions_by_A_index,0))) ->  | AZ73: =IF(actCaseAnnGHG_4="",NA(),INDEX(Total_Emissions_by_A_vals,MATCH('Annual GHG Emissions - Sector'!AZ$38&"#"&actCaseAnnGHG_4&"#"&'Annual GHG Emissions - Sector'!$I73,Total_Emissions_by_A_index,0))) ->  | BA73: =IF(actCaseAnnGHG_4="",NA(),INDEX(Total_Emissions_by_A_vals,MATCH('Annual GHG Emissions - Sector'!BA$38&"#"&actCaseAnnGHG_4&"#"&'Annual GHG Emissions - Sector'!$I73,Total_Emissions_by_A_index,0))) ->  | BB73: =IF(actCaseAnnGHG_4="",NA(),INDEX(Total_Emissions_by_A_vals,MATCH('Annual GHG Emissions - Sector'!BB$38&"#"&actCaseAnnGHG_4&"#"&'Annual GHG Emissions - Sector'!$I73,Total_Emissions_by_A_index,0))) ->  | BC73: =IF(actCaseAnnGHG_4="",NA(),INDEX(Total_Emissions_by_A_vals,MATCH('Annual GHG Emissions - Sector'!BC$38&"#"&actCaseAnnGHG_4&"#"&'Annual GHG Emissions - Sector'!$I73,Total_Emissions_by_A_index,0))) ->  | BD73: =IF(actCaseAnnGHG_4="",NA(),INDEX(Total_Emissions_by_A_vals,MATCH('Annual GHG Emissions - Sector'!BD$38&"#"&actCaseAnnGHG_4&"#"&'Annual GHG Emissions - Sector'!$I73,Total_Emissions_by_A_index,0))) ->  | BE73: =IF(actCaseAnnGHG_4="",NA(),INDEX(Total_Emissions_by_A_vals,MATCH('Annual GHG Emissions - Sector'!BE$38&"#"&actCaseAnnGHG_4&"#"&'Annual GHG Emissions - Sector'!$I73,Total_Emissions_by_A_index,0))) ->  | BF73: =IF(actCaseAnnGHG_4="",NA(),INDEX(Total_Emissions_by_A_vals,MATCH('Annual GHG Emissions - Sector'!BF$38&"#"&actCaseAnnGHG_4&"#"&'Annual GHG Emissions - Sector'!$I73,Total_Emissions_by_A_index,0))) ->  | BG73: =IF(actCaseAnnGHG_4="",NA(),INDEX(Total_Emissions_by_A_vals,MATCH('Annual GHG Emissions - Sector'!BG$38&"#"&actCaseAnnGHG_4&"#"&'Annual GHG Emissions - Sector'!$I73,Total_Emissions_by_A_index,0))) ->  | BH73: =IF(actCaseAnnGHG_4="",NA(),INDEX(Total_Emissions_by_A_vals,MATCH('Annual GHG Emissions - Sector'!BH$38&"#"&actCaseAnnGHG_4&"#"&'Annual GHG Emissions - Sector'!$I73,Total_Emissions_by_A_index,0))) ->  | BI73: =IF(actCaseAnnGHG_4="",NA(),INDEX(Total_Emissions_by_A_vals,MATCH('Annual GHG Emissions - Sector'!BI$38&"#"&actCaseAnnGHG_4&"#"&'Annual GHG Emissions - Sector'!$I73,Total_Emissions_by_A_index,0))) ->  | BJ73: =IF(actCaseAnnGHG_4="",NA(),INDEX(Total_Emissions_by_A_vals,MATCH('Annual GHG Emissions - Sector'!BJ$38&"#"&actCaseAnnGHG_4&"#"&'Annual GHG Emissions - Sector'!$I73,Total_Emissions_by_A_index,0))) ->  | BK73: =IF(actCaseAnnGHG_4="",NA(),INDEX(Total_Emissions_by_A_vals,MATCH('Annual GHG Emissions - Sector'!BK$38&"#"&actCaseAnnGHG_4&"#"&'Annual GHG Emissions - Sector'!$I73,Total_Emissions_by_A_index,0))) ->  | BL73: =IF(actCaseAnnGHG_4="",NA(),INDEX(Total_Emissions_by_A_vals,MATCH('Annual GHG Emissions - Sector'!BL$38&"#"&actCaseAnnGHG_4&"#"&'Annual GHG Emissions - Sector'!$I73,Total_Emissions_by_A_index,0))) ->  | BM73: =IF(actCaseAnnGHG_4="",NA(),INDEX(Total_Emissions_by_A_vals,MATCH('Annual GHG Emissions - Sector'!BM$38&"#"&actCaseAnnGHG_4&"#"&'Annual GHG Emissions - Sector'!$I73,Total_Emissions_by_A_index,0))) ->  | BN73: =IF(actCaseAnnGHG_4="",NA(),INDEX(Total_Emissions_by_A_vals,MATCH('Annual GHG Emissions - Sector'!BN$38&"#"&actCaseAnnGHG_4&"#"&'Annual GHG Emissions - Sector'!$I73,Total_Emissions_by_A_index,0))) ->  | BO73: =IF(actCaseAnnGHG_4="",NA(),INDEX(Total_Emissions_by_A_vals,MATCH('Annual GHG Emissions - Sector'!BO$38&"#"&actCaseAnnGHG_4&"#"&'Annual GHG Emissions - Sector'!$I73,Total_Emissions_by_A_index,0))) ->  | BP73: =IF(actCaseAnnGHG_4="",NA(),INDEX(Total_Emissions_by_A_vals,MATCH('Annual GHG Emissions - Sector'!BP$38&"#"&actCaseAnnGHG_4&"#"&'Annual GHG Emissions - Sector'!$I73,Total_Emissions_by_A_index,0))) ->  | BQ73: =IF(actCaseAnnGHG_4="",NA(),INDEX(Total_Emissions_by_A_vals,MATCH('Annual GHG Emissions - Sector'!BQ$38&"#"&actCaseAnnGHG_4&"#"&'Annual GHG Emissions - Sector'!$I73,Total_Emissions_by_A_index,0))) ->  | BR73: =IF(actCaseAnnGHG_4="",NA(),INDEX(Total_Emissions_by_A_vals,MATCH('Annual GHG Emissions - Sector'!BR$38&"#"&actCaseAnnGHG_4&"#"&'Annual GHG Emissions - Sector'!$I73,Total_Emissions_by_A_index,0))) -> 
I74: Residential and Commercial | AI74: =IF(actCaseAnnGHG_4="",NA(),INDEX(Total_Emissions_by_A_vals,MATCH('Annual GHG Emissions - Sector'!AI$38&"#"&actCaseAnnGHG_4&"#"&'Annual GHG Emissions - Sector'!$I74,Total_Emissions_by_A_index,0))) ->  | AJ74: =IF(actCaseAnnGHG_4="",NA(),INDEX(Total_Emissions_by_A_vals,MATCH('Annual GHG Emissions - Sector'!AJ$38&"#"&actCaseAnnGHG_4&"#"&'Annual GHG Emissions - Sector'!$I74,Total_Emissions_by_A_index,0))) ->  | AK74: =IF(actCaseAnnGHG_4="",NA(),INDEX(Total_Emissions_by_A_vals,MATCH('Annual GHG Emissions - Sector'!AK$38&"#"&actCaseAnnGHG_4&"#"&'Annual GHG Emissions - Sector'!$I74,Total_Emissions_by_A_index,0))) ->  | AL74: =IF(actCaseAnnGHG_4="",NA(),INDEX(Total_Emissions_by_A_vals,MATCH('Annual GHG Emissions - Sector'!AL$38&"#"&actCaseAnnGHG_4&"#"&'Annual GHG Emissions - Sector'!$I74,Total_Emissions_by_A_index,0))) ->  | AM74: =IF(actCaseAnnGHG_4="",NA(),INDEX(Total_Emissions_by_A_vals,MATCH('Annual GHG Emissions - Sector'!AM$38&"#"&actCaseAnnGHG_4&"#"&'Annual GHG Emissions - Sector'!$I74,Total_Emissions_by_A_index,0))) ->  | AN74: =IF(actCaseAnnGHG_4="",NA(),INDEX(Total_Emissions_by_A_vals,MATCH('Annual GHG Emissions - Sector'!AN$38&"#"&actCaseAnnGHG_4&"#"&'Annual GHG Emissions - Sector'!$I74,Total_Emissions_by_A_index,0))) ->  | AO74: =IF(actCaseAnnGHG_4="",NA(),INDEX(Total_Emissions_by_A_vals,MATCH('Annual GHG Emissions - Sector'!AO$38&"#"&actCaseAnnGHG_4&"#"&'Annual GHG Emissions - Sector'!$I74,Total_Emissions_by_A_index,0))) ->  | AP74: =IF(actCaseAnnGHG_4="",NA(),INDEX(Total_Emissions_by_A_vals,MATCH('Annual GHG Emissions - Sector'!AP$38&"#"&actCaseAnnGHG_4&"#"&'Annual GHG Emissions - Sector'!$I74,Total_Emissions_by_A_index,0))) ->  | AQ74: =IF(actCaseAnnGHG_4="",NA(),INDEX(Total_Emissions_by_A_vals,MATCH('Annual GHG Emissions - Sector'!AQ$38&"#"&actCaseAnnGHG_4&"#"&'Annual GHG Emissions - Sector'!$I74,Total_Emissions_by_A_index,0))) ->  | AR74: =IF(actCaseAnnGHG_4="",NA(),INDEX(Total_Emissions_by_A_vals,MATCH('Annual GHG Emissions - Sector'!AR$38&"#"&actCaseAnnGHG_4&"#"&'Annual GHG Emissions - Sector'!$I74,Total_Emissions_by_A_index,0))) ->  | AS74: =IF(actCaseAnnGHG_4="",NA(),INDEX(Total_Emissions_by_A_vals,MATCH('Annual GHG Emissions - Sector'!AS$38&"#"&actCaseAnnGHG_4&"#"&'Annual GHG Emissions - Sector'!$I74,Total_Emissions_by_A_index,0))) ->  | AT74: =IF(actCaseAnnGHG_4="",NA(),INDEX(Total_Emissions_by_A_vals,MATCH('Annual GHG Emissions - Sector'!AT$38&"#"&actCaseAnnGHG_4&"#"&'Annual GHG Emissions - Sector'!$I74,Total_Emissions_by_A_index,0))) ->  | AU74: =IF(actCaseAnnGHG_4="",NA(),INDEX(Total_Emissions_by_A_vals,MATCH('Annual GHG Emissions - Sector'!AU$38&"#"&actCaseAnnGHG_4&"#"&'Annual GHG Emissions - Sector'!$I74,Total_Emissions_by_A_index,0))) ->  | AV74: =IF(actCaseAnnGHG_4="",NA(),INDEX(Total_Emissions_by_A_vals,MATCH('Annual GHG Emissions - Sector'!AV$38&"#"&actCaseAnnGHG_4&"#"&'Annual GHG Emissions - Sector'!$I74,Total_Emissions_by_A_index,0))) ->  | AW74: =IF(actCaseAnnGHG_4="",NA(),INDEX(Total_Emissions_by_A_vals,MATCH('Annual GHG Emissions - Sector'!AW$38&"#"&actCaseAnnGHG_4&"#"&'Annual GHG Emissions - Sector'!$I74,Total_Emissions_by_A_index,0))) ->  | AX74: =IF(actCaseAnnGHG_4="",NA(),INDEX(Total_Emissions_by_A_vals,MATCH('Annual GHG Emissions - Sector'!AX$38&"#"&actCaseAnnGHG_4&"#"&'Annual GHG Emissions - Sector'!$I74,Total_Emissions_by_A_index,0))) ->  | AY74: =IF(actCaseAnnGHG_4="",NA(),INDEX(Total_Emissions_by_A_vals,MATCH('Annual GHG Emissions - Sector'!AY$38&"#"&actCaseAnnGHG_4&"#"&'Annual GHG Emissions - Sector'!$I74,Total_Emissions_by_A_index,0))) ->  | AZ74: =IF(actCaseAnnGHG_4="",NA(),INDEX(Total_Emissions_by_A_vals,MATCH('Annual GHG Emissions - Sector'!AZ$38&"#"&actCaseAnnGHG_4&"#"&'Annual GHG Emissions - Sector'!$I74,Total_Emissions_by_A_index,0))) ->  | BA74: =IF(actCaseAnnGHG_4="",NA(),INDEX(Total_Emissions_by_A_vals,MATCH('Annual GHG Emissions - Sector'!BA$38&"#"&actCaseAnnGHG_4&"#"&'Annual GHG Emissions - Sector'!$I74,Total_Emissions_by_A_index,0))) ->  | BB74: =IF(actCaseAnnGHG_4="",NA(),INDEX(Total_Emissions_by_A_vals,MATCH('Annual GHG Emissions - Sector'!BB$38&"#"&actCaseAnnGHG_4&"#"&'Annual GHG Emissions - Sector'!$I74,Total_Emissions_by_A_index,0))) ->  | BC74: =IF(actCaseAnnGHG_4="",NA(),INDEX(Total_Emissions_by_A_vals,MATCH('Annual GHG Emissions - Sector'!BC$38&"#"&actCaseAnnGHG_4&"#"&'Annual GHG Emissions - Sector'!$I74,Total_Emissions_by_A_index,0))) ->  | BD74: =IF(actCaseAnnGHG_4="",NA(),INDEX(Total_Emissions_by_A_vals,MATCH('Annual GHG Emissions - Sector'!BD$38&"#"&actCaseAnnGHG_4&"#"&'Annual GHG Emissions - Sector'!$I74,Total_Emissions_by_A_index,0))) ->  | BE74: =IF(actCaseAnnGHG_4="",NA(),INDEX(Total_Emissions_by_A_vals,MATCH('Annual GHG Emissions - Sector'!BE$38&"#"&actCaseAnnGHG_4&"#"&'Annual GHG Emissions - Sector'!$I74,Total_Emissions_by_A_index,0))) ->  | BF74: =IF(actCaseAnnGHG_4="",NA(),INDEX(Total_Emissions_by_A_vals,MATCH('Annual GHG Emissions - Sector'!BF$38&"#"&actCaseAnnGHG_4&"#"&'Annual GHG Emissions - Sector'!$I74,Total_Emissions_by_A_index,0))) ->  | BG74: =IF(actCaseAnnGHG_4="",NA(),INDEX(Total_Emissions_by_A_vals,MATCH('Annual GHG Emissions - Sector'!BG$38&"#"&actCaseAnnGHG_4&"#"&'Annual GHG Emissions - Sector'!$I74,Total_Emissions_by_A_index,0))) ->  | BH74: =IF(actCaseAnnGHG_4="",NA(),INDEX(Total_Emissions_by_A_vals,MATCH('Annual GHG Emissions - Sector'!BH$38&"#"&actCaseAnnGHG_4&"#"&'Annual GHG Emissions - Sector'!$I74,Total_Emissions_by_A_index,0))) ->  | BI74: =IF(actCaseAnnGHG_4="",NA(),INDEX(Total_Emissions_by_A_vals,MATCH('Annual GHG Emissions - Sector'!BI$38&"#"&actCaseAnnGHG_4&"#"&'Annual GHG Emissions - Sector'!$I74,Total_Emissions_by_A_index,0))) ->  | BJ74: =IF(actCaseAnnGHG_4="",NA(),INDEX(Total_Emissions_by_A_vals,MATCH('Annual GHG Emissions - Sector'!BJ$38&"#"&actCaseAnnGHG_4&"#"&'Annual GHG Emissions - Sector'!$I74,Total_Emissions_by_A_index,0))) ->  | BK74: =IF(actCaseAnnGHG_4="",NA(),INDEX(Total_Emissions_by_A_vals,MATCH('Annual GHG Emissions - Sector'!BK$38&"#"&actCaseAnnGHG_4&"#"&'Annual GHG Emissions - Sector'!$I74,Total_Emissions_by_A_index,0))) ->  | BL74: =IF(actCaseAnnGHG_4="",NA(),INDEX(Total_Emissions_by_A_vals,MATCH('Annual GHG Emissions - Sector'!BL$38&"#"&actCaseAnnGHG_4&"#"&'Annual GHG Emissions - Sector'!$I74,Total_Emissions_by_A_index,0))) ->  | BM74: =IF(actCaseAnnGHG_4="",NA(),INDEX(Total_Emissions_by_A_vals,MATCH('Annual GHG Emissions - Sector'!BM$38&"#"&actCaseAnnGHG_4&"#"&'Annual GHG Emissions - Sector'!$I74,Total_Emissions_by_A_index,0))) ->  | BN74: =IF(actCaseAnnGHG_4="",NA(),INDEX(Total_Emissions_by_A_vals,MATCH('Annual GHG Emissions - Sector'!BN$38&"#"&actCaseAnnGHG_4&"#"&'Annual GHG Emissions - Sector'!$I74,Total_Emissions_by_A_index,0))) ->  | BO74: =IF(actCaseAnnGHG_4="",NA(),INDEX(Total_Emissions_by_A_vals,MATCH('Annual GHG Emissions - Sector'!BO$38&"#"&actCaseAnnGHG_4&"#"&'Annual GHG Emissions - Sector'!$I74,Total_Emissions_by_A_index,0))) ->  | BP74: =IF(actCaseAnnGHG_4="",NA(),INDEX(Total_Emissions_by_A_vals,MATCH('Annual GHG Emissions - Sector'!BP$38&"#"&actCaseAnnGHG_4&"#"&'Annual GHG Emissions - Sector'!$I74,Total_Emissions_by_A_index,0))) ->  | BQ74: =IF(actCaseAnnGHG_4="",NA(),INDEX(Total_Emissions_by_A_vals,MATCH('Annual GHG Emissions - Sector'!BQ$38&"#"&actCaseAnnGHG_4&"#"&'Annual GHG Emissions - Sector'!$I74,Total_Emissions_by_A_index,0))) ->  | BR74: =IF(actCaseAnnGHG_4="",NA(),INDEX(Total_Emissions_by_A_vals,MATCH('Annual GHG Emissions - Sector'!BR$38&"#"&actCaseAnnGHG_4&"#"&'Annual GHG Emissions - Sector'!$I74,Total_Emissions_by_A_index,0))) -> 
I75: Electric Power | AI75: =IF(actCaseAnnGHG_4="",NA(),INDEX(Total_Emissions_by_A_vals,MATCH('Annual GHG Emissions - Sector'!AI$38&"#"&actCaseAnnGHG_4&"#"&'Annual GHG Emissions - Sector'!$I75,Total_Emissions_by_A_index,0))) ->  | AJ75: =IF(actCaseAnnGHG_4="",NA(),INDEX(Total_Emissions_by_A_vals,MATCH('Annual GHG Emissions - Sector'!AJ$38&"#"&actCaseAnnGHG_4&"#"&'Annual GHG Emissions - Sector'!$I75,Total_Emissions_by_A_index,0))) ->  | AK75: =IF(actCaseAnnGHG_4="",NA(),INDEX(Total_Emissions_by_A_vals,MATCH('Annual GHG Emissions - Sector'!AK$38&"#"&actCaseAnnGHG_4&"#"&'Annual GHG Emissions - Sector'!$I75,Total_Emissions_by_A_index,0))) ->  | AL75: =IF(actCaseAnnGHG_4="",NA(),INDEX(Total_Emissions_by_A_vals,MATCH('Annual GHG Emissions - Sector'!AL$38&"#"&actCaseAnnGHG_4&"#"&'Annual GHG Emissions - Sector'!$I75,Total_Emissions_by_A_index,0))) ->  | AM75: =IF(actCaseAnnGHG_4="",NA(),INDEX(Total_Emissions_by_A_vals,MATCH('Annual GHG Emissions - Sector'!AM$38&"#"&actCaseAnnGHG_4&"#"&'Annual GHG Emissions - Sector'!$I75,Total_Emissions_by_A_index,0))) ->  | AN75: =IF(actCaseAnnGHG_4="",NA(),INDEX(Total_Emissions_by_A_vals,MATCH('Annual GHG Emissions - Sector'!AN$38&"#"&actCaseAnnGHG_4&"#"&'Annual GHG Emissions - Sector'!$I75,Total_Emissions_by_A_index,0))) ->  | AO75: =IF(actCaseAnnGHG_4="",NA(),INDEX(Total_Emissions_by_A_vals,MATCH('Annual GHG Emissions - Sector'!AO$38&"#"&actCaseAnnGHG_4&"#"&'Annual GHG Emissions - Sector'!$I75,Total_Emissions_by_A_index,0))) ->  | AP75: =IF(actCaseAnnGHG_4="",NA(),INDEX(Total_Emissions_by_A_vals,MATCH('Annual GHG Emissions - Sector'!AP$38&"#"&actCaseAnnGHG_4&"#"&'Annual GHG Emissions - Sector'!$I75,Total_Emissions_by_A_index,0))) ->  | AQ75: =IF(actCaseAnnGHG_4="",NA(),INDEX(Total_Emissions_by_A_vals,MATCH('Annual GHG Emissions - Sector'!AQ$38&"#"&actCaseAnnGHG_4&"#"&'Annual GHG Emissions - Sector'!$I75,Total_Emissions_by_A_index,0))) ->  | AR75: =IF(actCaseAnnGHG_4="",NA(),INDEX(Total_Emissions_by_A_vals,MATCH('Annual GHG Emissions - Sector'!AR$38&"#"&actCaseAnnGHG_4&"#"&'Annual GHG Emissions - Sector'!$I75,Total_Emissions_by_A_index,0))) ->  | AS75: =IF(actCaseAnnGHG_4="",NA(),INDEX(Total_Emissions_by_A_vals,MATCH('Annual GHG Emissions - Sector'!AS$38&"#"&actCaseAnnGHG_4&"#"&'Annual GHG Emissions - Sector'!$I75,Total_Emissions_by_A_index,0))) ->  | AT75: =IF(actCaseAnnGHG_4="",NA(),INDEX(Total_Emissions_by_A_vals,MATCH('Annual GHG Emissions - Sector'!AT$38&"#"&actCaseAnnGHG_4&"#"&'Annual GHG Emissions - Sector'!$I75,Total_Emissions_by_A_index,0))) ->  | AU75: =IF(actCaseAnnGHG_4="",NA(),INDEX(Total_Emissions_by_A_vals,MATCH('Annual GHG Emissions - Sector'!AU$38&"#"&actCaseAnnGHG_4&"#"&'Annual GHG Emissions - Sector'!$I75,Total_Emissions_by_A_index,0))) ->  | AV75: =IF(actCaseAnnGHG_4="",NA(),INDEX(Total_Emissions_by_A_vals,MATCH('Annual GHG Emissions - Sector'!AV$38&"#"&actCaseAnnGHG_4&"#"&'Annual GHG Emissions - Sector'!$I75,Total_Emissions_by_A_index,0))) ->  | AW75: =IF(actCaseAnnGHG_4="",NA(),INDEX(Total_Emissions_by_A_vals,MATCH('Annual GHG Emissions - Sector'!AW$38&"#"&actCaseAnnGHG_4&"#"&'Annual GHG Emissions - Sector'!$I75,Total_Emissions_by_A_index,0))) ->  | AX75: =IF(actCaseAnnGHG_4="",NA(),INDEX(Total_Emissions_by_A_vals,MATCH('Annual GHG Emissions - Sector'!AX$38&"#"&actCaseAnnGHG_4&"#"&'Annual GHG Emissions - Sector'!$I75,Total_Emissions_by_A_index,0))) ->  | AY75: =IF(actCaseAnnGHG_4="",NA(),INDEX(Total_Emissions_by_A_vals,MATCH('Annual GHG Emissions - Sector'!AY$38&"#"&actCaseAnnGHG_4&"#"&'Annual GHG Emissions - Sector'!$I75,Total_Emissions_by_A_index,0))) ->  | AZ75: =IF(actCaseAnnGHG_4="",NA(),INDEX(Total_Emissions_by_A_vals,MATCH('Annual GHG Emissions - Sector'!AZ$38&"#"&actCaseAnnGHG_4&"#"&'Annual GHG Emissions - Sector'!$I75,Total_Emissions_by_A_index,0))) ->  | BA75: =IF(actCaseAnnGHG_4="",NA(),INDEX(Total_Emissions_by_A_vals,MATCH('Annual GHG Emissions - Sector'!BA$38&"#"&actCaseAnnGHG_4&"#"&'Annual GHG Emissions - Sector'!$I75,Total_Emissions_by_A_index,0))) ->  | BB75: =IF(actCaseAnnGHG_4="",NA(),INDEX(Total_Emissions_by_A_vals,MATCH('Annual GHG Emissions - Sector'!BB$38&"#"&actCaseAnnGHG_4&"#"&'Annual GHG Emissions - Sector'!$I75,Total_Emissions_by_A_index,0))) ->  | BC75: =IF(actCaseAnnGHG_4="",NA(),INDEX(Total_Emissions_by_A_vals,MATCH('Annual GHG Emissions - Sector'!BC$38&"#"&actCaseAnnGHG_4&"#"&'Annual GHG Emissions - Sector'!$I75,Total_Emissions_by_A_index,0))) ->  | BD75: =IF(actCaseAnnGHG_4="",NA(),INDEX(Total_Emissions_by_A_vals,MATCH('Annual GHG Emissions - Sector'!BD$38&"#"&actCaseAnnGHG_4&"#"&'Annual GHG Emissions - Sector'!$I75,Total_Emissions_by_A_index,0))) ->  | BE75: =IF(actCaseAnnGHG_4="",NA(),INDEX(Total_Emissions_by_A_vals,MATCH('Annual GHG Emissions - Sector'!BE$38&"#"&actCaseAnnGHG_4&"#"&'Annual GHG Emissions - Sector'!$I75,Total_Emissions_by_A_index,0))) ->  | BF75: =IF(actCaseAnnGHG_4="",NA(),INDEX(Total_Emissions_by_A_vals,MATCH('Annual GHG Emissions - Sector'!BF$38&"#"&actCaseAnnGHG_4&"#"&'Annual GHG Emissions - Sector'!$I75,Total_Emissions_by_A_index,0))) ->  | BG75: =IF(actCaseAnnGHG_4="",NA(),INDEX(Total_Emissions_by_A_vals,MATCH('Annual GHG Emissions - Sector'!BG$38&"#"&actCaseAnnGHG_4&"#"&'Annual GHG Emissions - Sector'!$I75,Total_Emissions_by_A_index,0))) ->  | BH75: =IF(actCaseAnnGHG_4="",NA(),INDEX(Total_Emissions_by_A_vals,MATCH('Annual GHG Emissions - Sector'!BH$38&"#"&actCaseAnnGHG_4&"#"&'Annual GHG Emissions - Sector'!$I75,Total_Emissions_by_A_index,0))) ->  | BI75: =IF(actCaseAnnGHG_4="",NA(),INDEX(Total_Emissions_by_A_vals,MATCH('Annual GHG Emissions - Sector'!BI$38&"#"&actCaseAnnGHG_4&"#"&'Annual GHG Emissions - Sector'!$I75,Total_Emissions_by_A_index,0))) ->  | BJ75: =IF(actCaseAnnGHG_4="",NA(),INDEX(Total_Emissions_by_A_vals,MATCH('Annual GHG Emissions - Sector'!BJ$38&"#"&actCaseAnnGHG_4&"#"&'Annual GHG Emissions - Sector'!$I75,Total_Emissions_by_A_index,0))) ->  | BK75: =IF(actCaseAnnGHG_4="",NA(),INDEX(Total_Emissions_by_A_vals,MATCH('Annual GHG Emissions - Sector'!BK$38&"#"&actCaseAnnGHG_4&"#"&'Annual GHG Emissions - Sector'!$I75,Total_Emissions_by_A_index,0))) ->  | BL75: =IF(actCaseAnnGHG_4="",NA(),INDEX(Total_Emissions_by_A_vals,MATCH('Annual GHG Emissions - Sector'!BL$38&"#"&actCaseAnnGHG_4&"#"&'Annual GHG Emissions - Sector'!$I75,Total_Emissions_by_A_index,0))) ->  | BM75: =IF(actCaseAnnGHG_4="",NA(),INDEX(Total_Emissions_by_A_vals,MATCH('Annual GHG Emissions - Sector'!BM$38&"#"&actCaseAnnGHG_4&"#"&'Annual GHG Emissions - Sector'!$I75,Total_Emissions_by_A_index,0))) ->  | BN75: =IF(actCaseAnnGHG_4="",NA(),INDEX(Total_Emissions_by_A_vals,MATCH('Annual GHG Emissions - Sector'!BN$38&"#"&actCaseAnnGHG_4&"#"&'Annual GHG Emissions - Sector'!$I75,Total_Emissions_by_A_index,0))) ->  | BO75: =IF(actCaseAnnGHG_4="",NA(),INDEX(Total_Emissions_by_A_vals,MATCH('Annual GHG Emissions - Sector'!BO$38&"#"&actCaseAnnGHG_4&"#"&'Annual GHG Emissions - Sector'!$I75,Total_Emissions_by_A_index,0))) ->  | BP75: =IF(actCaseAnnGHG_4="",NA(),INDEX(Total_Emissions_by_A_vals,MATCH('Annual GHG Emissions - Sector'!BP$38&"#"&actCaseAnnGHG_4&"#"&'Annual GHG Emissions - Sector'!$I75,Total_Emissions_by_A_index,0))) ->  | BQ75: =IF(actCaseAnnGHG_4="",NA(),INDEX(Total_Emissions_by_A_vals,MATCH('Annual GHG Emissions - Sector'!BQ$38&"#"&actCaseAnnGHG_4&"#"&'Annual GHG Emissions - Sector'!$I75,Total_Emissions_by_A_index,0))) ->  | BR75: =IF(actCaseAnnGHG_4="",NA(),INDEX(Total_Emissions_by_A_vals,MATCH('Annual GHG Emissions - Sector'!BR$38&"#"&actCaseAnnGHG_4&"#"&'Annual GHG Emissions - Sector'!$I75,Total_Emissions_by_A_index,0))) -> 
I76: High GWP | AI76: =IF(actCaseAnnGHG_4="",NA(),INDEX(Total_Emissions_by_A_vals,MATCH('Annual GHG Emissions - Sector'!AI$38&"#"&actCaseAnnGHG_4&"#"&'Annual GHG Emissions - Sector'!$I76,Total_Emissions_by_A_index,0))) ->  | AJ76: =IF(actCaseAnnGHG_4="",NA(),INDEX(Total_Emissions_by_A_vals,MATCH('Annual GHG Emissions - Sector'!AJ$38&"#"&actCaseAnnGHG_4&"#"&'Annual GHG Emissions - Sector'!$I76,Total_Emissions_by_A_index,0))) ->  | AK76: =IF(actCaseAnnGHG_4="",NA(),INDEX(Total_Emissions_by_A_vals,MATCH('Annual GHG Emissions - Sector'!AK$38&"#"&actCaseAnnGHG_4&"#"&'Annual GHG Emissions - Sector'!$I76,Total_Emissions_by_A_index,0))) ->  | AL76: =IF(actCaseAnnGHG_4="",NA(),INDEX(Total_Emissions_by_A_vals,MATCH('Annual GHG Emissions - Sector'!AL$38&"#"&actCaseAnnGHG_4&"#"&'Annual GHG Emissions - Sector'!$I76,Total_Emissions_by_A_index,0))) ->  | AM76: =IF(actCaseAnnGHG_4="",NA(),INDEX(Total_Emissions_by_A_vals,MATCH('Annual GHG Emissions - Sector'!AM$38&"#"&actCaseAnnGHG_4&"#"&'Annual GHG Emissions - Sector'!$I76,Total_Emissions_by_A_index,0))) ->  | AN76: =IF(actCaseAnnGHG_4="",NA(),INDEX(Total_Emissions_by_A_vals,MATCH('Annual GHG Emissions - Sector'!AN$38&"#"&actCaseAnnGHG_4&"#"&'Annual GHG Emissions - Sector'!$I76,Total_Emissions_by_A_index,0))) ->  | AO76: =IF(actCaseAnnGHG_4="",NA(),INDEX(Total_Emissions_by_A_vals,MATCH('Annual GHG Emissions - Sector'!AO$38&"#"&actCaseAnnGHG_4&"#"&'Annual GHG Emissions - Sector'!$I76,Total_Emissions_by_A_index,0))) ->  | AP76: =IF(actCaseAnnGHG_4="",NA(),INDEX(Total_Emissions_by_A_vals,MATCH('Annual GHG Emissions - Sector'!AP$38&"#"&actCaseAnnGHG_4&"#"&'Annual GHG Emissions - Sector'!$I76,Total_Emissions_by_A_index,0))) ->  | AQ76: =IF(actCaseAnnGHG_4="",NA(),INDEX(Total_Emissions_by_A_vals,MATCH('Annual GHG Emissions - Sector'!AQ$38&"#"&actCaseAnnGHG_4&"#"&'Annual GHG Emissions - Sector'!$I76,Total_Emissions_by_A_index,0))) ->  | AR76: =IF(actCaseAnnGHG_4="",NA(),INDEX(Total_Emissions_by_A_vals,MATCH('Annual GHG Emissions - Sector'!AR$38&"#"&actCaseAnnGHG_4&"#"&'Annual GHG Emissions - Sector'!$I76,Total_Emissions_by_A_index,0))) ->  | AS76: =IF(actCaseAnnGHG_4="",NA(),INDEX(Total_Emissions_by_A_vals,MATCH('Annual GHG Emissions - Sector'!AS$38&"#"&actCaseAnnGHG_4&"#"&'Annual GHG Emissions - Sector'!$I76,Total_Emissions_by_A_index,0))) ->  | AT76: =IF(actCaseAnnGHG_4="",NA(),INDEX(Total_Emissions_by_A_vals,MATCH('Annual GHG Emissions - Sector'!AT$38&"#"&actCaseAnnGHG_4&"#"&'Annual GHG Emissions - Sector'!$I76,Total_Emissions_by_A_index,0))) ->  | AU76: =IF(actCaseAnnGHG_4="",NA(),INDEX(Total_Emissions_by_A_vals,MATCH('Annual GHG Emissions - Sector'!AU$38&"#"&actCaseAnnGHG_4&"#"&'Annual GHG Emissions - Sector'!$I76,Total_Emissions_by_A_index,0))) ->  | AV76: =IF(actCaseAnnGHG_4="",NA(),INDEX(Total_Emissions_by_A_vals,MATCH('Annual GHG Emissions - Sector'!AV$38&"#"&actCaseAnnGHG_4&"#"&'Annual GHG Emissions - Sector'!$I76,Total_Emissions_by_A_index,0))) ->  | AW76: =IF(actCaseAnnGHG_4="",NA(),INDEX(Total_Emissions_by_A_vals,MATCH('Annual GHG Emissions - Sector'!AW$38&"#"&actCaseAnnGHG_4&"#"&'Annual GHG Emissions - Sector'!$I76,Total_Emissions_by_A_index,0))) ->  | AX76: =IF(actCaseAnnGHG_4="",NA(),INDEX(Total_Emissions_by_A_vals,MATCH('Annual GHG Emissions - Sector'!AX$38&"#"&actCaseAnnGHG_4&"#"&'Annual GHG Emissions - Sector'!$I76,Total_Emissions_by_A_index,0))) ->  | AY76: =IF(actCaseAnnGHG_4="",NA(),INDEX(Total_Emissions_by_A_vals,MATCH('Annual GHG Emissions - Sector'!AY$38&"#"&actCaseAnnGHG_4&"#"&'Annual GHG Emissions - Sector'!$I76,Total_Emissions_by_A_index,0))) ->  | AZ76: =IF(actCaseAnnGHG_4="",NA(),INDEX(Total_Emissions_by_A_vals,MATCH('Annual GHG Emissions - Sector'!AZ$38&"#"&actCaseAnnGHG_4&"#"&'Annual GHG Emissions - Sector'!$I76,Total_Emissions_by_A_index,0))) ->  | BA76: =IF(actCaseAnnGHG_4="",NA(),INDEX(Total_Emissions_by_A_vals,MATCH('Annual GHG Emissions - Sector'!BA$38&"#"&actCaseAnnGHG_4&"#"&'Annual GHG Emissions - Sector'!$I76,Total_Emissions_by_A_index,0))) ->  | BB76: =IF(actCaseAnnGHG_4="",NA(),INDEX(Total_Emissions_by_A_vals,MATCH('Annual GHG Emissions - Sector'!BB$38&"#"&actCaseAnnGHG_4&"#"&'Annual GHG Emissions - Sector'!$I76,Total_Emissions_by_A_index,0))) ->  | BC76: =IF(actCaseAnnGHG_4="",NA(),INDEX(Total_Emissions_by_A_vals,MATCH('Annual GHG Emissions - Sector'!BC$38&"#"&actCaseAnnGHG_4&"#"&'Annual GHG Emissions - Sector'!$I76,Total_Emissions_by_A_index,0))) ->  | BD76: =IF(actCaseAnnGHG_4="",NA(),INDEX(Total_Emissions_by_A_vals,MATCH('Annual GHG Emissions - Sector'!BD$38&"#"&actCaseAnnGHG_4&"#"&'Annual GHG Emissions - Sector'!$I76,Total_Emissions_by_A_index,0))) ->  | BE76: =IF(actCaseAnnGHG_4="",NA(),INDEX(Total_Emissions_by_A_vals,MATCH('Annual GHG Emissions - Sector'!BE$38&"#"&actCaseAnnGHG_4&"#"&'Annual GHG Emissions - Sector'!$I76,Total_Emissions_by_A_index,0))) ->  | BF76: =IF(actCaseAnnGHG_4="",NA(),INDEX(Total_Emissions_by_A_vals,MATCH('Annual GHG Emissions - Sector'!BF$38&"#"&actCaseAnnGHG_4&"#"&'Annual GHG Emissions - Sector'!$I76,Total_Emissions_by_A_index,0))) ->  | BG76: =IF(actCaseAnnGHG_4="",NA(),INDEX(Total_Emissions_by_A_vals,MATCH('Annual GHG Emissions - Sector'!BG$38&"#"&actCaseAnnGHG_4&"#"&'Annual GHG Emissions - Sector'!$I76,Total_Emissions_by_A_index,0))) ->  | BH76: =IF(actCaseAnnGHG_4="",NA(),INDEX(Total_Emissions_by_A_vals,MATCH('Annual GHG Emissions - Sector'!BH$38&"#"&actCaseAnnGHG_4&"#"&'Annual GHG Emissions - Sector'!$I76,Total_Emissions_by_A_index,0))) ->  | BI76: =IF(actCaseAnnGHG_4="",NA(),INDEX(Total_Emissions_by_A_vals,MATCH('Annual GHG Emissions - Sector'!BI$38&"#"&actCaseAnnGHG_4&"#"&'Annual GHG Emissions - Sector'!$I76,Total_Emissions_by_A_index,0))) ->  | BJ76: =IF(actCaseAnnGHG_4="",NA(),INDEX(Total_Emissions_by_A_vals,MATCH('Annual GHG Emissions - Sector'!BJ$38&"#"&actCaseAnnGHG_4&"#"&'Annual GHG Emissions - Sector'!$I76,Total_Emissions_by_A_index,0))) ->  | BK76: =IF(actCaseAnnGHG_4="",NA(),INDEX(Total_Emissions_by_A_vals,MATCH('Annual GHG Emissions - Sector'!BK$38&"#"&actCaseAnnGHG_4&"#"&'Annual GHG Emissions - Sector'!$I76,Total_Emissions_by_A_index,0))) ->  | BL76: =IF(actCaseAnnGHG_4="",NA(),INDEX(Total_Emissions_by_A_vals,MATCH('Annual GHG Emissions - Sector'!BL$38&"#"&actCaseAnnGHG_4&"#"&'Annual GHG Emissions - Sector'!$I76,Total_Emissions_by_A_index,0))) ->  | BM76: =IF(actCaseAnnGHG_4="",NA(),INDEX(Total_Emissions_by_A_vals,MATCH('Annual GHG Emissions - Sector'!BM$38&"#"&actCaseAnnGHG_4&"#"&'Annual GHG Emissions - Sector'!$I76,Total_Emissions_by_A_index,0))) ->  | BN76: =IF(actCaseAnnGHG_4="",NA(),INDEX(Total_Emissions_by_A_vals,MATCH('Annual GHG Emissions - Sector'!BN$38&"#"&actCaseAnnGHG_4&"#"&'Annual GHG Emissions - Sector'!$I76,Total_Emissions_by_A_index,0))) ->  | BO76: =IF(actCaseAnnGHG_4="",NA(),INDEX(Total_Emissions_by_A_vals,MATCH('Annual GHG Emissions - Sector'!BO$38&"#"&actCaseAnnGHG_4&"#"&'Annual GHG Emissions - Sector'!$I76,Total_Emissions_by_A_index,0))) ->  | BP76: =IF(actCaseAnnGHG_4="",NA(),INDEX(Total_Emissions_by_A_vals,MATCH('Annual GHG Emissions - Sector'!BP$38&"#"&actCaseAnnGHG_4&"#"&'Annual GHG Emissions - Sector'!$I76,Total_Emissions_by_A_index,0))) ->  | BQ76: =IF(actCaseAnnGHG_4="",NA(),INDEX(Total_Emissions_by_A_vals,MATCH('Annual GHG Emissions - Sector'!BQ$38&"#"&actCaseAnnGHG_4&"#"&'Annual GHG Emissions - Sector'!$I76,Total_Emissions_by_A_index,0))) ->  | BR76: =IF(actCaseAnnGHG_4="",NA(),INDEX(Total_Emissions_by_A_vals,MATCH('Annual GHG Emissions - Sector'!BR$38&"#"&actCaseAnnGHG_4&"#"&'Annual GHG Emissions - Sector'!$I76,Total_Emissions_by_A_index,0))) -> 
I77: Industrial | AI77: =IF(actCaseAnnGHG_4="",NA(),INDEX(Total_Emissions_by_A_vals,MATCH('Annual GHG Emissions - Sector'!AI$38&"#"&actCaseAnnGHG_4&"#"&'Annual GHG Emissions - Sector'!$I77,Total_Emissions_by_A_index,0))) ->  | AJ77: =IF(actCaseAnnGHG_4="",NA(),INDEX(Total_Emissions_by_A_vals,MATCH('Annual GHG Emissions - Sector'!AJ$38&"#"&actCaseAnnGHG_4&"#"&'Annual GHG Emissions - Sector'!$I77,Total_Emissions_by_A_index,0))) ->  | AK77: =IF(actCaseAnnGHG_4="",NA(),INDEX(Total_Emissions_by_A_vals,MATCH('Annual GHG Emissions - Sector'!AK$38&"#"&actCaseAnnGHG_4&"#"&'Annual GHG Emissions - Sector'!$I77,Total_Emissions_by_A_index,0))) ->  | AL77: =IF(actCaseAnnGHG_4="",NA(),INDEX(Total_Emissions_by_A_vals,MATCH('Annual GHG Emissions - Sector'!AL$38&"#"&actCaseAnnGHG_4&"#"&'Annual GHG Emissions - Sector'!$I77,Total_Emissions_by_A_index,0))) ->  | AM77: =IF(actCaseAnnGHG_4="",NA(),INDEX(Total_Emissions_by_A_vals,MATCH('Annual GHG Emissions - Sector'!AM$38&"#"&actCaseAnnGHG_4&"#"&'Annual GHG Emissions - Sector'!$I77,Total_Emissions_by_A_index,0))) ->  | AN77: =IF(actCaseAnnGHG_4="",NA(),INDEX(Total_Emissions_by_A_vals,MATCH('Annual GHG Emissions - Sector'!AN$38&"#"&actCaseAnnGHG_4&"#"&'Annual GHG Emissions - Sector'!$I77,Total_Emissions_by_A_index,0))) ->  | AO77: =IF(actCaseAnnGHG_4="",NA(),INDEX(Total_Emissions_by_A_vals,MATCH('Annual GHG Emissions - Sector'!AO$38&"#"&actCaseAnnGHG_4&"#"&'Annual GHG Emissions - Sector'!$I77,Total_Emissions_by_A_index,0))) ->  | AP77: =IF(actCaseAnnGHG_4="",NA(),INDEX(Total_Emissions_by_A_vals,MATCH('Annual GHG Emissions - Sector'!AP$38&"#"&actCaseAnnGHG_4&"#"&'Annual GHG Emissions - Sector'!$I77,Total_Emissions_by_A_index,0))) ->  | AQ77: =IF(actCaseAnnGHG_4="",NA(),INDEX(Total_Emissions_by_A_vals,MATCH('Annual GHG Emissions - Sector'!AQ$38&"#"&actCaseAnnGHG_4&"#"&'Annual GHG Emissions - Sector'!$I77,Total_Emissions_by_A_index,0))) ->  | AR77: =IF(actCaseAnnGHG_4="",NA(),INDEX(Total_Emissions_by_A_vals,MATCH('Annual GHG Emissions - Sector'!AR$38&"#"&actCaseAnnGHG_4&"#"&'Annual GHG Emissions - Sector'!$I77,Total_Emissions_by_A_index,0))) ->  | AS77: =IF(actCaseAnnGHG_4="",NA(),INDEX(Total_Emissions_by_A_vals,MATCH('Annual GHG Emissions - Sector'!AS$38&"#"&actCaseAnnGHG_4&"#"&'Annual GHG Emissions - Sector'!$I77,Total_Emissions_by_A_index,0))) ->  | AT77: =IF(actCaseAnnGHG_4="",NA(),INDEX(Total_Emissions_by_A_vals,MATCH('Annual GHG Emissions - Sector'!AT$38&"#"&actCaseAnnGHG_4&"#"&'Annual GHG Emissions - Sector'!$I77,Total_Emissions_by_A_index,0))) ->  | AU77: =IF(actCaseAnnGHG_4="",NA(),INDEX(Total_Emissions_by_A_vals,MATCH('Annual GHG Emissions - Sector'!AU$38&"#"&actCaseAnnGHG_4&"#"&'Annual GHG Emissions - Sector'!$I77,Total_Emissions_by_A_index,0))) ->  | AV77: =IF(actCaseAnnGHG_4="",NA(),INDEX(Total_Emissions_by_A_vals,MATCH('Annual GHG Emissions - Sector'!AV$38&"#"&actCaseAnnGHG_4&"#"&'Annual GHG Emissions - Sector'!$I77,Total_Emissions_by_A_index,0))) ->  | AW77: =IF(actCaseAnnGHG_4="",NA(),INDEX(Total_Emissions_by_A_vals,MATCH('Annual GHG Emissions - Sector'!AW$38&"#"&actCaseAnnGHG_4&"#"&'Annual GHG Emissions - Sector'!$I77,Total_Emissions_by_A_index,0))) ->  | AX77: =IF(actCaseAnnGHG_4="",NA(),INDEX(Total_Emissions_by_A_vals,MATCH('Annual GHG Emissions - Sector'!AX$38&"#"&actCaseAnnGHG_4&"#"&'Annual GHG Emissions - Sector'!$I77,Total_Emissions_by_A_index,0))) ->  | AY77: =IF(actCaseAnnGHG_4="",NA(),INDEX(Total_Emissions_by_A_vals,MATCH('Annual GHG Emissions - Sector'!AY$38&"#"&actCaseAnnGHG_4&"#"&'Annual GHG Emissions - Sector'!$I77,Total_Emissions_by_A_index,0))) ->  | AZ77: =IF(actCaseAnnGHG_4="",NA(),INDEX(Total_Emissions_by_A_vals,MATCH('Annual GHG Emissions - Sector'!AZ$38&"#"&actCaseAnnGHG_4&"#"&'Annual GHG Emissions - Sector'!$I77,Total_Emissions_by_A_index,0))) ->  | BA77: =IF(actCaseAnnGHG_4="",NA(),INDEX(Total_Emissions_by_A_vals,MATCH('Annual GHG Emissions - Sector'!BA$38&"#"&actCaseAnnGHG_4&"#"&'Annual GHG Emissions - Sector'!$I77,Total_Emissions_by_A_index,0))) ->  | BB77: =IF(actCaseAnnGHG_4="",NA(),INDEX(Total_Emissions_by_A_vals,MATCH('Annual GHG Emissions - Sector'!BB$38&"#"&actCaseAnnGHG_4&"#"&'Annual GHG Emissions - Sector'!$I77,Total_Emissions_by_A_index,0))) ->  | BC77: =IF(actCaseAnnGHG_4="",NA(),INDEX(Total_Emissions_by_A_vals,MATCH('Annual GHG Emissions - Sector'!BC$38&"#"&actCaseAnnGHG_4&"#"&'Annual GHG Emissions - Sector'!$I77,Total_Emissions_by_A_index,0))) ->  | BD77: =IF(actCaseAnnGHG_4="",NA(),INDEX(Total_Emissions_by_A_vals,MATCH('Annual GHG Emissions - Sector'!BD$38&"#"&actCaseAnnGHG_4&"#"&'Annual GHG Emissions - Sector'!$I77,Total_Emissions_by_A_index,0))) ->  | BE77: =IF(actCaseAnnGHG_4="",NA(),INDEX(Total_Emissions_by_A_vals,MATCH('Annual GHG Emissions - Sector'!BE$38&"#"&actCaseAnnGHG_4&"#"&'Annual GHG Emissions - Sector'!$I77,Total_Emissions_by_A_index,0))) ->  | BF77: =IF(actCaseAnnGHG_4="",NA(),INDEX(Total_Emissions_by_A_vals,MATCH('Annual GHG Emissions - Sector'!BF$38&"#"&actCaseAnnGHG_4&"#"&'Annual GHG Emissions - Sector'!$I77,Total_Emissions_by_A_index,0))) ->  | BG77: =IF(actCaseAnnGHG_4="",NA(),INDEX(Total_Emissions_by_A_vals,MATCH('Annual GHG Emissions - Sector'!BG$38&"#"&actCaseAnnGHG_4&"#"&'Annual GHG Emissions - Sector'!$I77,Total_Emissions_by_A_index,0))) ->  | BH77: =IF(actCaseAnnGHG_4="",NA(),INDEX(Total_Emissions_by_A_vals,MATCH('Annual GHG Emissions - Sector'!BH$38&"#"&actCaseAnnGHG_4&"#"&'Annual GHG Emissions - Sector'!$I77,Total_Emissions_by_A_index,0))) ->  | BI77: =IF(actCaseAnnGHG_4="",NA(),INDEX(Total_Emissions_by_A_vals,MATCH('Annual GHG Emissions - Sector'!BI$38&"#"&actCaseAnnGHG_4&"#"&'Annual GHG Emissions - Sector'!$I77,Total_Emissions_by_A_index,0))) ->  | BJ77: =IF(actCaseAnnGHG_4="",NA(),INDEX(Total_Emissions_by_A_vals,MATCH('Annual GHG Emissions - Sector'!BJ$38&"#"&actCaseAnnGHG_4&"#"&'Annual GHG Emissions - Sector'!$I77,Total_Emissions_by_A_index,0))) ->  | BK77: =IF(actCaseAnnGHG_4="",NA(),INDEX(Total_Emissions_by_A_vals,MATCH('Annual GHG Emissions - Sector'!BK$38&"#"&actCaseAnnGHG_4&"#"&'Annual GHG Emissions - Sector'!$I77,Total_Emissions_by_A_index,0))) ->  | BL77: =IF(actCaseAnnGHG_4="",NA(),INDEX(Total_Emissions_by_A_vals,MATCH('Annual GHG Emissions - Sector'!BL$38&"#"&actCaseAnnGHG_4&"#"&'Annual GHG Emissions - Sector'!$I77,Total_Emissions_by_A_index,0))) ->  | BM77: =IF(actCaseAnnGHG_4="",NA(),INDEX(Total_Emissions_by_A_vals,MATCH('Annual GHG Emissions - Sector'!BM$38&"#"&actCaseAnnGHG_4&"#"&'Annual GHG Emissions - Sector'!$I77,Total_Emissions_by_A_index,0))) ->  | BN77: =IF(actCaseAnnGHG_4="",NA(),INDEX(Total_Emissions_by_A_vals,MATCH('Annual GHG Emissions - Sector'!BN$38&"#"&actCaseAnnGHG_4&"#"&'Annual GHG Emissions - Sector'!$I77,Total_Emissions_by_A_index,0))) ->  | BO77: =IF(actCaseAnnGHG_4="",NA(),INDEX(Total_Emissions_by_A_vals,MATCH('Annual GHG Emissions - Sector'!BO$38&"#"&actCaseAnnGHG_4&"#"&'Annual GHG Emissions - Sector'!$I77,Total_Emissions_by_A_index,0))) ->  | BP77: =IF(actCaseAnnGHG_4="",NA(),INDEX(Total_Emissions_by_A_vals,MATCH('Annual GHG Emissions - Sector'!BP$38&"#"&actCaseAnnGHG_4&"#"&'Annual GHG Emissions - Sector'!$I77,Total_Emissions_by_A_index,0))) ->  | BQ77: =IF(actCaseAnnGHG_4="",NA(),INDEX(Total_Emissions_by_A_vals,MATCH('Annual GHG Emissions - Sector'!BQ$38&"#"&actCaseAnnGHG_4&"#"&'Annual GHG Emissions - Sector'!$I77,Total_Emissions_by_A_index,0))) ->  | BR77: =IF(actCaseAnnGHG_4="",NA(),INDEX(Total_Emissions_by_A_vals,MATCH('Annual GHG Emissions - Sector'!BR$38&"#"&actCaseAnnGHG_4&"#"&'Annual GHG Emissions - Sector'!$I77,Total_Emissions_by_A_index,0))) -> 
I78: Recycling and Waste | AI78: =IF(actCaseAnnGHG_4="",NA(),INDEX(Total_Emissions_by_A_vals,MATCH('Annual GHG Emissions - Sector'!AI$38&"#"&actCaseAnnGHG_4&"#"&'Annual GHG Emissions - Sector'!$I78,Total_Emissions_by_A_index,0))) ->  | AJ78: =IF(actCaseAnnGHG_4="",NA(),INDEX(Total_Emissions_by_A_vals,MATCH('Annual GHG Emissions - Sector'!AJ$38&"#"&actCaseAnnGHG_4&"#"&'Annual GHG Emissions - Sector'!$I78,Total_Emissions_by_A_index,0))) ->  | AK78: =IF(actCaseAnnGHG_4="",NA(),INDEX(Total_Emissions_by_A_vals,MATCH('Annual GHG Emissions - Sector'!AK$38&"#"&actCaseAnnGHG_4&"#"&'Annual GHG Emissions - Sector'!$I78,Total_Emissions_by_A_index,0))) ->  | AL78: =IF(actCaseAnnGHG_4="",NA(),INDEX(Total_Emissions_by_A_vals,MATCH('Annual GHG Emissions - Sector'!AL$38&"#"&actCaseAnnGHG_4&"#"&'Annual GHG Emissions - Sector'!$I78,Total_Emissions_by_A_index,0))) ->  | AM78: =IF(actCaseAnnGHG_4="",NA(),INDEX(Total_Emissions_by_A_vals,MATCH('Annual GHG Emissions - Sector'!AM$38&"#"&actCaseAnnGHG_4&"#"&'Annual GHG Emissions - Sector'!$I78,Total_Emissions_by_A_index,0))) ->  | AN78: =IF(actCaseAnnGHG_4="",NA(),INDEX(Total_Emissions_by_A_vals,MATCH('Annual GHG Emissions - Sector'!AN$38&"#"&actCaseAnnGHG_4&"#"&'Annual GHG Emissions - Sector'!$I78,Total_Emissions_by_A_index,0))) ->  | AO78: =IF(actCaseAnnGHG_4="",NA(),INDEX(Total_Emissions_by_A_vals,MATCH('Annual GHG Emissions - Sector'!AO$38&"#"&actCaseAnnGHG_4&"#"&'Annual GHG Emissions - Sector'!$I78,Total_Emissions_by_A_index,0))) ->  | AP78: =IF(actCaseAnnGHG_4="",NA(),INDEX(Total_Emissions_by_A_vals,MATCH('Annual GHG Emissions - Sector'!AP$38&"#"&actCaseAnnGHG_4&"#"&'Annual GHG Emissions - Sector'!$I78,Total_Emissions_by_A_index,0))) ->  | AQ78: =IF(actCaseAnnGHG_4="",NA(),INDEX(Total_Emissions_by_A_vals,MATCH('Annual GHG Emissions - Sector'!AQ$38&"#"&actCaseAnnGHG_4&"#"&'Annual GHG Emissions - Sector'!$I78,Total_Emissions_by_A_index,0))) ->  | AR78: =IF(actCaseAnnGHG_4="",NA(),INDEX(Total_Emissions_by_A_vals,MATCH('Annual GHG Emissions - Sector'!AR$38&"#"&actCaseAnnGHG_4&"#"&'Annual GHG Emissions - Sector'!$I78,Total_Emissions_by_A_index,0))) ->  | AS78: =IF(actCaseAnnGHG_4="",NA(),INDEX(Total_Emissions_by_A_vals,MATCH('Annual GHG Emissions - Sector'!AS$38&"#"&actCaseAnnGHG_4&"#"&'Annual GHG Emissions - Sector'!$I78,Total_Emissions_by_A_index,0))) ->  | AT78: =IF(actCaseAnnGHG_4="",NA(),INDEX(Total_Emissions_by_A_vals,MATCH('Annual GHG Emissions - Sector'!AT$38&"#"&actCaseAnnGHG_4&"#"&'Annual GHG Emissions - Sector'!$I78,Total_Emissions_by_A_index,0))) ->  | AU78: =IF(actCaseAnnGHG_4="",NA(),INDEX(Total_Emissions_by_A_vals,MATCH('Annual GHG Emissions - Sector'!AU$38&"#"&actCaseAnnGHG_4&"#"&'Annual GHG Emissions - Sector'!$I78,Total_Emissions_by_A_index,0))) ->  | AV78: =IF(actCaseAnnGHG_4="",NA(),INDEX(Total_Emissions_by_A_vals,MATCH('Annual GHG Emissions - Sector'!AV$38&"#"&actCaseAnnGHG_4&"#"&'Annual GHG Emissions - Sector'!$I78,Total_Emissions_by_A_index,0))) ->  | AW78: =IF(actCaseAnnGHG_4="",NA(),INDEX(Total_Emissions_by_A_vals,MATCH('Annual GHG Emissions - Sector'!AW$38&"#"&actCaseAnnGHG_4&"#"&'Annual GHG Emissions - Sector'!$I78,Total_Emissions_by_A_index,0))) ->  | AX78: =IF(actCaseAnnGHG_4="",NA(),INDEX(Total_Emissions_by_A_vals,MATCH('Annual GHG Emissions - Sector'!AX$38&"#"&actCaseAnnGHG_4&"#"&'Annual GHG Emissions - Sector'!$I78,Total_Emissions_by_A_index,0))) ->  | AY78: =IF(actCaseAnnGHG_4="",NA(),INDEX(Total_Emissions_by_A_vals,MATCH('Annual GHG Emissions - Sector'!AY$38&"#"&actCaseAnnGHG_4&"#"&'Annual GHG Emissions - Sector'!$I78,Total_Emissions_by_A_index,0))) ->  | AZ78: =IF(actCaseAnnGHG_4="",NA(),INDEX(Total_Emissions_by_A_vals,MATCH('Annual GHG Emissions - Sector'!AZ$38&"#"&actCaseAnnGHG_4&"#"&'Annual GHG Emissions - Sector'!$I78,Total_Emissions_by_A_index,0))) ->  | BA78: =IF(actCaseAnnGHG_4="",NA(),INDEX(Total_Emissions_by_A_vals,MATCH('Annual GHG Emissions - Sector'!BA$38&"#"&actCaseAnnGHG_4&"#"&'Annual GHG Emissions - Sector'!$I78,Total_Emissions_by_A_index,0))) ->  | BB78: =IF(actCaseAnnGHG_4="",NA(),INDEX(Total_Emissions_by_A_vals,MATCH('Annual GHG Emissions - Sector'!BB$38&"#"&actCaseAnnGHG_4&"#"&'Annual GHG Emissions - Sector'!$I78,Total_Emissions_by_A_index,0))) ->  | BC78: =IF(actCaseAnnGHG_4="",NA(),INDEX(Total_Emissions_by_A_vals,MATCH('Annual GHG Emissions - Sector'!BC$38&"#"&actCaseAnnGHG_4&"#"&'Annual GHG Emissions - Sector'!$I78,Total_Emissions_by_A_index,0))) ->  | BD78: =IF(actCaseAnnGHG_4="",NA(),INDEX(Total_Emissions_by_A_vals,MATCH('Annual GHG Emissions - Sector'!BD$38&"#"&actCaseAnnGHG_4&"#"&'Annual GHG Emissions - Sector'!$I78,Total_Emissions_by_A_index,0))) ->  | BE78: =IF(actCaseAnnGHG_4="",NA(),INDEX(Total_Emissions_by_A_vals,MATCH('Annual GHG Emissions - Sector'!BE$38&"#"&actCaseAnnGHG_4&"#"&'Annual GHG Emissions - Sector'!$I78,Total_Emissions_by_A_index,0))) ->  | BF78: =IF(actCaseAnnGHG_4="",NA(),INDEX(Total_Emissions_by_A_vals,MATCH('Annual GHG Emissions - Sector'!BF$38&"#"&actCaseAnnGHG_4&"#"&'Annual GHG Emissions - Sector'!$I78,Total_Emissions_by_A_index,0))) ->  | BG78: =IF(actCaseAnnGHG_4="",NA(),INDEX(Total_Emissions_by_A_vals,MATCH('Annual GHG Emissions - Sector'!BG$38&"#"&actCaseAnnGHG_4&"#"&'Annual GHG Emissions - Sector'!$I78,Total_Emissions_by_A_index,0))) ->  | BH78: =IF(actCaseAnnGHG_4="",NA(),INDEX(Total_Emissions_by_A_vals,MATCH('Annual GHG Emissions - Sector'!BH$38&"#"&actCaseAnnGHG_4&"#"&'Annual GHG Emissions - Sector'!$I78,Total_Emissions_by_A_index,0))) ->  | BI78: =IF(actCaseAnnGHG_4="",NA(),INDEX(Total_Emissions_by_A_vals,MATCH('Annual GHG Emissions - Sector'!BI$38&"#"&actCaseAnnGHG_4&"#"&'Annual GHG Emissions - Sector'!$I78,Total_Emissions_by_A_index,0))) ->  | BJ78: =IF(actCaseAnnGHG_4="",NA(),INDEX(Total_Emissions_by_A_vals,MATCH('Annual GHG Emissions - Sector'!BJ$38&"#"&actCaseAnnGHG_4&"#"&'Annual GHG Emissions - Sector'!$I78,Total_Emissions_by_A_index,0))) ->  | BK78: =IF(actCaseAnnGHG_4="",NA(),INDEX(Total_Emissions_by_A_vals,MATCH('Annual GHG Emissions - Sector'!BK$38&"#"&actCaseAnnGHG_4&"#"&'Annual GHG Emissions - Sector'!$I78,Total_Emissions_by_A_index,0))) ->  | BL78: =IF(actCaseAnnGHG_4="",NA(),INDEX(Total_Emissions_by_A_vals,MATCH('Annual GHG Emissions - Sector'!BL$38&"#"&actCaseAnnGHG_4&"#"&'Annual GHG Emissions - Sector'!$I78,Total_Emissions_by_A_index,0))) ->  | BM78: =IF(actCaseAnnGHG_4="",NA(),INDEX(Total_Emissions_by_A_vals,MATCH('Annual GHG Emissions - Sector'!BM$38&"#"&actCaseAnnGHG_4&"#"&'Annual GHG Emissions - Sector'!$I78,Total_Emissions_by_A_index,0))) ->  | BN78: =IF(actCaseAnnGHG_4="",NA(),INDEX(Total_Emissions_by_A_vals,MATCH('Annual GHG Emissions - Sector'!BN$38&"#"&actCaseAnnGHG_4&"#"&'Annual GHG Emissions - Sector'!$I78,Total_Emissions_by_A_index,0))) ->  | BO78: =IF(actCaseAnnGHG_4="",NA(),INDEX(Total_Emissions_by_A_vals,MATCH('Annual GHG Emissions - Sector'!BO$38&"#"&actCaseAnnGHG_4&"#"&'Annual GHG Emissions - Sector'!$I78,Total_Emissions_by_A_index,0))) ->  | BP78: =IF(actCaseAnnGHG_4="",NA(),INDEX(Total_Emissions_by_A_vals,MATCH('Annual GHG Emissions - Sector'!BP$38&"#"&actCaseAnnGHG_4&"#"&'Annual GHG Emissions - Sector'!$I78,Total_Emissions_by_A_index,0))) ->  | BQ78: =IF(actCaseAnnGHG_4="",NA(),INDEX(Total_Emissions_by_A_vals,MATCH('Annual GHG Emissions - Sector'!BQ$38&"#"&actCaseAnnGHG_4&"#"&'Annual GHG Emissions - Sector'!$I78,Total_Emissions_by_A_index,0))) ->  | BR78: =IF(actCaseAnnGHG_4="",NA(),INDEX(Total_Emissions_by_A_vals,MATCH('Annual GHG Emissions - Sector'!BR$38&"#"&actCaseAnnGHG_4&"#"&'Annual GHG Emissions - Sector'!$I78,Total_Emissions_by_A_index,0))) -> 
I79: Transportation (Incl. TCU) | AI79: =IF(actCaseAnnGHG_4="",NA(),INDEX(Total_Emissions_by_A_vals,MATCH('Annual GHG Emissions - Sector'!AI$38&"#"&actCaseAnnGHG_4&"#"&'Annual GHG Emissions - Sector'!$I79,Total_Emissions_by_A_index,0))) ->  | AJ79: =IF(actCaseAnnGHG_4="",NA(),INDEX(Total_Emissions_by_A_vals,MATCH('Annual GHG Emissions - Sector'!AJ$38&"#"&actCaseAnnGHG_4&"#"&'Annual GHG Emissions - Sector'!$I79,Total_Emissions_by_A_index,0))) ->  | AK79: =IF(actCaseAnnGHG_4="",NA(),INDEX(Total_Emissions_by_A_vals,MATCH('Annual GHG Emissions - Sector'!AK$38&"#"&actCaseAnnGHG_4&"#"&'Annual GHG Emissions - Sector'!$I79,Total_Emissions_by_A_index,0))) ->  | AL79: =IF(actCaseAnnGHG_4="",NA(),INDEX(Total_Emissions_by_A_vals,MATCH('Annual GHG Emissions - Sector'!AL$38&"#"&actCaseAnnGHG_4&"#"&'Annual GHG Emissions - Sector'!$I79,Total_Emissions_by_A_index,0))) ->  | AM79: =IF(actCaseAnnGHG_4="",NA(),INDEX(Total_Emissions_by_A_vals,MATCH('Annual GHG Emissions - Sector'!AM$38&"#"&actCaseAnnGHG_4&"#"&'Annual GHG Emissions - Sector'!$I79,Total_Emissions_by_A_index,0))) ->  | AN79: =IF(actCaseAnnGHG_4="",NA(),INDEX(Total_Emissions_by_A_vals,MATCH('Annual GHG Emissions - Sector'!AN$38&"#"&actCaseAnnGHG_4&"#"&'Annual GHG Emissions - Sector'!$I79,Total_Emissions_by_A_index,0))) ->  | AO79: =IF(actCaseAnnGHG_4="",NA(),INDEX(Total_Emissions_by_A_vals,MATCH('Annual GHG Emissions - Sector'!AO$38&"#"&actCaseAnnGHG_4&"#"&'Annual GHG Emissions - Sector'!$I79,Total_Emissions_by_A_index,0))) ->  | AP79: =IF(actCaseAnnGHG_4="",NA(),INDEX(Total_Emissions_by_A_vals,MATCH('Annual GHG Emissions - Sector'!AP$38&"#"&actCaseAnnGHG_4&"#"&'Annual GHG Emissions - Sector'!$I79,Total_Emissions_by_A_index,0))) ->  | AQ79: =IF(actCaseAnnGHG_4="",NA(),INDEX(Total_Emissions_by_A_vals,MATCH('Annual GHG Emissions - Sector'!AQ$38&"#"&actCaseAnnGHG_4&"#"&'Annual GHG Emissions - Sector'!$I79,Total_Emissions_by_A_index,0))) ->  | AR79: =IF(actCaseAnnGHG_4="",NA(),INDEX(Total_Emissions_by_A_vals,MATCH('Annual GHG Emissions - Sector'!AR$38&"#"&actCaseAnnGHG_4&"#"&'Annual GHG Emissions - Sector'!$I79,Total_Emissions_by_A_index,0))) ->  | AS79: =IF(actCaseAnnGHG_4="",NA(),INDEX(Total_Emissions_by_A_vals,MATCH('Annual GHG Emissions - Sector'!AS$38&"#"&actCaseAnnGHG_4&"#"&'Annual GHG Emissions - Sector'!$I79,Total_Emissions_by_A_index,0))) ->  | AT79: =IF(actCaseAnnGHG_4="",NA(),INDEX(Total_Emissions_by_A_vals,MATCH('Annual GHG Emissions - Sector'!AT$38&"#"&actCaseAnnGHG_4&"#"&'Annual GHG Emissions - Sector'!$I79,Total_Emissions_by_A_index,0))) ->  | AU79: =IF(actCaseAnnGHG_4="",NA(),INDEX(Total_Emissions_by_A_vals,MATCH('Annual GHG Emissions - Sector'!AU$38&"#"&actCaseAnnGHG_4&"#"&'Annual GHG Emissions - Sector'!$I79,Total_Emissions_by_A_index,0))) ->  | AV79: =IF(actCaseAnnGHG_4="",NA(),INDEX(Total_Emissions_by_A_vals,MATCH('Annual GHG Emissions - Sector'!AV$38&"#"&actCaseAnnGHG_4&"#"&'Annual GHG Emissions - Sector'!$I79,Total_Emissions_by_A_index,0))) ->  | AW79: =IF(actCaseAnnGHG_4="",NA(),INDEX(Total_Emissions_by_A_vals,MATCH('Annual GHG Emissions - Sector'!AW$38&"#"&actCaseAnnGHG_4&"#"&'Annual GHG Emissions - Sector'!$I79,Total_Emissions_by_A_index,0))) ->  | AX79: =IF(actCaseAnnGHG_4="",NA(),INDEX(Total_Emissions_by_A_vals,MATCH('Annual GHG Emissions - Sector'!AX$38&"#"&actCaseAnnGHG_4&"#"&'Annual GHG Emissions - Sector'!$I79,Total_Emissions_by_A_index,0))) ->  | AY79: =IF(actCaseAnnGHG_4="",NA(),INDEX(Total_Emissions_by_A_vals,MATCH('Annual GHG Emissions - Sector'!AY$38&"#"&actCaseAnnGHG_4&"#"&'Annual GHG Emissions - Sector'!$I79,Total_Emissions_by_A_index,0))) ->  | AZ79: =IF(actCaseAnnGHG_4="",NA(),INDEX(Total_Emissions_by_A_vals,MATCH('Annual GHG Emissions - Sector'!AZ$38&"#"&actCaseAnnGHG_4&"#"&'Annual GHG Emissions - Sector'!$I79,Total_Emissions_by_A_index,0))) ->  | BA79: =IF(actCaseAnnGHG_4="",NA(),INDEX(Total_Emissions_by_A_vals,MATCH('Annual GHG Emissions - Sector'!BA$38&"#"&actCaseAnnGHG_4&"#"&'Annual GHG Emissions - Sector'!$I79,Total_Emissions_by_A_index,0))) ->  | BB79: =IF(actCaseAnnGHG_4="",NA(),INDEX(Total_Emissions_by_A_vals,MATCH('Annual GHG Emissions - Sector'!BB$38&"#"&actCaseAnnGHG_4&"#"&'Annual GHG Emissions - Sector'!$I79,Total_Emissions_by_A_index,0))) ->  | BC79: =IF(actCaseAnnGHG_4="",NA(),INDEX(Total_Emissions_by_A_vals,MATCH('Annual GHG Emissions - Sector'!BC$38&"#"&actCaseAnnGHG_4&"#"&'Annual GHG Emissions - Sector'!$I79,Total_Emissions_by_A_index,0))) ->  | BD79: =IF(actCaseAnnGHG_4="",NA(),INDEX(Total_Emissions_by_A_vals,MATCH('Annual GHG Emissions - Sector'!BD$38&"#"&actCaseAnnGHG_4&"#"&'Annual GHG Emissions - Sector'!$I79,Total_Emissions_by_A_index,0))) ->  | BE79: =IF(actCaseAnnGHG_4="",NA(),INDEX(Total_Emissions_by_A_vals,MATCH('Annual GHG Emissions - Sector'!BE$38&"#"&actCaseAnnGHG_4&"#"&'Annual GHG Emissions - Sector'!$I79,Total_Emissions_by_A_index,0))) ->  | BF79: =IF(actCaseAnnGHG_4="",NA(),INDEX(Total_Emissions_by_A_vals,MATCH('Annual GHG Emissions - Sector'!BF$38&"#"&actCaseAnnGHG_4&"#"&'Annual GHG Emissions - Sector'!$I79,Total_Emissions_by_A_index,0))) ->  | BG79: =IF(actCaseAnnGHG_4="",NA(),INDEX(Total_Emissions_by_A_vals,MATCH('Annual GHG Emissions - Sector'!BG$38&"#"&actCaseAnnGHG_4&"#"&'Annual GHG Emissions - Sector'!$I79,Total_Emissions_by_A_index,0))) ->  | BH79: =IF(actCaseAnnGHG_4="",NA(),INDEX(Total_Emissions_by_A_vals,MATCH('Annual GHG Emissions - Sector'!BH$38&"#"&actCaseAnnGHG_4&"#"&'Annual GHG Emissions - Sector'!$I79,Total_Emissions_by_A_index,0))) ->  | BI79: =IF(actCaseAnnGHG_4="",NA(),INDEX(Total_Emissions_by_A_vals,MATCH('Annual GHG Emissions - Sector'!BI$38&"#"&actCaseAnnGHG_4&"#"&'Annual GHG Emissions - Sector'!$I79,Total_Emissions_by_A_index,0))) ->  | BJ79: =IF(actCaseAnnGHG_4="",NA(),INDEX(Total_Emissions_by_A_vals,MATCH('Annual GHG Emissions - Sector'!BJ$38&"#"&actCaseAnnGHG_4&"#"&'Annual GHG Emissions - Sector'!$I79,Total_Emissions_by_A_index,0))) ->  | BK79: =IF(actCaseAnnGHG_4="",NA(),INDEX(Total_Emissions_by_A_vals,MATCH('Annual GHG Emissions - Sector'!BK$38&"#"&actCaseAnnGHG_4&"#"&'Annual GHG Emissions - Sector'!$I79,Total_Emissions_by_A_index,0))) ->  | BL79: =IF(actCaseAnnGHG_4="",NA(),INDEX(Total_Emissions_by_A_vals,MATCH('Annual GHG Emissions - Sector'!BL$38&"#"&actCaseAnnGHG_4&"#"&'Annual GHG Emissions - Sector'!$I79,Total_Emissions_by_A_index,0))) ->  | BM79: =IF(actCaseAnnGHG_4="",NA(),INDEX(Total_Emissions_by_A_vals,MATCH('Annual GHG Emissions - Sector'!BM$38&"#"&actCaseAnnGHG_4&"#"&'Annual GHG Emissions - Sector'!$I79,Total_Emissions_by_A_index,0))) ->  | BN79: =IF(actCaseAnnGHG_4="",NA(),INDEX(Total_Emissions_by_A_vals,MATCH('Annual GHG Emissions - Sector'!BN$38&"#"&actCaseAnnGHG_4&"#"&'Annual GHG Emissions - Sector'!$I79,Total_Emissions_by_A_index,0))) ->  | BO79: =IF(actCaseAnnGHG_4="",NA(),INDEX(Total_Emissions_by_A_vals,MATCH('Annual GHG Emissions - Sector'!BO$38&"#"&actCaseAnnGHG_4&"#"&'Annual GHG Emissions - Sector'!$I79,Total_Emissions_by_A_index,0))) ->  | BP79: =IF(actCaseAnnGHG_4="",NA(),INDEX(Total_Emissions_by_A_vals,MATCH('Annual GHG Emissions - Sector'!BP$38&"#"&actCaseAnnGHG_4&"#"&'Annual GHG Emissions - Sector'!$I79,Total_Emissions_by_A_index,0))) ->  | BQ79: =IF(actCaseAnnGHG_4="",NA(),INDEX(Total_Emissions_by_A_vals,MATCH('Annual GHG Emissions - Sector'!BQ$38&"#"&actCaseAnnGHG_4&"#"&'Annual GHG Emissions - Sector'!$I79,Total_Emissions_by_A_index,0))) ->  | BR79: =IF(actCaseAnnGHG_4="",NA(),INDEX(Total_Emissions_by_A_vals,MATCH('Annual GHG Emissions - Sector'!BR$38&"#"&actCaseAnnGHG_4&"#"&'Annual GHG Emissions - Sector'!$I79,Total_Emissions_by_A_index,0))) -> 
I80: Total | AI80: =SUM(AI73:AI79) ->  | AJ80: =SUM(AJ73:AJ79) ->  | BT80: 0.02663429893 | BU80: 66.97562588
I83: ="PATHWAYS - "&actCaseAnnGHG_5 -> PATHWAYS -
J84: 1990 | K84: 1991 | L84: 1992 | M84: 1993 | N84: 1994 | O84: 1995 | P84: 1996 | Q84: 1997 | R84: 1998 | S84: 1999 | T84: 2000 | U84: 2001 | V84: 2002 | W84: 2003 | X84: 2004 | Y84: 2005 | Z84: 2006 | AA84: 2007 | AB84: 2008 | AC84: 2009 | AD84: 2010 | AE84: 2011 | AF84: 2012 | AG84: 2013 | AH84: 2014 | AI84: 2015 | AJ84: 2016 | AK84: 2017 | AL84: 2018 | AM84: 2019 | AN84: 2020 | AO84: 2021 | AP84: 2022 | AQ84: 2023 | AR84: 2024 | AS84: 2025 | AT84: 2026 | AU84: 2027 | AV84: 2028 | AW84: 2029 | AX84: 2030 | AY84: 2031 | AZ84: 2032 | BA84: 2033 | BB84: 2034 | BC84: 2035 | BD84: 2036 | BE84: 2037 | BF84: 2038 | BG84: 2039 | BH84: 2040 | BI84: 2041 | BJ84: 2042 | BK84: 2043 | BL84: 2044 | BM84: 2045 | BN84: 2046 | BO84: 2047 | BP84: 2048 | BQ84: 2049 | BR84: 2050 | BT84: 2030 Gap | BU84: 2050 Gap
I85: Agriculture | AI85: =IF(actCaseAnnGHG_5="",NA(),INDEX(Total_Emissions_by_A_vals,MATCH('Annual GHG Emissions - Sector'!AI$38&"#"&actCaseAnnGHG_5&"#"&'Annual GHG Emissions - Sector'!$I85,Total_Emissions_by_A_index,0))) ->  | AJ85: =IF(actCaseAnnGHG_5="",NA(),INDEX(Total_Emissions_by_A_vals,MATCH('Annual GHG Emissions - Sector'!AJ$38&"#"&actCaseAnnGHG_5&"#"&'Annual GHG Emissions - Sector'!$I85,Total_Emissions_by_A_index,0))) ->  | AK85: =IF(actCaseAnnGHG_5="",NA(),INDEX(Total_Emissions_by_A_vals,MATCH('Annual GHG Emissions - Sector'!AK$38&"#"&actCaseAnnGHG_5&"#"&'Annual GHG Emissions - Sector'!$I85,Total_Emissions_by_A_index,0))) ->  | AL85: =IF(actCaseAnnGHG_5="",NA(),INDEX(Total_Emissions_by_A_vals,MATCH('Annual GHG Emissions - Sector'!AL$38&"#"&actCaseAnnGHG_5&"#"&'Annual GHG Emissions - Sector'!$I85,Total_Emissions_by_A_index,0))) ->  | AM85: =IF(actCaseAnnGHG_5="",NA(),INDEX(Total_Emissions_by_A_vals,MATCH('Annual GHG Emissions - Sector'!AM$38&"#"&actCaseAnnGHG_5&"#"&'Annual GHG Emissions - Sector'!$I85,Total_Emissions_by_A_index,0))) ->  | AN85: =IF(actCaseAnnGHG_5="",NA(),INDEX(Total_Emissions_by_A_vals,MATCH('Annual GHG Emissions - Sector'!AN$38&"#"&actCaseAnnGHG_5&"#"&'Annual GHG Emissions - Sector'!$I85,Total_Emissions_by_A_index,0))) ->  | AO85: =IF(actCaseAnnGHG_5="",NA(),INDEX(Total_Emissions_by_A_vals,MATCH('Annual GHG Emissions - Sector'!AO$38&"#"&actCaseAnnGHG_5&"#"&'Annual GHG Emissions - Sector'!$I85,Total_Emissions_by_A_index,0))) ->  | AP85: =IF(actCaseAnnGHG_5="",NA(),INDEX(Total_Emissions_by_A_vals,MATCH('Annual GHG Emissions - Sector'!AP$38&"#"&actCaseAnnGHG_5&"#"&'Annual GHG Emissions - Sector'!$I85,Total_Emissions_by_A_index,0))) ->  | AQ85: =IF(actCaseAnnGHG_5="",NA(),INDEX(Total_Emissions_by_A_vals,MATCH('Annual GHG Emissions - Sector'!AQ$38&"#"&actCaseAnnGHG_5&"#"&'Annual GHG Emissions - Sector'!$I85,Total_Emissions_by_A_index,0))) ->  | AR85: =IF(actCaseAnnGHG_5="",NA(),INDEX(Total_Emissions_by_A_vals,MATCH('Annual GHG Emissions - Sector'!AR$38&"#"&actCaseAnnGHG_5&"#"&'Annual GHG Emissions - Sector'!$I85,Total_Emissions_by_A_index,0))) ->  | AS85: =IF(actCaseAnnGHG_5="",NA(),INDEX(Total_Emissions_by_A_vals,MATCH('Annual GHG Emissions - Sector'!AS$38&"#"&actCaseAnnGHG_5&"#"&'Annual GHG Emissions - Sector'!$I85,Total_Emissions_by_A_index,0))) ->  | AT85: =IF(actCaseAnnGHG_5="",NA(),INDEX(Total_Emissions_by_A_vals,MATCH('Annual GHG Emissions - Sector'!AT$38&"#"&actCaseAnnGHG_5&"#"&'Annual GHG Emissions - Sector'!$I85,Total_Emissions_by_A_index,0))) ->  | AU85: =IF(actCaseAnnGHG_5="",NA(),INDEX(Total_Emissions_by_A_vals,MATCH('Annual GHG Emissions - Sector'!AU$38&"#"&actCaseAnnGHG_5&"#"&'Annual GHG Emissions - Sector'!$I85,Total_Emissions_by_A_index,0))) ->  | AV85: =IF(actCaseAnnGHG_5="",NA(),INDEX(Total_Emissions_by_A_vals,MATCH('Annual GHG Emissions - Sector'!AV$38&"#"&actCaseAnnGHG_5&"#"&'Annual GHG Emissions - Sector'!$I85,Total_Emissions_by_A_index,0))) ->  | AW85: =IF(actCaseAnnGHG_5="",NA(),INDEX(Total_Emissions_by_A_vals,MATCH('Annual GHG Emissions - Sector'!AW$38&"#"&actCaseAnnGHG_5&"#"&'Annual GHG Emissions - Sector'!$I85,Total_Emissions_by_A_index,0))) ->  | AX85: =IF(actCaseAnnGHG_5="",NA(),INDEX(Total_Emissions_by_A_vals,MATCH('Annual GHG Emissions - Sector'!AX$38&"#"&actCaseAnnGHG_5&"#"&'Annual GHG Emissions - Sector'!$I85,Total_Emissions_by_A_index,0))) ->  | AY85: =IF(actCaseAnnGHG_5="",NA(),INDEX(Total_Emissions_by_A_vals,MATCH('Annual GHG Emissions - Sector'!AY$38&"#"&actCaseAnnGHG_5&"#"&'Annual GHG Emissions - Sector'!$I85,Total_Emissions_by_A_index,0))) ->  | AZ85: =IF(actCaseAnnGHG_5="",NA(),INDEX(Total_Emissions_by_A_vals,MATCH('Annual GHG Emissions - Sector'!AZ$38&"#"&actCaseAnnGHG_5&"#"&'Annual GHG Emissions - Sector'!$I85,Total_Emissions_by_A_index,0))) ->  | BA85: =IF(actCaseAnnGHG_5="",NA(),INDEX(Total_Emissions_by_A_vals,MATCH('Annual GHG Emissions - Sector'!BA$38&"#"&actCaseAnnGHG_5&"#"&'Annual GHG Emissions - Sector'!$I85,Total_Emissions_by_A_index,0))) ->  | BB85: =IF(actCaseAnnGHG_5="",NA(),INDEX(Total_Emissions_by_A_vals,MATCH('Annual GHG Emissions - Sector'!BB$38&"#"&actCaseAnnGHG_5&"#"&'Annual GHG Emissions - Sector'!$I85,Total_Emissions_by_A_index,0))) ->  | BC85: =IF(actCaseAnnGHG_5="",NA(),INDEX(Total_Emissions_by_A_vals,MATCH('Annual GHG Emissions - Sector'!BC$38&"#"&actCaseAnnGHG_5&"#"&'Annual GHG Emissions - Sector'!$I85,Total_Emissions_by_A_index,0))) ->  | BD85: =IF(actCaseAnnGHG_5="",NA(),INDEX(Total_Emissions_by_A_vals,MATCH('Annual GHG Emissions - Sector'!BD$38&"#"&actCaseAnnGHG_5&"#"&'Annual GHG Emissions - Sector'!$I85,Total_Emissions_by_A_index,0))) ->  | BE85: =IF(actCaseAnnGHG_5="",NA(),INDEX(Total_Emissions_by_A_vals,MATCH('Annual GHG Emissions - Sector'!BE$38&"#"&actCaseAnnGHG_5&"#"&'Annual GHG Emissions - Sector'!$I85,Total_Emissions_by_A_index,0))) ->  | BF85: =IF(actCaseAnnGHG_5="",NA(),INDEX(Total_Emissions_by_A_vals,MATCH('Annual GHG Emissions - Sector'!BF$38&"#"&actCaseAnnGHG_5&"#"&'Annual GHG Emissions - Sector'!$I85,Total_Emissions_by_A_index,0))) ->  | BG85: =IF(actCaseAnnGHG_5="",NA(),INDEX(Total_Emissions_by_A_vals,MATCH('Annual GHG Emissions - Sector'!BG$38&"#"&actCaseAnnGHG_5&"#"&'Annual GHG Emissions - Sector'!$I85,Total_Emissions_by_A_index,0))) ->  | BH85: =IF(actCaseAnnGHG_5="",NA(),INDEX(Total_Emissions_by_A_vals,MATCH('Annual GHG Emissions - Sector'!BH$38&"#"&actCaseAnnGHG_5&"#"&'Annual GHG Emissions - Sector'!$I85,Total_Emissions_by_A_index,0))) ->  | BI85: =IF(actCaseAnnGHG_5="",NA(),INDEX(Total_Emissions_by_A_vals,MATCH('Annual GHG Emissions - Sector'!BI$38&"#"&actCaseAnnGHG_5&"#"&'Annual GHG Emissions - Sector'!$I85,Total_Emissions_by_A_index,0))) ->  | BJ85: =IF(actCaseAnnGHG_5="",NA(),INDEX(Total_Emissions_by_A_vals,MATCH('Annual GHG Emissions - Sector'!BJ$38&"#"&actCaseAnnGHG_5&"#"&'Annual GHG Emissions - Sector'!$I85,Total_Emissions_by_A_index,0))) ->  | BK85: =IF(actCaseAnnGHG_5="",NA(),INDEX(Total_Emissions_by_A_vals,MATCH('Annual GHG Emissions - Sector'!BK$38&"#"&actCaseAnnGHG_5&"#"&'Annual GHG Emissions - Sector'!$I85,Total_Emissions_by_A_index,0))) ->  | BL85: =IF(actCaseAnnGHG_5="",NA(),INDEX(Total_Emissions_by_A_vals,MATCH('Annual GHG Emissions - Sector'!BL$38&"#"&actCaseAnnGHG_5&"#"&'Annual GHG Emissions - Sector'!$I85,Total_Emissions_by_A_index,0))) ->  | BM85: =IF(actCaseAnnGHG_5="",NA(),INDEX(Total_Emissions_by_A_vals,MATCH('Annual GHG Emissions - Sector'!BM$38&"#"&actCaseAnnGHG_5&"#"&'Annual GHG Emissions - Sector'!$I85,Total_Emissions_by_A_index,0))) ->  | BN85: =IF(actCaseAnnGHG_5="",NA(),INDEX(Total_Emissions_by_A_vals,MATCH('Annual GHG Emissions - Sector'!BN$38&"#"&actCaseAnnGHG_5&"#"&'Annual GHG Emissions - Sector'!$I85,Total_Emissions_by_A_index,0))) ->  | BO85: =IF(actCaseAnnGHG_5="",NA(),INDEX(Total_Emissions_by_A_vals,MATCH('Annual GHG Emissions - Sector'!BO$38&"#"&actCaseAnnGHG_5&"#"&'Annual GHG Emissions - Sector'!$I85,Total_Emissions_by_A_index,0))) ->  | BP85: =IF(actCaseAnnGHG_5="",NA(),INDEX(Total_Emissions_by_A_vals,MATCH('Annual GHG Emissions - Sector'!BP$38&"#"&actCaseAnnGHG_5&"#"&'Annual GHG Emissions - Sector'!$I85,Total_Emissions_by_A_index,0))) ->  | BQ85: =IF(actCaseAnnGHG_5="",NA(),INDEX(Total_Emissions_by_A_vals,MATCH('Annual GHG Emissions - Sector'!BQ$38&"#"&actCaseAnnGHG_5&"#"&'Annual GHG Emissions - Sector'!$I85,Total_Emissions_by_A_index,0))) ->  | BR85: =IF(actCaseAnnGHG_5="",NA(),INDEX(Total_Emissions_by_A_vals,MATCH('Annual GHG Emissions - Sector'!BR$38&"#"&actCaseAnnGHG_5&"#"&'Annual GHG Emissions - Sector'!$I85,Total_Emissions_by_A_index,0))) -> 
I86: Residential and Commercial | AI86: =IF(actCaseAnnGHG_5="",NA(),INDEX(Total_Emissions_by_A_vals,MATCH('Annual GHG Emissions - Sector'!AI$38&"#"&actCaseAnnGHG_5&"#"&'Annual GHG Emissions - Sector'!$I86,Total_Emissions_by_A_index,0))) ->  | AJ86: =IF(actCaseAnnGHG_5="",NA(),INDEX(Total_Emissions_by_A_vals,MATCH('Annual GHG Emissions - Sector'!AJ$38&"#"&actCaseAnnGHG_5&"#"&'Annual GHG Emissions - Sector'!$I86,Total_Emissions_by_A_index,0))) ->  | AK86: =IF(actCaseAnnGHG_5="",NA(),INDEX(Total_Emissions_by_A_vals,MATCH('Annual GHG Emissions - Sector'!AK$38&"#"&actCaseAnnGHG_5&"#"&'Annual GHG Emissions - Sector'!$I86,Total_Emissions_by_A_index,0))) ->  | AL86: =IF(actCaseAnnGHG_5="",NA(),INDEX(Total_Emissions_by_A_vals,MATCH('Annual GHG Emissions - Sector'!AL$38&"#"&actCaseAnnGHG_5&"#"&'Annual GHG Emissions - Sector'!$I86,Total_Emissions_by_A_index,0))) ->  | AM86: =IF(actCaseAnnGHG_5="",NA(),INDEX(Total_Emissions_by_A_vals,MATCH('Annual GHG Emissions - Sector'!AM$38&"#"&actCaseAnnGHG_5&"#"&'Annual GHG Emissions - Sector'!$I86,Total_Emissions_by_A_index,0))) ->  | AN86: =IF(actCaseAnnGHG_5="",NA(),INDEX(Total_Emissions_by_A_vals,MATCH('Annual GHG Emissions - Sector'!AN$38&"#"&actCaseAnnGHG_5&"#"&'Annual GHG Emissions - Sector'!$I86,Total_Emissions_by_A_index,0))) ->  | AO86: =IF(actCaseAnnGHG_5="",NA(),INDEX(Total_Emissions_by_A_vals,MATCH('Annual GHG Emissions - Sector'!AO$38&"#"&actCaseAnnGHG_5&"#"&'Annual GHG Emissions - Sector'!$I86,Total_Emissions_by_A_index,0))) ->  | AP86: =IF(actCaseAnnGHG_5="",NA(),INDEX(Total_Emissions_by_A_vals,MATCH('Annual GHG Emissions - Sector'!AP$38&"#"&actCaseAnnGHG_5&"#"&'Annual GHG Emissions - Sector'!$I86,Total_Emissions_by_A_index,0))) ->  | AQ86: =IF(actCaseAnnGHG_5="",NA(),INDEX(Total_Emissions_by_A_vals,MATCH('Annual GHG Emissions - Sector'!AQ$38&"#"&actCaseAnnGHG_5&"#"&'Annual GHG Emissions - Sector'!$I86,Total_Emissions_by_A_index,0))) ->  | AR86: =IF(actCaseAnnGHG_5="",NA(),INDEX(Total_Emissions_by_A_vals,MATCH('Annual GHG Emissions - Sector'!AR$38&"#"&actCaseAnnGHG_5&"#"&'Annual GHG Emissions - Sector'!$I86,Total_Emissions_by_A_index,0))) ->  | AS86: =IF(actCaseAnnGHG_5="",NA(),INDEX(Total_Emissions_by_A_vals,MATCH('Annual GHG Emissions - Sector'!AS$38&"#"&actCaseAnnGHG_5&"#"&'Annual GHG Emissions - Sector'!$I86,Total_Emissions_by_A_index,0))) ->  | AT86: =IF(actCaseAnnGHG_5="",NA(),INDEX(Total_Emissions_by_A_vals,MATCH('Annual GHG Emissions - Sector'!AT$38&"#"&actCaseAnnGHG_5&"#"&'Annual GHG Emissions - Sector'!$I86,Total_Emissions_by_A_index,0))) ->  | AU86: =IF(actCaseAnnGHG_5="",NA(),INDEX(Total_Emissions_by_A_vals,MATCH('Annual GHG Emissions - Sector'!AU$38&"#"&actCaseAnnGHG_5&"#"&'Annual GHG Emissions - Sector'!$I86,Total_Emissions_by_A_index,0))) ->  | AV86: =IF(actCaseAnnGHG_5="",NA(),INDEX(Total_Emissions_by_A_vals,MATCH('Annual GHG Emissions - Sector'!AV$38&"#"&actCaseAnnGHG_5&"#"&'Annual GHG Emissions - Sector'!$I86,Total_Emissions_by_A_index,0))) ->  | AW86: =IF(actCaseAnnGHG_5="",NA(),INDEX(Total_Emissions_by_A_vals,MATCH('Annual GHG Emissions - Sector'!AW$38&"#"&actCaseAnnGHG_5&"#"&'Annual GHG Emissions - Sector'!$I86,Total_Emissions_by_A_index,0))) ->  | AX86: =IF(actCaseAnnGHG_5="",NA(),INDEX(Total_Emissions_by_A_vals,MATCH('Annual GHG Emissions - Sector'!AX$38&"#"&actCaseAnnGHG_5&"#"&'Annual GHG Emissions - Sector'!$I86,Total_Emissions_by_A_index,0))) ->  | AY86: =IF(actCaseAnnGHG_5="",NA(),INDEX(Total_Emissions_by_A_vals,MATCH('Annual GHG Emissions - Sector'!AY$38&"#"&actCaseAnnGHG_5&"#"&'Annual GHG Emissions - Sector'!$I86,Total_Emissions_by_A_index,0))) ->  | AZ86: =IF(actCaseAnnGHG_5="",NA(),INDEX(Total_Emissions_by_A_vals,MATCH('Annual GHG Emissions - Sector'!AZ$38&"#"&actCaseAnnGHG_5&"#"&'Annual GHG Emissions - Sector'!$I86,Total_Emissions_by_A_index,0))) ->  | BA86: =IF(actCaseAnnGHG_5="",NA(),INDEX(Total_Emissions_by_A_vals,MATCH('Annual GHG Emissions - Sector'!BA$38&"#"&actCaseAnnGHG_5&"#"&'Annual GHG Emissions - Sector'!$I86,Total_Emissions_by_A_index,0))) ->  | BB86: =IF(actCaseAnnGHG_5="",NA(),INDEX(Total_Emissions_by_A_vals,MATCH('Annual GHG Emissions - Sector'!BB$38&"#"&actCaseAnnGHG_5&"#"&'Annual GHG Emissions - Sector'!$I86,Total_Emissions_by_A_index,0))) ->  | BC86: =IF(actCaseAnnGHG_5="",NA(),INDEX(Total_Emissions_by_A_vals,MATCH('Annual GHG Emissions - Sector'!BC$38&"#"&actCaseAnnGHG_5&"#"&'Annual GHG Emissions - Sector'!$I86,Total_Emissions_by_A_index,0))) ->  | BD86: =IF(actCaseAnnGHG_5="",NA(),INDEX(Total_Emissions_by_A_vals,MATCH('Annual GHG Emissions - Sector'!BD$38&"#"&actCaseAnnGHG_5&"#"&'Annual GHG Emissions - Sector'!$I86,Total_Emissions_by_A_index,0))) ->  | BE86: =IF(actCaseAnnGHG_5="",NA(),INDEX(Total_Emissions_by_A_vals,MATCH('Annual GHG Emissions - Sector'!BE$38&"#"&actCaseAnnGHG_5&"#"&'Annual GHG Emissions - Sector'!$I86,Total_Emissions_by_A_index,0))) ->  | BF86: =IF(actCaseAnnGHG_5="",NA(),INDEX(Total_Emissions_by_A_vals,MATCH('Annual GHG Emissions - Sector'!BF$38&"#"&actCaseAnnGHG_5&"#"&'Annual GHG Emissions - Sector'!$I86,Total_Emissions_by_A_index,0))) ->  | BG86: =IF(actCaseAnnGHG_5="",NA(),INDEX(Total_Emissions_by_A_vals,MATCH('Annual GHG Emissions - Sector'!BG$38&"#"&actCaseAnnGHG_5&"#"&'Annual GHG Emissions - Sector'!$I86,Total_Emissions_by_A_index,0))) ->  | BH86: =IF(actCaseAnnGHG_5="",NA(),INDEX(Total_Emissions_by_A_vals,MATCH('Annual GHG Emissions - Sector'!BH$38&"#"&actCaseAnnGHG_5&"#"&'Annual GHG Emissions - Sector'!$I86,Total_Emissions_by_A_index,0))) ->  | BI86: =IF(actCaseAnnGHG_5="",NA(),INDEX(Total_Emissions_by_A_vals,MATCH('Annual GHG Emissions - Sector'!BI$38&"#"&actCaseAnnGHG_5&"#"&'Annual GHG Emissions - Sector'!$I86,Total_Emissions_by_A_index,0))) ->  | BJ86: =IF(actCaseAnnGHG_5="",NA(),INDEX(Total_Emissions_by_A_vals,MATCH('Annual GHG Emissions - Sector'!BJ$38&"#"&actCaseAnnGHG_5&"#"&'Annual GHG Emissions - Sector'!$I86,Total_Emissions_by_A_index,0))) ->  | BK86: =IF(actCaseAnnGHG_5="",NA(),INDEX(Total_Emissions_by_A_vals,MATCH('Annual GHG Emissions - Sector'!BK$38&"#"&actCaseAnnGHG_5&"#"&'Annual GHG Emissions - Sector'!$I86,Total_Emissions_by_A_index,0))) ->  | BL86: =IF(actCaseAnnGHG_5="",NA(),INDEX(Total_Emissions_by_A_vals,MATCH('Annual GHG Emissions - Sector'!BL$38&"#"&actCaseAnnGHG_5&"#"&'Annual GHG Emissions - Sector'!$I86,Total_Emissions_by_A_index,0))) ->  | BM86: =IF(actCaseAnnGHG_5="",NA(),INDEX(Total_Emissions_by_A_vals,MATCH('Annual GHG Emissions - Sector'!BM$38&"#"&actCaseAnnGHG_5&"#"&'Annual GHG Emissions - Sector'!$I86,Total_Emissions_by_A_index,0))) ->  | BN86: =IF(actCaseAnnGHG_5="",NA(),INDEX(Total_Emissions_by_A_vals,MATCH('Annual GHG Emissions - Sector'!BN$38&"#"&actCaseAnnGHG_5&"#"&'Annual GHG Emissions - Sector'!$I86,Total_Emissions_by_A_index,0))) ->  | BO86: =IF(actCaseAnnGHG_5="",NA(),INDEX(Total_Emissions_by_A_vals,MATCH('Annual GHG Emissions - Sector'!BO$38&"#"&actCaseAnnGHG_5&"#"&'Annual GHG Emissions - Sector'!$I86,Total_Emissions_by_A_index,0))) ->  | BP86: =IF(actCaseAnnGHG_5="",NA(),INDEX(Total_Emissions_by_A_vals,MATCH('Annual GHG Emissions - Sector'!BP$38&"#"&actCaseAnnGHG_5&"#"&'Annual GHG Emissions - Sector'!$I86,Total_Emissions_by_A_index,0))) ->  | BQ86: =IF(actCaseAnnGHG_5="",NA(),INDEX(Total_Emissions_by_A_vals,MATCH('Annual GHG Emissions - Sector'!BQ$38&"#"&actCaseAnnGHG_5&"#"&'Annual GHG Emissions - Sector'!$I86,Total_Emissions_by_A_index,0))) ->  | BR86: =IF(actCaseAnnGHG_5="",NA(),INDEX(Total_Emissions_by_A_vals,MATCH('Annual GHG Emissions - Sector'!BR$38&"#"&actCaseAnnGHG_5&"#"&'Annual GHG Emissions - Sector'!$I86,Total_Emissions_by_A_index,0))) -> 
I87: Electric Power | AI87: =IF(actCaseAnnGHG_5="",NA(),INDEX(Total_Emissions_by_A_vals,MATCH('Annual GHG Emissions - Sector'!AI$38&"#"&actCaseAnnGHG_5&"#"&'Annual GHG Emissions - Sector'!$I87,Total_Emissions_by_A_index,0))) ->  | AJ87: =IF(actCaseAnnGHG_5="",NA(),INDEX(Total_Emissions_by_A_vals,MATCH('Annual GHG Emissions - Sector'!AJ$38&"#"&actCaseAnnGHG_5&"#"&'Annual GHG Emissions - Sector'!$I87,Total_Emissions_by_A_index,0))) ->  | AK87: =IF(actCaseAnnGHG_5="",NA(),INDEX(Total_Emissions_by_A_vals,MATCH('Annual GHG Emissions - Sector'!AK$38&"#"&actCaseAnnGHG_5&"#"&'Annual GHG Emissions - Sector'!$I87,Total_Emissions_by_A_index,0))) ->  | AL87: =IF(actCaseAnnGHG_5="",NA(),INDEX(Total_Emissions_by_A_vals,MATCH('Annual GHG Emissions - Sector'!AL$38&"#"&actCaseAnnGHG_5&"#"&'Annual GHG Emissions - Sector'!$I87,Total_Emissions_by_A_index,0))) ->  | AM87: =IF(actCaseAnnGHG_5="",NA(),INDEX(Total_Emissions_by_A_vals,MATCH('Annual GHG Emissions - Sector'!AM$38&"#"&actCaseAnnGHG_5&"#"&'Annual GHG Emissions - Sector'!$I87,Total_Emissions_by_A_index,0))) ->  | AN87: =IF(actCaseAnnGHG_5="",NA(),INDEX(Total_Emissions_by_A_vals,MATCH('Annual GHG Emissions - Sector'!AN$38&"#"&actCaseAnnGHG_5&"#"&'Annual GHG Emissions - Sector'!$I87,Total_Emissions_by_A_index,0))) ->  | AO87: =IF(actCaseAnnGHG_5="",NA(),INDEX(Total_Emissions_by_A_vals,MATCH('Annual GHG Emissions - Sector'!AO$38&"#"&actCaseAnnGHG_5&"#"&'Annual GHG Emissions - Sector'!$I87,Total_Emissions_by_A_index,0))) ->  | AP87: =IF(actCaseAnnGHG_5="",NA(),INDEX(Total_Emissions_by_A_vals,MATCH('Annual GHG Emissions - Sector'!AP$38&"#"&actCaseAnnGHG_5&"#"&'Annual GHG Emissions - Sector'!$I87,Total_Emissions_by_A_index,0))) ->  | AQ87: =IF(actCaseAnnGHG_5="",NA(),INDEX(Total_Emissions_by_A_vals,MATCH('Annual GHG Emissions - Sector'!AQ$38&"#"&actCaseAnnGHG_5&"#"&'Annual GHG Emissions - Sector'!$I87,Total_Emissions_by_A_index,0))) ->  | AR87: =IF(actCaseAnnGHG_5="",NA(),INDEX(Total_Emissions_by_A_vals,MATCH('Annual GHG Emissions - Sector'!AR$38&"#"&actCaseAnnGHG_5&"#"&'Annual GHG Emissions - Sector'!$I87,Total_Emissions_by_A_index,0))) ->  | AS87: =IF(actCaseAnnGHG_5="",NA(),INDEX(Total_Emissions_by_A_vals,MATCH('Annual GHG Emissions - Sector'!AS$38&"#"&actCaseAnnGHG_5&"#"&'Annual GHG Emissions - Sector'!$I87,Total_Emissions_by_A_index,0))) ->  | AT87: =IF(actCaseAnnGHG_5="",NA(),INDEX(Total_Emissions_by_A_vals,MATCH('Annual GHG Emissions - Sector'!AT$38&"#"&actCaseAnnGHG_5&"#"&'Annual GHG Emissions - Sector'!$I87,Total_Emissions_by_A_index,0))) ->  | AU87: =IF(actCaseAnnGHG_5="",NA(),INDEX(Total_Emissions_by_A_vals,MATCH('Annual GHG Emissions - Sector'!AU$38&"#"&actCaseAnnGHG_5&"#"&'Annual GHG Emissions - Sector'!$I87,Total_Emissions_by_A_index,0))) ->  | AV87: =IF(actCaseAnnGHG_5="",NA(),INDEX(Total_Emissions_by_A_vals,MATCH('Annual GHG Emissions - Sector'!AV$38&"#"&actCaseAnnGHG_5&"#"&'Annual GHG Emissions - Sector'!$I87,Total_Emissions_by_A_index,0))) ->  | AW87: =IF(actCaseAnnGHG_5="",NA(),INDEX(Total_Emissions_by_A_vals,MATCH('Annual GHG Emissions - Sector'!AW$38&"#"&actCaseAnnGHG_5&"#"&'Annual GHG Emissions - Sector'!$I87,Total_Emissions_by_A_index,0))) ->  | AX87: =IF(actCaseAnnGHG_5="",NA(),INDEX(Total_Emissions_by_A_vals,MATCH('Annual GHG Emissions - Sector'!AX$38&"#"&actCaseAnnGHG_5&"#"&'Annual GHG Emissions - Sector'!$I87,Total_Emissions_by_A_index,0))) ->  | AY87: =IF(actCaseAnnGHG_5="",NA(),INDEX(Total_Emissions_by_A_vals,MATCH('Annual GHG Emissions - Sector'!AY$38&"#"&actCaseAnnGHG_5&"#"&'Annual GHG Emissions - Sector'!$I87,Total_Emissions_by_A_index,0))) ->  | AZ87: =IF(actCaseAnnGHG_5="",NA(),INDEX(Total_Emissions_by_A_vals,MATCH('Annual GHG Emissions - Sector'!AZ$38&"#"&actCaseAnnGHG_5&"#"&'Annual GHG Emissions - Sector'!$I87,Total_Emissions_by_A_index,0))) ->  | BA87: =IF(actCaseAnnGHG_5="",NA(),INDEX(Total_Emissions_by_A_vals,MATCH('Annual GHG Emissions - Sector'!BA$38&"#"&actCaseAnnGHG_5&"#"&'Annual GHG Emissions - Sector'!$I87,Total_Emissions_by_A_index,0))) ->  | BB87: =IF(actCaseAnnGHG_5="",NA(),INDEX(Total_Emissions_by_A_vals,MATCH('Annual GHG Emissions - Sector'!BB$38&"#"&actCaseAnnGHG_5&"#"&'Annual GHG Emissions - Sector'!$I87,Total_Emissions_by_A_index,0))) ->  | BC87: =IF(actCaseAnnGHG_5="",NA(),INDEX(Total_Emissions_by_A_vals,MATCH('Annual GHG Emissions - Sector'!BC$38&"#"&actCaseAnnGHG_5&"#"&'Annual GHG Emissions - Sector'!$I87,Total_Emissions_by_A_index,0))) ->  | BD87: =IF(actCaseAnnGHG_5="",NA(),INDEX(Total_Emissions_by_A_vals,MATCH('Annual GHG Emissions - Sector'!BD$38&"#"&actCaseAnnGHG_5&"#"&'Annual GHG Emissions - Sector'!$I87,Total_Emissions_by_A_index,0))) ->  | BE87: =IF(actCaseAnnGHG_5="",NA(),INDEX(Total_Emissions_by_A_vals,MATCH('Annual GHG Emissions - Sector'!BE$38&"#"&actCaseAnnGHG_5&"#"&'Annual GHG Emissions - Sector'!$I87,Total_Emissions_by_A_index,0))) ->  | BF87: =IF(actCaseAnnGHG_5="",NA(),INDEX(Total_Emissions_by_A_vals,MATCH('Annual GHG Emissions - Sector'!BF$38&"#"&actCaseAnnGHG_5&"#"&'Annual GHG Emissions - Sector'!$I87,Total_Emissions_by_A_index,0))) ->  | BG87: =IF(actCaseAnnGHG_5="",NA(),INDEX(Total_Emissions_by_A_vals,MATCH('Annual GHG Emissions - Sector'!BG$38&"#"&actCaseAnnGHG_5&"#"&'Annual GHG Emissions - Sector'!$I87,Total_Emissions_by_A_index,0))) ->  | BH87: =IF(actCaseAnnGHG_5="",NA(),INDEX(Total_Emissions_by_A_vals,MATCH('Annual GHG Emissions - Sector'!BH$38&"#"&actCaseAnnGHG_5&"#"&'Annual GHG Emissions - Sector'!$I87,Total_Emissions_by_A_index,0))) ->  | BI87: =IF(actCaseAnnGHG_5="",NA(),INDEX(Total_Emissions_by_A_vals,MATCH('Annual GHG Emissions - Sector'!BI$38&"#"&actCaseAnnGHG_5&"#"&'Annual GHG Emissions - Sector'!$I87,Total_Emissions_by_A_index,0))) ->  | BJ87: =IF(actCaseAnnGHG_5="",NA(),INDEX(Total_Emissions_by_A_vals,MATCH('Annual GHG Emissions - Sector'!BJ$38&"#"&actCaseAnnGHG_5&"#"&'Annual GHG Emissions - Sector'!$I87,Total_Emissions_by_A_index,0))) ->  | BK87: =IF(actCaseAnnGHG_5="",NA(),INDEX(Total_Emissions_by_A_vals,MATCH('Annual GHG Emissions - Sector'!BK$38&"#"&actCaseAnnGHG_5&"#"&'Annual GHG Emissions - Sector'!$I87,Total_Emissions_by_A_index,0))) ->  | BL87: =IF(actCaseAnnGHG_5="",NA(),INDEX(Total_Emissions_by_A_vals,MATCH('Annual GHG Emissions - Sector'!BL$38&"#"&actCaseAnnGHG_5&"#"&'Annual GHG Emissions - Sector'!$I87,Total_Emissions_by_A_index,0))) ->  | BM87: =IF(actCaseAnnGHG_5="",NA(),INDEX(Total_Emissions_by_A_vals,MATCH('Annual GHG Emissions - Sector'!BM$38&"#"&actCaseAnnGHG_5&"#"&'Annual GHG Emissions - Sector'!$I87,Total_Emissions_by_A_index,0))) ->  | BN87: =IF(actCaseAnnGHG_5="",NA(),INDEX(Total_Emissions_by_A_vals,MATCH('Annual GHG Emissions - Sector'!BN$38&"#"&actCaseAnnGHG_5&"#"&'Annual GHG Emissions - Sector'!$I87,Total_Emissions_by_A_index,0))) ->  | BO87: =IF(actCaseAnnGHG_5="",NA(),INDEX(Total_Emissions_by_A_vals,MATCH('Annual GHG Emissions - Sector'!BO$38&"#"&actCaseAnnGHG_5&"#"&'Annual GHG Emissions - Sector'!$I87,Total_Emissions_by_A_index,0))) ->  | BP87: =IF(actCaseAnnGHG_5="",NA(),INDEX(Total_Emissions_by_A_vals,MATCH('Annual GHG Emissions - Sector'!BP$38&"#"&actCaseAnnGHG_5&"#"&'Annual GHG Emissions - Sector'!$I87,Total_Emissions_by_A_index,0))) ->  | BQ87: =IF(actCaseAnnGHG_5="",NA(),INDEX(Total_Emissions_by_A_vals,MATCH('Annual GHG Emissions - Sector'!BQ$38&"#"&actCaseAnnGHG_5&"#"&'Annual GHG Emissions - Sector'!$I87,Total_Emissions_by_A_index,0))) ->  | BR87: =IF(actCaseAnnGHG_5="",NA(),INDEX(Total_Emissions_by_A_vals,MATCH('Annual GHG Emissions - Sector'!BR$38&"#"&actCaseAnnGHG_5&"#"&'Annual GHG Emissions - Sector'!$I87,Total_Emissions_by_A_index,0))) -> 
I88: High GWP | AI88: =IF(actCaseAnnGHG_5="",NA(),INDEX(Total_Emissions_by_A_vals,MATCH('Annual GHG Emissions - Sector'!AI$38&"#"&actCaseAnnGHG_5&"#"&'Annual GHG Emissions - Sector'!$I88,Total_Emissions_by_A_index,0))) ->  | AJ88: =IF(actCaseAnnGHG_5="",NA(),INDEX(Total_Emissions_by_A_vals,MATCH('Annual GHG Emissions - Sector'!AJ$38&"#"&actCaseAnnGHG_5&"#"&'Annual GHG Emissions - Sector'!$I88,Total_Emissions_by_A_index,0))) ->  | AK88: =IF(actCaseAnnGHG_5="",NA(),INDEX(Total_Emissions_by_A_vals,MATCH('Annual GHG Emissions - Sector'!AK$38&"#"&actCaseAnnGHG_5&"#"&'Annual GHG Emissions - Sector'!$I88,Total_Emissions_by_A_index,0))) ->  | AL88: =IF(actCaseAnnGHG_5="",NA(),INDEX(Total_Emissions_by_A_vals,MATCH('Annual GHG Emissions - Sector'!AL$38&"#"&actCaseAnnGHG_5&"#"&'Annual GHG Emissions - Sector'!$I88,Total_Emissions_by_A_index,0))) ->  | AM88: =IF(actCaseAnnGHG_5="",NA(),INDEX(Total_Emissions_by_A_vals,MATCH('Annual GHG Emissions - Sector'!AM$38&"#"&actCaseAnnGHG_5&"#"&'Annual GHG Emissions - Sector'!$I88,Total_Emissions_by_A_index,0))) ->  | AN88: =IF(actCaseAnnGHG_5="",NA(),INDEX(Total_Emissions_by_A_vals,MATCH('Annual GHG Emissions - Sector'!AN$38&"#"&actCaseAnnGHG_5&"#"&'Annual GHG Emissions - Sector'!$I88,Total_Emissions_by_A_index,0))) ->  | AO88: =IF(actCaseAnnGHG_5="",NA(),INDEX(Total_Emissions_by_A_vals,MATCH('Annual GHG Emissions - Sector'!AO$38&"#"&actCaseAnnGHG_5&"#"&'Annual GHG Emissions - Sector'!$I88,Total_Emissions_by_A_index,0))) ->  | AP88: =IF(actCaseAnnGHG_5="",NA(),INDEX(Total_Emissions_by_A_vals,MATCH('Annual GHG Emissions - Sector'!AP$38&"#"&actCaseAnnGHG_5&"#"&'Annual GHG Emissions - Sector'!$I88,Total_Emissions_by_A_index,0))) ->  | AQ88: =IF(actCaseAnnGHG_5="",NA(),INDEX(Total_Emissions_by_A_vals,MATCH('Annual GHG Emissions - Sector'!AQ$38&"#"&actCaseAnnGHG_5&"#"&'Annual GHG Emissions - Sector'!$I88,Total_Emissions_by_A_index,0))) ->  | AR88: =IF(actCaseAnnGHG_5="",NA(),INDEX(Total_Emissions_by_A_vals,MATCH('Annual GHG Emissions - Sector'!AR$38&"#"&actCaseAnnGHG_5&"#"&'Annual GHG Emissions - Sector'!$I88,Total_Emissions_by_A_index,0))) ->  | AS88: =IF(actCaseAnnGHG_5="",NA(),INDEX(Total_Emissions_by_A_vals,MATCH('Annual GHG Emissions - Sector'!AS$38&"#"&actCaseAnnGHG_5&"#"&'Annual GHG Emissions - Sector'!$I88,Total_Emissions_by_A_index,0))) ->  | AT88: =IF(actCaseAnnGHG_5="",NA(),INDEX(Total_Emissions_by_A_vals,MATCH('Annual GHG Emissions - Sector'!AT$38&"#"&actCaseAnnGHG_5&"#"&'Annual GHG Emissions - Sector'!$I88,Total_Emissions_by_A_index,0))) ->  | AU88: =IF(actCaseAnnGHG_5="",NA(),INDEX(Total_Emissions_by_A_vals,MATCH('Annual GHG Emissions - Sector'!AU$38&"#"&actCaseAnnGHG_5&"#"&'Annual GHG Emissions - Sector'!$I88,Total_Emissions_by_A_index,0))) ->  | AV88: =IF(actCaseAnnGHG_5="",NA(),INDEX(Total_Emissions_by_A_vals,MATCH('Annual GHG Emissions - Sector'!AV$38&"#"&actCaseAnnGHG_5&"#"&'Annual GHG Emissions - Sector'!$I88,Total_Emissions_by_A_index,0))) ->  | AW88: =IF(actCaseAnnGHG_5="",NA(),INDEX(Total_Emissions_by_A_vals,MATCH('Annual GHG Emissions - Sector'!AW$38&"#"&actCaseAnnGHG_5&"#"&'Annual GHG Emissions - Sector'!$I88,Total_Emissions_by_A_index,0))) ->  | AX88: =IF(actCaseAnnGHG_5="",NA(),INDEX(Total_Emissions_by_A_vals,MATCH('Annual GHG Emissions - Sector'!AX$38&"#"&actCaseAnnGHG_5&"#"&'Annual GHG Emissions - Sector'!$I88,Total_Emissions_by_A_index,0))) ->  | AY88: =IF(actCaseAnnGHG_5="",NA(),INDEX(Total_Emissions_by_A_vals,MATCH('Annual GHG Emissions - Sector'!AY$38&"#"&actCaseAnnGHG_5&"#"&'Annual GHG Emissions - Sector'!$I88,Total_Emissions_by_A_index,0))) ->  | AZ88: =IF(actCaseAnnGHG_5="",NA(),INDEX(Total_Emissions_by_A_vals,MATCH('Annual GHG Emissions - Sector'!AZ$38&"#"&actCaseAnnGHG_5&"#"&'Annual GHG Emissions - Sector'!$I88,Total_Emissions_by_A_index,0))) ->  | BA88: =IF(actCaseAnnGHG_5="",NA(),INDEX(Total_Emissions_by_A_vals,MATCH('Annual GHG Emissions - Sector'!BA$38&"#"&actCaseAnnGHG_5&"#"&'Annual GHG Emissions - Sector'!$I88,Total_Emissions_by_A_index,0))) ->  | BB88: =IF(actCaseAnnGHG_5="",NA(),INDEX(Total_Emissions_by_A_vals,MATCH('Annual GHG Emissions - Sector'!BB$38&"#"&actCaseAnnGHG_5&"#"&'Annual GHG Emissions - Sector'!$I88,Total_Emissions_by_A_index,0))) ->  | BC88: =IF(actCaseAnnGHG_5="",NA(),INDEX(Total_Emissions_by_A_vals,MATCH('Annual GHG Emissions - Sector'!BC$38&"#"&actCaseAnnGHG_5&"#"&'Annual GHG Emissions - Sector'!$I88,Total_Emissions_by_A_index,0))) ->  | BD88: =IF(actCaseAnnGHG_5="",NA(),INDEX(Total_Emissions_by_A_vals,MATCH('Annual GHG Emissions - Sector'!BD$38&"#"&actCaseAnnGHG_5&"#"&'Annual GHG Emissions - Sector'!$I88,Total_Emissions_by_A_index,0))) ->  | BE88: =IF(actCaseAnnGHG_5="",NA(),INDEX(Total_Emissions_by_A_vals,MATCH('Annual GHG Emissions - Sector'!BE$38&"#"&actCaseAnnGHG_5&"#"&'Annual GHG Emissions - Sector'!$I88,Total_Emissions_by_A_index,0))) ->  | BF88: =IF(actCaseAnnGHG_5="",NA(),INDEX(Total_Emissions_by_A_vals,MATCH('Annual GHG Emissions - Sector'!BF$38&"#"&actCaseAnnGHG_5&"#"&'Annual GHG Emissions - Sector'!$I88,Total_Emissions_by_A_index,0))) ->  | BG88: =IF(actCaseAnnGHG_5="",NA(),INDEX(Total_Emissions_by_A_vals,MATCH('Annual GHG Emissions - Sector'!BG$38&"#"&actCaseAnnGHG_5&"#"&'Annual GHG Emissions - Sector'!$I88,Total_Emissions_by_A_index,0))) ->  | BH88: =IF(actCaseAnnGHG_5="",NA(),INDEX(Total_Emissions_by_A_vals,MATCH('Annual GHG Emissions - Sector'!BH$38&"#"&actCaseAnnGHG_5&"#"&'Annual GHG Emissions - Sector'!$I88,Total_Emissions_by_A_index,0))) ->  | BI88: =IF(actCaseAnnGHG_5="",NA(),INDEX(Total_Emissions_by_A_vals,MATCH('Annual GHG Emissions - Sector'!BI$38&"#"&actCaseAnnGHG_5&"#"&'Annual GHG Emissions - Sector'!$I88,Total_Emissions_by_A_index,0))) ->  | BJ88: =IF(actCaseAnnGHG_5="",NA(),INDEX(Total_Emissions_by_A_vals,MATCH('Annual GHG Emissions - Sector'!BJ$38&"#"&actCaseAnnGHG_5&"#"&'Annual GHG Emissions - Sector'!$I88,Total_Emissions_by_A_index,0))) ->  | BK88: =IF(actCaseAnnGHG_5="",NA(),INDEX(Total_Emissions_by_A_vals,MATCH('Annual GHG Emissions - Sector'!BK$38&"#"&actCaseAnnGHG_5&"#"&'Annual GHG Emissions - Sector'!$I88,Total_Emissions_by_A_index,0))) ->  | BL88: =IF(actCaseAnnGHG_5="",NA(),INDEX(Total_Emissions_by_A_vals,MATCH('Annual GHG Emissions - Sector'!BL$38&"#"&actCaseAnnGHG_5&"#"&'Annual GHG Emissions - Sector'!$I88,Total_Emissions_by_A_index,0))) ->  | BM88: =IF(actCaseAnnGHG_5="",NA(),INDEX(Total_Emissions_by_A_vals,MATCH('Annual GHG Emissions - Sector'!BM$38&"#"&actCaseAnnGHG_5&"#"&'Annual GHG Emissions - Sector'!$I88,Total_Emissions_by_A_index,0))) ->  | BN88: =IF(actCaseAnnGHG_5="",NA(),INDEX(Total_Emissions_by_A_vals,MATCH('Annual GHG Emissions - Sector'!BN$38&"#"&actCaseAnnGHG_5&"#"&'Annual GHG Emissions - Sector'!$I88,Total_Emissions_by_A_index,0))) ->  | BO88: =IF(actCaseAnnGHG_5="",NA(),INDEX(Total_Emissions_by_A_vals,MATCH('Annual GHG Emissions - Sector'!BO$38&"#"&actCaseAnnGHG_5&"#"&'Annual GHG Emissions - Sector'!$I88,Total_Emissions_by_A_index,0))) ->  | BP88: =IF(actCaseAnnGHG_5="",NA(),INDEX(Total_Emissions_by_A_vals,MATCH('Annual GHG Emissions - Sector'!BP$38&"#"&actCaseAnnGHG_5&"#"&'Annual GHG Emissions - Sector'!$I88,Total_Emissions_by_A_index,0))) ->  | BQ88: =IF(actCaseAnnGHG_5="",NA(),INDEX(Total_Emissions_by_A_vals,MATCH('Annual GHG Emissions - Sector'!BQ$38&"#"&actCaseAnnGHG_5&"#"&'Annual GHG Emissions - Sector'!$I88,Total_Emissions_by_A_index,0))) ->  | BR88: =IF(actCaseAnnGHG_5="",NA(),INDEX(Total_Emissions_by_A_vals,MATCH('Annual GHG Emissions - Sector'!BR$38&"#"&actCaseAnnGHG_5&"#"&'Annual GHG Emissions - Sector'!$I88,Total_Emissions_by_A_index,0))) -> 
I89: Industrial | AI89: =IF(actCaseAnnGHG_5="",NA(),INDEX(Total_Emissions_by_A_vals,MATCH('Annual GHG Emissions - Sector'!AI$38&"#"&actCaseAnnGHG_5&"#"&'Annual GHG Emissions - Sector'!$I89,Total_Emissions_by_A_index,0))) ->  | AJ89: =IF(actCaseAnnGHG_5="",NA(),INDEX(Total_Emissions_by_A_vals,MATCH('Annual GHG Emissions - Sector'!AJ$38&"#"&actCaseAnnGHG_5&"#"&'Annual GHG Emissions - Sector'!$I89,Total_Emissions_by_A_index,0))) ->  | AK89: =IF(actCaseAnnGHG_5="",NA(),INDEX(Total_Emissions_by_A_vals,MATCH('Annual GHG Emissions - Sector'!AK$38&"#"&actCaseAnnGHG_5&"#"&'Annual GHG Emissions - Sector'!$I89,Total_Emissions_by_A_index,0))) ->  | AL89: =IF(actCaseAnnGHG_5="",NA(),INDEX(Total_Emissions_by_A_vals,MATCH('Annual GHG Emissions - Sector'!AL$38&"#"&actCaseAnnGHG_5&"#"&'Annual GHG Emissions - Sector'!$I89,Total_Emissions_by_A_index,0))) ->  | AM89: =IF(actCaseAnnGHG_5="",NA(),INDEX(Total_Emissions_by_A_vals,MATCH('Annual GHG Emissions - Sector'!AM$38&"#"&actCaseAnnGHG_5&"#"&'Annual GHG Emissions - Sector'!$I89,Total_Emissions_by_A_index,0))) ->  | AN89: =IF(actCaseAnnGHG_5="",NA(),INDEX(Total_Emissions_by_A_vals,MATCH('Annual GHG Emissions - Sector'!AN$38&"#"&actCaseAnnGHG_5&"#"&'Annual GHG Emissions - Sector'!$I89,Total_Emissions_by_A_index,0))) ->  | AO89: =IF(actCaseAnnGHG_5="",NA(),INDEX(Total_Emissions_by_A_vals,MATCH('Annual GHG Emissions - Sector'!AO$38&"#"&actCaseAnnGHG_5&"#"&'Annual GHG Emissions - Sector'!$I89,Total_Emissions_by_A_index,0))) ->  | AP89: =IF(actCaseAnnGHG_5="",NA(),INDEX(Total_Emissions_by_A_vals,MATCH('Annual GHG Emissions - Sector'!AP$38&"#"&actCaseAnnGHG_5&"#"&'Annual GHG Emissions - Sector'!$I89,Total_Emissions_by_A_index,0))) ->  | AQ89: =IF(actCaseAnnGHG_5="",NA(),INDEX(Total_Emissions_by_A_vals,MATCH('Annual GHG Emissions - Sector'!AQ$38&"#"&actCaseAnnGHG_5&"#"&'Annual GHG Emissions - Sector'!$I89,Total_Emissions_by_A_index,0))) ->  | AR89: =IF(actCaseAnnGHG_5="",NA(),INDEX(Total_Emissions_by_A_vals,MATCH('Annual GHG Emissions - Sector'!AR$38&"#"&actCaseAnnGHG_5&"#"&'Annual GHG Emissions - Sector'!$I89,Total_Emissions_by_A_index,0))) ->  | AS89: =IF(actCaseAnnGHG_5="",NA(),INDEX(Total_Emissions_by_A_vals,MATCH('Annual GHG Emissions - Sector'!AS$38&"#"&actCaseAnnGHG_5&"#"&'Annual GHG Emissions - Sector'!$I89,Total_Emissions_by_A_index,0))) ->  | AT89: =IF(actCaseAnnGHG_5="",NA(),INDEX(Total_Emissions_by_A_vals,MATCH('Annual GHG Emissions - Sector'!AT$38&"#"&actCaseAnnGHG_5&"#"&'Annual GHG Emissions - Sector'!$I89,Total_Emissions_by_A_index,0))) ->  | AU89: =IF(actCaseAnnGHG_5="",NA(),INDEX(Total_Emissions_by_A_vals,MATCH('Annual GHG Emissions - Sector'!AU$38&"#"&actCaseAnnGHG_5&"#"&'Annual GHG Emissions - Sector'!$I89,Total_Emissions_by_A_index,0))) ->  | AV89: =IF(actCaseAnnGHG_5="",NA(),INDEX(Total_Emissions_by_A_vals,MATCH('Annual GHG Emissions - Sector'!AV$38&"#"&actCaseAnnGHG_5&"#"&'Annual GHG Emissions - Sector'!$I89,Total_Emissions_by_A_index,0))) ->  | AW89: =IF(actCaseAnnGHG_5="",NA(),INDEX(Total_Emissions_by_A_vals,MATCH('Annual GHG Emissions - Sector'!AW$38&"#"&actCaseAnnGHG_5&"#"&'Annual GHG Emissions - Sector'!$I89,Total_Emissions_by_A_index,0))) ->  | AX89: =IF(actCaseAnnGHG_5="",NA(),INDEX(Total_Emissions_by_A_vals,MATCH('Annual GHG Emissions - Sector'!AX$38&"#"&actCaseAnnGHG_5&"#"&'Annual GHG Emissions - Sector'!$I89,Total_Emissions_by_A_index,0))) ->  | AY89: =IF(actCaseAnnGHG_5="",NA(),INDEX(Total_Emissions_by_A_vals,MATCH('Annual GHG Emissions - Sector'!AY$38&"#"&actCaseAnnGHG_5&"#"&'Annual GHG Emissions - Sector'!$I89,Total_Emissions_by_A_index,0))) ->  | AZ89: =IF(actCaseAnnGHG_5="",NA(),INDEX(Total_Emissions_by_A_vals,MATCH('Annual GHG Emissions - Sector'!AZ$38&"#"&actCaseAnnGHG_5&"#"&'Annual GHG Emissions - Sector'!$I89,Total_Emissions_by_A_index,0))) ->  | BA89: =IF(actCaseAnnGHG_5="",NA(),INDEX(Total_Emissions_by_A_vals,MATCH('Annual GHG Emissions - Sector'!BA$38&"#"&actCaseAnnGHG_5&"#"&'Annual GHG Emissions - Sector'!$I89,Total_Emissions_by_A_index,0))) ->  | BB89: =IF(actCaseAnnGHG_5="",NA(),INDEX(Total_Emissions_by_A_vals,MATCH('Annual GHG Emissions - Sector'!BB$38&"#"&actCaseAnnGHG_5&"#"&'Annual GHG Emissions - Sector'!$I89,Total_Emissions_by_A_index,0))) ->  | BC89: =IF(actCaseAnnGHG_5="",NA(),INDEX(Total_Emissions_by_A_vals,MATCH('Annual GHG Emissions - Sector'!BC$38&"#"&actCaseAnnGHG_5&"#"&'Annual GHG Emissions - Sector'!$I89,Total_Emissions_by_A_index,0))) ->  | BD89: =IF(actCaseAnnGHG_5="",NA(),INDEX(Total_Emissions_by_A_vals,MATCH('Annual GHG Emissions - Sector'!BD$38&"#"&actCaseAnnGHG_5&"#"&'Annual GHG Emissions - Sector'!$I89,Total_Emissions_by_A_index,0))) ->  | BE89: =IF(actCaseAnnGHG_5="",NA(),INDEX(Total_Emissions_by_A_vals,MATCH('Annual GHG Emissions - Sector'!BE$38&"#"&actCaseAnnGHG_5&"#"&'Annual GHG Emissions - Sector'!$I89,Total_Emissions_by_A_index,0))) ->  | BF89: =IF(actCaseAnnGHG_5="",NA(),INDEX(Total_Emissions_by_A_vals,MATCH('Annual GHG Emissions - Sector'!BF$38&"#"&actCaseAnnGHG_5&"#"&'Annual GHG Emissions - Sector'!$I89,Total_Emissions_by_A_index,0))) ->  | BG89: =IF(actCaseAnnGHG_5="",NA(),INDEX(Total_Emissions_by_A_vals,MATCH('Annual GHG Emissions - Sector'!BG$38&"#"&actCaseAnnGHG_5&"#"&'Annual GHG Emissions - Sector'!$I89,Total_Emissions_by_A_index,0))) ->  | BH89: =IF(actCaseAnnGHG_5="",NA(),INDEX(Total_Emissions_by_A_vals,MATCH('Annual GHG Emissions - Sector'!BH$38&"#"&actCaseAnnGHG_5&"#"&'Annual GHG Emissions - Sector'!$I89,Total_Emissions_by_A_index,0))) ->  | BI89: =IF(actCaseAnnGHG_5="",NA(),INDEX(Total_Emissions_by_A_vals,MATCH('Annual GHG Emissions - Sector'!BI$38&"#"&actCaseAnnGHG_5&"#"&'Annual GHG Emissions - Sector'!$I89,Total_Emissions_by_A_index,0))) ->  | BJ89: =IF(actCaseAnnGHG_5="",NA(),INDEX(Total_Emissions_by_A_vals,MATCH('Annual GHG Emissions - Sector'!BJ$38&"#"&actCaseAnnGHG_5&"#"&'Annual GHG Emissions - Sector'!$I89,Total_Emissions_by_A_index,0))) ->  | BK89: =IF(actCaseAnnGHG_5="",NA(),INDEX(Total_Emissions_by_A_vals,MATCH('Annual GHG Emissions - Sector'!BK$38&"#"&actCaseAnnGHG_5&"#"&'Annual GHG Emissions - Sector'!$I89,Total_Emissions_by_A_index,0))) ->  | BL89: =IF(actCaseAnnGHG_5="",NA(),INDEX(Total_Emissions_by_A_vals,MATCH('Annual GHG Emissions - Sector'!BL$38&"#"&actCaseAnnGHG_5&"#"&'Annual GHG Emissions - Sector'!$I89,Total_Emissions_by_A_index,0))) ->  | BM89: =IF(actCaseAnnGHG_5="",NA(),INDEX(Total_Emissions_by_A_vals,MATCH('Annual GHG Emissions - Sector'!BM$38&"#"&actCaseAnnGHG_5&"#"&'Annual GHG Emissions - Sector'!$I89,Total_Emissions_by_A_index,0))) ->  | BN89: =IF(actCaseAnnGHG_5="",NA(),INDEX(Total_Emissions_by_A_vals,MATCH('Annual GHG Emissions - Sector'!BN$38&"#"&actCaseAnnGHG_5&"#"&'Annual GHG Emissions - Sector'!$I89,Total_Emissions_by_A_index,0))) ->  | BO89: =IF(actCaseAnnGHG_5="",NA(),INDEX(Total_Emissions_by_A_vals,MATCH('Annual GHG Emissions - Sector'!BO$38&"#"&actCaseAnnGHG_5&"#"&'Annual GHG Emissions - Sector'!$I89,Total_Emissions_by_A_index,0))) ->  | BP89: =IF(actCaseAnnGHG_5="",NA(),INDEX(Total_Emissions_by_A_vals,MATCH('Annual GHG Emissions - Sector'!BP$38&"#"&actCaseAnnGHG_5&"#"&'Annual GHG Emissions - Sector'!$I89,Total_Emissions_by_A_index,0))) ->  | BQ89: =IF(actCaseAnnGHG_5="",NA(),INDEX(Total_Emissions_by_A_vals,MATCH('Annual GHG Emissions - Sector'!BQ$38&"#"&actCaseAnnGHG_5&"#"&'Annual GHG Emissions - Sector'!$I89,Total_Emissions_by_A_index,0))) ->  | BR89: =IF(actCaseAnnGHG_5="",NA(),INDEX(Total_Emissions_by_A_vals,MATCH('Annual GHG Emissions - Sector'!BR$38&"#"&actCaseAnnGHG_5&"#"&'Annual GHG Emissions - Sector'!$I89,Total_Emissions_by_A_index,0))) -> 
I90: Recycling and Waste | AI90: =IF(actCaseAnnGHG_5="",NA(),INDEX(Total_Emissions_by_A_vals,MATCH('Annual GHG Emissions - Sector'!AI$38&"#"&actCaseAnnGHG_5&"#"&'Annual GHG Emissions - Sector'!$I90,Total_Emissions_by_A_index,0))) ->  | AJ90: =IF(actCaseAnnGHG_5="",NA(),INDEX(Total_Emissions_by_A_vals,MATCH('Annual GHG Emissions - Sector'!AJ$38&"#"&actCaseAnnGHG_5&"#"&'Annual GHG Emissions - Sector'!$I90,Total_Emissions_by_A_index,0))) ->  | AK90: =IF(actCaseAnnGHG_5="",NA(),INDEX(Total_Emissions_by_A_vals,MATCH('Annual GHG Emissions - Sector'!AK$38&"#"&actCaseAnnGHG_5&"#"&'Annual GHG Emissions - Sector'!$I90,Total_Emissions_by_A_index,0))) ->  | AL90: =IF(actCaseAnnGHG_5="",NA(),INDEX(Total_Emissions_by_A_vals,MATCH('Annual GHG Emissions - Sector'!AL$38&"#"&actCaseAnnGHG_5&"#"&'Annual GHG Emissions - Sector'!$I90,Total_Emissions_by_A_index,0))) ->  | AM90: =IF(actCaseAnnGHG_5="",NA(),INDEX(Total_Emissions_by_A_vals,MATCH('Annual GHG Emissions - Sector'!AM$38&"#"&actCaseAnnGHG_5&"#"&'Annual GHG Emissions - Sector'!$I90,Total_Emissions_by_A_index,0))) ->  | AN90: =IF(actCaseAnnGHG_5="",NA(),INDEX(Total_Emissions_by_A_vals,MATCH('Annual GHG Emissions - Sector'!AN$38&"#"&actCaseAnnGHG_5&"#"&'Annual GHG Emissions - Sector'!$I90,Total_Emissions_by_A_index,0))) ->  | AO90: =IF(actCaseAnnGHG_5="",NA(),INDEX(Total_Emissions_by_A_vals,MATCH('Annual GHG Emissions - Sector'!AO$38&"#"&actCaseAnnGHG_5&"#"&'Annual GHG Emissions - Sector'!$I90,Total_Emissions_by_A_index,0))) ->  | AP90: =IF(actCaseAnnGHG_5="",NA(),INDEX(Total_Emissions_by_A_vals,MATCH('Annual GHG Emissions - Sector'!AP$38&"#"&actCaseAnnGHG_5&"#"&'Annual GHG Emissions - Sector'!$I90,Total_Emissions_by_A_index,0))) ->  | AQ90: =IF(actCaseAnnGHG_5="",NA(),INDEX(Total_Emissions_by_A_vals,MATCH('Annual GHG Emissions - Sector'!AQ$38&"#"&actCaseAnnGHG_5&"#"&'Annual GHG Emissions - Sector'!$I90,Total_Emissions_by_A_index,0))) ->  | AR90: =IF(actCaseAnnGHG_5="",NA(),INDEX(Total_Emissions_by_A_vals,MATCH('Annual GHG Emissions - Sector'!AR$38&"#"&actCaseAnnGHG_5&"#"&'Annual GHG Emissions - Sector'!$I90,Total_Emissions_by_A_index,0))) ->  | AS90: =IF(actCaseAnnGHG_5="",NA(),INDEX(Total_Emissions_by_A_vals,MATCH('Annual GHG Emissions - Sector'!AS$38&"#"&actCaseAnnGHG_5&"#"&'Annual GHG Emissions - Sector'!$I90,Total_Emissions_by_A_index,0))) ->  | AT90: =IF(actCaseAnnGHG_5="",NA(),INDEX(Total_Emissions_by_A_vals,MATCH('Annual GHG Emissions - Sector'!AT$38&"#"&actCaseAnnGHG_5&"#"&'Annual GHG Emissions - Sector'!$I90,Total_Emissions_by_A_index,0))) ->  | AU90: =IF(actCaseAnnGHG_5="",NA(),INDEX(Total_Emissions_by_A_vals,MATCH('Annual GHG Emissions - Sector'!AU$38&"#"&actCaseAnnGHG_5&"#"&'Annual GHG Emissions - Sector'!$I90,Total_Emissions_by_A_index,0))) ->  | AV90: =IF(actCaseAnnGHG_5="",NA(),INDEX(Total_Emissions_by_A_vals,MATCH('Annual GHG Emissions - Sector'!AV$38&"#"&actCaseAnnGHG_5&"#"&'Annual GHG Emissions - Sector'!$I90,Total_Emissions_by_A_index,0))) ->  | AW90: =IF(actCaseAnnGHG_5="",NA(),INDEX(Total_Emissions_by_A_vals,MATCH('Annual GHG Emissions - Sector'!AW$38&"#"&actCaseAnnGHG_5&"#"&'Annual GHG Emissions - Sector'!$I90,Total_Emissions_by_A_index,0))) ->  | AX90: =IF(actCaseAnnGHG_5="",NA(),INDEX(Total_Emissions_by_A_vals,MATCH('Annual GHG Emissions - Sector'!AX$38&"#"&actCaseAnnGHG_5&"#"&'Annual GHG Emissions - Sector'!$I90,Total_Emissions_by_A_index,0))) ->  | AY90: =IF(actCaseAnnGHG_5="",NA(),INDEX(Total_Emissions_by_A_vals,MATCH('Annual GHG Emissions - Sector'!AY$38&"#"&actCaseAnnGHG_5&"#"&'Annual GHG Emissions - Sector'!$I90,Total_Emissions_by_A_index,0))) ->  | AZ90: =IF(actCaseAnnGHG_5="",NA(),INDEX(Total_Emissions_by_A_vals,MATCH('Annual GHG Emissions - Sector'!AZ$38&"#"&actCaseAnnGHG_5&"#"&'Annual GHG Emissions - Sector'!$I90,Total_Emissions_by_A_index,0))) ->  | BA90: =IF(actCaseAnnGHG_5="",NA(),INDEX(Total_Emissions_by_A_vals,MATCH('Annual GHG Emissions - Sector'!BA$38&"#"&actCaseAnnGHG_5&"#"&'Annual GHG Emissions - Sector'!$I90,Total_Emissions_by_A_index,0))) ->  | BB90: =IF(actCaseAnnGHG_5="",NA(),INDEX(Total_Emissions_by_A_vals,MATCH('Annual GHG Emissions - Sector'!BB$38&"#"&actCaseAnnGHG_5&"#"&'Annual GHG Emissions - Sector'!$I90,Total_Emissions_by_A_index,0))) ->  | BC90: =IF(actCaseAnnGHG_5="",NA(),INDEX(Total_Emissions_by_A_vals,MATCH('Annual GHG Emissions - Sector'!BC$38&"#"&actCaseAnnGHG_5&"#"&'Annual GHG Emissions - Sector'!$I90,Total_Emissions_by_A_index,0))) ->  | BD90: =IF(actCaseAnnGHG_5="",NA(),INDEX(Total_Emissions_by_A_vals,MATCH('Annual GHG Emissions - Sector'!BD$38&"#"&actCaseAnnGHG_5&"#"&'Annual GHG Emissions - Sector'!$I90,Total_Emissions_by_A_index,0))) ->  | BE90: =IF(actCaseAnnGHG_5="",NA(),INDEX(Total_Emissions_by_A_vals,MATCH('Annual GHG Emissions - Sector'!BE$38&"#"&actCaseAnnGHG_5&"#"&'Annual GHG Emissions - Sector'!$I90,Total_Emissions_by_A_index,0))) ->  | BF90: =IF(actCaseAnnGHG_5="",NA(),INDEX(Total_Emissions_by_A_vals,MATCH('Annual GHG Emissions - Sector'!BF$38&"#"&actCaseAnnGHG_5&"#"&'Annual GHG Emissions - Sector'!$I90,Total_Emissions_by_A_index,0))) ->  | BG90: =IF(actCaseAnnGHG_5="",NA(),INDEX(Total_Emissions_by_A_vals,MATCH('Annual GHG Emissions - Sector'!BG$38&"#"&actCaseAnnGHG_5&"#"&'Annual GHG Emissions - Sector'!$I90,Total_Emissions_by_A_index,0))) ->  | BH90: =IF(actCaseAnnGHG_5="",NA(),INDEX(Total_Emissions_by_A_vals,MATCH('Annual GHG Emissions - Sector'!BH$38&"#"&actCaseAnnGHG_5&"#"&'Annual GHG Emissions - Sector'!$I90,Total_Emissions_by_A_index,0))) ->  | BI90: =IF(actCaseAnnGHG_5="",NA(),INDEX(Total_Emissions_by_A_vals,MATCH('Annual GHG Emissions - Sector'!BI$38&"#"&actCaseAnnGHG_5&"#"&'Annual GHG Emissions - Sector'!$I90,Total_Emissions_by_A_index,0))) ->  | BJ90: =IF(actCaseAnnGHG_5="",NA(),INDEX(Total_Emissions_by_A_vals,MATCH('Annual GHG Emissions - Sector'!BJ$38&"#"&actCaseAnnGHG_5&"#"&'Annual GHG Emissions - Sector'!$I90,Total_Emissions_by_A_index,0))) ->  | BK90: =IF(actCaseAnnGHG_5="",NA(),INDEX(Total_Emissions_by_A_vals,MATCH('Annual GHG Emissions - Sector'!BK$38&"#"&actCaseAnnGHG_5&"#"&'Annual GHG Emissions - Sector'!$I90,Total_Emissions_by_A_index,0))) ->  | BL90: =IF(actCaseAnnGHG_5="",NA(),INDEX(Total_Emissions_by_A_vals,MATCH('Annual GHG Emissions - Sector'!BL$38&"#"&actCaseAnnGHG_5&"#"&'Annual GHG Emissions - Sector'!$I90,Total_Emissions_by_A_index,0))) ->  | BM90: =IF(actCaseAnnGHG_5="",NA(),INDEX(Total_Emissions_by_A_vals,MATCH('Annual GHG Emissions - Sector'!BM$38&"#"&actCaseAnnGHG_5&"#"&'Annual GHG Emissions - Sector'!$I90,Total_Emissions_by_A_index,0))) ->  | BN90: =IF(actCaseAnnGHG_5="",NA(),INDEX(Total_Emissions_by_A_vals,MATCH('Annual GHG Emissions - Sector'!BN$38&"#"&actCaseAnnGHG_5&"#"&'Annual GHG Emissions - Sector'!$I90,Total_Emissions_by_A_index,0))) ->  | BO90: =IF(actCaseAnnGHG_5="",NA(),INDEX(Total_Emissions_by_A_vals,MATCH('Annual GHG Emissions - Sector'!BO$38&"#"&actCaseAnnGHG_5&"#"&'Annual GHG Emissions - Sector'!$I90,Total_Emissions_by_A_index,0))) ->  | BP90: =IF(actCaseAnnGHG_5="",NA(),INDEX(Total_Emissions_by_A_vals,MATCH('Annual GHG Emissions - Sector'!BP$38&"#"&actCaseAnnGHG_5&"#"&'Annual GHG Emissions - Sector'!$I90,Total_Emissions_by_A_index,0))) ->  | BQ90: =IF(actCaseAnnGHG_5="",NA(),INDEX(Total_Emissions_by_A_vals,MATCH('Annual GHG Emissions - Sector'!BQ$38&"#"&actCaseAnnGHG_5&"#"&'Annual GHG Emissions - Sector'!$I90,Total_Emissions_by_A_index,0))) ->  | BR90: =IF(actCaseAnnGHG_5="",NA(),INDEX(Total_Emissions_by_A_vals,MATCH('Annual GHG Emissions - Sector'!BR$38&"#"&actCaseAnnGHG_5&"#"&'Annual GHG Emissions - Sector'!$I90,Total_Emissions_by_A_index,0))) -> 
I91: Transportation (Incl. TCU) | AI91: =IF(actCaseAnnGHG_5="",NA(),INDEX(Total_Emissions_by_A_vals,MATCH('Annual GHG Emissions - Sector'!AI$38&"#"&actCaseAnnGHG_5&"#"&'Annual GHG Emissions - Sector'!$I91,Total_Emissions_by_A_index,0))) ->  | AJ91: =IF(actCaseAnnGHG_5="",NA(),INDEX(Total_Emissions_by_A_vals,MATCH('Annual GHG Emissions - Sector'!AJ$38&"#"&actCaseAnnGHG_5&"#"&'Annual GHG Emissions - Sector'!$I91,Total_Emissions_by_A_index,0))) ->  | AK91: =IF(actCaseAnnGHG_5="",NA(),INDEX(Total_Emissions_by_A_vals,MATCH('Annual GHG Emissions - Sector'!AK$38&"#"&actCaseAnnGHG_5&"#"&'Annual GHG Emissions - Sector'!$I91,Total_Emissions_by_A_index,0))) ->  | AL91: =IF(actCaseAnnGHG_5="",NA(),INDEX(Total_Emissions_by_A_vals,MATCH('Annual GHG Emissions - Sector'!AL$38&"#"&actCaseAnnGHG_5&"#"&'Annual GHG Emissions - Sector'!$I91,Total_Emissions_by_A_index,0))) ->  | AM91: =IF(actCaseAnnGHG_5="",NA(),INDEX(Total_Emissions_by_A_vals,MATCH('Annual GHG Emissions - Sector'!AM$38&"#"&actCaseAnnGHG_5&"#"&'Annual GHG Emissions - Sector'!$I91,Total_Emissions_by_A_index,0))) ->  | AN91: =IF(actCaseAnnGHG_5="",NA(),INDEX(Total_Emissions_by_A_vals,MATCH('Annual GHG Emissions - Sector'!AN$38&"#"&actCaseAnnGHG_5&"#"&'Annual GHG Emissions - Sector'!$I91,Total_Emissions_by_A_index,0))) ->  | AO91: =IF(actCaseAnnGHG_5="",NA(),INDEX(Total_Emissions_by_A_vals,MATCH('Annual GHG Emissions - Sector'!AO$38&"#"&actCaseAnnGHG_5&"#"&'Annual GHG Emissions - Sector'!$I91,Total_Emissions_by_A_index,0))) ->  | AP91: =IF(actCaseAnnGHG_5="",NA(),INDEX(Total_Emissions_by_A_vals,MATCH('Annual GHG Emissions - Sector'!AP$38&"#"&actCaseAnnGHG_5&"#"&'Annual GHG Emissions - Sector'!$I91,Total_Emissions_by_A_index,0))) ->  | AQ91: =IF(actCaseAnnGHG_5="",NA(),INDEX(Total_Emissions_by_A_vals,MATCH('Annual GHG Emissions - Sector'!AQ$38&"#"&actCaseAnnGHG_5&"#"&'Annual GHG Emissions - Sector'!$I91,Total_Emissions_by_A_index,0))) ->  | AR91: =IF(actCaseAnnGHG_5="",NA(),INDEX(Total_Emissions_by_A_vals,MATCH('Annual GHG Emissions - Sector'!AR$38&"#"&actCaseAnnGHG_5&"#"&'Annual GHG Emissions - Sector'!$I91,Total_Emissions_by_A_index,0))) ->  | AS91: =IF(actCaseAnnGHG_5="",NA(),INDEX(Total_Emissions_by_A_vals,MATCH('Annual GHG Emissions - Sector'!AS$38&"#"&actCaseAnnGHG_5&"#"&'Annual GHG Emissions - Sector'!$I91,Total_Emissions_by_A_index,0))) ->  | AT91: =IF(actCaseAnnGHG_5="",NA(),INDEX(Total_Emissions_by_A_vals,MATCH('Annual GHG Emissions - Sector'!AT$38&"#"&actCaseAnnGHG_5&"#"&'Annual GHG Emissions - Sector'!$I91,Total_Emissions_by_A_index,0))) ->  | AU91: =IF(actCaseAnnGHG_5="",NA(),INDEX(Total_Emissions_by_A_vals,MATCH('Annual GHG Emissions - Sector'!AU$38&"#"&actCaseAnnGHG_5&"#"&'Annual GHG Emissions - Sector'!$I91,Total_Emissions_by_A_index,0))) ->  | AV91: =IF(actCaseAnnGHG_5="",NA(),INDEX(Total_Emissions_by_A_vals,MATCH('Annual GHG Emissions - Sector'!AV$38&"#"&actCaseAnnGHG_5&"#"&'Annual GHG Emissions - Sector'!$I91,Total_Emissions_by_A_index,0))) ->  | AW91: =IF(actCaseAnnGHG_5="",NA(),INDEX(Total_Emissions_by_A_vals,MATCH('Annual GHG Emissions - Sector'!AW$38&"#"&actCaseAnnGHG_5&"#"&'Annual GHG Emissions - Sector'!$I91,Total_Emissions_by_A_index,0))) ->  | AX91: =IF(actCaseAnnGHG_5="",NA(),INDEX(Total_Emissions_by_A_vals,MATCH('Annual GHG Emissions - Sector'!AX$38&"#"&actCaseAnnGHG_5&"#"&'Annual GHG Emissions - Sector'!$I91,Total_Emissions_by_A_index,0))) ->  | AY91: =IF(actCaseAnnGHG_5="",NA(),INDEX(Total_Emissions_by_A_vals,MATCH('Annual GHG Emissions - Sector'!AY$38&"#"&actCaseAnnGHG_5&"#"&'Annual GHG Emissions - Sector'!$I91,Total_Emissions_by_A_index,0))) ->  | AZ91: =IF(actCaseAnnGHG_5="",NA(),INDEX(Total_Emissions_by_A_vals,MATCH('Annual GHG Emissions - Sector'!AZ$38&"#"&actCaseAnnGHG_5&"#"&'Annual GHG Emissions - Sector'!$I91,Total_Emissions_by_A_index,0))) ->  | BA91: =IF(actCaseAnnGHG_5="",NA(),INDEX(Total_Emissions_by_A_vals,MATCH('Annual GHG Emissions - Sector'!BA$38&"#"&actCaseAnnGHG_5&"#"&'Annual GHG Emissions - Sector'!$I91,Total_Emissions_by_A_index,0))) ->  | BB91: =IF(actCaseAnnGHG_5="",NA(),INDEX(Total_Emissions_by_A_vals,MATCH('Annual GHG Emissions - Sector'!BB$38&"#"&actCaseAnnGHG_5&"#"&'Annual GHG Emissions - Sector'!$I91,Total_Emissions_by_A_index,0))) ->  | BC91: =IF(actCaseAnnGHG_5="",NA(),INDEX(Total_Emissions_by_A_vals,MATCH('Annual GHG Emissions - Sector'!BC$38&"#"&actCaseAnnGHG_5&"#"&'Annual GHG Emissions - Sector'!$I91,Total_Emissions_by_A_index,0))) ->  | BD91: =IF(actCaseAnnGHG_5="",NA(),INDEX(Total_Emissions_by_A_vals,MATCH('Annual GHG Emissions - Sector'!BD$38&"#"&actCaseAnnGHG_5&"#"&'Annual GHG Emissions - Sector'!$I91,Total_Emissions_by_A_index,0))) ->  | BE91: =IF(actCaseAnnGHG_5="",NA(),INDEX(Total_Emissions_by_A_vals,MATCH('Annual GHG Emissions - Sector'!BE$38&"#"&actCaseAnnGHG_5&"#"&'Annual GHG Emissions - Sector'!$I91,Total_Emissions_by_A_index,0))) ->  | BF91: =IF(actCaseAnnGHG_5="",NA(),INDEX(Total_Emissions_by_A_vals,MATCH('Annual GHG Emissions - Sector'!BF$38&"#"&actCaseAnnGHG_5&"#"&'Annual GHG Emissions - Sector'!$I91,Total_Emissions_by_A_index,0))) ->  | BG91: =IF(actCaseAnnGHG_5="",NA(),INDEX(Total_Emissions_by_A_vals,MATCH('Annual GHG Emissions - Sector'!BG$38&"#"&actCaseAnnGHG_5&"#"&'Annual GHG Emissions - Sector'!$I91,Total_Emissions_by_A_index,0))) ->  | BH91: =IF(actCaseAnnGHG_5="",NA(),INDEX(Total_Emissions_by_A_vals,MATCH('Annual GHG Emissions - Sector'!BH$38&"#"&actCaseAnnGHG_5&"#"&'Annual GHG Emissions - Sector'!$I91,Total_Emissions_by_A_index,0))) ->  | BI91: =IF(actCaseAnnGHG_5="",NA(),INDEX(Total_Emissions_by_A_vals,MATCH('Annual GHG Emissions - Sector'!BI$38&"#"&actCaseAnnGHG_5&"#"&'Annual GHG Emissions - Sector'!$I91,Total_Emissions_by_A_index,0))) ->  | BJ91: =IF(actCaseAnnGHG_5="",NA(),INDEX(Total_Emissions_by_A_vals,MATCH('Annual GHG Emissions - Sector'!BJ$38&"#"&actCaseAnnGHG_5&"#"&'Annual GHG Emissions - Sector'!$I91,Total_Emissions_by_A_index,0))) ->  | BK91: =IF(actCaseAnnGHG_5="",NA(),INDEX(Total_Emissions_by_A_vals,MATCH('Annual GHG Emissions - Sector'!BK$38&"#"&actCaseAnnGHG_5&"#"&'Annual GHG Emissions - Sector'!$I91,Total_Emissions_by_A_index,0))) ->  | BL91: =IF(actCaseAnnGHG_5="",NA(),INDEX(Total_Emissions_by_A_vals,MATCH('Annual GHG Emissions - Sector'!BL$38&"#"&actCaseAnnGHG_5&"#"&'Annual GHG Emissions - Sector'!$I91,Total_Emissions_by_A_index,0))) ->  | BM91: =IF(actCaseAnnGHG_5="",NA(),INDEX(Total_Emissions_by_A_vals,MATCH('Annual GHG Emissions - Sector'!BM$38&"#"&actCaseAnnGHG_5&"#"&'Annual GHG Emissions - Sector'!$I91,Total_Emissions_by_A_index,0))) ->  | BN91: =IF(actCaseAnnGHG_5="",NA(),INDEX(Total_Emissions_by_A_vals,MATCH('Annual GHG Emissions - Sector'!BN$38&"#"&actCaseAnnGHG_5&"#"&'Annual GHG Emissions - Sector'!$I91,Total_Emissions_by_A_index,0))) ->  | BO91: =IF(actCaseAnnGHG_5="",NA(),INDEX(Total_Emissions_by_A_vals,MATCH('Annual GHG Emissions - Sector'!BO$38&"#"&actCaseAnnGHG_5&"#"&'Annual GHG Emissions - Sector'!$I91,Total_Emissions_by_A_index,0))) ->  | BP91: =IF(actCaseAnnGHG_5="",NA(),INDEX(Total_Emissions_by_A_vals,MATCH('Annual GHG Emissions - Sector'!BP$38&"#"&actCaseAnnGHG_5&"#"&'Annual GHG Emissions - Sector'!$I91,Total_Emissions_by_A_index,0))) ->  | BQ91: =IF(actCaseAnnGHG_5="",NA(),INDEX(Total_Emissions_by_A_vals,MATCH('Annual GHG Emissions - Sector'!BQ$38&"#"&actCaseAnnGHG_5&"#"&'Annual GHG Emissions - Sector'!$I91,Total_Emissions_by_A_index,0))) ->  | BR91: =IF(actCaseAnnGHG_5="",NA(),INDEX(Total_Emissions_by_A_vals,MATCH('Annual GHG Emissions - Sector'!BR$38&"#"&actCaseAnnGHG_5&"#"&'Annual GHG Emissions - Sector'!$I91,Total_Emissions_by_A_index,0))) -> 
I92: Total | AI92: =SUM(AI85:AI91) ->  | AJ92: =SUM(AJ85:AJ91) ->  | BT92: 0.02663429893 | BU92: 66.97562588
I95: CARB Inventory
J96: 1990 | K96: 1991 | L96: 1992 | M96: 1993 | N96: 1994 | O96: 1995 | P96: 1996 | Q96: 1997 | R96: 1998 | S96: 1999 | T96: 2000 | U96: 2001 | V96: 2002 | W96: 2003 | X96: 2004 | Y96: 2005 | Z96: 2006 | AA96: 2007 | AB96: 2008 | AC96: 2009 | AD96: 2010 | AE96: 2011 | AF96: 2012 | AG96: 2013 | AH96: 2014 | AI96: 2015 | AJ96: 2016 | AK96: 2017 | AL96: 2018 | AM96: 2019 | AN96: 2020 | AO96: 2021 | AP96: 2022 | AQ96: 2023 | AR96: 2024 | AS96: 2025 | AT96: 2026 | AU96: 2027 | AV96: 2028 | AW96: 2029 | AX96: 2030 | AY96: 2031 | AZ96: 2032 | BA96: 2033 | BB96: 2034 | BC96: 2035 | BD96: 2036 | BE96: 2037 | BF96: 2038 | BG96: 2039 | BH96: 2040 | BI96: 2041 | BJ96: 2042 | BK96: 2043 | BL96: 2044 | BM96: 2045 | BN96: 2046 | BO96: 2047 | BP96: 2048 | BQ96: 2049 | BR96: 2050
I97: Agriculture | AH97: 36.10628445
I98: Residential and Commercial | AH98: 38.3448181
I99: Electric Power | AH99: 88.2355891
I100: High GWP | AH100: 17.14806537
I101: Industrial | AH101: 93.32232358
I102: Recycling and Waste | AH102: 8.848776478
I103: Transportation | AH103: 159.5292053
I104: Total | J104: 431 | K104: 410.4031133 | L104: 412.3779657 | M104: 409.3916809 | N104: 421.812624 | O104: 411.4066445 | P104: 409.1694066 | Q104: 427.512987 | R104: 443.8572916 | S104: 451.3211493 | T104: 466.3167045 | U104: 481.2267163 | V104: 480.3167969 | W104: 483.0543085 | X104: 492.8613133 | Y104: 485.1322839 | Z104: 482.518193 | AA104: 489.1603397 | AB104: 487.1005143 | AC104: 458.4411816 | AD104: 453.055471 | AE104: 450.9431009 | AF104: 458.6846035 | AH104: 441.5350624
I105: Reduction Goals | J105: 431 | AN105: 431 | AX105: 258.6 | BR105: 86.2
I106: End Goal | J106: 86.2 | BR106: 86.2
K109: %
J110: =AD104 -> 453.055471
J111: =AN105 -> 431 | K111: =1-(J111/J110)^(1/10) -> 0.004978215447
J112: =AX105 -> 258.6 | K112: =1-(J112/J111)^(1/10) -> 0.04979978349
J113: =(BR105+J112)/2 -> 172.4 | K113: 0.03973549921
J114: =BR105 -> 86.2 | K114: 0.06696700846 | L114: =1-(J114/J112)^(1/20) -> 0.05344917736
A117: CASE 1 | B117: =actCaseAnnGHG_1 -> Reference
A118: =actCaseAnnGHG_1&"#Electricity" -> Reference#Electricity
A119: Fgas: RES# | B119: ="#"&actCaseAnnGHG_1 -> #Reference
A120: Fgas: COM# | B120: #Reference
A121: Fgas: IND# | B121: #Reference
A122: Fgas: LDV# | B122: #Reference
A123: Fgas: HDV# | B123: #Reference
A124: Fgas: Other trans# | B124: #Reference
A125: Fgas: Electricity# | B125: #Reference
A126: Electricity Generation Fugitive and Process Emissions# | B126: #Reference
A127: Land: Fire# | B127: #Reference
A128: Land: Use change# | B128: #Reference
A129: Waste# | B129: #Reference
A131: Geo-Independent
A132: ="#"&I132&"#"&actCaseAnnGHG_1&"#" -> ##Reference# | B132: Agriculture: Enteric# | C132: Agriculture: Soil Emissions# | D132: Agriculture: Manure# | E132: Agriculture: Other# | H132: ="#"&I132&"#"&actCaseAnnGHG_1&"#Electricity" -> ##Reference#Electricity
A133: ##Reference# | H133: ##Reference#Electricity
A134: ##Reference# | H134: ##Reference#Electricity
A135: ##Reference# | B135: Cement# | C135: Pipeline Fugitive Emissions# | H135: ##Reference#Electricity
A136: ##Reference# | B136: Oil Extraction Fugitive Emissions# | H136: ##Reference#Electricity
A137: ##Reference# | B137: Petroleum Refining# | H137: ##Reference#Electricity
A138: ##Reference# | H138: ##Reference#Electricity
A139: ##Reference# | H139: ##Reference#Electricity
A141: LADWP
A142: ="#"&I142&"#"&actCaseAnnGHG_1&"#" -> ##Reference# | H142: ="#"&I142&"#"&actCaseAnnGHG_1&"#Electricity" -> ##Reference#Electricity
A143: ##Reference# | H143: ##Reference#Electricity
A144: ##Reference# | H144: ##Reference#Electricity
A145: ##Reference# | H145: ##Reference#Electricity
A146: ##Reference# | H146: ##Reference#Electricity
A147: ##Reference# | H147: ##Reference#Electricity
A148: ##Reference# | H148: ##Reference#Electricity
A149: ##Reference# | H149: ##Reference#Electricity
A151: Other
A152: ="#"&I152&"#"&actCaseAnnGHG_1&"#" -> ##Reference# | B152: Agriculture: Enteric# | C152: Agriculture: Soil Emissions# | D152: Agriculture: Manure# | E152: Agriculture: Other# | H152: ="#"&I152&"#"&actCaseAnnGHG_1&"#Electricity" -> ##Reference#Electricity
A153: ##Reference# | H153: ##Reference#Electricity
A154: ##Reference# | H154: ##Reference#Electricity
A155: ##Reference# | B155: Cement# | C155: Pipeline Fugitive Emissions# | H155: ##Reference#Electricity
A156: ##Reference# | B156: Oil Extraction Fugitive Emissions# | H156: ##Reference#Electricity
A157: ##Reference# | B157: Petroleum Refining# | H157: ##Reference#Electricity
A158: ##Reference# | H158: ##Reference#Electricity
A159: ##Reference# | H159: ##Reference#Electricity
A161: PG&E
A162: ="#"&I162&"#"&actCaseAnnGHG_1&"#" -> ##Reference# | H162: ="#"&I162&"#"&actCaseAnnGHG_1&"#Electricity" -> ##Reference#Electricity
A163: ##Reference# | H163: ##Reference#Electricity
A164: ##Reference# | H164: ##Reference#Electricity
A165: ##Reference# | H165: ##Reference#Electricity
A166: ##Reference# | H166: ##Reference#Electricity
A167: ##Reference# | H167: ##Reference#Electricity
A168: ##Reference# | H168: ##Reference#Electricity
A169: ##Reference# | H169: ##Reference#Electricity
A171: SCE
A172: ="#"&I172&"#"&actCaseAnnGHG_1&"#" -> ##Reference# | H172: ="#"&I172&"#"&actCaseAnnGHG_1&"#Electricity" -> ##Reference#Electricity
A173: ##Reference# | H173: ##Reference#Electricity
A174: ##Reference# | H174: ##Reference#Electricity
A175: ##Reference# | H175: ##Reference#Electricity
A176: ##Reference# | H176: ##Reference#Electricity
A177: ##Reference# | H177: ##Reference#Electricity
A178: ##Reference# | H178: ##Reference#Electricity
A179: ##Reference# | H179: ##Reference#Electricity
A181: SDG&E
A182: ="#"&I182&"#"&actCaseAnnGHG_1&"#" -> ##Reference# | H182: ="#"&I182&"#"&actCaseAnnGHG_1&"#Electricity" -> ##Reference#Electricity
A183: ##Reference# | H183: ##Reference#Electricity
A184: ##Reference# | H184: ##Reference#Electricity
A185: ##Reference# | H185: ##Reference#Electricity
A186: ##Reference# | H186: ##Reference#Electricity
A187: ##Reference# | H187: ##Reference#Electricity
A188: ##Reference# | H188: ##Reference#Electricity
A189: ##Reference# | H189: ##Reference#Electricity
A191: SMUD
A192: ="#"&I192&"#"&actCaseAnnGHG_1&"#" -> ##Reference# | H192: ="#"&I192&"#"&actCaseAnnGHG_1&"#Electricity" -> ##Reference#Electricity
A193: ##Reference# | H193: ##Reference#Electricity
A194: ##Reference# | H194: ##Reference#Electricity
A195: ##Reference# | H195: ##Reference#Electricity
A196: ##Reference# | H196: ##Reference#Electricity
A197: ##Reference# | H197: ##Reference#Electricity
A198: ##Reference# | H198: ##Reference#Electricity
A199: ##Reference# | H199: ##Reference#Electricity
A201: CASE 2
A202: =actCaseAnnGHG_2&"#Electricity" -> Current Policy Reference#Electricity
A203: Fgas: RES# | B203: ="#"&actCaseAnnGHG_2 -> #Current Policy Reference
A204: Fgas: COM# | B204: #Current Policy Reference
A205: Fgas: IND# | B205: #Current Policy Reference
A206: Fgas: LDV# | B206: #Current Policy Reference
A207: Fgas: HDV# | B207: #Current Policy Reference
A208: Fgas: Other trans# | B208: #Current Policy Reference
A209: Fgas: Electricity# | B209: #Current Policy Reference
A210: Electricity Generation Fugitive and Process Emissions# | B210: #Current Policy Reference
A211: Land: Fire# | B211: #Current Policy Reference
A212: Land: Use change# | B212: #Current Policy Reference
A213: Waste# | B213: #Current Policy Reference
A215: Geo-Independent
A216: ="#"&I216&"#"&actCaseAnnGHG_2&"#" -> ##Current Policy Reference# | B216: Agriculture: Enteric# | C216: Agriculture: Soil Emissions# | D216: Agriculture: Manure# | E216: Agriculture: Other# | H216: ="#"&I216&"#"&actCaseAnnGHG_2&"#Electricity" -> ##Current Policy Reference#Electricity
A217: ##Current Policy Reference# | H217: ##Current Policy Reference#Electricity
A218: ##Current Policy Reference# | H218: ##Current Policy Reference#Electricity
A219: ##Current Policy Reference# | B219: Cement# | C219: Pipeline Fugitive Emissions# | H219: ##Current Policy Reference#Electricity
A220: ##Current Policy Reference# | B220: Oil Extraction Fugitive Emissions# | H220: ##Current Policy Reference#Electricity
A221: ##Current Policy Reference# | B221: Petroleum Refining# | H221: ##Current Policy Reference#Electricity
A222: ##Current Policy Reference# | H222: ##Current Policy Reference#Electricity
A223: ##Current Policy Reference# | H223: ##Current Policy Reference#Electricity
A225: LADWP
A226: ="#"&I226&"#"&actCaseAnnGHG_2&"#" -> ##Current Policy Reference# | H226: ="#"&I226&"#"&actCaseAnnGHG_2&"#Electricity" -> ##Current Policy Reference#Electricity
A227: ##Current Policy Reference# | H227: ##Current Policy Reference#Electricity
A228: ##Current Policy Reference# | H228: ##Current Policy Reference#Electricity
A229: ##Current Policy Reference# | H229: ##Current Policy Reference#Electricity
A230: ##Current Policy Reference# | H230: ##Current Policy Reference#Electricity
A231: ##Current Policy Reference# | H231: ##Current Policy Reference#Electricity
A232: ##Current Policy Reference# | H232: ##Current Policy Reference#Electricity
A233: ##Current Policy Reference# | H233: ##Current Policy Reference#Electricity
A235: Other
A236: ="#"&I236&"#"&actCaseAnnGHG_2&"#" -> ##Current Policy Reference# | B236: Agriculture: Enteric# | C236: Agriculture: Soil Emissions# | D236: Agriculture: Manure# | E236: Agriculture: Other# | H236: ="#"&I236&"#"&actCaseAnnGHG_2&"#Electricity" -> ##Current Policy Reference#Electricity
A237: ##Current Policy Reference# | H237: ##Current Policy Reference#Electricity
A238: ##Current Policy Reference# | H238: ##Current Policy Reference#Electricity
A239: ##Current Policy Reference# | B239: Cement# | C239: Pipeline Fugitive Emissions# | H239: ##Current Policy Reference#Electricity
A240: ##Current Policy Reference# | B240: Oil Extraction Fugitive Emissions# | H240: ##Current Policy Reference#Electricity
A241: ##Current Policy Reference# | B241: Petroleum Refining# | H241: ##Current Policy Reference#Electricity
A242: ##Current Policy Reference# | H242: ##Current Policy Reference#Electricity
A243: ##Current Policy Reference# | H243: ##Current Policy Reference#Electricity
A245: PG&E
A246: ="#"&I246&"#"&actCaseAnnGHG_2&"#" -> ##Current Policy Reference# | H246: ="#"&I246&"#"&actCaseAnnGHG_2&"#Electricity" -> ##Current Policy Reference#Electricity
A247: ##Current Policy Reference# | H247: ##Current Policy Reference#Electricity
A248: ##Current Policy Reference# | H248: ##Current Policy Reference#Electricity
A249: ##Current Policy Reference# | H249: ##Current Policy Reference#Electricity
A250: ##Current Policy Reference# | H250: ##Current Policy Reference#Electricity
A251: ##Current Policy Reference# | H251: ##Current Policy Reference#Electricity
A252: ##Current Policy Reference# | H252: ##Current Policy Reference#Electricity
... 105 more rows

Sheet Energy GHG Emissions
Q1: Chart Legend
K2: Active Case 1 | M2: Reference | V2: Emissions are in MMT CO2e.
K3: Active Case 2 | M3: CEC 2050
K4: Active Case 3 | M4: CEC 2050 High Biofuels
K5: Active Case 4 | M5: CEC 2050 Hydrogen In Plus
K6: Active Case 5
AJ13: ="California GHG Emissions by Sector - "&$I$37 -> California GHG Emissions by Sector - PATHWAYS - Reference | AU13: ="California GHG Emissions by Sector - "&$I$46 -> California GHG Emissions by Sector - PATHWAYS - CEC 2050 | BA13: ="California GHG Emissions by Sector - "&$I$55 -> California GHG Emissions by Sector - PATHWAYS - CEC 2050 High Biofuels
I37: ="PATHWAYS - "&actCaseEnGHG_1 -> PATHWAYS - Reference | BA37: ="California GHG Emissions by Sector - "&$I$65 -> California GHG Emissions by Sector - PATHWAYS - CEC 2050 Hydrogen In Plus
J38: 2015 | K38: 2016 | L38: 2017 | M38: 2018 | N38: 2019 | O38: 2020 | P38: 2021 | Q38: 2022 | R38: 2023 | S38: 2024 | T38: 2025 | U38: 2026 | V38: 2027 | W38: 2028 | X38: 2029 | Y38: 2030 | Z38: 2031 | AA38: 2032 | AB38: 2033 | AC38: 2034 | AD38: 2035 | AE38: 2036 | AF38: 2037 | AG38: 2038 | AH38: 2039 | AI38: 2040 | AJ38: 2041 | AK38: 2042 | AL38: 2043 | AM38: 2044 | AN38: 2045 | AO38: 2046 | AP38: 2047 | AQ38: 2048 | AR38: 2049 | AS38: 2050
